Workbook

Sheet CB_DATA_ (hidden)
A1: Crystal Ball Data
A3: Workbook Variables | B3: Last Var Column | C3: 0
A4: Name:
A5: Value:
A7: Worksheet Data | B7: Last Data Column Used
B8: 5
A10: Sheet Ref
A11: =CB_DATA_!#REF! ->  | B11: ='Risk Register'!#REF! ->  | C11: =BaseUncertainty!#REF! ->  | D11: =YOE!#REF! ->  | E11: =Inflation!#REF! -> 
A13: Sheet Guid
A14: dba1d862-2d72-46de-882c-86a723b72000 | B14: 1a7e5721-4723-4f17-8bab-22b109129df2 | C14: 5eb71ec8-02dd-4e54-b9c8-97a51d7d357d | D14: 4e899777-0266-47fb-92c6-db5319e3fb78 | E14: 961edc1e-cbb6-4eea-8007-76670d613c0b
A16: Deleted sheet count
A19: Last row used
A20: 31 | B20: 31 | C20: 26 | D20: 31 | E20: 26
A25: Data blocks
A26: CB_Block_0 | B26: CB_Block_7.0.0.0:1 | D26: CB_Block_7.0.0.0:1
A27: 㜸〱敤㕣㙢㙣ㅣ搷㜵摥㔹敥㉥㜷㤶㕣㤱ㄶ㘵搹㔲ㅣ㥢㠹攳㈷㔵㕡㤴慤挸㜲㈲搳㝣㠸ㄲ㘳㑡愴戵㤴散挴㌶㔶挳摤ㄹ㜲慣㥤㕤㝡㘶㤶ㄲㄳ㈷㜱搱戴㜵ㄳ㈴㘹搵昴攱搸愹㔲晦慡㡢愲㐰㕦㡡〳昴㑦㠱〰㉤ち愵慦㈴㈸〲昴㠷㥢ㄶ敤㡦ㄶ㠵㠱愲㘸㝥〴㐸扦敦摣㤹摤搹㈵㜷㐸慦敤㤶㉥㌸搲㥥扤㜳敥扤㌳昷摥昳扣攷摣㘵㐲㑢㈴ㄲ㍦挵挵㙦㕥㈹ㄶ㙥㉢慣㝢扥改㡣㑥搵㉡ㄵ戳攴摢戵慡㌷㍡攱扡挶晡㥣敤昹㍤㘸㤰㈹摡愸昷搲㐵捦晥戴㤹㉤慥㤹慥㠷㐶改㐴㈲㥢搵㤳愸攷㐳昸ㄹっ㙦㜴昶敡㑦〱㉣㑥㑤捥㉦㍤㠷愷ㄶ晣㥡㙢ㅥㅡ扥愰晡㥥ㄸㅢㅢㅤㅢ㍤㝡昸搸㤱搱挳㠷㠶愷敡ㄵ扦敥㥡㈷慡㘶摤㜷㡤捡愱攱㠵晡㔲挵㉥㍤㙥慥㉦搶㉥㤹搵ㄳ收搲攱〷㤷㡣㠷ㅥㅥ㝢攸攸㔱敢昸昱㠷晢昱敡挴搹愹挹〵搷戴扣㜷改㤹㘹づ昹愱㘹戳㘴㜳㙥愶改摡搵攵搱愹㐹晣㡦㡣ㅦ㜷挷㐶ぢ㉢愶改昳搵愶㙢㔶㑢愶愷愳㘳㥦㌳攱㜹㜵㘷㤵㡢愷㍢㌳㤸㙡挹昰晣戴㌳㘵㔶㉡扡ㄳ㍥㌵敢捣㘳敤㉡挶㝡扦㔳㌰慢㥥敤摢㙢戶扦㥥㜱ㄶ昱愰㜲摥㌹敦㤹攷㡣敡戲㜹搶㜰捣戴㜳慡㙥㤷㔳敡㑡昴摣ㄳ㍥㈲㍡㌰㤹晥攸㠴攷㑣慤ㄸ慥㡣挸攳挲挴戴㥤㜱㑢慤㙤敦散晣㕣づ㕤摥挰㘷摥搵戹ㅤ㙡㉥ㄸ㙥愳攵㐸攷㤶挱攴㕢㐷昰㐰攷昶㤱㌵㙡敤㜳㕦攷㍥戲㤴慤慤戵扥㠰扦㘵㐵㌱ㄹ㍤㐳搰㑢㤰㈵㈰〱昵ㅣ㐱ㅦ㐱㍦㠰㤶晡㑦㐸㐹戴㈳慢㤲㐵㈳㔹㕣㑡ㄶ㑢挹㘲㌹㔹㌴㤳㐵㉢㔹㕣㑥ㄶ㔷㤲㐵㍢㔹㝣㉥㔹扣㠴㌶攱㤵敤敤㑤〶搷户晥㈹㍢昷㕦㠵敦捤㝣挹㝡昴戳晦㝤晥搴㜷晡昷愰搱ㄳ挱愰愶㕤攳㌲㔸慤挹挵㤰〸晥摢㕡㉡㈰ㄴ搶㔱敢㤸㌵㌶㔶㍥㝡搸㜸搰㐸㜳㕡㌱挴㙦㘱㤴㐱戴敤户㥥戴慢攵摡㘵愱摤㙤㤳㠶㘷㌶ㄷ㙥㈴愸㥢慣搵慢㘵敦〳㥢㔷ㄶ㝣挳㌷て戶搷㌵ㅦ戲愱㕢〱㘲㘵㝡昲扥摢摢扢㕤㌰㉡㜵㜳攲㡡慤慡㍦搸㔶敤㉣戸戵愵捥戵㌳慥昹㝣愳㜶挳㠸㈶愰搴搶攴搹ㅢ㘶愹慡搴戸㠶愷㔶㙡㥥㔹㤵攱㡤㌸ぢ㜶改㤲改ㄶ㑣慡㐴戳㉣㔳扤㤹㔵㠱搴㡦捣㔷㌱㔱㐸㙢昹挳㔱慣㜵昲㡡て㘱㌶换ㄸ敦慡改晡敢㡢挶㔲挵摣摦搲㐴扤ㄳㄵ〷㕡搰㌳戵㔲摤㥢慡㔵㝤户㔶㘹慤㤹㈸慦ㄹ搰㌴攵㌳戵戲㤹㑡㈵㐴㈹㐰攱昶昴㘸㕡攲晥捥戲㈰㠴㠸㤰㤸㠲㝣㙢㉢摢㡤㥥挳散㌰㡢㡡㐹㥥㑣㝥㘴㡢㠷㜱扣愲㘳㘲㈴㌰㌲㈷摡て扥昴摥㉤ㅥ摢愰摣㝢摢㌸㤹ㅣち㘶㝦㜲捤慣晡愷㡤㙡戹㘲扡戱搶㑦攳㠸昴〱㠰昴㕢㔰〸ㅤ㔷㡦愶㑥扢愲慤愷㉦摢㘵㝦㈵戳㘲摡换㉢㍥㜰戰㤰搹㉣㤷㜶挳愵摦〴㤴扥㤷㘰〸㈰㤷㑢㘴昶戱㔱㈶㠷㉢㤱愶㜶㡡㤱攵ㄶ㐵捥㝥㉤戲摣㙦捤搸ㄵ摦㔴㑡㜹挰〲㐵㤴㔵ㄳ昲攵挹愲慥㔱㔲〶㘳㥦㌵〵㉥㌵散慡扦摥㤴摢つ㔲愲㤸㘸㔷ㄷ散㌸㕤㐰㔵搰慡て㘲㘴つ㑣搳愶つ攲ㅢ㐷㤸㠸㘲㄰㘳搹昱攴㔶㈶㘳晢ㄸㅤ㠱昶㔱㈶㘴敢挳㥤㜵〴㤹㝤㈳㤳戲㔳㐷㜹摣搵㘶㥢昹昲㑡㥢摤㡣㠵搳昷ㄳ摣㐲㜰㉢挱〱〰敤㕦愰攱愸攵㔰㙥扤昴て攰㕥扦㡤攰㠳〰搰㑦㍡㜵㑥愰慡攸㐳㙤挷㡦㘴扢㍣晣㘴㜱㡡㤵㉡愲㘷摣昰㌳昳㡥㄰㍡昰㍡㜷㠶慤㑤㠹㡤扤扢㌳㙦㐶愷㐳㡥㡣㘹ㅡ㥤敢ㄶ㑤愳ぢ挱愶㕤摡慤㍢搰㔵ㅦ㈶昸㄰㐰㑥晦㌰㈱㡣ぢㅤ摥敤㜹昴㜴㈹摦ㄷ㙥㤱㜲㠶扡㌴昰〱㈳㜳ぢ㄰愳攴㌶㙣㕦㜶㝤㘸扡㠳㈳搶晢摥㠷㍥搴㔹扥〳愲户搹捤㕤扢挳㜸搱摢昴愲敦㠴㜸㘹晦搰搱挶摣㠵㙡晤㙥㠲㝢〰摡㙣っ㜷摦㙦㌷㔲㈰㙥戱ㄳ愱摣㕥㐶㕤挴换㕤㕣㕦㌵挵〲昵㕢㡢㠶扢㙣晡㠸㘰捣㑥挳ㄷ慥戹慥㔹挱愶戶㉣〸敥㕦㙥㘹㐵㝡㌳㙥捤㈱㝥搷㐷昶摥ㄷ㠶㈱㤵㑡昶㈴摡㝣攴ㄸ㕦㌳ㄲ㜳㡡㜰づ㙤昰㠳㥤㤵㐴愴㔳㉢㝢戱㕦晣晥㜲㔷㤳㜴愱㐹敥挳戲敡昷〳㐰㑢㘸㍦攸愸㔱づ戱搹捦㐸戳㔶㡦㤵ㄱ扥㤸摤㐹㕢っ㜱㠳ㅥ改㔳〱摢㐹挴て扣扣㔳戰㥤㠶戲攸㜳ㄶ㑣户㠴搸㠲㕤㌱㜳㉡㉣㑢㔵戳慢㉢摥㈷扡愲愷㘷挳㝥㍡㈶扥㈶㝣搲愶㈵㘲愵㍤戶㌲㘶㉦摥㘴㉡㠶㈱愹㔴㘲㐲㐳つつ㐴捥㘳摢㕤ㄵ搳㠵㡡㜹〰ぢ愷ㅦ㈶ㄸ㈳㌸〲㤰晥㉥㌴捤㜶ㄷ㥥改戰摥㌵㠶戴㡢挵㐴㤶㘴㤰㄰攱㡤㡥捡敡㈸㕦昳㔱㠲㘳〰㙤敥て〳㤰㌱㡣㈸㈴㡦㌰愲愴㌱慣ぢ戶㜹㤹㍣戰挷㐲㘲㘹慡敥昹㌵㠷㤹愵扣㌵㕤㍢㕢昳愷㙤㙦ㄵ㤹愸㈱㉢㈸㍣戹㘲㔶挱㕤㉥㝣㥦㌶㕣㙤㜵搵㉣敢㔶愱㔶㠷㙡㥢㥤摥〹ㅢ㜳㉣〷㝣㐹搹㥢㈷㌵㕣摤敤㡦昱〸つ㉢㉤昱㔶㐶㘳户ㄵ晤收愶㙦愰戹愲㡢戶㕦㌱晢㉣㈵㜴㉣㘷㉤慣㈲㌲〷攵㕥㙢㜱挵㌵捤改扣㜵捡戵换ㄵ扢㙡㤲ㄸ昰㌱㤹慣㥢㌳㤷㤱㈵㔸愸㌱〷㔸慢收慤㐵搷愸㝡慢〶ㄳ㡡敢㝢㕢敥㈴㉤㤲戶㈶敤慡㠷搷〸ㄵ㔹ㅥ戰ち㉢戵换挸搸搶㥤敡㈹㘳搵摢ㄱ㔴㈱搳慢㑢㐸愳㈵戵㘴㔲换㈶戳摤搲㠷ㅢ昲㐴㠲戲㤷㈲㄰㕡㈵搲㡣㤹挷㔸㙦晡昵㐱㡥㠶㝥㍡挷搴㡦散㔱〳搹ㄳ慢㠵㈹愹晡㜱昶㜹〴攰ㄳ愷捥捦㌶㌳㜳敦㈸㘷㥤㘶㤴㍦㐶挷ぢ㕢㌴ㄲ㈱㡣搱敤㔱慣㐲ㅣ㌹〷ㄲ〸㡡昳慥㥤晤㜲㤶戴㈱昷敤㘹ㄶ㘷㤰㐹敡户收㡣㈵戳㠲㝣戴㘳昸㝢搴つ摤㔸挷愸㜸㐱摤㔴捤㜱っ戲ㄶ搹戲㔰㌲挸挱ㄳ㜵扦㜶挶慥敡ㄶ㠰昰㕦㠰㌲慥〰㘵㕣ㄱ㔴扦㜵㡥愹㐱㈹昳㔹戵㘵挳戵晤ㄵ挷㉥㘵㜹挳昴摤㡥攰㐹〸㌹㌵㙦㜸㠵㍡㘳戸捤㥢㍦て㤷捤ㅢ〵戹㐷愱㐷戹㜴㈴㍦㌸㌷愹㘵昰㑦敢㌲戰〴〵㈳㤱㔲晤攳㜸㕡㕡㑥㐷㐰攵挸昵㔶㜸〶攳慤捦〳愳㤴㄰愹ㅥ挳㈲㠸ち㐶㤴㍣㐳摣ㄹ敢㝣搵昶㐱㍤㔲㙣挶昶愷㍤㤰ㅣ〰㐵搹摥ㅥㄴ慡㐶㍡㡤㌴慣挲ㅤㅢ慢㕡捣挴敤ㅢ敢愳㜶攳㈳㥢㔴㉢㡢ㄲ㌱㈴㕢㌵ㄲ换戲挹ㄸ㜷㤲愹搱挴㜰㠷搶㐶㡢ぢ㥢㌶搷㥤㕡攴ㅤㄸ㈶攱㤹㠴晥愸㌰㡡搸㈸㝤ㅣ㘵㠶㙥ㄹ户㡦㘷㤱㐸搶㠶㝥㐰㡥戶㑡攱昲㐱㕡㜰ㄶ㐷㑦捡㘶㉥戸㠳㡣敦〹㡡昳㜵扦愵挶戸㌲ㄴ搴㑣㔴㉡昳㔵㜸ち㈵挳㉤敦㄰戱挶摣㤴㤵ㄱ〹敤搶〳挰㔳㜰㐵㠴ㄱ㘱昲挷㠰攱㕡㌳㍤ㄲㄳて㠶㌸㐲挸㈲㤹㔵㝡㘹㜹㉥㜷〳㥤攵摤ㄹ搳愸ちㄵち㝥㜹摡㕣ㄳ㜷慣改搱て㐹㠷挶慥㔱昴愹㙥㑤㉣㜹㌰敤㍥昵㜹㔰ㄲ㐱搷慤㜳っ㑦攱㌰〳搴㙦㔰㕡㈸昹㐸昱㌶ㅥ挰ㅤ挲捥愱㄰㔶㐴愵㔰攸愵㔱㤳㘶㘲㤸户㜵ㄲ㤴愱㉥愹ち㠵㙡挹昵ㅦ攳摡搷㕦收昵晡㜸㈲㉣〴づㅦ搳㕥㌱㕥〴㠸ㅢ捤㔰㔲㤲㠶挲挴戹搲㜰愲扣晡㐳ㅣ㕤㡤㍣㕤㍦搷挷㘹ㅥ收戴〶㈸㍡ㄵ㥣㜷昳㙤㔸搵捡晡ㅥ㙢戶㕡慡搴换愶㤸攴㔰㘷㡢㘵摥ㄱ昴㤲愳㠰㑡愲㘲搶㈵㔸㤴㔹㙣愹㌸㘵ㄲ愹㝢晦㕢㥦㐰㜷㔱㜶㜸㐶㑥㥦挲ㅤ攵㡥挹挸㤸㄰㥤㈴挷㌶㥣㔹愰慦戸户㜹㤸㐱づ搲㐱戵㙤㐰㔱愷捤攱㙣㕥㈳愳㉣ㄲㄷ㘹㌶㔷㥢慢搱㝦㡦愰㑥摢ち戵㈳攸㠴㜹㉡挵㤷挹挰㌱改㔲㐲昸㄰㘸㍤昹㑡扣昵昹攰ㅢ㐶㐶ㅣㄱ㡤昹㕥敥㠸ㄲ㔸㔵〸ㄳ㥤敦㘴搳〳搷㤸〹愶ㄷ慥㑦〳㘸㑣〹搳戹㐵㑢攵散捣愰扣戵戳㜳〷㕡挵㘴㑢愳㠹㔵收㉢㠷㄰扣〷搱㈰㔱摣㔴㉦搶㘰㡣晣㝤㜲㐸㉣㍣愷㌸攲㘰㍢㔴㜳昷户㈱ㄷっㅦ㐷㘱慡〷摡搰ㄳ攵㌲㕤㕦挴敡㜶〴㔵㜱㡣㐳戹愶晢摡づ㘸挹㥣攸敢摤搹㔶ㄱㅣㅣ㍣㌲㍤㝡摡昰㑢㉢〵㝦㕤ㅤ攲敡㤶㈵搲摦㐶㙣㘲搳户搳㝦㑥㔵㜹㈸㜵㡤㙢㥦扢㔴慤㕤慥捡戸搲ㅥ㑦〰㠲㐳㜰㥣戲㤷㠳捣㈵㝥㡡㝦㜲㈵ㄳ改㌷昰挴敤っ㥢て㘸〶㑢昸ㅣ戹㜲晡㉣扥愹ㄱ㠶昱ㅤ挳㉢昰攵ㅢ愷〸挸㉢晢摡㜸㐵㤴挱㉥戳㔴㤷摦㌵㘶搱慥㠳戴㘴ㄸ㄰㍣㍣㌰㤲㑣㘸㝦㠲ㅢㄲㅤ㌴〰攱昴㌹㐲㤰敦㐳昸㡥㈱㥦㈸昴攰搸〷て㠹晣晦愱㔴㈸搵㥢㡡搵晦㠲㔰㙢㝦〴㘲〸㤹㐰㤳㠶㕣㙡㝦搸㑡愶㜹㐵㈶㡤挷㐳㐴㤶ㄷ㠲〲㙦搲㑣摢扥慤〴㌹攷戵扢㌱㝤捦て〲晦ㅦ㙥㑣捦㠱挲扣㌴攵㑢㙢㜷愱摣㜰ㄷ㤲ㅢ摣〵㈶昵挵㕤㈸戰て戳晢捡㕤〸㘲㈳攷㠱搸摡㕤㘰捥㉦挶㈹㡣愴㘰㈳攱づ敥挸昶㍢㡣㥢㥤挶㠱㕣搳㐳㥥ㅦ〶捣㥢㐲愴敡㤶㡤攸〵挳㌵㥣〳㠲㍦攵㥡㌰㙣敥㈲㑥㜸㑢ㄷ昶㌸戸㘹㡤㜴摡㈴㠶ㄱ㐶摦㜷攳㉣摢㍢搷づ㑡愹㑢㠵昵戵慣㤶㜹〷ㄱㄴ㡤㝢㠸挴㘷昶晤晥愹㝦晣昴ㄷ挶㌳㔰㙢攰㔵晤〲㜰戴㐷㑣ㅤ㜷㤳捥愷㙦㠱㠴㙦攴㄰挹捤晣搱捥ㄹ晣㝣挹㕥慤㤸㤳㠶㉢㕥㤱愷㍢㘱㔱㌱㕦㠴㌹ㄵ〳敥〴㤷ㄳ㘷㈲㤴换㌹摡ㄶち㤵ㅦ㍤㐹昸㜰㌴㌲㜰㠹昷㠵㈹㐵慤愳㐱敢搲晢㑣扦づ㤳昴㌶〷搲敡㌵㜲㈷捡㑢搳㝥㈷戴㜹ち㤱㐸ㅣ㔵攴〷攵㌵ㅥ〹〸㌵ㄵ㜲ㄳ攴㤲攸挶㠶㠷〵㐴㔳㝤ㄲ㠵昴〳〰㌱㔹户昶昴㉦㘳〴扢㡡挰㙣ㅣ〸散昲〷㉥㔸㐵㔰㌱㡣搳㜷扢挳㘵㌸㈰㌴㑦㑣攳㡡㕦昳㈹ㄴ㘴㌳㐳挴㔸㠸㝤ㅡ㠵昰㑡ㅦ㐱㘹摢㈱㉡扥㈴敦愸愴㥣ㄲ散戴挳昸㕢捥㌹㔹慤攳㔴〸㙣㑤㐶㡣㐶㜵㉦搱搸愰㑡晥㑥㌵捤㈹ㄴ攱㠰㉡㌶㍡昵〵㔵戰㕢搵〳搸愵㈲㌱挸㕦ㄱ戱㝥愴昹攸㥢摢㙢㘸攷慡扤㤸㈰㍦昰挱㙥㡦ㄱ㙣扣㤵ㄲ〳㉤扢慤㔶㔹㜵㜴晣ㄹ㜴攱愴ㄳ㥡摥㉣捡扤挶晣㜵㈸㔹㍤ㅢ㝤〰㘶戶㐵戲㥥㘵㙦愶戸㕢㝣㠰㈲㄰㕢晡〰摡㜱昶挵㐷扦ㄸㄴ挴㐱㘵㙥㘵换㜴づ㔷〴ㄱ㙦㈴㜶㘴愳慣㑢㤱改㜰㔵㉡攰㠷慤慡㕡㌴㌸㘲㘱愹昶㘳ㄳ㡤扥昴㙦晢㍡㉡㐰收㡤搲搷愰㠲㍡昶㙦搵㕢攱㙥㌷戳㠴㡥晢捥搸㈵户收搵㉣㝦戸㠰㠴昰㌰㝦㤷㘶挱敦㤹搰扥搱慥搴敥挴㑡昴㤷搱攷散㍣ㄴ昶㔹搳㝦户昲㤴捣㍡㙣㉦换挱摦㈸つ㐶㔲㑦戴づ摥㑤搶ㄳ㜵愳㠲㥦戵捥㈳晥改ㄳ戵㈳㡣㥤㡡㐲户㥦摥攰搲攱晣搶攳㠸て㤹㤵㔱㈴捥㘴ち㑦㍦换㜵㙤㕦㠳搶戶挱摣㍣戶散㉥〶㤷㑢扦〲㥡㙥敦㉤慤㉣挳㜷昲搷捡㌹ㅤ扣㐱㠷㐶ㅢ挷户〸挶㌲ち㈴ぢ㍦摡㘳〴昸攸㉢〰攱㤵㥥㐰㘹晢〱㕥昶ㅦ㠲㑣〴㍦っ㘷㄰㙤愴㠲搰摢㌶戲攸㌶扡㙡㡣改㙥ㄸ㠳㌶ㅤ㘲㉦〵〵㌶搱ㄸ㌷愴㌰㙢㕦挳挲㕣挳〷攵㐴挶〱攸㉣ㄷ㔷搱㑣挵㈱搸ㄸㄷ攵㐲㥢㐵㐱摥㕡㐳㈱ㄳ㝣㌴㠶㈳〴扢ㅡ挵㜲昷㉢搸攷㈳搸㐱㙥㠱㔳昸攸㉥㐰扥㐷㍢㠷㉦㑡㐶㑥晢㌲摥㐸捡㈹ち昸挴㠱〲戲戵㐱㔹慦〳㠴㤷挶慤㡤捣攸㡢攸㜰つㅦ搶㘴㉥〳㜴㥥搱㑢㘸戶㜱㐶㜴㕤㘵㤴敢㐱㠱㌷ㅡ摤ㄴ挱㐶摦㍡ㄸ㥡㌹晤㌳愸搶㕦㈰昸㉣挱攷〰〶㐳㙢㌷昰っ敥㌸挳㡣㑡㡣㝣㥢㍣㠴敢㙦㠲敦㌷挷扦㝢㠳搷扦㡦㙢愲戲㔱搵㍡户㈲㌰㌲户ㄷ愳㜳晢㔹㘰㍢捦敤㜳㥢捤㙤昰㈲晡挸㕡晦ㅣち㔸㙢㜲戵捣敡ぢ㐱㠱㌷㠳㘴㙤㐶㠷昴㥦㈷昸〵㠲㕦㈴㜸㠹攰㤷〸扥㐸昰㈵㠰摣㘰挸昱㥡㌰㈱昱㈱〶攵挴㈰搹㑥摥昸㘵ㄴ昲㍤㠳㘴ㄳ㜹昶㔷㔰搰扦㑡昰换〴扦㐲㜰㤵攰㔷〱昲挹㐱㜲㡥㌴晣ㅡ㤱扦㐶昰敢〴扦㐱昰㥢〴㉦〳愰㈱㤹㐹ㅡ㝥㥤挸㔷〸㕥㈵昸〶挱㙦ㄱ㕣〳挸㈷搳攴慦㡦㜵㌶搴昴挳挳㕦ㅣ㈳昷搲昲搳攲㤳昸愹昰㍡てㄵ昴攰㉦㈵愴挵慢㐸㈵ㅦ改敥㔹愱㘷㑦愷㈰㝤ㄱ㘴㝡〷捦㈱戹㥡攱㕣㍥昱㈰㍥㔹挸㈵愵㐵㈸晢摢㐱㐱㈸ㅢ㌲敦㈰㜹㕢挸昲ㅡち昹㥥㌴昹㌷收㤷㘵攲㠰昳ㄴ㉥ㄷ㍡愳愲晦ㄹ攵㜶㘵㥤㈰散扦㈳㡣㑦㤰戰改攸㌳㘴扡㍣㕥愲㍤ㅢ捡搳改搳㑡户㘰㍢ㄳ㈴㍡㈱捦㉡㤷㐳昹攷㐲㙡捦㠴㡤晦攰㝡㌳ㄶ㠸ち㕣㄰㝡搵㤸㝡㐲ㅡ㍦ㅤ㌶㍥㠲㥦〴㑡ㅢ㍣㔹㕤㙦㠶㡤愹㑦愴昱愷挲挶晦㜶攴㐰愳㜱愸㍥搴㤳搳㤴敤㤸捤㤴㙣㉦㈳㝦ㅥ㘰〰捤搳ㄶㅤ戴㍥㑢愱挹愱㜲㘶愱㈲㉥㕡㍦㑥㈲戹昸㠱晥ㅣづ搶攱晣ㄱ慣戸晡㍢ㅤ戳㌸㜰㌷㙤昸〶㝥㝦扦㠶㔳づ慥㉥㜷散㥣戱收㕤㈰㝡慤㔹て㥢昶昲㡥㘲ㄱ昸㥢㈹戵扥㕢㘴㠱㘲昶㈶捤昵〸㌳戳㐹ㅥ㘰敡捥㍢㤱㑣㕥㑡㝢㉡愴㙣攲挵㈶捦攸慦㠳㌸戰㜹㠰㉣攸扦ぢ愸㌲㝦㍣㉡㥦ㄸ愴摡ㄶ㌱晥㍤ㄴ愰捦愹戰愹收戴〲㥥㐶摤㈲愶㔳愳ちㄷ昴戹〰捤敤㐳㑥愳㔲ㄷ昴ㄳ〱㝡扦愰㕦ち搱ぢ〱㥡愷㌳㜲ㅡㄵ扦戴㥥て搰昷ち㥡愶㐰搰㘷〳昴㝤㠲愶㜱㄰昴㤹〰㑤〳ち㤳づ㐸晥捣晣㌱挰㐰昸搷㕢㠶搷㈴㔸㤸搴ㅥ㐷㘳戱挸㔱昶搶慦戳挳户〰㝡㤰扦搰〲攱挸改㙦〰ㄳ㔹っ㡤ㄶ㐵㕥㌹ㄳ扣㔲㑤㥥㌶㐶搰㈷〳戴㥡㍣慤㡥愰愷〳戴㥡㍣敤㤰愰愷〲戴㥡晣搵㄰㍤ㄹ愰搵攴㘹慢愴昵㐴㠰㔶㤳愷挹ㄲ昴㘳〱㕡㡤㠴㐶㑣搰攳〱㕡㡤㠴㘶㑤搰㡦〶㘸㌵ㄲㅡ㍡㐱㥦〸搰㙡㈴㌴㝤㠲晥㜸㠰㔶㈳愱㌱ㄴ昴挷〲戴ㅡ〹㙤愲愰ㅦ〹搰㙡㈴慦㠴攸攳〱㕡㡤㠴㜶㔳㕡㍦ㅣ愰搵㐸㘸㐹〵㝤㉣㐰慢㤱搰戶ち晡愳〱㕡㡤㠴搶㔶搰㐷〳戴㡣㘴㤰㜶㐸㔸昵〶ち㘰㔵ㅡㅥ㘹昶㘰搰散㈹㈰戲㐹㉤晤㍡扥户㉤㝢㤴㡣㉥㥤收扦㐲㔷㡤〲挵㘷攸㝦ㅤㄴ㜸愳㔱㥡㘴㙣㠷㠳戱㡤戳挹摦戲敡㍡〰㐷愸晦ㅤ敦挸㠲搲晤㝢㐱㐱扡㜳㠶搲晤㔰戴晢て搸㐴㕥㡡㐲㡢㠳㌷挸㤷换摡晣㍤ち昹㥥〱扥改㐹㝣㤲㔷戴搲挵昲挵㡢㍦ㅥ㐸つㅦ㑣㍤昵㔸晦换㙦晥攵㡦慥㝥晦㤹ㄳ晦晡㤳㔷㕦晤晥㍦㕦扤昱㤳㍦㕤㍡昱攷慦扤昶㥤㑦㕣扢昱愳扤搶㌷㤳搷㝦㍣昷捤ㄷ挶㉥扤昰扣㜵晥晥㔳㉦㝣昲戹㈷挶ㄶ㙥ㅡ改改改敤扤㘷攸㉦㙥扤㜷昰挵攷摦搰晥散㠷户㔴㌵ㄹ㍣㕥搰㍡っ㑥㐲㠶昱㐳ㄴ㌰っ㡥昸㍤ㅤ〶愷㉢ぢ㜵㜷戰㔰㤳㐰搰㝢攱〰愴攲慥搶㡡扥晦〱晣㑢㡢㜸 | B27: 㜸〱捤㕡晦㙦㈳挷㜵攷㤰摣ㄵ㤷㤲㑥昴摤戹㑥晤㈵㤱㥤㍢戴戱づ〲㈹㔱㈲㘹㐳㑤㈴敡㜴㔶㝣摦㉣改敥ㄲ愷〹戳攴捥㑡㝢攲㜲攵摤搵㥤㤴〶㜶㠳愲昹攲㝣㘹ㄳ㈰㘸搳㈶㈹㠲戶〸搲愰〸㠲晥ㄴㄴ昹㔲ㄴ慤㕢攴㠷㈲㐸㠲㈴㉤㥡㌴改㤷愴㙥㝥㜰晡て戸㥦捦散㉥㐵㔲㍣昹敥攲〲ㅥ㕢㡦㌳㙦摥扣㤹㜹敦捤㥢㌷㙦㉦㈵㔲愹搴换㈸晣㘵挹戲昲攰晡㝥㄰㑡㜷扡敥戵摢戲ㄵ㍡㕥㈷㤸㕥昴㝤㜳晦扣ㄳ㠴ㄹ㄰攸つ〷晤㠱搶〸㥣昷挸㕣攳㠶昴〳㄰㘹愹㔴㉥㘷愴搱㥦晣ㄵ㤲㡡挱㔱㐶ㄶ㘰っ㔴愹㡤晡搲愵收㜵戰㕥て㍤㕦㥥㤹扣ㅡ㌱㔸㈸㤵愶㑢搳㜳挵捡捣㜴昱捣㘴㝤户ㅤ敥晡㜲愱㈳㜷㐳摦㙣㥦㤹扣扣摢㙣㍢慤㈷攵晥㠶户㉤㍢ぢ戲㔹㥣㙤㥡攵㙡愹㍣㌷㘷搷㙡搵㌱ㅤ㥣㉦搶㤷㉥晢搲づ㕥㉤㥥㈳攴㜹愹扥㌴㝤㔱㠶慦ㄶ捦ㅣ㜸㠲攵戲攷㥡㑥攷㔵㘲慡㔱挰㜳换戲攵㔰ㄳ㔲晡㑥㘷㜳ㅡ换敥ㄳ㌴㕡㤵改挵㈰搸㜵㜷愸搴扡㙣户搷愴捤攵ㄸ敥㜲㄰㕥㌶㝤㌷ㄸ㜳㈹㍦改换㑥㑢〶挷摣戳㝢㉤搹㡥〹㠳㥣㝢搵昴㉦㥡慥捣戲㌲攱㐶㍡㕣戵㘴㈷㜴挲晤㜱昷㑡㈰搷捣捥愶㈴㠹收㥥摢㜵㉣㤱捤攲晦㔴收搷㠶慤㑣㈹ち敢㜱敢㕢愶ㅦ慡ㄶ㔵㔸ㅡ㐶摢㘳㉥㙡ㄷ㝤敢愲㐹㑤づ㡣愲捥搶ㅤ昷㐹改㜷㘴㥢㤳㔰㤳㔳〳㐴㑡㐰㤱ㅥ扡㤲㑡戶㐳戱㠸搱昸㈴㜰㉦㥣㐵㌷〰ㅥ搹昰ㅤ㙣㜳户㙤晡㘷㉥㌸㥤㠵搲㤹昳捥戶㙣㍢㌲〸ㄷ㘶捥㕣㌰昷ㄶ㘶㡤㍣攸㡣㔱㡥ㄸ〳挸㉣㕣㈸ㄹ攳㐴ㅤ〳㄰搹㕦攰挴昵戲㈶㘱扡㘱愶ㅢ捤㜴愳㤵㙥㔸改㠶㑣㌷散㜴㘳㌳摤搸㑡㌷㥣㜴攳㝡扡戱つ㥡愴攴㐶㐶搲㜱昹挱搷摦昱挸搳㈷㕥㔸晣捡㑦ㅥ晢搹愷㝥昴捤攳㠲㠷㑣㥤搱〲㉡户戳搴㝢㐰㘷ㅣ〷搰㑦㜰攸挲㤵㤲㜱㤲愸㝢〱㠴㜸ㄱ㑢攵㜲㙢晦昴挱㤷㕥晣晢㙦㥣晤愸晣攴㈷敡㡦晥㤹㍥㜶ㅦ扡㥦㡡挵戳散㥢㌷㘱㜰〷戶㡣〳捣晦㕥昹㄰攳っ摢㜳㜶挵㉥㤵慣戹愲㌹㙢㙡ㄴ摣敤㕡ぢ㜷㌸㘶㕦㜳㍡㤶㜷㔳㤹捦㠳㑢㘶㈰て慣㘹㉡敥㕢昲㜶㍢㔶昰挰昰捥昵搰っ攵晤㠳㝤〷㑣づつ㕢挷攱㤲㠱㥡敦昵㠳挳慥㥡敤㕤戹戸攷㐴摤てつ㜴攳㘸㜹捤㕢昷慥昸昲㤹㙥敦愱ㄵ㉤挲ㄱ摦㔰扣て敤㌲敡㡡搶㌵㔹摦昲〲搹㔱换㥢㜲㉦㍢慤㙤改慦㑢扡㜱㘹愹慤摥换慥昸㝣㑦㕤敡㘰愳㌸戱搶㈳扤㔸晢散㕥㈸㍢㤶戴戰摥ㅤ改㠷晢ㅢ㘶戳㉤㝦愵㡦㈴㥡ㄳㅤ扦摡㠷㕥昱㕡扢㐱摤敢㠴扥搷敥敦㔹戴㙥㤸昰㈹搶〵捦㤲㜰〹㔹㤶㤴㐸㘵㌲㐲愴ㅥㅤ㜶㉥挹㌷㤸㔶㡡攸㔱㌱㍤挴敢晡捤㙥㝡つ扢挳㉥摡㤲㌶㤹㍥昵ち捣ㄴ㕦戲㜹搳慤〹㝢昶挴㍢㡦搴扦㝥㙢㙡戵挶慥收晥㝦㠹搳改ㄳ昱敥捦摥㠰摦㝤挲散㔸㙤改ㅦ㜹㘳ぢ慥挸㜸ㅤ㠰昶㔳㥣攴㕢㑡㡦㥥㐳散㠹㝤敤愶㘳㠵㕢晡㤶㜴㌶户㐲攰㜰慢攷㜲ㄴ敤愱㘲摣て㤴昱〰挱㠳〰昹㝣㑡㝦㠸㐴搹扣昱晡愸慤搱戵摤戹㐷㘷摣㘰愸ㅢ〴搷㝤愰戹㉢㥥ㅦ㘴㌲挳㜶昹㠴ㄹ㙣㠵㌴捦㈳㍢改扢㡤㌷㄰㑣〲㘸㜴挵慦㜸㘱㑣㠰㈸换㝢㜱摣㕤㤶戶㠹㘸㐴㥤㙥㘱㙡㙥㜴挱㉤换愰㘵昰㈶㕣挵㔹搹搳㔱挳攱ㅦ㜳㘹晤㜲㉦㕣㌶㐳㜳挴挵㥤ち㉤ㄹ㈰㥡㔲愳愲ㅡ㐷㡥㉢㕣㌲㍡ㅦ户挰愱愰慡㍤㕣㐶ㄵ㈲攲㠴㠳㠳昳㤲捡挴昰攸㑤㘰敤扣昵昴㐱㐳敦扦ㅢ㜱㘵㕢攷㘴㘷㘳㝦㐷〶㈴捦改㐷㡡㜲昰㜸㤱搹愵㔶昳㑡攸戴㠳㘹慣昴㥣敦敤敥扣㥡㝣挸换㜸ㄸ㈰㈹摡て㘱挵户扦㈷㐶戴㈳㌷愸㥢㐶㈳㤵㈳㌷㘲っ摥换〶慤ㄵ捣㕥挶㡦㉡挶㘹晣攴㡦敡搳㜸㠳摦㐹ㅣ㐱搳ㅢ㜳㈱愱つ㕦慡挸㈸愷ㅡ㤰昶戸㝢捤昳户㥢㥥户㑤㝢㍡愶㕡挱㤶㤴㈱愳㡤搱㌸扡㔲㔱㤴㄰㤹㑣㕦扣搰ㄳ㤶㌰㑥搱摦〴㌰扥搸㙥㑦㈶ㅣ〳晤㔱愰㌲㠸㝢昴㈹㔴ㅥ慡慦慦㉤㑥摥愸㤴愶㘷愷㘷ㅡ换㙢㡢㉢ㅢ㤳㑢㙤戳戳㍤扤搷づ㕣昱ㅤ㠸㠰㤷晣挳搷㥥扤晦㡤攷敥扢昴攱㉦㍥昲㘵攳昸㘷晥㔷㝣㍢敥㌸ㄴ㘵㌰㘸㔰㌱捥㌴㉡攲㕢㈰愳㙢㐱扤扦ㄸ㐵戴㡤ㄲ挱っ〰ㅣ㠴ㄲ㌹晣㐳㌹㙡ち〶ㅥ昴ㄱ挶ㅣ挱㍣㠰㘰昴愱㠲愵ち㉡㐹ㄱ晦〰晥㔴扣㔲ㅥ㈳㤵挳捡㝢ㅣ搸扣㜱㐴㥦㘰㑣㐳〵ㅡㄴ㤸㐱ㄱㄹㄴ㡦昸ㅡㄸてㄵ挰㔷攳㡥挱昰㐷愳㍢扤㠳㙢㑢㙤搱扥敡挸㥢㍣㘷挷㙣㠴捡昵摤㈰昴㤴㔳ㄸ户㤷扤㡢㕥戸散〴㍢㙤㜳晦㠴ㅤ㔷慥㙤挹づ慥㙣ㅦ㌷昷〰捥摢搹㤱㤶㘱慦㝢扢㝥㑢慥㉥扦ㄶ慥㜴㠸〳㜲㔴户㜹㕡愰摣摤㉤㠵㠰㔳挰㑡㔰㔲ㅡ敦㤶㐱㘷愳〲昶㥥挰㐰㔵ㄹ〶㑥ㅣ㐸㜴挳〹摢㜲搴㔶㤷戲慡攷㙣㐸ㄱ㜱㤰㌵㘲㙦㙣攱㄰㉥㡦摢攷㝣挷㙡㍢ㅤ㐹㘵㥣㡣㐸捦换㑤挴㍣㤷扤挰攱摢㘸摣摥昰捤㑥戰㐳昷摤摡㍦摥搷㔲㝥㕥戳㤷㥣㑥㠰㘹㤴ㄶ㔹㥦戰搷户扣㥢㜸㌳敦扡㥤㜳收㑥昰㥡搰ち㑦㑢㔴㤴㙡㐴㕡愴搳㈲㤷捥摤慤㝥昴㘵㜰扢敦攰〱㌴〹㕢つ㝤愷戹㑢愱愹㠹㜸捥戳〴㑡㡦㈹㡤搱挱愰戳敥㔱攳㐰愴挵昵昶㍤㐱㠷㕥晡摤㘴㠴㡡㙣捥㜲捣ち挰㕢捦㕤㔹㍤㜸㠳晣㔲挹〴㡤昱捣㙤㠷㝣捡慤㐴㘶挴㌰㤰㔶㠵搳〹㙢㘰㙢搰㌴昳戶愲愱㤵ㅥ㍢愸慥㈰㙡ㄸ戳捦㥢㑤搹㐶戰攳㥡攱戱愸挱愸搳㌵摢㐱摣㔷昷㕣搷愴搹昱挹扣摥㌲摢㌲㘷㉦敥㠶ㅥ摥愱㠶つ愰㙣㌳㐶㤹㝢㐰㤹㝢㔱㔸㘲慦昱ㄱ愴敡攴攵㙤㥡扥ㄳ㙥戹㑥㉢挷〶ㅦ㉡慦〹㝢㠵て㘱ㄸ㥡㤴挴㥦っ挶㌹㔱戴〱㜵㑦攳㘹㐰搱㔱晤戰敡戴搰昱㥦戸换ㄸㄹ摥㐷㕤㉡挶ㄳ攰愶㌱〶愵㍢㔲攵愵㈴㐳昶搲㜳挰㈸〷㈵ㄸ攲戲摢㔸㡤㉢㙣㘴ㄹ㘵ㅥㄹ㐰㌱〲挹㥦昷㑣㙢挵㙣㈱晤㌵ㄲ㈷扦㜲㔰㉤摤㡤㕦㘰㐸㕢挷㉢〹慦慦ㅢ㡥㈵晤ㅣㄱ敢挸戴㘵ㄹっ敢㤱づ㜱戹㘷㔲㥡㌶㥡ㅢ㌶搷㙡挲敢㔴ㅣ㈸昴㘶昲㔶て昱晦昹㔳搵㌷㌳㑣挹攷㔵慣昵㔶㔴㡤㈷〱挴㈴〰昷㌳㐰㜰ㅥ㈸攳〲㠰昶㌰挰愰㙥晡愳㑢挴愰捣㤹㘴㔵摡㠸㜱㙦づ㌱愲ち㤸㌵戵㤱搱㥥㐰㔷㡦㘲摣㕣㤲㡢搲搷㘱攵搲捡㐷㍥㤶〱㌵搵㤱㑥㘷愱㙡㝤㌰㐹㜰㘸㕡㌰㜳搷愵㡡㠰〵昷愵㕦〴挸昳戰㠰㝦㘳慤㜴㈸㝥挸攷㡤换㈰㐹攵〵愳挰㘴摦㑦挲挷攴昳㉡㐹昲ㄴ搰挶ㅡ㠰㘰搴挳〸愰攷扥ㄲっ㜵㜸㘷愵昴㜵㠰㍢昱㤱㠲〱㤲㝡㐵㙤愰㈲攸㍣改㝥扡收㜸ㄵ昵㔷㌶㐷㐶㔴捡ㅣ慦挵ㄵ㌶〴挳慡㘴㉢㍤㍡㝥ㅢ搰挶摢㐹挰㤰㙢〸挱搳㈴㜸〷〹ㄸ㠵㔱捦晡㙦〲㡣㈶昲㕢戸㍡㔴㠰敦〲つ〴挸㐸㉣㘱慡ㅦ〸戰〱戴昱㙥〰㐱㥦慤ㄶ㙢挶ㄵ㌶㌴㥥扢㐱㜳㍡㜴搴改ㅦ昲㌶て晤㝡戸摦㠶愳㘵㤵收ㄵ搵㜸㔰愲㙥ㄸ扤攷㈳愱㥤ㅤ㝣昱㜶挷昲㔱㍢㝡㜲㈰㥢愰㠶戱㠷㍥㐵晢㉣〲挰㕢㡥攷愲て㥥ㄶㅣ挳愲户〰㑥㕥㜰㕡扥ㄷ㜸㜶㌸戹㡥㐰㘲㤲搹ㄹ㍢㤵㉡㉥㙡㥦〶挷愱㜳㜲㘳搹づ㜳愷㌷昸㕡挹㙦㜷扣㥢ㅤ戵ㅡ㉤㘰㤲㑡挹㙢㘴㠴搳㌰昴㔶攵㡤㤰㘲㠱晥㠷㠳つ〹㌰㥥㈹昰〰戳慤㘳挲搴改晡㔲㝤慤㔱㤵攵㌹换㉥戶慡㉤慢㕣㥥戵㡢捤㜹㈹㑢挵㜲戱㕡㥤㤹戳捣㔲㔳摦散㤲㤶㘶㙣戳㘹搵㥡㘶愵㌶㕢㥥㉦挹㘶搵㥡㤳搵㘲㜵愶㘲戶㘶㘵愵愸㙦㜵㐹㥢㜳搶㥣㌵㔳戵换㌶㐸慤愲㙣㌲㡤㔷慡捥捥㌶慢㜲㘶慥㘵敢㑥㤷㜴扥㘲捦㤶㡢戲㌲㌳㡦㥣㝤戳㕣慥㔶㑢戵㡡㌹㔳㥣㌷㘷捡慤慡㘵ㄵ攸㜰搴㈶慥愳㘲㙣ㄳ戴〹㕣㠰〲㍤㡥敡㘴㡣㘱㜸〴㍢〴捦〰ㄴ攸㠹㔴愷愲㔷㈳㌹挸㈰㈳㡤㈷晡㜶㕤〵㤹㠸愶㘸〹㑢挸散挸㠸㌸㍤㤰昲㌹攴㘲扡㙦㘶㕤愷㠷搱㥥㠷㙡㙦㙦㔰扦攵㜰戰㑡㜹摣㐴挵搸〳挸ㄷ攸㙣戸㈰㝤ㅦ攰㜸㝤愹㠱户㕣昲扡愳戵敢敦〱晥ㅥ攰晢戳昰晡㙦〱㍤〶戴昲慥㐸敦〷晡㝢㠱㌹〶㑣㑦愸㔵愰ㄷ㔳㌲㥢㐲挵㜸㤶㘰㤴㠰㠶㈵㤴ㄷ㘲敢㝤㙣㈵㝦昴㐲㍣愰攲㔹散㤲挷〲昵㤴晥㍢〰户戴㜵昱㕥㤰搱摥挹㔶ㄵ㘵慦搷㔰㔵㤳晦㉥㉡戰㔷㍡㈳戵搵昷愳ㄲ搹㙢捤㌴㙢搵㘲戹㔶㉢换㙡㜹戶㈵捤慡㔹慤㌴敤昲㕣戳㌴㕦㥡㥦㥦搵㍦搰㈵㥤愹挰㤲㕡慤㘶搵㙥㤵捡戳㜳㔶慤㈸攵散㝣戵㠹愴㜲㙤戶㔹㤹搷㍦搸㈵慤㔴捤搹㔲愹㍣㕦㈹㔷收换㌳㔶戱㔶愹搶㙡㜶戳㔲㥥愹捤捦㤷攷㙡晡㠷扡愴㜶愵㘲㥡戳昶㝣愹㘹㤶捡戵慡搵慣搶㙣㥣ㄶ扢㔹挲〱㉡戶㑡〵㍡㑦戵㠹攷㔱㌱㍥㑣昰ㄱ㠲㡦〲ㄴ攸㍤㔵攷挷㠸晡㍤㠲摦㈷昸㌸㐰㠱㕥㔵㜵㤲搴攸ㅦ㉥攸㐰㘹戳攲㍡挴㐶㝢㔲㜶昱〷愴晣㐳㠰㝣㠱㍥㔴〹敢㔳愸っ戳㡢㍦〲㝥㠸㕤晣㌱搰晤㜶昱㘹㘰〶敤攲摤挰愹戵㈹扢昸㉣㕡敡搳㠰㜱て㙡〵㌳改晣ㅣ㉡攳ㄹ㡤敥收昱㠱㌳㌲㍣戴㥦ㅡ捣㈸㥦㐵㠶㜸㥦㕢换㈰愶㠹㈲㠱㙣晡戱扢攳挵㔳愸㠳ㄵ晦戴㜷㐱㘴扦〴ㅦ㕡晢㠱㐷㈷㐷㕥㘳挶㥦㤲昵㜵㠰攲戰㈵ㅥ昵㜱㡡㉣敥㜵㔷〳㥣㐴㝣攴摣昰ㄶ扢㕦挸敥㐹㑥攸㔴㤲攸㍣㝤㠰㔹㙣〶㜸㐸㠶㌲ㄹ㜶挹敦㡥㐳攲㄰户〳㍡愶㤸ㄶ扤昷愰搵ㄳ㐹㍤㜰㠰㕤敤〴㐸攱㑢㉢攱ㄸ㈰慣挸愶㌳㘲㘸昲㈲晥ㄶ〶㔷㤳㌰㌸摢搹㜵㜳搸挳〳㐳㈲挹㈵㈷㔴㉦㌱つ晤挲戰〱昵㍦〷搰ㄶ㑥㕤㌸㔵搲㥥㠶㈶敥㘰㤲㝥挹㜳㑡㤶扣昱㜹㐰戱つ㐰昱ぢ㘳ㄳ㔰晦〲〰㘶㜹ち戳㕣挵㉣㐳摦㘹昱㔶ㄸ〵㔲㌰昸ㅥ戱㙡ㅤ㥥㠳㕦捡昲挶ㄷ挹㥡户㐷㌴挷ㄶ㙡晡㕦〲㘰㡥戵㔳㈵戱㠶㌹㌸てて㐶摥昸ㄲ愰攰〵ㄳㄱ昳㡡搳扦っ〰攲换㈰扥ㄸㄳ搳戸昳挶㕦〱ち㕥㕡挹㜸挱换㡢つ捥㉣㜸㠹戱㐱㘲昱っ〰㠵㠶㥦搴〴㙦〲摡づ晦㝡捡㑢㙦㡥ㅢ㙦㠹㝥㜳昱㙦㈱晥㍤昹㤶〹㕥ㅦ㙡攴㍢挵挳㥦㔸搴晥敤戹㍦昹挵㕦㍣㝥晡㌳㕦㝡㌹晥㝤㉥ㅡ㜹㤸㤳攰㌵㜰っ㝦㠳搹戱㔵㉣㙡㘸㜶散㠹戸㘳㌰㍤㔸㜸ㅦ戸㈸㌷昲ㄵ㔴挶㌳㠲㡥㥥摥㐲慣㘰〴㡦愸㍡㔵㝦㑤捣昳〰㤱㈴摦㡦㥡晥㔵〰㐸昲㙤㤰攴ㄲ攸ㄲ㐹攵㡤慦㤳㤸㙥㌶㈲愶晦搷晦㈶㈲扥〶攲摦㠸㠹㈳戱晦㉤㠹改㡥㈳㘲摥〰晡摦㐵挴㔷㐰晣ㄸ㠸ㄳ㐹攷㡤ㄷ㐸㑣㕦ㅣㄱ昳づ搰晦㌱㈲㝥㍢㠸攷㘳捥㤱昶扦㐹㘲㝡㜵慥㡣㈸㐱敦㥥㉣㔳搰换戳愱ㄴ㑡㙦㥦㑣㌳㐱ㄷ㝥㜷ち愵摦扦㍢㠵搲㝦て㔳㘸〹㉢ㅣ慡搰㘲摣㜱㈸摤昹㌹㜰ㅡ㝡㤸㝢㤲㜱㍤ㅦ㐶㈷㐰慥搹っ㔳㐶敤〸㑤㈷㡤戰摣㘹户㔵㐴㍢㠶捣㠴㡦㑦㤳攷㤱㠴㐳㍥〲㕦敡攳㌰〶挹㌹㍥昴㤲户慦愱㕡捡挳摢㤷㝣㍣㠶㐷散搵〰挹㔳㉢㠷㑦㉢㘱㠸慦晢慦㠵戴〵摥ㄸ㔹㙡㥣㡦㜲㍣㔱搳㐳挳晢晢搰㍤搴㔳㐵㈲㍣㤰㐷昲挵㌱捤㠴挶摤攵㔱昵㙦㘱戲摥㈷愸搵㤳愶换㡡㘹愸㌹ち换㝥㍢昵㌲㤷捤昰搳昸㌶㝥昴敦〰昰戳㠱㡡晢〰昲挶㜷㠱㠹搲㈲敡摢㥥挶扢㜰㜰㠳㝣㜴慤㔰〲〳摦づ㐷㐷戹敢愴㘴改换㡦扡㐸攸ㄳ㐷摣㠶挹㝦㙢㤴㜳ㅢ㙤搹搹っ户扡晦扥㘸㐴㝤㠹㌴扥〷㈲㑥愵㡥ㄸ㍤㌷戹ㅡ摦敦挵搲㐵㉢散て㝡戱昴挵ち晢捦扤㔸㝡㈸㕡户晥㉦〰户ㄶ搹愹愱㈲晢㔷づ晣㈱㐰扦挸㝥〴㑣㡦挸〴ㅤㅤ挵㤶ㄴ㐱㘷愶㤶昲㘳㔴扡㥢愱搷㔲搸㥦昴㘲㕦㐸戰晦摥㡢愵ㅦ㔲戴晦搱㠳搵愸挲摢戶㌱〱攲ㄳ㌸㡤昱扦昱㕡㐲づ㜰慡捤㝦攱㌵㉣愵搴㥦㜲晤㑦っㄵ㌴っ昲㌰晥㉢慥戰㌱㐱昵戰㤲愳㌲㈷愸㤶㠳ㄶ搵㜱搰愲ㅡ扡㉤㐱㔱㜲昹挶㑦㠹愶〴搹㘷晣㉣慥戰㌱昱攳戸ㄱ昱愶㤴扡攳㈷㈸㥤㠳ㄶ愵搲㙤〹戵㕣㘰㡣晦〶㐸㑡㠱换愶〷㌷㕥〴挰㈵愵㈶㘶晢㝦〰㤲㔲攰〲ㄴ搵捦㔱挱㘳㈵㘱㈱㌸㑡摤㘹㈷㘰ㅡ扣搳㤶㠰挸攱㌹㥥っㄷㅣ愱㈸㡥昷㔳㡣晥ㅦ㍡愴挶㙣 | D27: 㜸〱攵㝤〷㝣ㅣ挵昵晦㡤愴㕢㙢捥㤲㜵戸㔰㑣戱㌰㌶ㄸㄷ愱㕥〰〷换㤲㡤つ挶㌶戶挱㄰〳攲㜴户㘷〹㑢㍡㜳㜷㜲㐹攸㌵〱㐲㌱㈵ㄴㄳ〸㈱愶㠶摥㈱㠴㕥㥤㐰ㄲ㤳搰㌱㍤㠴㠴㄰㕡〸〱晣晦㝥摦捥摥敤㌵搹昰挳㥦て㥦捦㝦㜵昷㙥摥㜷摥扣㤹㝤㙦㘶㜶捡敥捡愷㝣㍥摦〶ㅣ晣攵㔱挲挰㜶昳㔷㈶㤲㜶㙦㔵㕢慣愷挷づ㈷扢㘳㝤㠹慡搶㜸㍣戴㜲㔶㜷㈲㔹っ〱慢愳ㅢ昱〹㝦㐷愲晢㐷㜶㘹挷㌲㍢㥥㠰㤰摦攷㉢㉤搵㐵㠸ㅦ㙣扥㐱㤷搱㑣愵㑢㐸㈰攵搳ㄶ挹㈰㤲㔲ㄲ㑤ㄲ㈰㘱㑡㕤㐶㔲づ㔲㌶〴㘴㐱摢搴㌹㥤㐷愰ㅣ昳㤳戱戸㍤戱昲㐰㈷户挹㌵㌵㔵㌵㔵つ搵㑤戵㔵搵ㄳ㉢摢晡㝢㤲晤㜱㝢㜲㥦摤㥦㡣㠷㝡㈶㔶捥敤敦散改づ敦㙢慦㕣㄰㕢㘲昷㑤戶㍢慢敢㍡㐳昵捤㌵昵つつ搱㤶㤶收戲ち㘸㥥摤㌶㜵㙥摣㡥㈶扥㉢㥤㐱敡㥣搳㌶戵㙡戶㥤晣慥㜴㙥〱㥤㔰搹ㅥ敢つ㜵昷㝤㐷㑡晤昴㐶㕤扢ㅤ敥愶摢㙣㍢摥摤户戸ち挵捥㌰㌴戸愶慡改戰㜸㌸㤴㐸戶搹㍤㍤昳散㈸㍤㔶搶㑢㥢搹㜱扢㉦㙣㈷㠶昴㑥㕢ㄱ戶㝢㑣㜴愲戴昷挰㔰㝣㜶愸搷㉥㘱愰愲搷昱摢捣㠸摤㤷散㑥慥㉣敦㍤㈰㘱捦ぢ昵㉤戶㈹攲敦摤扢扦㍢㔲㔲愲㑡㑡㝣挵扢攴㉢㡣昸愶㙡㝡㍣摣搶ㄵ㡡㈷㠵愳搷㙡昲挹㝡㙡㠸ㄴ㍣愳㔸慣㐵㤵㔹愹攸愶昹摤扤晢摡昱㍥扢㠷㤹搰㜹ㄳ戲㠴挴㈶㡥改㔳挶㜱捦㠶㡥㔱㠳㑤㑢攱愹㌰ㄷ㍤㤴㘴ㄸ㠸㌵ㅣ㘴晢〵戱㘴愸愷㜲㙥㍣挶晡㕢搹摥ㅦて戱㌵㑤慣㕣搴ㅢ㑢ㅣ慡㐷㔰㜸㑢㄰㔵昲ㅥ摡愰㔷ㄹ摢㐱㔱㐷愸愸愳戳愸㈳㕣搴ㄱ㈹敡戰㡢㍡愲㐵ㅤ㡢㡢㍡扡㡡㍡扡㡢㍡㡥㈸敡㔸〲ㄹ昷㈸ㅤ㌴愸挸ㅣ〷慤晤昰搲愶昷昷搸攷摥昱ㄵ㡦捥㔶敢㍦㔲㙣㜶搲晥戶㐶㐰㙦〳㘲㡤〴ㄹ㌵戹㙤捥散戶搶〵搳㘶攳㍢㙥㙡㕤摤挴搱㤵愳㈷㡥㙥㍢㜸㘲攵戸㌱扢㡥摥㔵㙦㑢昱敤㐰㤴㝡ㄳ挵㘳ㄱ㑦㌸敦扥改换㘷㉣㤸㜲㕦㈰㌰晦搹摢㙡㍥㔱㙣捤愲㝢〷ち㡦〲戱㉡㐱㑡㈶㑦慤㘹搶㍢ㄲㅢつ愲搴㉢㐶㠱ㅥ㜶晦㑦㑡摦摣㜳摦戳㙦㍡㙡攱挹慢晦㜰愵㘲㑦㈰ち挶㔰㜸㉣㠸戵㌳挸挴㡣挲㡤㜶散搸ㄶ㑢㈴㔱挴㌱晢搴㔷愳慣〷捦㤹收㤶㜴ㄷ愶ㅤ〷愲搴㕦㑤㐶晦ち㝦㜵摢愸㤳户㥢㝤㘷晢㜶昳慦㍤愶敡㐹挵扡㉢ㄹ㡤愷昰〴㄰㙢㈲〸㑡㕡㕢愳㈷ㄱ慢〲㔱敡㡦㐶㐱攷攷〷扣㍤㘶搷ㄱ㔳㑥㝤扤㝦㐳摤戳ぢ㤷㉢昶㔴愲愰㥡挲㌵㈰㔶㉤〸㑦戵㐱搷ㄱ慢〷㔱敡㘹愳㈰昴慦㥦㉣搸晢㠸㠷摢搷摣㜲晣㠹㌷慥晤晤てㄴ㝢㌹㔱搰㐸攱㈶㄰慢ㄹ㘴挰㔳㥤㡡㔳慤ㅣ㕤㤹㜶㑡ぢ搳敥づ愲搴愳㈶愳㌹㘷㑥㜸㘶攸挸㝤㕢㙦㕡昸㐹攷㡡戵㙦摤慣搸㤳㑡㐶㝢㔲㜸㌲㠸昵〳㤰慣摡搸ㄶ敢㕤摡㘳戳㍥㔶戶㠷㤲戶摥㡢挲㔳㐰㤴晡㥤搱扣昸敡扥㐱㐷㕥㝤挱昴ㅢ捦搹㜹昵㠶て〶ㅤ愹㔸㉤㐵昳㔴ち户㠱㔸敤㈰戴㐱愳㥥㐶㙣㍡㠸㔲㜷ㅢ〵㝦㙤㥢㜶捤㝢敢晦㍣敢㡡㠷晦㔷㌵昳捣收㉦ㄴ扢㜶㔱㌰㠳挲㌳㐱慣㝤㐰愸愰㑥敦㑢㙣ㄶ㠸㔲户ㅡ〵㑢挷搴晤昹慥㔷㔷捦戸戶㜱户昳㝥昳攵㔱ㄷ㉡㕥ㄶ㐴挱㙣ち捦〱戱收㠲㔴㘶搴㤷㔴㘵昶搴㤱晤㈹㍦て㐴愹摦ㄸ攵慦晣昶挳㤰扡昹㤸改㤷㍤㜷昱扢昵㙤㘵ㅢ捡ㄶ㈰㝡㝦搳愴摢攳愱攵攸ㄷ搳㕤㉥慥㌳晣摢昸戵〶㤷㥡㘸㐳戴㈹㕡㔳ㄳ㘹愸づ搵㠵晣散ㄴ㌶戵㠷㘳户㔱ㄶ㕤搸摤ㄷ㠹㉤㤷㉥慦㉣㍡扤扢㈷㘹挷㥤晥㉦㡡ㅦ愷摢ㄶ扥㍣㍡㙤〵慥㜷㘱愷㜷ㅣㅥ㙤戳攳㐹㕣㈷㤲㉢搳㕤收㜶㔳㐳〹㍢捤㑥㌰扡愷挶晡晢㈲㠹㙤昳㐷捥㑦愲㐲㡣捣㡥㑢㉢挹㐹㌶ㅦ搷㄰㍢㈱㐵摡㈱㍢搹㠱愱㥥㝥扢㜵㐵户ㄳ扤㝤㔶㌴慥㈶戱捥挲戱搳攳昶㤱愹搸㥣ㄲ戵㘲㜰戲㑣㜴攷㥣愵ㄳ攵㤴慢戲慤㉢㤶戰晢愴㜸ㄳ㝡攷㜶㠷㤷搸昱昹㌶㠷㌶㜶㐴㑥㜵〴愳捣㈵㙤挲㥣㍥㥣㈸㉥㔲㤱搱㕥㤴㠶戶晢㈲㜶〴攵㕤ち㉢慦㕣㄰敡散戱户捣㄰㜱昲㐴挴㌶ㄹ昰昴㔸戸㍦搱ㄶ敢㑢挶㘳㍤㤹㌱慤㤱㘵㈱㕣㐶㈳晢挵㈲㜶㠹ㅣ㍥㠷㉡㕦㜱戱㔲扥㜱昹慥㐷搴㥤攰ㄵ换㔳㐹㜸㕤ㅣ㔸搸㕢㠹㈰㥣昷㑡㤷搲㡣㠰愷㤲㔱昹慥〳㤶挴㕢〹㈹㕤㍤愰㜴㥥㑡捡㐴㕢㘷㌶扣慡㜹昰て晣搰㘳戳㔵ㄶ㡤㈹慣㌲㕤㉦㌷㔲㔲㡦㔷㌸㤲愵昴〰㐶ㄳ戵愹扡户㜹㠵㡢㡡㠶㤹戳㥦戶っ㠳愵ㄹ愱扥㐸㡦ㅤㅦ㜰ㅣ慥㔸㈲㝤〰挹㠱㈴ぢ㐹づ㈲㌹ㄸ挴扦〶㝤㕣㐱㡢㜲㐴愰㔶愸㤵晥攵摤㤱㘴㤷搵㘵㜷㉦敥㑡〲挳昸扤戴㤴收㑥愰㥢摤て㔳㠱㕦㐱昲㉣づ攲昵㈲㤲㐳㐸づ〵〹〴㝣搶㘱昸昵㤵〴㜴〷㝥慣挳㐱㉡摣搱㘲愵㔳㌳〳捡捦㤱搰㌷ㅦ慦㐹㠶㌲㍣挴昸㍤攱敦㠵摥㐴㜱㜱㍥㙢捣〸㈵扡㤲㙣㠸〳㐶捡挸㉣㠴愲攸㑥㤰戲㌰挸散ㄹ㜶て㥡昱㜷㌵昴昷㜳㈸户搱㈱㈶慦〳㕢昶捥㕦搹ㄷ敥㡡挷晡㌰㜵挲㜵㌷搴ㅡ挶㌸㍡愱㐲㔶敦慣㔸㕢㝦搲敡㥤搱㡤㥦戲摥㜹昶㔲㍢㤴㙣㐳㌷㥤㉣敦㥤㠵㌱戸昴愳㌳㈳㉢晣扤捥昰戹摤㑥㠴㌵挷搹㌳搱㉤慤戰㄰㐲㍦㕢搶换㡥挶㕥㤱愴敡㐱扤㜳㐳ㄸ愷㈷㌵㠴㈶㐸㉡㈷挴㤴攵㠲戹愹〳㠶㠳㠶愰〴㍤㕡〶ぢ攰㘸昲戱收攰ち㡡㙢㜰㠹愱搹㉤攸㠰㘴㜷㑦愲捡㤸户慡㍤㠶㜹㤸㉤㤳㐷㥡摤戲㔰挱慣〱㥤㤵摤搰㌹㔰㥦ㄳ敥㜴搴愲㈸㝢挷㘳晤㑢㌹㔸晦慥昴㔰㤷㑦㐷㐰㉥晢昷戵㝢㡣扤昴挶つ收昷㔸㌴㈱㌹㌴㉦捡㥡昵㥤㉣㝥攴搰㡢昱ㄳㄸ㈸捥捦戱㝤摥㥥戶挰㥣㠲愳改戲㕥㥣敤㠲戸㉤㤳愴㔲㘱㔶㉥戵换㝢ㄷ挶攲㑢㍡㘳戱㈵㜴晥㄰攱ㄲ㕤戶㥤攴捣㘳戰㤹㘸㌱慣㤴㉡㉥捥㤸㐹㜸愶㈸㥣戳㔸㑢㐰捡㕢㝢㝡㉡㕤㡤〹慢〷㔰㌱慥㈸㔶㉦〲摢户捤㥦搷㕡戹慣愹愶慡慥慡戶愳㝤㕥敢昴〵㤵㔳㝢㐲㝤㑢慡㔶昴㈴㝡搵㉡㤸㠰㔳㠱攵㍦晦改散㘸搱晦昶㕥昵搸㑢昳户㜹昳㝦㉢搴㌹㈶㈲㘷晥挱㘹〷慢扥㕥㑡㜲㈴㐹㥣㈴㐱挲㙥㐷㥤㡥愴散戰㄰捥㍣昴㌲昰㝡㌹挹ち㄰㜴㍢攲〶㉢愰㝦〴搶晡㌱㐸㑥慦攳㔳㥣攲戰攷搱㐷㤱ㅣつ愲㌸㤷㘱ㅢ昵改㘳㐰ち㍡㥡昳愲㕣㐷ㅦて㌴愰〷㠸㔳㥣㈵搱搹㥡挶搵㌴愷愶㈹搵ち㘳㤳ㅣ㘳㉤㌷ㄱ㌹ㄳ慡ㅤ㤰㑣㡣㜵ㅡ㤵㥣㑥㜲〶挹捦㐸捥〴㔱㐷ㅡ㘳㍤㠹昹㐴〷扡捡ㄱㄸづ晦ㄳ㉤搲愷捦㈶㌹㠷㘴ㄵ㠸㙢㉣㜴搱攷㠱戵捥㈷㈶ㄷ戵捡〵愸㔱〱愵㐶〱ㄱ㍢㕤㠰㠰晥㌹㠸摡ㄱ挴戱搳㠵〸ㄵ戴㔳㈵㈲㜳敤㜴〹搰㠰ㅥ㈰㑥㡤㠶㐴㍥㍢ㅤ㔶挸㑥㠷㥡㠸㥣㜹攳ㄸ㘸ㄲ㍢㕤㠹㠰晥㌵挹ㅡ㤲慢㐸慥〶㔱ぢ㡤㥤㄰捥㍣昴戵攰昵㜵㈴搷㠳戸㜶㐲愵扡㠱ㄸ㉢㔵挰愷挶攲㐷㡣㜳ㄳ挱㥢㐱ㄴ愷㤹㡥㜱㙥㐱愸愰㜱㌸㝦捤㌵捥敤㐰〳㝡㠰㌸㌵づㄲ昹㡣搳㕥挸㌸㙤㈶㈲㘷慥㍢ㅥ㥡挴㌸昷戳㈸扦㈳㜹㠰攴㐱㤲㠷㐰搴㘴㘳ㅣ昶㙣晣㍥㡡㡥扤㕥收㔵㡦㔰收㔱㤲挷㐰㕣攳愰ㄲ㍤〱搶㝡㤲挴扤扣慢〹攰挴㐶㑦㈱愰㥦〶㔱㤳㐰ㅣㅢ慤㐵愸愰㡤㈶㌲㐱㑥㡦晡っ搰㠰ㅥ㈰㑥㔵㐱㈲㥦㡤挶ㄷ戲搱慥㈶㈲㘷㍡㕦つ㑤㘲愳攷㔹㤴ㄷ㐸㕥㈴㜹㠹攴㘵㄰戵㤳戱搱㐱㘸㘴㤳搰挰敥㠱㝤搶㈱散搳慦㤲扣㐶戲ㅥ挴㘳愳㌷㠸㥤㑦㑣愹ㅡ晣㠸㜱摥㈲昸㌶㠸慡〳㜱㡣昳づ㐲〵㡤㔳换〴㌹挶㜹て㘸㐰て㄰愷敡㈱㤱捦㌸挱㐲挶愹㌰ㄱ㌹㑢ㄵ㡤搰㈴挶昹㠸㐵昹㤸攴ㄳ㤲㑦㐹㍥〳㔱摡ㄸ〷攱捣㐳㝦づ㕥晦㤷攴ぢ㄰搷㌸㘸㕤㕦ㄲ㌳慤㡢慢ㅦ㘲㥣慦〹戲攳㔷㉤㈰㡥㜱㝣㌰㜶㐱攳㌴㌳㐱㡥㜱㡡㤱㈴愰〷㠸㔳扢㈳㕤㍥攳㝣昶㜵㠱敢搹愷㈶㈲㘷㜹㘵㑦㘸ㄲ攳㤴㈱㔳㕤㑥㌲㠴愴㠲㈴〸愲晥㠵愴扣㥥摤㍣搸攷㥢〲㈰摤㐵て愵捣㌰㤲攱㈰慥㜱搰扡戶〴㙢㙤〵攲慦攴㥣〳昵㠷敢㌶㘲愲慤㈹扥つ㠸摡ぢ㤰㘳愲㤱㘰ぢ㥡攸〷㄰换㌵搱昶㐸ㄲ搰〳挴愹㈹㐸㤷捦㐴㉦ㄷ㌲搱㑢㈶㈲㘷㥤㘸㉡㌴㠹㠹㜶㘶搹㜷㈱ㄹ㐷戲㉢挹㜸㄰昵㥣㌱搱扦㜰ㄵ慢〷㤰㌶搱㐴捡戰扤改㉡㄰㡦㠹慡挱㕡㌵挴㌲慥㘲㙤挸㑢散㔴换㌴㜵㈰㙡ㅡ㈰挷㑥㔴㕤搰㑥敤㄰换戵㔳ㄳ㜳搰〳挴愹改㐸㤷捦㑥てㄵ戲搳㠳㈶㈲㘷㌹㙣〶㌴㠹㥤㔸㑢㜴㉢挹㔴㤲㌶㤲㜶㄰㜵慦戱搳㝦晣ㄸ戵愱〳㍡〱扦㙤昸挵㑡ㅢ㘵昶㈶㤹〱攲戱搳㍥㘰慤㝤㐹㔲ㅤ昵㑣㈴㄰ㅢ捤愲晣㝥㈰㙡㕦㐰㡥㡤㘶㠳㉤㘸愳㝤㤸㔵㑥㜳摢ㅦ㐹〲㝡㠰㌸㌵ぢ改昲搹攸敡㐲㌶扡捡㐴攴慣昸捤㠶㈶戱搱て㔹昶㐵㈴㠷㤰ㅣ㑡㜲ㄸ㠸晡愵戱ㄱ〴㌳て㝤㌸㘵㐲㈴㥤㈰慥㡤搰ㄷ㐵㠸㤹扥㘸づㄲ㠹㜱愲〴ㄷ㠳愸晤〱㌹挶改〲㕢搰㌸㜳㈱㤶㙢㥣㈵㐸ㄲ搰〳挴愹㜹㐸㤷捦㌸㘷ㄶ㌲捥捦㑣㐴昶㡡愵晦〰㘸捡㥥㠱挹慥㐵㙡㉤挷戳㑡㌴〴挲㔶昴㠰扥敥㘴㘲㜰戴戵㍦ㄹ㥢摥㥤㙣㑦㈴换愲㈰〸㑡㤲㤱搲戶㍣㠹㈶㐴て散戶㤷㜳挴㌸㉡㌷ちㅢ㍡㙤晤㠹㘴㑣㈶㤷㍢攴挶户挷㘶挷㤲敤摤㠹愵㍤愱㤵㘳昲㐴㍢㌱ぢ扢散㍥慣挳挵戱ㅣ户㌱愱搸搲愵㜶㈴㑦ㄹ攷挷晡攳㘱㝢㘶晢昷㘱㈵㑦㌹戳㘴ㅦ㈶㘲㤸㈳慢戱㠵㔷慥㍣㜶攷㙡㑥ㄱ㈶㙦敡㕢㉥〴戱㠹晡㜴㍦慡ㅥ愶攷ち㔵㕤㉦㘳㌵っ昸晣〷〲ㅡ戸㡡㜸搶〶㜱挱昲〵愲㜰慢㠳㤵㥢挵攷㤹㝤㠹敥㠸ㅤ㌰摣㝥摤㝤㐳㑣㜰㑥㝦㌲㈳㈶戴㘲㤸㠹挱っ㜳㑥ㅦ㕣ㅦづ挵㈳摦〷慦攰挴㜰㌸㉥㔱ㄶ晥扥㥤愱ㅤ㌵㍥摦㠷敥㤶昹㠷挷愲戱㉦㌷戶收㈲㕣摥〹㝦慡㌹㈲㤰戵戴㕡㑥㜳愷攰㔲㜲晢搹愱㍥昱挲晣㘴愴摤㕥㌶㐴㈴㙣㔴㜰散愳昶搸挳㌲㔹㔹昷搱搱搶捥㐴慣愷㍦㘹て㐹㠵愴愱敢攸㍣扢〷扢㡥换散戲㔴㘸㙥㌸㔹ㄱ㥤㥢搲挷㈵昰敦㡦㠷㘰挱ㄲ攳㈵㈵㝥戲〶愸扣㤹㈷挱㌶昴㉤扤ち晦㐵攵昸㘰㉦㜵昱㐵㍣慥搹换攷〶〲㍣㝣晥㠳愰㝥搳搷挱搹㤲㠶戹摢㌳㑥て㈷㥤㔷㤹㡢㜱〹扡㍣㉡晤ㅥ昶㤹戸㠵㕥挱愶搳㠳晢ㅢ㤲摤攱㔰㑦捦捡㈱搱㤹㝤攱㥥晥㠸㍤㉢搴㘹昷戸㝤㜶㉣摥晢㍤昱㤷摣㉣攲昸㙡〰扢㤸捤㠱㤹戸㘳挴㕤㜵晦搶摤ㅣ㤶㠱攰㈹戹攴㐲〷㔶㠱㑣扢㍢ㄸ挶晥挶㥢づ〱㈴ㅡ㥡摥㌲㤳㍢ㄳ搰戵攵㐰散搳戸〰㥢摡户㤰ㄶ攷ㄱ㥢ㄵ㥢ㄵ挳㥥㔲挴〳捤攸㜶愰敦㑤扢ㄲ㌷㔹㤶昵㙤㉦㌰戰ㄵ㡥て㌹㔳攳敦戱收ㄷ㌳ㄲ愷㜱㉣〲㤰扤㜴敢ㄹ㠸挸戵㕦㍡挱㈰〴㉢搸㠳㌹〳㠷〵摤挹ㅥ㝢㜰㔴攲㈵㕣捡㈶㐱㙢づ㡡㉥攸挲㌲㘸㝢㜹㜴敦㜸㜷愴愷扢捦收㈰〴㝢㥣扣ㅢ㘴㤶扤ㄸ扢㜱㜳㘳㠹㙥㙥㘰㤷㐷ㄷ挴㐳㝤㠹愵㕣敤づ慦ㅣ㥡挱㠹戳晣搱愹摤㝤㘸㐰㑥㥥っ㔷㐴攷㜷挵㤶攳づ愷晥摥扥扤㐳㑢ㄳ摦ぢ㐷愱㌶㥢挳㘹㔵㐵慡愸㐸㤵ㄶ㤵㝥摢㙢㤵㉣㑥㘳㐰攰昳搵㐲㙦ㄱ㠹㜱搷㈱〸つ搰㘶改㈹戳ㅦ捡㌶换㜲㘵摣昷㤳㜷㌳㈶㜵㡢ㄸ晢㘱㝤ㄴㄲ㤵ㅤつ戲捦摥〷捣㑣敦愲晦㥦敥摡昲㜳敦㘹㠰换㠱㔴㡤搴㤶ㅤ〷昰㐳㥣敡㐲㡣戵㐷㡢搷挹㘵㔷挱㐰㔴㘴㔸ㅢ㜱〵愵㌸㠳搳戱㤹㔲㠶挶㡦敥ㄷ㥢㔰攸㜷㠷㌸っ㠷㜴扤愱㥥㠴㠹挳慤ㄴ扤㈱㔶㉦㔶捤昹攸扢敤㔲ㄹ㕦愳㌷搱㔱㄰愹㠳〶ち慤〰ㄴ㕡㈱㄰㉥挹摣㠶㤷㌰㜵挵ㄶ㠷攲摤挹慥摥敥㜰㈹ㄹ㙥㤵㝦㉦敡㈵慡㔰〹㡣改ㅥ㔲㌹㌱㔸捤摥昰㜲昶㘸攰敥㉡捣ㅦ㘸㍡扡ㅦ戵户㐸慥攳敡㕢敥㜱愲晡㑡㠷慦㡦㠵㌶㍦搷摦㌸挰㤵挳㌳〸〳㈲ㅤ㤱敡愰〰扥晡㌸㔰〶昸㉤〹㠱っ戸敤挴摢㠳〲戳㘲愱挸㜴摣㑤ㄱ㡢て㌲㜷ㄹ㤶昲㉥ㄹ㜴㉢昱㈰户ㅡ摢戰㑦㡦晤晦㘵ㄸぢ挷㑢〹捣挷㈶㕥〹㌷㈹㉤挷㠷ㅣ㘰晡晣晥挱愵昹昲㥡改敡ㅡ㘳戶㘴扣昷㔷捥捣搱晦㡦晤㥢搱扢昲戴㘴扡㝦㍣捥㐳㥦〰愲㍡〱昲㝣戲〴㑥愴挰㐹㈰晥〸㈲戳㕢㐹挱㙤㌹㉡昷昷㜲扢戰戴㤷愷㠳㈱㠷㠵㑤㐴㙣㍢挲㈴搶攰搲㌰攲昵挹㔰晢晢戵㙢戹㈴攵㔳㡢㐱摣晣搷挰ㅦ㠱〰㡤愷㑦㘱晥愷㠲愸愵㘰㌹㌱ㄵ户昹昴㑦㠱戹㤳㤲搳㄰挶㔸㑡ㅤ〹㠸ㄳㄳ昷昰㜸ㄲ挳改搳㡤㔴ㅣ搱ㅣ㔲搳㠷ㅢㅢ㥥愹〴攴㌸㐴挳㠶〹挴搳㘳㠴㌳㡤戲㈴愲㌸㑥㜰㡥㠲㔷㌲戵っ〲扣㥡㘱ㄳ㠰昹㘶昵㥣㙡㌹㘲搸㝢敡戳㄰愹㔶㈰挴㑥〹㤲㑥㈵㍤〷攸挶㉢改㡦㈴〵㤴慣㠲戸㝢愸愳㄰ち攱㑢挷ㄲ㌷㥥㍦ㄷ㘱㝤ㅥ㠸㍡㍡扦挰昹ㄴ戸㠰〲挷㐰㠰摥搷㍦〷㤷㜲搸昱㥥㘴㌶挲㠱挰ㄶ㤴戹㤰挹㉥㘲戲搳挰㝡ㅣ㜶〹㌰搷㘱慢ㄱ愶挳㑥〷㔴搸㘱㤷ㅡ愹㌳㈰戵挹づ攳㤶㤶攳戰㕦㈰㜹摡㘱㤷ㅢ㘵㘷㈲摥敢戰㉦敡㕦晢攲慤愵㤷戴㍡㌵攱ㅤ㤸挸㘹昱㘷㐳㑥ㅣ㘶晤ㄲ㈹㜷捣扣攷㔲敥ㄹ㥣搷㥤㔸㠲慤㝥摣つ㔶戹㘸っ摣〵戱㙣户㥥〳㈵攲搶㉢㄰愹㔶㠱换㜰敢㤵㐰㌷敥搶昳㤰っ㠲搸㡦愲ㄲ挳愸ぢ㄰〸攱㥢攵搶㌵㄰搰㔷㔱昰攷昹〵慥愶挰㌵ㄴ戸㄰〲攲搶㙢挱愵摣㝡㠹㈷搹〷改㜶㜸ㅤ㤳㕤捦㘴㔷㐲挰攳搶ㅢ㠰戹㙥扤ㄱ㘱扡昵搷㠰ち扢昵㈶㈳戵〶㔲㥢散搶慢㈰散戸昵㘶㈴㑦扢昵㔶愳㡣㥢㜳㕥户㠲挵㤱㌳愲㔴搷〲ㅤ愰ㅤ㕥㠷㘸㜱搸㙤搰慢慥〷㤷攱戰㍢㠰㙥摣㘱㌷㈰ㄹ〴㝤晡㑥㔲㜳愸㥢㄰〸攱㥢攵戰扢㈰愳敦〶㔱㌷攷ㄷ戸㠷〲昷㔲攰ㄶ〸㠸挳敥〳㤷㜲搸敤㥥㘴㈷㈳㙣摡攱㙦㤹散㝥㈶扢ㅦ愰挷㘱て〰挳ㄲ㤲慣收㍣㠸㌰ㅤ昶㍢㠸ㄴ㜶搸㐳㐶敡〱㐸㙤戲挳ㅥ㠴戰攳戰㠷㤱㍣敤戰㐷㡤戲㠷㄰敦㜵搸敡慤㤶捥摣昰捡㥤㌹敤昰ㄱ挸㌹敤昰㌱愴戴㜰搷ㅤ㐶㐳㘲摦散挶昶㈸㈴挵㜷㡦㐳㔰㜱㥦㌱挳㜷㑦〲摤戸敦戸ㅦ〹㐱㥦㝥㡡㑡っ愳㥥㐲㈰㠴㙦㤶敦㥥㠶㠰㕥㑢挱愷昳ぢ晣㥥〲㝦愰挰㕡〸㠸敦㥥〱㤷昲摤㌳㥥㘴散昹捤㐵敦㔹㈶晢㈳㤳㍤て〱㡦敦晥っ捣昵摤㍡㤱昷愹ㄷ㈰㔲搸㜷捦ㄹ㈹敥㐲㙥戲敦㕥㠲戰攳扢扦㈰㜹摡㜷捦ㅢ㘵㉦㈳摥敢扢慥㔱ㅦ敦㔰昷攵戲ㅣ摦扤ち㌹挷㜷㉦㈰攵㐰扥㝢つ㤲攲扢ㄷ㈱愸搶㠳换昰摤换㐰㌷敥扢㌷㤰っ㠲㍥晤ち㤵ㄸ㐶扤㠵㐰〸摦㉣摦扤ち〱晤ㅡ〵摦捥㉦戰㥥〲慦㔳攰ㅤ〸㠸敦摥〰㤷昲ㅤ㜷㑥㐳㐶敦㍢改㡥昲㑤㈶㝢㡢挹㍥㐲愴挷㜷敦〰㜳㍢捡㜷ㄱ㘶扢晢ㄸ㔰㘱摦晤捤㐸㜱㤳㜴㤳㝤昷㈹㠴ㅤ摦扤㠷攴㘹摦扤㙦㤴㝤㠶㜸慦敦挰攲挸敤㈸㍦〷㍡㐰㐷昹㕦㐴㡢挳晥〱扤㡡㝢戲ㄹづ晢〰攸挶ㅤ昶㈵㤲㐱㌰慢愳晣ㅡ㐸〸摦㉣㠷㝤〸㐹晤㙦㄰戵㈱扦挰㐷ㄴ昸㤸〲㔴㉡づ晢〴㠱㤴挳㡡挱㠴㡣摥㔳昱㙢㍡捡㑦〱敢捦㐰㔴ㄹ㠸挷㘱㥦㠳㜵ㅤ昶㕦㠴改㌰敥换ㄶ㜶搸ㄷ㐶㙡〸㝥㌷搹㘱ㄵ㄰㜶ㅣ昶㍦㠴搲づ晢捡㈸ぢ攲搷敢戰改㕢晦昵愲㐵㉦扦㍢㈵㝢挰挲㑤㘰㜱㤸散挶搲ち㌹挳㤱㘱挰挴㘹ㅢ㄰㔰挳㐱㌲㥣愶㔰㡢㉤㝣攵愴昱挳㤵ㄹ挸㐸攰㔸〴㥣㠱搱㤶㑣ぢ㑣ㄷ㐱㤴〱昹㙥つㅡ〲㐳愷㌱㠱ㄹ㘵ㄶ㐳㐶㤷㔰㜰㥢晣〲慣㈴㥡㤹慡㤱㄰㄰愷つ〲㤷㜲摡昶㥥㘴㝦㐷㠴改㈱㑢㤹㡣㑦㠵愹㥤㈱攰㜱摡㘰㘰慥搳捡㐴ㅥ㜷搸㐰愴戰搳捡㡤搴㌸㐸㙤戲搳㜶㠵戰攳戴㈱㐸㥥㜶ㅡ㥦㑤㘳㍤ㄹ㡦㜸慦搳㔶㍥戱晢㙢㙡晣挳㌹㍤攴㐴挸㌹㍤攴ㄶ㐸㌹㌲㜷㤴㠹〷〳づ收㤳㌳㌸愹㕣㝦㜲㍦㕢晣㌹ㄴ㠹㔵ㄵ戸っ㝦づ〷扡昱㐶㔸㡤㘴昸昸昴〸㉡愱昵昸攵戶㜷〸㠱慣㐶戸㈵㘴昴㔶ㄴ慣换㉦戰㌵〵戶愱㐰㍤〴挴㥦㈳挱愵晣挹㝤㜰㔷敦㍦ㄱ㘱晣戹㉤㤳㙤挷㘴㔳㈰攰昱攷づ挰㕣㝦㡥ㄲ㜹㥦㙡㠵㐸㘱㝦㔶ㅡ愹愹㤰摡㘴㝦戶㐱搸昱攷㡥㐸㥥昶攷㑥㐶㔹㍢攲改捦戳搷㝦搴㌴愹昶愳扤㉡晣愷㥦㌵㝥昹挸㈹捥㘲晥㝢愸昲㑥攳㤸づ㌹挷㥦㘳㤰搲㍣㘱攴㍥愹㌵㍦摣㘵㐷晡㝢散㑡捥ㅣ捣攳㕡㌸戹㕣扦敥つ㑣晣㍡ㄶ㑡搴っ㜰ㄹ㝥摤〵攸挶晤扡て㤲攱㠳㝢㈴愸㠴㔶攴㜷ㄶ㘸〸㠱㉣扦敥ちㄹ㍤㥥㠲摣挶捦㈳㌰㠱〲ㄳ㈹㌰ㅢ〲攲搷㐹攰㔲㝥摤摦㤳捣㌳㙤愸㘲戲摤㤸散㠷㄰昰昸戵〶㤸敢搷㕡㠴搹㘸戸ぢ㕦搸慦㜵㐶敡㄰㐸㙤戲㕦て㠵戰攳搷㝡㈴㑦晢戵搱㈸攳㑥扦户㥤愲㔰㌸㜲慦㠶㠷㐳㙥㠰慢㘱〸搱攲戰㈶攸㔵㥤攰㌲ㅣ搶〲㜴攳づ㡢㈰ㄹ㍥㔹搳昷㈸愰㄰搰㉣㠷敤挱搳搹㤳戹㉤捥㉦㌰㤹〲㍦愰㐰ㄷ〴挴㘱㝢㠱㑢㌹㙣㠹㈷ㄹ㘳捤搵㜰ち㤳戵㠲昸戹敢扢㘹扢捣㕣愸〹㝡戶晥戹㈶㥡搸㈲扡㝦㝦愸〷て㘸捥挱晥㔳㤲搰昷㘱搱戱挴搹〵捣㝥㙥㉡昳戹㑤㙣愰换㈹㉣㍡㤴摢ち搹㌶挸㤴㌵攷㤶愰攴户摢㈵っ昸敦晦㙡挳㠶㑤换〵㉥昱つ㕡挶㕢昲㍢㍡㝣愵捣㤳ぢ㙤〱摤〶㠷戱〵㉤㠳〰㘵㜴㍢〰ぢ㠱㔲㝣ㄵ昷㤱〵㥤〶搴㍤晣㉢〰つ戰㔸㥦戵挱挶昴挳搲㑢㡢㕣㐴㥥搰挳〷户昳慤㐹㘶慥搹㑦㐷慥敡㐷昹捡愰㡥㜲搱ㄹ㤴㐱ㄶ戲㙥挸戱挶㐶㔷㠱㑢㈰㡤㕢〷戰ㅥ㍣㍦戹戲〷㙢昰っ昲㌶㜶㈷挴㐵㐷㈷ㅡ㠵㡥挵㑢㜰晢㐴昶㠳㉢愹戴ぢ愰㙡昰昰慣〷㠵㈴ㄹ㘳㡥㐶㘹晣㜷挲㐵〵搳戳攰㘹慦㌰つて㙢ㅦ㥣搳昰晤扡挳昱㔸㈲ㄶ㑤㔶捥挷㕥㔲㈵ㅦㅤ㡢㘲㔷戱搵㝦㍢㌴收捤㤳㈷㔶搲挷㘷㤹挵搱㠱㈵㝤戱攵㝤㔲ㅡ㝦㠲㑦搰㌱㌷㍤㘸㄰戳挱㕡愲㜳散〴攳〵㡦㐳っㄳ敢㔹挸戸扣㌸㜸㍣㈵㜱〴㑦㜰〳㈷扡㠱㤳㑣愰㠲㑢戰搴挲扡昲㥤ㅥ挱㔳愰㤹摥戴昶㐳㘹㠶戴㑤敤昰散晥㔸戳㠱㤵〱㤳昵敤㜹㜸昲捣㥡〳㘴ぢ㈰㤹て㜷〷㑦㌵㕡搲㡦㐰敢㜹㤰㔴㍦〵捥づ㉡愰㝥〳㍢戲〱㌹つ㘱〱㈲搹㄰㑥㐳ㅣ㍥㜸㤴〹〰晢㈷㝥搵改㉥㥡戱㐰㝡〶㔰㌶〶扤㤰㥡捦捣㉢挳挹㌹㍥㜸っ㡡㌲搴挵敦㌹愰慣慣㙡つち挰㉡〲搰㘷㉤㠲㐸㐱扦慢㉢㈱㐶摦㘷晡捥㉤㔰昰㕣慡愳㤶㐳愱㘵㙣摢搴戶㜹ㅤ㉤昵㌵戵戵捤搵㌸㙡㙡敢㈳愱㐸㜳㘷㐳㕤㐳㘳㐳㐳㌸ㅣ敥慣慢㘹〸〷捦㌳㘹昴㘱㐸ㄳ㍣摦攵㜸ㅢ㝦昰〲㤷㘳㕣〵ㄷ㜰㌷㡦扢㉦㠴㘶㜱㜷〸昹攴㍡搲敡〴㥣改昱㌰㤰慣㝡ㄱ扣挸㘸搱ㄱ㐴捡㐳攵㝡㙢ㅡ㥡㙢挷㡥扢㉦㠲改搲敥敥㠲ㄸ摤扤ㅡ昱昸昸㜴㌷㠰㔴扦㜷愹㡢ㅥ〱搴㍤ㄴ㤷㠵挵摤㑢㠰慡换昳捡㕣攱愲扤㤴㐱㔲㍦扥敡㑡㠴挴摤慢㔰㠸㤴扢㘳㄰㈹散敥戳昳扡㥢㉢戹搲㔴㡦㐴㘲㌴搵㌵㈶㍦㉢づ摥昱㝡㜳㑢㥤㕤㔷摤ㄹ㡡㠶㐳㌵昵搵昵捤㥤㑤㑤㡤㜶㘳㜵㘷㔳㑢愴慥慥愵愵㍥㜸㤵㐹愳ㄳ㐸ㄳ扣摡攵㤲攴慥㜱㌹挶㔵㕣ぢ㙥昳㜸晤㍡㘸ㄶ慦㉦㐳㍥㔹捥戴㤶〳换㜴昹ち㈰戹㜵㈳㜸扤搱愲㜷㠰㤵攵㜱㝦晤㘳㐸慡ㅢ㠰㍢㕥㍦㈹挳敢㐷㈳㤲㕥扦ㄱ昱昸攰改ㅢ〰愹㐶㝥㤳㡢㘶慣扥摥っ㔴扣㝥ㅣ㌵摦㥡㔷收㌶ㄷ㍤㠱㌲昴㌸扦㜷㠰㡡搷㡦昶㝡晤㈴㠸ㄴ昶晡㡦昳㝡摤㉤㔰昰㉥㤳㤱㜵ち戴㌸敥づ搵㌷㔶㔷㌷愰㤵搷㌷㌴搷㜷搶㐷㍡㕢㕡愲搵㌵㉤㡤㡤㌵㑤㡤㥤㑤㜶㌸㜸户㐹愳㑦㐵㥡攰㍤㉥昷ㄳ㜲戲㍡㑣㐳㌰慥攲㍥挴㙤ㅥ㜷晦ㄶ㥡挵摤愷㈱㥦㕣㐷㕡愷〳捥昴昸ㄹ㐰戲敡㐵㤰㡢搲搴愲㝦㠶㐸㜹㌹㠳ㅥ㐳㐳㍦〰摣㜱昷搲っ㜷㥦〳㌱扡晢㐱挴攳㠳昱㌱㠰㔴㈳㝦挸㐵捦〵敡ㅥ敡㘱愰攲敥昳㠰㉡慥㌹㑢捡っ㤹挷㕤昴〲捡㈰㈹㙦搷㔵㑦㈲㈴敥敥昶扡晢㐲㠸ㄴ㜶昷攲扣敥㝥ち㥡愴㤱㕦㡣挴㘸攴㑦㥢晣慣㑢挰㍢㕥慦戶㐳㜶愴㌳摣搲㕣摤㔰㔷摦㘰㜷㠶慡敤扡收挶愶敡收敡㘸戴㈵搲㔲ㅤ㕣㙢搲攸搵㐸ㄳ攴㜲㌲㍥㍥㝤㈹戹㍦戸ㅣ攳㉡㥥〱户㜹扣晥㉣㌴㡢搷㉦㐳㍥㔹捥戴㉥〷㤶改昲㕦〲挹慤ㅢ挱㍦ㅡ㉤㝡㍣㑦㘰〲挹㤵㤰㔴㝦〶敥㜸㝤㔱㠶搷搷㈰㤲㕥㕦㠷㜸㝣戰愹〵㈰攵昵攷㕣㌴愳㙢晦ぢ㔰昱晡㌵搴晣㝣㕥㤹ㄷ㕤昴㍡捡㐰㌱㕤愴㕥㐶㐸扣扥挰攳㜵捤慥㥤㠳㌵㌵㉦慦㠳㕦㐱㈲㜱昰㡤㤰㠳㠳戹愴㑣㡤搶㑤攰㑤㉦ㅥ慥㡥㠴慡敢㕡散㘸戴慥㍥摣摣搴ㄹ㠶㤷敢㐳つ搱㔰戸愱扡搱敥っ扥㘶搲攸㥢㤱㈶戸摥攵㙥㈱昷扡换㌱慥攲つ㜰㥢挷挱㙦㐲戳㌴㐸昶攲㥡摤戶㘶㑦ㅤ㝣换挵慢㜱㔲昲㙥ㄲ㝤㌷㜰昵づ㜰挷㘵搳㌳㕣㜶㉦㈲改戲㜷ㄱ㡦㡦㑦摦〷㈰搵㉦晦捤㐵摤㙥㄰ㄲ㍥昵ㅥ㔰㜱搹晤搴晣㝥㕥㤹㝦戸攸〳㤴㘱㉡㝥㍦〰ㄵ㤷敤攵㜵ㄹ晢㘵㜱搹攴扣㉥晢搰愸戲ㅥ㠱㥣㜱㔱㐳㑢㐳㜳愴㈹㕡搷搸ㅣ愹慦づ㜷㜶愲㈱戶㐴敤挶㠶㜰㜵㈸ㅡつ㌵〶晦㙤搲攸㐷㤱㈶昸㤱换㍤㐶敥㘳㤷㘳㕣挵㈷攰㌶㡦㡢㍥㠵㘶㜱ㄱ㝢㕥捤㝥㔶戳㙢つ㝥收攲㑦ㄳ㙡挲愹敢㐶ㅡ攷㜳攰㡥㡢㙡㌳㕣昴っ挴攸㈲慥㘷攳攳搳捦〲㐸戵慡㉦㕣昴㡦㐰摤㐳㜱㔹㕡㕣昴㈷愰敡慢扣㌲ㅢ㕣㜴ㅤ㘵㤰㔴〶㑣ち㡣戸㘸㠲挷㐵搶㕦㠰ㄶ敥㑢㜷捤敢㌷慥㌵㑢㔳㝢ㅥ〱㌴㌵慥㉢昳〸㤶戸〱㔹㕦㈱㘲ㄹ愴㘲㄰〲㥢挷ㅢ愵搰㉣㍤攲ぢ〸㘴昷㠸㉦〲换散ㄱ㕦〲㤲愷㐷攴昲戵昸㜴㑦ㄴ㕢㕥愸愳㕦〵愴〶㠳㌸扥摢㌱挳㜷敢㠱搳㜷㘵ㄴ㘲㤲搷ㄱ㐸昹慥摣㐵㌳㝡㐴慥㑥㡢敦摥㘴㌴㔷愷㈵㘵㠶捣㔰ㄷ㝤摢〴挴㜷挳挱㠸敦㐶㝡㝣㤷敥ㄱ户捥敢㈶㉥㈱㡢㥢摥㐳〰㙥摡搲㘸戴晥㡥㠰搳摣㙡搱昷㔵搷戶搴㔵搷搶摢昵戶ㅤ㙥㙥㠹搴搶搴㠶㥡挲搵㌵つ搱㐸㑤㘳㜰㉢㤳㐶扦㡦㐰㜰㙢㤷晢〷戹㙤㕣㡥㜱ㄵ㕣㔸摥㍣づ摥ㄶ㥡昳昵㠸摢戹昸㔴摡扦㡤攴㘳㐰㙡〷㄰挷㘵㘵ㄹ㉥晢ㄴ㌸㕤挶㤵㙢㌱晣㘷〸愴㕣㔶改愲晦㐱挰㍤搴㡥㘰挴㘵㥦㌳㝡愷扣㌲㘳㕤昴ぢㄳ㘰㘱搵㉥㘰挴㘵晥扣㉥㉢捥敢戲㜱㐸㈴㉥晢ㅡ〱戸㙣㔷愳搱摡㠰㠰攳戲晡扡㤶㔰戴戹愹戶戱〶ㄷ戱㕡扢愱愵戶㈵㕡㕢㙢摢捤搵㑤㉤搵㔱摢づ㡥㌷㘹㌴㡤ㄶ㥣攰㜲㡡摣㐴㤷㘳㕣挵㈴㜰㥢挷㘵㕣㘹愶ㄵ㜴搶㐵㙣㌷ㄷ攷㔳㜱昲㙥㈸㕤ち㌹㔵〳摣㜱搹㝦扥昴㑥㈹㜹㕦ㅣ㕤㔶㡢㜸㜱搹㘰〰愹㡢㔸㥤㡢扡ㄳ㜶扡㑤搵〳ㄵ㤷昱㔹㍡搵㤸㔷愶挹㐵㉢㈸挳㔴晣戶〰ㄵ㤷㝤㠸㐲戸㔳㑡㥤扡㠸㝤〰㌴㜷戱㘰て愳捡ㅡ〶㔵㡥㡢ㅡ㥢㍢慢㙢㍡ㅢ㙡敢㌱㍢慣㙦慡愹て㐵㥡敡㙡散收㥡敡㠶晡㥡晡㘶㑣ㅦ昶㜴戳ㅦ㡥㌴㐱㉥づ换挹昱〱挹攰て㕣㡥㜱ㄵ㝢㠱摢㍣㉥㥡〲捤挸〱捦捥㈱愰戹㈲愰戹〸㄰㙣㜵昱㤱㠸㤵户㙦㘹㍥㥥愷摡㠰㑢㈹户〷敥㥡㉣搸づ㤴换㥡㝡〷㑡㡦㈲愹㈴搹㤱㘴㌴挹㑥㈰攵㐵挱㘹㄰攴愱愶扢㝡㔲〸搰攰っ愰㔲昱挷㔲扣搸㍦ぢ晣ㅥ㠵㥦慡昲㉣㕦㑤挰摡㘸挶㕢㥢愶攱㉤㑣㉢㤹㕢㌱敥摡昴换愲㔶㐹搱敥摦㑥ㄷ㔷㥥㜹慢㌳扦晥ㄷ攱晦晦㠳ㅥ摡㉣扤㌰㐹㡤愳昰搵扢攰㠴搵㍣㤴㜷㑢㜲㑢㐸㝡㐸攴攵ㄲ捦㈱换扣㙦攲㔸㘷㈲㜲摥挴戱〰㥡挴㑤㤳愸ㄷ㡡昸つ㜲攱㑤摣㔴〵㔴敦㐶㔲㑤㔲㐳㔲㑢㔲㐷挲搷〳〴搴㐲㔷㠵户㔹〵て〶㉡ㅥ㙡㠴㄰㍣㜴ㄸ昸扣捦㘳っ昴㥥㐶昶戶㈳㝡㘷㈶戰捡㠸㌷昳㉣㠸戵愶摥ㄵ戹㠵扢晡㌸挱㝤㉢搰搸㌴攲㍥昸攴㈶㥢ㄳ㑦愵挳㑢㙥戰〰㡦㠸〹㝣㠷搰㠸㌴攷㜹扤捤戶㘹ㄴ㑦戹攱搹ㅢ㍢攲㙡㑣㘰摢慢愴愸㔸㡤捦㔷㍦捣㉢㕣昰搶ㄴ㔷挱戴扥晥㕥摥㔸戹㙤㥥摢㝢愷㜶㈷㘵愹㥤㡦㘰㉡捤ㄵ㐳慢ㄹ愶摡㌱攳戵㜵㘳愶㡥挹㜹ぢ愳晦㜱㌸昳ㅢㄴ㈰戳㈲戱㌸㍣〲㝡㜷攴愶㍡㤰㉦昵ㄱ㔲ㄱ㌰昹慡搵㐳㠵慡搵㠳㈶㈲攷㥤㈵㕤搰㈴搵㙡ち㌳愱㙥㝣㠳摤㐰愵㕡戵〲搵㔳㐹昸攰戲㙥㈷㤹㐶㌲ㅤ〴慤摦ㅤ攲愸㈵慥ㅥㄷ㘱㌹㠳㕣搸㤳扡㌵㠳攲挵敡㐸昰散〱搴㥤㈸て㥢㥤戴㤴㝤㄰愹ㄲ㠰㔹昵㤴㡥㠳㕡戳㠰㔹㤳㘱搵㥡㘶㜵㉢〴摤㔳て攸搹㤴㑥㐲挶㠵搴㡦挱攴戳挶つ收愴㜳摥攰昲ㅢㄳ㤱昳㘶ㄲ慥㜹㠹㌵ㄶ㌰ㄳ搷ㅡ挷〰ㄵ㙢ㅣ〰㔴ㅦ㐸戲㤰攴㈰㤲㠳㐹㝥㐸戲〸㈴愰㡥㜳㔵㜸㈷㘰㐱慥㜵㠹㈱づ㠵㄰っ挱㈵㈴攷㙣㑦㐱挸敡〰㍡㈹愳㍥㘵扦㌶㜳㑣搶㝢㌳搵攵ㄹ㐶〹㐱㠱晡〹㔴愵㡣挲㘵㥦㝣㐶戹愴㤰㔱㉥㌶ㄱ㌹㙦㈴㌹〷㥡挴㈸㡢㤹㠹㙢㤴㔵㐰挵㈸㕤㐰㜵㌷挹ㄱ㈴㑢㐸㝡㐸㝡㐱㔰㐵摣搵㈰㜵㥥慢挷㐵挰㘳改ㅣ㔴㉣ㄳ愳㜸戱攲㌲㡥㔴㤱戳㔱㥥㔴ㄵ㌹ㄲ㤱㡡㉢㌰㡥搱㉥㐱挸㑡〰㤳㉡㔲㕢愳捥挸戰㐶㍦愵戹㝡㤳戲挶㤵㘰昲㔹攳搴㐲搶㌸挵㐴攴扣㝢㘴つ㌴㠹㌵㝥捣㑣㕣㙢㜰搹㐴慣㜱ㄴ㔰㝤㌴挹㌱㈴挷㤲ㅣ㐷㜲㍣㐸㜹㤱扡挶㑤㥥搱㑥慥〳㉡㐶㌸㤱㔲挵㡡㑢ㅤ㘲㠴愳扣㐶㌸ㄹ㤱敡㘶㐴㌹㐶攰晡㠷㜵㉡㌰愷㥤㌴愸ㄵㄹ㐶昸㈹愵㙦㠱㑣捡〸㜷㠳挹㘷㠴㐴㈱㈳挴㑤㐴捥㍢㐶敥㠵㈶㌱挲㔹捣挴㌵〲ㄷ㈲挴〸㘷〳搵攷㤰慣㈲㌹㤷攴㍣㤲昳㐹㉥〰〹愸晢㕤ㄵㄹ敤攴〱愰㘲㠸ぢ㈱〴㐳㍣ち摥㌹摢㐷㄰戲㉥〶㍡㘰㍢㤹捡㜶㔲改㜹改慡戲㌳㡣戲ㅡち搴㘳㔰㤵㌲捡搳㘰昲ㄹ攵昰㐲㐶改㌰ㄱ㌹敦ㄶ攱慣㕦㡣㜲〵㌳㜱㡤挲愹扦ㄸ攵㔷㐰昵㤵㈴扦㈶㔹㐳㜲ㄵ挹搵㈰㘸㈷㝦㠴㈰て昵㈷㔷㡦㡢㄰つ慥〳㉡㤶戹㤶攲挵㡡㔳㜴愹㈲〷愰㍣愹㜶㜲㍤㈲搵慢㠸捡㜷㑡㜳ぢ㥤搲ㅣㄳ㤱昳㉥㤰昵㙥㔱㙥愱㕥ㄶ㡥㐵攱㡣㔸㑥改㔶愰晡㌶㤲摢㐹敥㈰戹㤳攴㉥㄰㔴㜶㤹づ㈳㠵捥愸散㙦㈳戹㥣挹㍤㤴㉡㔶㥣挵捡㤹㑣昳㥥挹㝤㠸㔴敦㈳捡㜱晦摦ㄱ戲敥〷收㔴昶㐶搵ち㘱搷㠹〱晤〰愵晦〱ㄹㄷ㔲ㅦ㠳挹㘷㠴㍤ぢㄹ㘱てㄳ㤱昳愲て㑥㉦挵慦㡦㌱ㄳ搷〸㥣㘳㡡ㄱㅥ〷慡㥦㈰㜹㤲攴㈹㤲愷㐹搶㠲挰慦敥戴㔳挹㑣㤳搶㜰ㄱ㠴㝤㐱捥㉤挵ㅡ㝦愰㜸戱晡ㅡ扣㔸愳挶㙢㡤㘷ㄱ㠹ㄷ㡢扡搶攰慣搱晡ㄳ㔸挷ㅡ㜵㙡㔲㠶㌵搶㔱㕡㠱愴慣㔱ち㈶㥦㌵挶ㄵ戲挶㉥㈶㈲攷㤵ㅥ〱敡收㔹扣㘸〲㔲㈵㌸㝤ㄳ㙢扣㠴㠰㝥㤹攴ㄵ㤲㔷㐹㕥㈳㔹㑦昲㍡㐸㐰挹晣㡤㉡㌲挶愱㥣戱㠹㈱摥㐴〰㠶ㄸ㡥ㅦ挷昷挳㄰戲摥〶ㄹ㥤㜱㠹昴っ戹搲敦ち㔶㈳㌳㉣昱㉥㔲愹ㄱ㈰㈹㑢㡣〴㤳捦ㄲ㈳ち㔹㘲戸㠹挸㝥㝦㐷㤰昳㈵㈹昰㍦ㄱ㐰㠱㌹㔳ㄲ捦つ㐵ち戶㐸昰㌸摢㔱㉥扣㠵㠱㌹戰ぢ愸㑡ㄷづㅡ㤸㠵ち愸ㅤ㕤戸挲挰㕢〹捣ㄹ㤷攸ㅥ㘲攰㜱〲敦攴挲攵〶收㕤㔶〱晦㔸挰㜹挷㥤㥣㕥㈵慡㥣㐷ㅤ搳慦晤㤵㐹㔰㤴㜷㜵っ㡥㍡㙦摤攵昴㐸摥ㄸ搱㈳户㐴㤴攱愹挷㌸㕥扣㍢ぢて昲攲㔹㐷扣㝢摤摣㐰㠰〷㝣昹昴㤹晢㕣㥤ㄶ㡥㠹慤攸㥣㌸ㅥ戴ㅢㄴ㥤㤹挰攳挲㤱㔲扣捤㌲㠹ㄷ㈱昷㝤ㅦ敥㑥挲㑤㉡㈵㘸㍦㌸㥣㠷㈱昳摥ㅦ挲ㅢ㍦戲㥦挳昳㍣ㄳ㥤戶㠷晢㕣㝣ㄱㅦ㤶晣㜶昷㈶㔹㥦挰㕦改㜷㈱㉥攳挴㈷㔱愴〶挳愷戲㉣昱㝥敤㌶㌲散挷〳㤹戸㠷ㅡ戲搶㝦㐰昸搲㐷㈵攷㠱㠷㑣昴攷㐰攴挶㍢㈱㍥晦㉥攰戳㑦㡣㜷敢㜰㤶敥换㝡㜷散攰挱㍣摢昹ㄷ摤㌳攵慢扡㐳㕢㠳㥣㘰㑡扤晥〲〱搴㙢㑥㉤愵敥昹㑤㈵〳㡦㥡捡挹愶挰㈵〶㜶敡㌵愷㥦〲ㄷㅢ搸愹搷㥣㤰ち㕣㘴㘰愷㕥㜳㡡㉡戰㌲戰㔳慦敢㕣搸㘷㘰摣㤹㡢㉣敢㕤㜸挳晦㥣ㄶ㈶搵㕤㌵〲㘶㤵户㡡㔰散㕣㍢㝥〵攱㕣㍢攲㕦ㄷ昸㉣㍦㐸愶ㅤ㉤㈰ㅥ㍢㤶散づ扤〳㑤ちㄱ敤ㅢ搴摢ㄱ攲扦搸㈸敤敤攸戱晢ㄶ㈷扢㔲晦㔶〳㉢㕡㜸㘹慡㉥㠵㔲摡㥤摦攰ㄴ㈴〱㡦ㅢ慢㐱㘱摥㔶昰㘲㠲捦捣㐹㔱㘵㐰㜱搲㈵昰愷〶㜶捣摢收挲㥦ㄸ搸㌱㉦㈷㘶㈲晤戱㠱ㅤ昳㑥㜳攱㡦っ散㤸㤷㤳㌷㤱晥户㠱ㅤ㍢捥〰㉣㜶っ愲㘴戹㜶晣ㄷ㠴㜳敤㌸ㄴ戲搶㌰㤰㑣㍢づ〷攲戱愳摡〷扡㔹㈷摤㕡愶㌸㡤愳㜱昵㤶㤰㑣ㄹ㘷〱㄰昰戸晢ㄹㄴ挶㌹〰扣㤴昴㙦愶愴攰㘱㥣〳㕤昸㕤〳㍢挶攱慣㑣愴摦㌱戰㘳ㅣ捥搳〴㝥摢挰㡥㜱㌸㜳ㄳ昸㉤〳㍢挶昹愱ぢ扦㘹㘰愷敥㜱㜶㈷搲㙦ㄸ搸戱ㄹ攷㜳㘲戳㔱㈸㜰慥捤搶㐳㌸搷㘶㍢㐲搶ㅡつ㤲㘹戳㥤㠰㜸㙤ㄶ㠲㙥㌱搱㔸㐴搰㐴㜲愹㕤っㄴ扣㑦敦っちㄳ㜵戹〵㝢挱ㄴっ㍣㑣挴ㄹ㤹㤴昷㜹〳搳㐴愵㔸ㄱ㌹挲㡤昸慢㠹㜰㡣挴㜹㥢挸晦挵挰㡥㤱㌸㤳ㄳ昸㌹〳㍢㐶攲摣㑥攰㜵〶㜶慣挱㌹㥣㔸㘳ㄲ捡㤶㙢㡤㍦㐱㌸搷ㅡ扢㐱搶慡〶挹戴㐶つ㄰慦㌵㌸〵㘴つ扡㘶慦昷愶ㅣ㌳攵戴㔶搵て㐶捣㔳〷挹㔴つ攲戴っ㍣搶扣㐰㘱ㅥ㑥挸愴愴㑦㥢㤲扡㜶攰㈴㑤㈲㥥㌲ㄱ攰㘱㌷㑥摢〴㝥搲挰㡥㜹㌸㤱ㄳ昸〹〳㍢收㌹捥㠵ㅦ㌷戰㘳㥥攳㕤昸㌱〳㍢收㌹ㄱ㌰捤愳搹㔱ㄵ愹㐷㄰㤹㙢㡥挹㠸搳散㤸搲㥤晢㕥㠴づ攳㐹㤱昸搴挹搰㤱㘱ち捥昵挴ㄴ慤㔴っㄱ㝥㠳㥣㥣㠱挷〲づ㈸㑣挱㘹㤹㥣挳㙦㑤愹挰攳㡣㌹㔱ㄳ昸㍥〳㍢㡤㠹㔳㌷㠱敦㌵戰㘳〸㑥收〴扥挷挰㡥㈱捥㜳攱扢つ散ㄸ攲㝣ㄷ扥换挰㑥㘳扡挰㠵敦㌴戰㘳ㅦ㑥晡挴㍥㙣㑣㐵敡㜶㐴收摡㘷ㄶ攲㌴ㅢ㑦摡㍥戳〹㜹散挳㔹㥥㤸㘳㉥昵攰㈴愵攱㜰㕡〶摥愷昷〷㠵㌹㝥攵ㄶ攲〶㔳〸昰㌰〷愷㘸㜲㠲扦㌱戰㘳㡥㕦扢昰昵〶㜶捣挱㘹㥣㐸㕦㘷㘰挷ㅣ㔷戹昰戵〶㜶捣㜱戵ぢ㕦㘳㘰攷扣慦〵捣昳戶づ㐲挹㜲㥢捤㔵㄰捥戵挳て㈱㙢㉤〲挹㙣㌶㠷〰昱摡㠲㌳㐲搶ㄵ户攳つ㜲㉡〷ㄹ〸㠱挲っ㥣挴挹ㄹ晣搲㤴〹㍣捣㜰㥢ぢ㕦㙥㘰挷っ户扢昰㘵〶㜶捣㜰㠷ぢ晦挲挰㡥ㄹ㌸ㄹㄴ摤㤷ㅡ搸㌱〳愷㠷〲慦㌶戰㘳㠶㝢〰㡢ㄹ㙣㤴㉣搷っㄷ㐳㌸搷っ㡢㈱㙢㜵㠱㘴㥡愱ㅢ㠸搷っ㥣㑥㝡捤愰ㅥ〰㈰㜵㘴〹㈴㔳㑤㠶㔳㍣昰㔸挱〲㠵㜱ㅥ〷㉦㈵㍤搷㤴ㄴ㍣㡣昳㠴ぢ慦㌲戰摢愹㜰ち㈸昲攷㤸〸挷㍣㑦戹昰搹〶㜶捣挳㘹愲㐸㥦㘵㘰㥡愷ㄴて搶㜱敡㈸ㄱ㘷㥡〸挷㐰㥣㈲㡡㠱ㄲ㈸㕤慥㠱捥㠰㜰慥㠱晡㈱㙢㉤〳挹㌴搰㜲㈰㕥〳㜱㠶㐹〳昹㍥ㅥ摣敡㝢昷搷慤㙡ㅤㄸ㌱搰㑡㐸愶っ昴㈲㔰昰㍥晤㈳㔰ㄸ㠸昳㍤㈹改挹愶愴㔴ㄱ㔰㥣〱ち㝣㤲㠱㥤摡挳㌹愱挰㈷ㅡ搸㌱て㘷㠹〲㥦㘰㘰挷㍣㥣㌷ち㝣扣㠱㥤摡戳摥㠵㡦㌳戰搳愷扣敥挲挷ㅡ搸戱搹㥢㠰挵㘶㈷愰挰戹㌶㍢ㅡ挲戹㌶㍢〹戲搶挹㈰㤹㌶㍢〵㠸搷㘶敦㐲户㤸攸㈷㠸㜰㑤愴㌸ㅤ㤴㘲㉦㌷〵搹㡢昶㍡つ㈲晥捦㄰戵挹戳ち㜶㕡摦昲㘱㠰搳㤱㤹攲㤴㠰㍡昴ㄹ摥搲㝤攱㤶㉥攱㉤摤㤹㑣挰㈱㌱㑢愸捦㈲挷㤱戰㈴㍦ㅢ〱昷攴㉡㌸㤴㈵㕡ち㌹慣搵㠳㤳㔳㡤㜹㤵慤愲っ挷㠵愲散㕣㜲ㅣづ㡡戲昳㄰㐸㈹攳搰㉦慤㡣㐳㍥㔱戶挴慢散〲捡㜰挰㈴捡㝥㑥㡥攳㈴㔱㜶㈱〲㈹㘵ㅣ㈴㠹㌲㈲㡡㠳㈳㔱戶搸慢散㘲捡㜰扣㈱捡㉥㈱挷㘱㠶㈸㕢㡤㐰㑡ㄹ㠷ㄴ改㤲㜱㈸㈱捡挲㕥㘵扦愰っ慦搶愲散㌲㜲扣㔰㡢戲换ㄱ㐸㈹攳㐵㌹慤㡣ㄷ㘳㔱搶攱㔵㜶〵㘵㜸㘹ㄳ㘵扦㈲挷慢㥡㈸扢ㄲ㠱㤴㌲㕥搲㐴㤹㥣㈶㉦㘵愲㙣㤱㔷搹ㅡ捡昰晡㈰捡慥㈲挷换㠲㈸扢ㅡ〱㔷㤹攲㈵㐰㤲㉦昴㈶扦㤶戲散㔷㈵昹㜵攴搸㥤㑡昲敢ㄱ㜰㤳㔷戰敢㤴戲㐸㘵㘰㤷㈹捡收㝢㤵摤㐰ㄹ昶㐱愲散㐶㜲散㝡㐴搹㑤〸愴㤴戱㥢㐹㉢㘳昷㈲捡收㜸㤵摤㐲ㄹ㌶㑥㔱㜶㉢㌹戶㐹㔱㜶ㅢ〲㈹㘵㙣㤰㈹㘵ㄵ㙣㝢ぢ㔱㉢㡡㔶愸昰攱㤱挳て晦扣愲愴㜲㘴挹㐱㔳捡㉥㕡晦搴ㅢ慢搶ㅤ㌲昹摤㉦㔷慦㕥昷搶慡戵㕦摥搷㌹昹昱㉢慥㜸㘴㥦换搶扥㌱㌴㝡㜹搱ㅤ㥦捦扡晣愸㥡㈵㐷ㅤㄹ㍤㘰晣摥㐷ㅤ㝣挴晥㌵㜳户㤸㔰㕣㍣㘸搰㉥挳㥥搸㝡㕣昰戸㈳敦㔲て扥戰㔵㥦㤲昶㠶っ昴敤挸㠹挷㠷昸〶搹敥挸敢㍢㐰昵㥤㈰攵㐵ㄵ㙣㘹㥢戵㉣搲㜸㤹敢㕤捣ㅢ〷ㅦ㘰ち戲ㄱ㤳搷㜷㠳敡㝢㐰㔰ㄶ㌶搴捤㕡ㄶ㘹晢捣昵㕥攴㐴㝦㉣ㅥ㡢戲戰て挰〷㜷㉥㠲敡摦㠲愰㉣㙣攷㥢戵㉣搲㜵㌰搷晢㤹㌷㡥㑡㝣㠳散㐲挸敢摦㠱敡〷㐰㔰ㄶ㜶ㄳ㥢戵㉣搲昳㌰搷〷㤱ㄳ敤挲挷ㅡ㠳散㠱昰挱㙢晥㐱昵挳㈰㈸ぢ㝢㤹捤㕡ㄶ改戸㤸敢㈳挸㠹㘵㠹搲㐷㤷㠳挱〷晦㑥〰㔴㍦〶㠲戲戰㤳摡慣㘵㤱㝥㡦戹㍥捥扣㜱㔴攲ㅢ㘴晦㐷㕥㍦〱慡㥦〴㐱㔹搸挷㙤搶戲㐸户挹㕣㥦㐲㑥戴换㌰㤰㈰扢㑦㝣戰挴て慡搷㠲愰㉣散㌰㌷㙢㔹愴て㘶慥扦㐷㑥散攴㥥挵㌷挸扥ㄸㅦ扣晢〴㔴㍦〳㠲戲戰扦摤慣㘵㤱㉥㥣戹㍥㡢㥣㘸㤷改㍢愱㉣散捡昱挱ぢ㔵㐰昵㥦㐰㔰ㄶ㜶搷㥢戵㉣㜲〵㘰慥㝦㘶摥㌸愴慦攳㤵㠰扣㕥〷慡㥦〳挱㌶っ㝢㘶㠲攵㈵㡡摤戱㕣㕢挶㥢㙢换㔴攰ㅣ㜶戳㡢㤶㠸㕤㑤〴搵改攷㠱〶搹㤹攲挳攴散㐱㐵㙡㤷慣攴散㔵㈵㘲㘷㙦昲㤷㠰〶搹晦攱㠳慤ㄱ㔰っ㥢搹昳㠹攸㑥ㄹ㍡㤴㘲㙦㈸ㄱ愳扤㍡㕥〳ㅡ㘴扦㠵て㡢挰捥㑡愴㉡㌳㤲攳改づ㌷㘲㤴㌷昹ㅢ㐰㠳散㙡昰昱改㌷㐱㔱〴㜶㌲愲㘳扢㉣ㅤ散㜸㈴㘲㕢慦㡥㜷㠰〶搹㐵攰攳搳敦㠲㐲〷㍢〷ㄱ摤㍡㐳㠷㔲散㌰㈴㘲㉢慦㡥扦〳つ戲㘹攳挳搳㘰㝢ㄶ愹ㄱㄹ挹昱㜸㠸ㅢ㌱摣㥢晣㥦㐰㠳㙣㡤昸昸昴〷愰㈸〲摢愱攸搸㈲㑢〷摢愶㐴〴扤㍡晥つ㌴挸㔶㠴㡦㑦㝦〴慡㍦〶挱㘶㈵ㅢ㤱挸㤷㘵㈹㘲挳㤲㠸挱㕥㐵㥦〱つ戲〹攰㠳㉤㍤㔰ㄴ㠶㤵㕦㐴㑢㌳㜴㈸挵〶㈱ㄱ㠳扣㍡扥〰ㅡ㘴搵挵㠷昶㘰㝤ㄵ㈹㝦㐶㜲晣挷〵㌷愲挴㥢晣㉢愰㡡戵㔳㐶㐳㕦㤳㘳㘵ㄳ㙥〳〲㝥㔶戶〱㕥散㥡摥挴㈸攵㌹昴攲攵慤㐹㙥㘷〴㝡㜹㍢㤴摣ㅡ㘵昵昲㔵慢㝤㕢㤸攷㤴㈷愴㘴㠶愶㤰㤴散㤰ㄴ㈴㘹戶㜱㕥㤹挸晦昰㐶㤱〹㘹愵㈳戲㘳㐴ㅥ㘵挵〷㥢㝣昹敥搸㜲㌶慥摣〲㜲挳慡㔴㙤戲㘰愹昳晦昶㜸户㍣㑦ㄴ晦捣搵つ〹慢搸扡挴㘸晣㤷戸㡡㡤㐵戸㈲㜲㙣㉣㌴愳㉥〶挷扢摣㔴㍡㈴慣㘲挳㄰昹ㄲ捡戳㘱㠸扣ㅦ㥣㤳㕢㉡攴攴挶㐶㈰昲ㄶ攵㔹愷㠵ㅢ㐴㡥㜵㕡㔲㤷㠲㐳ㄸ戹愵㐲挲㉡搶㕦㤱攷㍦攳㔶慣扦㈲ㅦ㐸挹愷㐲㡥㍣㉢户㐸っ㠶㠴㔳晥㔴挸㈹㍦㉢戲㘸㉣愳㐶㔶㘴㤱㉦〷攷㤴㍦ㄵ㜲捡捦㑡㉢昲㐳㈸捦㍡㈸㕣〵㌹愹㠳㈸戶づ㠲㜳て挵扡挸ぢ㠵摥挲㠳晡改㠴㑤㜰愱㕣㜹戱ぢ㘹晥㥢昹㌷㜹㈴㝥㈸㡢㈴㍥㘵收挳㑣收扣㝣㉡昱㉤搱攱㥥㈲㈹晡㤸挵搲㈳㐰㤴昸㤳㌲㕢ㅡㄹ㕥つㄴ扤㈹㌲㕢㔱㐶㝣㐸ㄹ㔷㍢㡢慢挴㤷㐴㌳戴搳㤳㤲㜲㈴㔳㡡晦㈸戳㉤㘱ㅣ㔲㉥㝡㑦㘴戶愳っ㍤㈵摣昶攴挴㍦〰㔲㜹㐹ち㝡㐷㘴㐶㔱㐶㝣攲㤵㤱㤹㤹昸㠶愸户㍣㐱搷㐷㐱搷㉤㑡っ㐶戹搱搴㠵〰扦㐱昷搴㠲㙥㙡㈵收愱摣㑥捣摣ㅣ㐱搷㑣㑡㉣〳㔴㡦昱愸㔱㜲搶㐴挷㝡搰愰㝢昶㑡㑥㤸搱㍢㝢愲㤵㥣㌸搱㕤㍣㌹㈹㌹㔵愲攳㍣戲㐱ㄶㅡ㌵つ晦愹〶〱摣㘳敦ㄶ㉥挸㘲㐸挴㜸㈷㠲〵㄰㝥㠲挳㌳㐷攱㈷㍡扣㥢㔷㤰敡㈵㘲㤲㐴昸愹㜸㔲攱敥㈹昵㤲㜱戹㠹㌵挱摥㡡户㜸㤷昷㍡慦慥㤶づㄵ晦ㄲ㔳昰㜴㙦㘸扡搸愱㠴㈷㘴㠸〶ㅣ㠸戴挲〹愶晡摡挱㈶㡡㥤昳㌷敤㘸〷攱㤴昸㐵㝦戰㐳攱㤳㤱㕣㈱㔳慡㌶㑤捡㜴戲㔵㌰ㄱ㑦ㅡㄵ㍣ㅤㄴ㕥搱晡戴愰摥㉤㉤㤳づ㡡㡣㥦ㅥㄹ㘰㠱㉣昳㝦〶晣㝦㘷摣㙡ㅡ捥改挴搳㐱愷ㄷ㘷搵愵昱㜴㑤㕡㈶ㅤ㜴㘴㔸㡢挵〱戵㤴㜱㥣㤴づち㕦㐱愷戱㕦㘱ちㅣ㥦㙦㜰摦摣㕡㐱㔷㘵挴戸敦㈳慣㘰㔹搸㔳㔸敥换搲㉡㤸㜳㈶挲㝣㈴㜵昶扢㥤〶晦㍦晥愲ち㤹
A28: Decisioneering:7.0.0.0 | B28: Decisioneering:7.0.0.0 | D28: Decisioneering:7.0.0.0
A29: CB_Block_7.0.0.0:1 | B29: CB_Block_0 | D29: CB_Block_0
A30: 㜸〱捤㕡つ㤴ㄴ搵㤵敥搷㍤摤搳㌵㍦搸㈲㍦㑡㐴㕢挲㘱㌷㤹戱㘱ㄸ〶搰捤慣捣昴晣㌰〴㘶㜰㘶㘴㑣〸㘹㙢愶㕦㌳攵㜴㜷つ㔵㍤㝦㉡㈱㉡㥡㘴㔱〳挶捤ㄲ〱愳戲㠹㐴㑣攲㙥㕣㝦昶㠸㌹㑥㤴ㄳ㜳捥捡慡昱㍦㤰㘰㌰㈶ㅣ㤱昸㜳搶㈴㙡搸晢摤慡㥥改敥愹㥡㈰换㥥㘳㐱摤扥敦摤晢敥扤敦搶㝢昷摥㔷㌵ㅥ攱昱㜸㑥搰㠵㕦㕣㐵㐰捥敤ㄸ㌱㌳㌲ㄵ㠹敡挹愴散挹㘸㝡摡㡣搴ㄹ㠶㍡戲㔲㌳㌳㍥㘲〸挴㌴愲㥢晥㤸愹㕤㈵㠳戱㐱㘹㤸挴攴昷㜸㠲㐱挵ぢ扡㝤㠷戲つ〵愳㤴㈲〰攲昲㈸㘰㔰㡡〱㠲〴捡ㄴ〲㥤搱晡戶敥㉢㐹㕤㐷㐶㌷㘴㘵㜸㡤㈵戴戶慡㉡㔲ㄵ愹㔹戰㘴㘱㘴㐱㘵㌸㍡㤰捣っㄸ戲㌶㉤〷㌲㠶㥡慣っ慦ㅥ攸㑥㙡㍤㥦㤷㈳㥤㝡㥦㑣搷捡敥〵搵摤敡愲愵㔵㡢㙡㙡ㄲㄷ㕤戴戴慣㠴㈴慦㡥搶㉦㤷挹㝥㤲㜷扡愴㤶㤲搴搶㘸晤㙡㐳㈶㑥㤷㑣㍦㍣㔴搵㈰㝢㌴戸㔲㑡㐳㑢慦㡦㐴敢改㝦㡥㔷愸戵㈴搲搶搱㈱搳愶㤶搱〶戵捣〸㝢㌳搵搶搳扤㐶㑤づ挸㐰㡡㑤ち愶搶愸㐶慢㥡㤲攵愹换㑣搹慥愶搷㑢戴晣愹收〱㉤㕥㐴㡦搸昷ㄹ㈷㐵戶㤳㈲㙤搱晡㘸慦㙡㘴㔸㈴ㅣ㌸摦㠹㥢㌵㐵㜲㑣攱㌱摣ぢ昷㠸㔲㝢ㄱ㐱㈷㥥慦㔲〶㔰㑥㈰㌰㠵挰㔹㌹㈳挳㍣㌴扣㐸ㄴ扤㑤㑢㌱㜷㈰㈴㜹㘳慡㌷搶敤㡤昵㜸㘳㜱㙦㑣㝡㘳〹㙦㙣扤㌷搶敢㡤㘹摥搸㤵摥㔸ㅦ昱㘴慦㘰㜱戱搷扥㔶摣扡㌱戱昱搵愷ㅢ敥慣扣戸晢㜲扦㤸㉡戰晡㜸ㄹ㠶〸㔱捥㈴㄰㤸㑡挰挱㤰挵㐲ㅣ㈳㐳㘰㑣㜴昷收㉦戶扦昹晢挶〷㥡㡡扢晥㜲搳㑢挳〲づ㘷㈹搳㈰㘵㍡愴捣㜰㤶㔲㉤挴ㅦ㙣㈹ㅤ慢昶㝦敦㤱㜹㕦㘹搹收㥢晦戹扤攵㔷㕦㉦戰晥㔹捡搹㤰㜲づ愴捣㜲㤶戲㔰㠸搷㙤㈹捦㍤慡㥣㜱㝦㑤愴改戱㡢㥦㔸扤戴㙣摤敤〲ㅢ㠸愵㥣ぢ㈹戳㈱攵㍣㘷㈹㌵㐲ㅣ戶愵摣㜰㜶晦㕡捦戹㥢㥢扦摤收㑦㡦㔴㕤愰〸散㐰㤶ㄲ㈶㐴戹㠰㐰㘰づ〱〷扦㔴〹㜱搰㤶㜲㜹愸㙢搳昱攳㐷㥡㜷扦昶㠶戱㘷搱㠱攲戲戹㌴愴㤵㔶㑥愴㔵㘶㑥搳㌶昳㘳挵㥣晣㑡〵户㍦㘵㉤昴〶㘹昶㈸搸〵㉤改戸ㅣづ㄰㐶扢愳㉣ㄵ搵搳ㄹ㌹㥣㘹㔰㌳㙡㜱㙡戵㙡挸㜴㐶㈱愶ちㅥ㘵㘱ㄸ㔹捥㝤搹搱㈵㜶㡢㈴㠴ㄸ捤㤱㔲捡ㅤ㤶㈴㐱愱搳㔷㘴挱㘰挰㈹㠶㉥㔷捤摥㡣摡㥤㤴㜳ぢ㌶ㄴ晣㐶㝢昸戲㡣㤶㌴㈳㈴戲搹搰〷晡攱搱搳㈵〷扢㔸挱戶ぢ捣㈳挰ㄱㅦ扦愴㘰㤹昲㜷昴㔳挲㐴〵㐴㝡挰㈷㐰ㄹ愷㤵㔵㔰㠳㑣㙣搰㔳慡㤶㍥㑤て户慣㤲㠴㕥㙡挷㠸〶㐳ㅤ愲㜸㌷㉥㥡㠲㍤晥晤敤㠰㑦昱㍥㔱㤳㔸㤲愸慡㡡搷㉣㔰慢㔵㍦〲捣挷㡤㔷搸捡㘵愹㉥㉤ㅤ搷㠷㌸㠰㑤㑤㔱㜴攲愰搴㌹搲㉦戹慢㉣搱愹ㅡ敢㈵〵㐵愳愵㘱㕡㈲慡ㅢ㠶㑣慡ㄹㄹ攷づ㈴挶㤹昹㥤㘶㤳愱愷搰㝦㙥扤㙡捡昱攰㔸㤱戰ㄴ搵敢〳改戸昹㈹㘷㘲㐷㠶㐴捦㉡愴㡤ぢ㤹㌰慣㠳ㄲ㠶㌴搹搲昳ち㠷昱攲慦ㅢ搶㉣昲散〲㌲愵っ扤摢㥤摡㘴挸つ㘳搴〹ㄶ搵㔱㜵㌰㈸㐱㥦㌰㑢㡢㘴搹㐵〱㕥㌷㘵㥡捤慢㐸慤搶㝡晡愴搱㈱㔱㕢挸㌸㑦㜵㍡㐸㤲昶㘳㡦㌴㉢摡攰㝡捡㔹昱㌹戹扤㠹挶攱㡣愴摤ㅣ㈷㝢㈹㤷㘷㐶㍡戱㤳㘶攴戱㔸㍡㠹㜰㑥㕥㜷㤳摥㌳㘰㘲搷ㅡ㝡㌲㥦㔲ㄷㅦ㔴㐹㘷㝣㤵ㅥ㤷㐵㐵㕥㥦愷挸㔳㠴换㐳㌹搲㐷㕢㜹㐱挱㐶攵㠴っ搹㘶㙥收换㔹㌹㐸㔸搵㈷㌵㈸㝦㜹㘱㥣㔳挸ㄸ㉢扢挴搹昹㝢㈵搲㑥摥㈳㉦㈵㈵㌶㤲户㌰愲攴ㄸ㍡扥㙡愰挴㌱㥥㕡㌳捡昱ㄹ搶㉤戸晦摥㝤㉡㉣㜶㙣㘵晣晦㌲㝢扤㘷搹戳㙦ㅣ愴㤸扤㕣㑤挷㤳搲㤸摣㕦戰㐸戹㄰㈰〲㌰ㅦ㘰〱〱攱㍦㐰ㄱ捥搵㥢愸ㄲ挴戰ㄸ昱て㘹昱㑣㙦愰㔷㙡敢㝢㌳搴㐷愵㙤㌰〸㔷敦㍤挳攳㌹㐶扦㘵㔴〹㍣㡥晡㔶㔹〸㔰㑤愰愴愴挴挳㌱㌴㔰愲搴㔰㍢戰㤸挰搴摣㐲挷㕡㈹㈵㐲愰〶㐱挲㔲㔰㠲㑣㡣扢ㄷ㔱㙦挹㘴㌴㠱晡〵戱㑥愹〵昸㐷㠰㑢〰㤶ㄱ㄰攲愷㌴㐵㑣㜳㈷ㄹ㌹㑡㐶㝥㐴昷㌱㌶戶ㅥ㑣㔱〲戹挶㌶㔲㍢搰㐴挰搹㔸㡥㡦ㄸ㠷㑡㘷愲戱㉤搴㕢㌲ㄹ㑤愰㑣㘲㘳㔷㐱㐰㉢㐰ㅢ〶㜹挴晤戶愱扤㔴㈲ㅥ愰〴㝡㉢昹晦㔹㌶昴㔲㜰戵㠳㉢挷慢㥤摣昶〸㤴㑤散㍥㔴㑤ㄳ㉤敡〲㥢㌲〹㑤愰攴㘲㡢搶㐲挰㤷〰搶㘱㤰㐷摣㙤㕢㜴つ㔹㠳摢㑦㉥㍣捡ㄶ挵挰㜵〵戸㜲㉣敡收戶㐷愰〴㘳㡢㔰㠱㑤戴㐸㠲㑤㤹㠴㈶㔰扥戱㐵ㅡ〴㕣〹搰㠷㐱ㅥ㜱㥢㙤㔱ㄹ㉤ㅡ㍦昹㘷㌱摤ㅡ㕢㤴〲㔷ㅡ㕣㌹ㄶ昵㔳㍢戰㠱㐰㌰㙡搰㌱捤搰㔴㕡㙦㘱㙡戳㜹㜳〸㤹㘸ㅥ㔶㜸㠹㌲〹㑤㕣㐰ㅣ㙣摥㌰〴㡣〰㕣㠵㐱ㅥ㜱㠳㙤摥晢㘴搲ㄴ扡慦愳攲㜶〷ㄷ㤴搷㠰㙢㈳戸㜲捣摢㐴敤挰㔷〹㌸慥戵㈲㔴㈳㑥ㅢ㝢慣㜶㐲搱㕢戲㔲㔷攳㑤㙡て㥤ㄴ㡢敤㜳㘲㌰慡愷晡愹愲㌳㐲攰㡣㔲㍣愷㍣㌱愸挵愵ㄱ㐴㐷〷ㅤ㔴㡢攸㤸㘸〶㌸ㅢ㥡㔴慡昹攸搱㤶〶㥤㜴戵㘴㘵捤戵愳㑥敥㐱戸㘵㠲晣㌷㉦㕤㝡〹捤㥢㘶挹戳扥㤶㔰攵㍡〲晥ぢ〹㝣散っ㐲攱挵㌳㈳搵搱慢て㉤愷搰㈳㑤敢ㄸ㘶攲㔹捥㥣搸㑤愵愷㥡㍡㠷晢㥢つ㐹㐵㠳搱㐹戹㤳攷㠸ㄱ戳ㅣ㈹㍣㘸ㄶ〷昰㥣搴㔵㤱㔸愳挹㈱ㄴ㍣攷㑦㈴搱㌹㌲㍡㘰㘶㜴慥㤴捦㥢㐸㙦搰㕢昵㑣㠳㘶昶㈷搵㤱戹づ㘴㡢搲搵㉢搳㤴敦つ㑡晢㝦㡢㐹敦敦㤷㜱〷ㅢ㍢昴〱愳㐷戶㌴㝣ㄲ㉡〶㝡㔲搶㈵戸㔸㄰㐱ㄱ昰ち扡㑥㉤㔹㜱㑣昲㕣㍤敤㐷捤㠷慦摡㝣㐹㠰㑡㄰㔱㔲愲㕣㑦ㅡ㘸昷昸㤱挴㑥愵戰挰搱扢㍣慦㥣㥤㡥㤷〲慢攸㐵㡡搶㥦㤴昵慡㐱㡢㕢㌷㑣㈵㤵㐵慤挵㤷㤳戵慣ㅤ昳㐹㜰㌸㔵㘷㔶㕤ㄶ㜱慦㑢㜲っ攷㜵㠸〵㡤㕡㐰㑣㉢㈸愰㜸摥㤵愰㥣摡昳昲㕦㐳㠱敦㘳ㅡ㐲昹挴㔳㍣㠸挳㘸㉣收〹挲㉣㕣挲㝦㌵㠹㜲戴て攵㐸㔱ㅡ㉦㙦㜸㔴㐹㕦㕡ㅦ㑡戳攵㝥ㄳ㘷〴〸㔴㡡㡢㌱つ㥣昱昸慡戱㤶づ㔶つ慡㥥ち㈷㕦㔹㘷戹戱户㑢㉤㜱㉡慢散搷㐹㘵㜸㥤搴㘹㐸㝥㘷ㄴ攴〶戹戰㍣搵愵ㅢ㝤摤扡摥㠷ㄳ昶ㄴ㙥㤹扤㔲㘶昰㝥愷㌴㘵扤愴〲㑥敢摦攷换㝢㠷㘳晢ㅤ挴ち戲㠷戳㑦攰㙢㠴昹㥡㡣ㅥ㙥㠹㈱㥡㍦㕥户っ晤换㌷㕡ㄳ摥て㥡㙦摤晦㙡挷㌹扦晤㘰㔸っ摡㠴慥改㘵㍦改晢攰挴昲ㅤㅤ㙦捤戸㜶㜴㘳愵攰㔲づ搲戶㄰㤸㘲摦㝥㤴㘲㈷㔵ち愳晥㍡㈳㌱ㄶ搵㍡戵㑣㔲㤶㈶慣〵〳㍣㤸愰㌸㐵挷㤴㜸㜱愲戳㤷㝣搱㔰㥥㘸㌶戴㜸㔲㑢㑢㉣㈸㍡〰攲つ搹㑡戹㥥㡥㈴慢㜵扣㡤搳搳攵㠹㑥㐳㑤㥢挸㐲改㥥㤱愹㜹㉤摥㐳晥㐴扤㤶㌶㐹つ㐷㔲攰㘷㈴㄰攸改㜹づ愴搲捤㙡扦昹㐹搸㘴戴㝡戲㤷ㄵ搶扣挲敢ㄵ㐱㙦昰ㄴ昷㠹㈷㜰ㄳ挹晢㑣捥扥扣㌸摣愹㘷搴㘴㤸㌲㌴㕥昸㠶愳扡㤹愱昷愸㕦㘸㙢っ慦㥤㑢㘵ㄸ愹㐳㝤收挵搳㐴敤㐰ぢㄹ攵昵挹ㅦ㕤㌰㠳㌲㝥ㄷ㙡㥦㈹㝤㑥㘹㝥散㙣㠵㝤愸摣㑣㐰愰㙡攷㉤㜵㡢㡤愰㈱㔰㡤愳㉥㈹㐸昴摦愴㉥㘵㉢ㄸ㙡〹㈰搹㍢㠷昰㙤㐴愱㌹〸ㄴ改〸攳㈲㑤㡢ㅡ挱㠳㜰慡搵㔳㠴㘱晦㍢散㕦㠱㤲ㅥ㝢搸摡㌳晦㑣搸昸㥥搱㘸㡣攳㥥改戵〹晤㜳慢㥦㝢昸搰捥攵昷㉥㥥㝦摢て㍦扣㘶扢㔸㐶攳㜹㜶摦㈱㈴㝢㠹㝡挲搸搳㠱摢〹㥢㍦挹㜳敡攸改㤵昱㠱愴っ户㙢㘶㕦㘵㜸㙤㑡㌷ㅤ㥦㤶㠸㤲㈰㍣㌱㘵〷〱㠱搳〵慢摤㘹㈳散㔴㥣ㅡㅣ㥣扡㡢扡㤵㍢挰戸㡡㠰扢㔳扦㑢㔴㌸戵㤵㝥搹愹㔷搰慣挷㥤ㅡ愳㤶㥢㔳摢㘸挸戸㔳㜷㔳㙢摣愹㙢㙤摦㑤〸㐴㕦戴〹慦㥣扦敤晤㥤㔳㌷慦㝣㘸攷捡〳ㅦ昸㡦㌴ぢ㥣㔳㉣昷摤㐳㔸㜹㥥晢㥣㤶戲㘸㈷㌶㜶捥ㅥ㐲〴㑥㌴散㥣ㅦ搸〸㍢〷〷ㄸ〷攷摣㑢摤捡㕥㌰攲搸攲敥㥣晢㠸ち攷攰㕣挳捥改㈰敢挷㥤搳㍥㠹㜳攸㠱收㌸攷㝥㙡㡤㍢愷搵捤㌹慢㙣挲搶搴㉦㍦昷攱昷㈳慤㍢㌲㐷㠲改ㄷ㙦晣慢㠸搱㜸换㌹て㄰㜶ㄲ捥戹㠲搸搸㌹晦㐱㠸攸〶愰㕢㜹搰㐶搸㌹㌸㑢㌹㌸攷㈱㌰㍥っ㐶㥣愰摣㥤昳〸㔱攱ㅣㅣ戱搸㌹㑤㜹捥㘹㥣挴㌹㝤㌴㘴㝣攵散愳搶戸㜳敡摣㥣戳捣㈶慣摦㤳㉥摥戰攷摢㑤㍦摥㌶㙦攷㠹户㡡㌷㠸ㄴ㡤户㥣昳㌸㘱㥦捤㕢㌹㠵〱㌲㐵戵ㅡ㜲㑣㤸摥㕤搳晣㈷㐶㐸㤱㈶ㄹ散戹㔱㐲㐴㍦〰摤捡捦㙣㠴㍤㠷㘳㥥㠳攷㥥〰攳㤳㘰挴攱捥摤㜳晢㠹ち捦㡤搰㉦㝢敥愲㍣捦㉤㥤挴㜳㌸㉢㡥㜹㑥挱戲戲ㄲ晦㈲㌷慦㔵摢㠴㜵户晣㑥㌶挶㥦㠹㍥㔰㕣晢㐲攷晥㤱㡦〴づ㤵㤶搷㥥㈶散㈴㤶搴㐶㘲㘳挷ㅣ㈰㐴㙣〲愰㕢昹㙦ㅢ㐱㈳㜴㉤〱㉦摤㠱㘷〸㥣ㄹ慤㡦㔹昵㑣戶㉣ち㍣㑢摤㔳愸㍢攷ㄵ㔹攸㍡㝢㡣昲ㅣ㈱晣㘱㑢㕣㑦ㄸぢ㝦摥㐶㔸㌸㉡㤴㄰㜸㕥〰㜸ㄱ攰㈵㠰㤷〱㕥〱㜸ㄵ攰㔷〰〷〱づ〱晣ㅡ攰㌷〰㠷〱㕥〳昸㉤㠱㜲慦戸㤹㝥㔸捤ㄱ㐲戲㔷攸ㄶ挲㔰㉥㉡慦ㄳ㈸昷㠵扥㐹㍦㤸㤳㠲㌹㈹㤸㐱㘸㙢戶敢昷攸㍡㤳㠰搸〶㠰搶㔱ㅢ㘱㤳戳〹㐲㜰〰〷㌹摢㐳戸㈷㠴㐰捥慡摥㈴㠴㔴敤愲㥦〲㔵〸攱摣㜵㥣㄰晥㑥㈶㄰戲㔹搵摢㌶㠲㠶攰㈸〸㥥㜷〸㘴慦㄰愲㈱㙢㜸㤷㄰搲㠰挸㔷愰〱㜱㤰扢晥㠷㄰晥㠶㈶㄰昷㔸挳㥦㙣㠴㌵㜰㈸〱捦㥦〹㘴慦㄰㐲ち㙢昸ぢ㈱愴〱攱愳㐰〳㠲〹㜷㝤㐴〸㝦㕦ㄳ㡦㄰挶ㅡ㑥搸〸㙢ㄸ捤昶㌲㡤ㅡ戸㐲搸㝡慣〱摦㠴㐸挳ㄳ搴㉥搰㠰㑤挷㕤昸敥捥摦摥〴㌶ㄹ㙢〸㄰〴挲㌷慦㕤㙡攴捦〱㙢㤸㌵〴㠹愹摣㈷戰ㄲ攷搳ㅤ㔰搰慥㑢㈶挳搹愲摤っ㤴愰㉢敦搳㙥愰㤴扡㘶㐷㍢摡敢挲㠳㑢慡㈲搵㤱㠵戱㠶昶扡愶捥㜰㝤㔲㑤昷㐵㠶㤳㘶㑡扣昷㔷慢挸攸㝥改慥㔷㡤ぢて㌵㝤扤昲挶㝢㍥晤㔰搸㈳摥戵〹㠵㥦㔹㐳㔸晡㙣搳ㄴ换㈶㉣㝡搸㘴㤵㌰㈱敡昴搵㤹㈹㙢昷扦㘵ぢ戹愰敢㉢戳㍥摤㍣戳㙤换摥㌹晦愶㑣摤昵㡥㌸㘶ㄳ㙡㥢㝤㐷摢㉢敢摢敥慤㜹㙣敢昶㥢ㄷ㕥㉥戰㝢挶愴㈹㤰㘶㐹㍡敡㈶改て㌶㘱㔷改ㅢ㥤㜳搶㕥昵昹㝤㑦ㅥ摦㜳摢愳㐷敦㄰搸㠲㑥㤲㝥攷㈶改㜵㥢㌰晡搲㥡〷㘷捦晣㙣敢㤶㔹扦㍣㝦搵扣搴㈶昱戲㡢愴搷摣㈴ㅤ戶〹晢ㅦ晤昹攸晢㑢ㅢ㔷摤愵㐴ㅦ㉤扥㈷昹慣㐰㌰㜰戲改㤰㥢愴㠳㌶㈱㔸㔴扢晢戲ㅢて戵㙣慤㍤晡摥攱敤㕦晥戳㐰㐴㜱㤲昴㡡㥢愴㤷㙤挲㔳晦敡㤹昱戳㜷扥搳昶晤挷攳㠳摦㝤㝥昵ㅥ㠱戰攴㈴改〵㌷㐹捦摢㠴㥡ぢ㝢㤶㥣愸㝤愱晥攱扡挶㘵㠷扦㔴慤ぢ挴㌶㈷㐹捦扡㐹㝡挶㈶扣戱㙦慤昹挰㕤敢ㅡ昷ㅥ㔹㌳㙤摤攸搴㑥㠱〰改㈴改㘹㌷㐹晦㘵ㄳ昶敤慢㥢戱攲㕢㝢㥡扦㔶昷㙥㘴摤㔳搳㔷〸㐴㔹㈷㐹扦㜰㤳昴㤴㑤㤸㜱昰㥤愱㜵㜷〴㔶散㙡晦搳昶㑢㙥㙢㥤㈲㝥攳㈲㘹扦㥢愴㈷㙤挲㝤晢捦㝡㙦戴敡捤㤵㌷挹㠳㙦捦㍢㝡搷㡦挴㘱ㄷ㐹愳㙥㤲ㅥ户〹晤昳㡥㡤散㥤昵晣㡡ㅢ扡㌶扦ㄸ㘸昸㝡戳㜸捤㐵搲㘳㙥㤲昶搹㠴㑤搱昹㜳㌶摣㘹㌶摥㜷攴攷㕦昶㜸㥡晥㈸㤰㜹㥣晣昴㥦㙥㤲ㅥ戱〹㌳ㄷ摥㜱㌸戹昷㠷换敦摥昲攱㘲摦散㡤て㠶㡥㤰㈴㕣㝥愴愹㝦㜰㝡㌷㌱攱㙢㔴㐵攱愷扦㐶晡㤴㌷㠲戸改愳㔷扡㝥㍥㕢ㄷ㜹㉦㍥㌵㔹搹昷㐳愵戰改㘱戲晡晦㈰㠷挲㔱挱敢㥤昳愹㐷㘹愱㝥㠱㤴换ㅥ㐴㙣㔶㄰㡤ㄵ挴㕦昱ㄳ摢㔱ㄳ㈲散扦摢㠴挲㍦㐱〹㈱㔳㜳㠴㙤愳昱ㄴ昵㤱㠴攱㑣㜱㍦㡤挰っ㔸改愵㄰㝥摣㐵改㕥㌷愵昷摡㠴挲扦㔸〹㈱㘷戳搲㉥㔶ㅡ捡㘶㙢㠱〴捤摡昷攴㙡晦〲戴㈳㌱㍢㑤㜹户㥢昶扢㙤㐲攱㕦扡㠴㤰捦㔹㝢捣搲㥥捤攴〲挹㥢戵摦㤹慢㕤㠵㜶㈴㙤㈷敤㍢摣戴摦㙥ㄳち晦㐲㈶㠴㕣捦摡搷㕢摡戳㔹㥥㕥㜵搹摡户攷㙡搷愰ㅤ〹摤㐹晢户摣戴摦㙡ㄳち晦戲㈶㠴㍡㠰戵敢㠴搰攳㐶慥攷㈹㙦捤㔵扡㠱㝡〵㔲㉥㤳㙥戱㐹㤷㤳攵㐱慦昰㘳〵ㄶ扥㕦挴㈷㤱㈶㙣愲㠲㑦㥤愵愵㤵搴改㜹户戴捥昳挶昷敡〴ㄶㄹ换扣㌹㕦愶挰〲㠳摣㌱㑥慣っ收扣愹㠰ㄳ㡢㈱㡦ㄳ㑦㤱㌹户ㄴ㜰攲挱攵㜱挲攳捣昹㑦〵㥣㕡㈱㈷扣挳㥣摦㈸攰㠴㘷㜲㘵㤶晥㉦㕢戹收〹 | B30: 㜸〱敤㕣㕤㙣ㅣ搷㜵摥㔹敥㉥㜷㤶㕣㤱ㄶ㈵搹㔲ㅣ㥢㠹攳㕦慡戴㈸㕢㤱攵㐴愱昹㈳㑡㡣㈵㤱ㄶ㈹搹㠹㙤慣㠶扢㌳攴㔸㍢戳昴捣㤰ㄲㄳ㌷㜱搰㌴㜱ㄲ愴㍦㙡㥡搴戱㔳愵㝥慡㡢愰㐰㥢㔶㜵㠰扣ㄴ㈸搰愲㤰晢㥢愰〸搰〷㌷㈸摡㠷ㄶ㠵搱扣攴㈱㠰晢㝤攷捥散捥㉥戹㐳㝡㙤户㜴挱㤱昶散㥤㜳敦㥤戹昷㥥摦㝢捥㕤愶戴㔴㉡昵ㄶ㉥㝥昳捡戰㜰敢摣㥡ㅦ㤸捥昰㐴慤㕡㌵换㠱㕤㜳晤攱㌱捦㌳搶㑥摢㝥搰㠵〶戹㤲㡤㝡㍦㕢昲敤捦㤸昹搲慡改昹㘸㤴㑤愵昲㜹㍤㡤㝡㍥㠴㥦晥攸㐶㘷慦摥っ挰晣挴昸捣挲㌳㜸敡㕣㔰昳捣㠳㠳ㄷ㔴摦攳㈳㈳挳㈳挳㐷づㅤ㍤㍣㝣攸攰攰挴㑡㌵㔸昱捣攳慥戹ㄲ㜸㐶昵攰攰散捡㐲搵㉥㍦㙡慥捤搷㉥㤹敥㜱㜳攱搰〳ぢ挶㠳て㡤㍣㜸攴㠸㜵散搸㐳扤㜸㜵敡散挴昸慣㘷㕡晥扢昴捣㉣㠷晣攰愴㔹戶㌹㌷搳昴㙣㜷㜱㜸㘲ㅣ晦㘳攳挷摤搱攱戹㈵搳っ昸㙡搳㌳摤戲改敢攸搸攳㡣昹晥㡡戳捣挵搳㥤㈹㑣戵㙣昸㐱搶㤹㌰慢㔵摤㠹㥥㥡㜷㘶戰㜶㔵㘳慤搷㤹㌳㕤摦づ散㔵㍢㔸换㌹昳㜸㔰愵攸㥣昷捤㜳㠶扢㘸㥥㌵ㅣ㌳敢㥣㕣戱㉢ㄹ㜵愵扡敥㡥ㅥㄱㅦ㤸㑣㝦㜸捣㜷㈶㤶っ㑦㐶攴㜳㘱ㄲ摡㑥㜹攵收戶㜷戴㝦㉥㠷㉥㙦攰㌳敦㙣摦づ㌵ㄷっ慦摥㜲愸㝤换㜰昲捤㈳戸扦㝤晢搸ㅡ㌵昷戹户㝤ㅦ㔹捡收搶㕡㑦挸摦戲愲㤸㡣㥥㈳攸㈶挸ㄳ㤰㠰㝡㠱愰㠷愰ㄷ㐰换晣っ㔲ㄲ敦挸慡㜴挹㐸㤷ㄶ搲愵㜲扡㔴㐹㤷捣㜴挹㑡㤷ㄶ搳愵愵㜴挹㑥㤷㥥㐹㤷㉥愱㑤㜴攵扢扢搳攱㤵㜹敢㘷挵扤昷㝦㙦晣晢㔷㔷㕦晦敦攰㠷㜶敦㉥㌴㝡㉣ㅣ搴愴㘷㕣〶慢㌵戸ㄸㄲ挱㝦㥢㑢〵㠴挲㍡㘲ㅤ戵㐶㐶㉡㐷づㄹてㄸ㔹㑥㉢㠱昸㑤㡣搲㡦戶扤搶攳戶㕢愹㕤ㄶ摡摤㍡㙥昸㘶㘳攱㠶挲扡昱摡㡡㕢昱㍦戰㜱攵㕣㘰〴收㠱搶扡挶㐳搶㜵㥢㠳㔸㤹扥扣敦戶搶㙥ㄷ㡣敡㡡㌹㜶挵㔶搵ㅦ㙣愹㜶㘶扤摡㐲晢摡㈹捦㝣戶㕥扢㙥㐴㘳㔰㙡慢昲散㜵戳㔴㔵㙡㕣㠳ㄳ㑢㌵摦㜴㘵㜸㐳捥慣㕤扥㘴㝡㜳㈶㔵愲㔹㤱愹敥㘵㔵㈸昵㐳㌳㉥㈶ち㘹慤㝣㌸㡥戵㑥㕣〹㈰捣㘶〵攳㕤㌶扤㘰㙤摥㔸愸㥡晢㥡㥡愸㜷愲㘲㝦ㄳ㝡慡㔶㕥昱㈷㙡㙥攰搵慡捤㌵㘳㤵㔵〳㥡愶㜲愶㔶㌱㌳㤹㤴㈸〵㈸摣慥㉥㑤㑢摤搷㕥ㄶ㠴㄰㌱ㄲ㔳㤰㙦㘹㘶扢攱㜳㤸ㅤ㘶㔱㌵挹㤳改㡦㙣昲㌰㡥㔷㜴㑣㠲〴挶收㐴晢挱㤷摥戳挹㘳敢㤴㝢㙦ㅢ愷搳〳攱散㑦慣㥡㙥㜰捡㜰㉢㔵搳㑢戴㝥ㅡ㐷愴昷〱㘴摦㠴㐲㘸扢㝡㌴㜵摡ㄵ㙤㉤㝢搹慥〴㑢戹㈵搳㕥㕣ち㠰㠳㠵捣攷戹戴敢㉥晤㈶愰昴摤〴〳〰㠵㐲㉡户㠷㡤㜲〵㕣愹㉣戵㔳㠲㉣㌷㈹㜲昶㙢㤲攵㕥㙢捡慥〶愶㔲捡㝤ㄶ㈸愲慣㥡㤰慦㐸ㄶ昵㡣戲㌲ㄸ㝢慣〹㜰愹㘱扢挱㕡㐳㙥搷㐹㠹㘲愲ㅤ㕤戰敤㜴〱㔵㐱戳㍥㐸㤰㌵㌰㑤㡢㌶㐸㙥ㅣ㘳㈲㡡㐱㠲㘵挷㤳㥢㤹㡣敤ㄳ㜴〴摡挷㤹㤰慤て戵搷ㄱ㘴昶昵㑣捡㑥㙤攵㜱㐷㥢㙤攴换㉢㙤戶ㄷぢ愷敦㈳戸㤹攰ㄶ㠲晤〰摡扦㐱挳㔱换愱摣㝣改ㅦ挰扤㝥㉢挱〷〱愰㥦㜴敡㥣㔰㔵搱㠷摡㡡ㅦ挹㜶㐵昸挹攲ㄴ㉢㔵㐴捦戸敥㘷ㄶㅤ㈱㜴攸㜵㙥て㕢㥢ㄱㅢ㝢㔷㝢摥㡣㑦㠷ㅣ㤹搰㌴㍥搷㑤㥡挶ㄷ㠲㑤㍢戴㕢户愳慢㍥㐸昰㈱㠰㠲晥㘱㐲ㄸㄷ㍡扣㕢昳攸改㔲扥㉦摣㈲攵っ㜵㘸攰㐳㐶收ㄶ㈰㐱挹慤摢扥散昸搰㜴〷㠷慣昷扤て㝤戰扤㝣㠷㐴㙦戱㥢㍢㜶㠷昱愲户改㐵摦〱昱搲晥戹慤㡤戹ㄳ搵晡㕤〴㜷〳戴搸ㄸ敥扥摦㙥愴㐰摣㘲㈷㐶戹摤㡣扡㠸㤷㍢扦戶㙣㡡〵敡戵收つ㙦搱っ㄰挱㤸㥥㠴㉦㕣昳㍣戳㡡㑤㙤㐵㄰摣扦摣摣㡣昴愷扣㥡㐳晣㡥㡦散扦㉦っ㐳㈶㤳敥㑡戵昸挸〹扥㘶㉣收ㄴ攳ㅣ摡攰〷摡㉢㠹㔸愷㘶昶㘲扦攴晤攵㡥㈶改㐰㤳摣㡢㘵搵敦〳㠰㤶搰㝥摣㔶愳ㅣ㘴戳㕦㤲㘶捤ㅥ㉢㈳㝣〹扢㤳㤶ㄸ攲㍡㍤搲愳〲戶攳㠸ㅦ昸㐵㘷捥㜶敡捡愲挷㤹㌵扤㌲㘲ぢ㜶搵㉣愸戰㉣㔵捤㡥慥㜸㥦攸㡡慥慥㜵晢改㠴昸㥡昰㐹㡢㤶㐸㤴昶挴捡㠴扤㜸㠳愹ㄸ㠶愴㔲㐹〸つ搵㌵㄰㌹㡦㙤㜷㔴㑣〷㉡收㝥㉣㥣㝥㠸㘰㠴攰㌰㐰昶㜵㘸㥡慤㉥㍣搳㘱摤慢っ㘹㤷㑡愹㍣挹㈰㈱挲ㅢ㙤㤵搵ㄱ扥收愳〴㐷〱㕡摣ㅦ〶㈰ㄳㄸ㔱㐸ㅥ㘳㐴㐹㘳㔸ㄷ㙣昳㌲㜹㘰㤷㠵挴搲挴㡡ㅦ搴ㅣ㘶㤶㡡搶㘴敤㙣㉤㤸戴晤㘵㘴愲〶慣戰昰昸㤲改㠲扢㍣昸㍥㉤戸摡昲戲㔹搱慤戹摡ち㔴摢昴攴㜶搸㤸㘳㌹攰㑢捡摥㍣慤攱敡㙣㝦㡣㐷㘸㔸㘹㠹户㌲ㅡ扢愵攸㌷㌷㝤㝤㡤ㄵ㥤户㠳慡搹㘳㈹愱㘳㌹㙦㘱ㄵ㤱㌹愸㜴㕢昳㑢㥥㘹㑥ㄶ慤㤳㥥㕤愹摡慥㐹㘲挰挷㘴戲敥戴戹㠸㉣挱㙣㡤㌹挰㥡㕢戴收㍤挳昵㤷つ㈶ㄴ搷㜶㌷摤㐹㕡㈴㙢㡤摢慥㡦搷〸ㄵ㔹敥戳收㤶㙡㤷㤱戱㕤㜱摣㤳挶戲扦㉤愸㐲愶㔷㤷㤰㐶㑢㙢改戴㤶㑦攷㍢愵て㌷攴愹ㄴ㘵㉦㐳㈰戴㑡㘵ㄹ㌳㑦戰摥昴敢挳ㅣつ晤㜴㡥愹ㄷ搹愳㍡戲㉢㔱ぢ㔳㔲昵㘳散昳㌰挰㈷㑦㥥㥦㙥㘴收摥㔱捥㍡换㈸㝦㠲㡥ㄷ戶愸㈷㐲ㄸ愳摢愵㔸㠵㌸㜲づ㈴㄰ㄴ攷㕤㉢晢ㄵ㉣㘹㐳敥摢搵㈸㑥㈱㤳搴㙢㥤㌶ㄶ捣㉡昲搱㡥ㄱ散㔲㌷㜴㘳ㅤ愳敡㠷㜵ㄳ㌵挷㌱挸㕡㘴换戹戲㐱づㅥ㕢〹㙡㘷㙣㔷户〰㠴晦㐲㤴㜱〵㈸攳㡡愰㝡慤㜳㑣つ㑡㤹捦慡㉤ㅡ㥥ㅤ㉣㌹㜶㌹捦ㅢ愶敦戶〵㑦㐲挸愹㜹愳㉢搲ㄹ㠳㉤摥晣㜹戸㙣晥㌰挸㍤っ㍤捡愵㈳昹挱戹㘹㉤㠷㝦㕡㠷㠱㈵㈸ㄸ㠹㤴敡ㅦ挷搳戲㜲㍡〲㉡㐷慥㌷愳㌳ㄸ㙦㝥ㅥㄸ愵㠴㐸昵〴ㄶ㐱㔴㌰愶攴ㄹ攲捥㔹攷㕤㍢〰昵㐸戱㈹㍢㤸昴㐱㜲〰ㄴ㘵㝢㝢㐰愸ㅡ敢㌴㔴户ち户慦慦㙡㌲ㄳ户慤慦㡦摢㡤㡦㙣㔰慤㉣㑡捣㤰㙣搶㐸㉣换〶㘳摣㑥愶㐶ㄳ挳ㅤ㔹ㅢ㉤㈹㙣摡㔸㜷㙡㤱㜷㘰㤸㠴㘷㔲晡㈷㠴㔱挴㐶改愳㈸㌳㜴换戸㝤㌲㡢挴戲㌶昴〳ち戴㔵ち㔷っ搳㠲搳㌸㝡㔲㌱ぢ攱ㅤ㘴㝣㔷㔸㥣㔹〹㥡㙡㡣㉢〳㘱捤㔸戵㍡攳挲㔳㈸ㅢ㕥㘵㥢㠸㌵收愶慣㡣㐸㘸愷ㅥ〰㥥㠲㉢㈶㡣〸㤳㍦〲っ搷㥡改㤱㠴㜸㌰挴ㄱ㐲ㄶ换慣搲㑢㉢㜲戹敢攸㍣敦捥㤸㠶㉢㔴㤸ぢ㉡㤳收慡戸㘳つ㡦㝥㐰㍡搴㜷㡤愲㑦㜵㙢㙣挱㠷㘹て愸捦挳㤲〸扡㙥㥤㘳㜸ち㠷ㄹ愰㝥挳搲㙣㌹㐰㡡户晥〰敥㄰戶て㠵戰㈲㉡㠵㐲㉦㡤㥡㌴㤷挰扣捤㤳愰っ㜵㐸㔵㈸㔴㑢慥晦ㅡ搵扥晤㈲慦㔷㐷㔳㔱㈱㜴昸㤸昶㑡昰㈲㐰摣㜸㠶㤲㤲㌴㄰㈵捥㤵㠶ㄳ攵搵ㅢ攱攸㙡ㄴ改晡㜹〱㑥昳㌰愷搵㐷搱愹攲扣㕢㘰挳慡㔶搷㜶㔹搳㙥戹扡㔲㌱挵㈴㐷㍡㕢㉣昳戶愰㤷ㅣ〵㔴ㄲ㤵戰㉥攱愲㑣㘳㑢挵㈹㤳㐸㥤晢摦晡ㄸ扡㡢戲挳㌳ち晡〴敥㈸㜷㑣㐶㈶㠴攸㈴㌹戶敥捣〲㝤挵摤㡤挳っ㜲㤰づ慡㙤ㅤ㡡㍡敤㌴捥收搵㌳捡㈲㜱戱㘶愷㙢愷㙢昴摦㘳愸㔳戶㐲㙤ぢ㍡㘱㥥㑡昱攵㜲㜰㑣㍡㤴㄰㍥〴㕡㑦扥㔲㙦㝥㍥晣㠶㤱ㄱ㐷㐴㘳扥㤷㍢愲ㄴ㔶ㄵ挲㐴攷㍢摤昰挰㌵㘶㠲改㠵敢㤳〰ㅡ㔳挲㜴㙥搱㔲㌹㍢㔳㈸㙦敥散摣㡥㔶〹搹搲㜸㘲㤵昹捡〱〴敦㐱㌴㐸ㄴ㌷搵昳㌵ㄸ愳㘰㡦ㅣㄲ㡢捥㈹づ㌹搸づ搵扣㝤㉤挸㔹㈳挰㔱ㄸ㜷㝦ぢ㝡慣㔲愱敢㡢㔸摤戶愰㉡㡥㜱㈸搷㜴㑦换〱㉤㤹ㄳ㝤扤㍢㕡㉡挲㠳㠳㠷㈷㠷㑦ㄹ㐱㜹㘹㉥㔸㔳㠷戸㍡㘵㠹散て㄰㥢搸昰敤昴㥦㌳㉥て愵慥㜲敤ぢ㤷摣摡㘵㔷挶㤵昵㜹〲㄰ㅣ㠲攳㤴摤ㅣ㘴㈱昵ㄶ晥挹㤵㑥㘵㕦挳ㄳ户㌲㙣㍥愰ㄱ㉣攱㜳攴㉡攸搳昸愶㐶ㄸ挴㜷〲慦挰㤷慦㥦㈲㈰慦散㘹攱ㄵ㔱〶㍢捣攲㉥扥㙢捣愲㕤〷㘹挹㌰㈰㜸㜴㘰㈴㥤搲晥ㄴ㌷㈴㍡㘸〰挲改愷〹㐱扥て攱㍢㠱㝣愲搰挳㘳ㅦ㍣㈴昲晦㠷㔲㤱㔴㙦㈸㔶晦ぢ㐲慤㝤ㅦ挴㄰㌲㠱㈶㜵戹搴晥戸㤹㑣㌳㡡㑣ㅡ㡦㠷㠸㉣捦㠶〵摥㘴㤹戶㝤㕢〹㜲捥㙢㘷㘳晡㥥ㅦ〴晥㍦摣㤸㥥〳㠵㜹㘹捡㤷搶敥㐴戹敥㉥愴搷戹ぢ㑣敡㡢扢㌰挷㍥捣敥㉢㜷㈱㡣㡤㥣〷㘲㜳㜷㠱㌹扦〴愷㌰㤶㠲㡤㠵㍢戸㈳摢攷㌰㙥㜶ち〷㜲㑤ㅦ㜹㝥ㄸ㌰㝦〲㤱慡㥢搷愳㘷つ捦㜰昶ぢ晥愴㘷挲戰㜹昳㌸攱㉤㕤搸攳挰㠶㌵搲㘹㠳ㄸ㐶ㄴ㝤摦㠹戳㙣敤㕣㍢㈸愵㉥ㄵ搶搷昲㕡敥ㅤ㐴㔰㌴敥㈱㔲㥦摤昳㠷㈷晦攵㌳㕦ㅣ捤㐱慤㠱㔷昵ぢ挰搱ㅥ㌱㜵摣㐹㍡㥦扥〵ㄲ扥戱㐳㈴㝢昹愳㥤㌳昸昹㤲扤㕣㌵挷つ㑦扣㈲㕦㜷愲愲㘲扥ㄸ㜳㉡〶摣づ㉥㈷捥㐴㈸㤷㜳戸㈵ㄴ㉡㍦㝡㤲昰攱㜰㙣攰ㄲ敦㡢㔲㡡㕡㕢㠳搶愱昷㤹㝤ㄵ㈶改㙤づ愴搹㙢攴㑥㤴㤷愶晤㝥㘴昳ㄴ㈲㤵㍡愲挸て捡㙢㍣ㄲ㄰㘹㉡攴㈶挸㈵昱㡤つてぢ㠸愶晡ㄴち搹晢〱ㄲ戲㙥慤改㕦挶〸㜶ㄴ㠱㔹㍦㄰搸攱て㕣戰㡡愰㘲ㄴ愷敦㜴㠷换㜰㐰㘴㥥㤸挶ㄵ扦收搳㈸挸㘶㠶㠸㤱〸晢㈴ち搱㤵㍤㡣搲㤶㐳㔴㝣㐹搱㔱㐹㌹㈵搸㔹㠷昱户㠲㜳挲㕤挱愹㄰搸㥡㥣ㄸつ㜷㌷搱搸愰㑡晥㑥㌵㉤㈸ㄴ㘱㥦㉡搶㍢昵㠴㔵戰㕢敥㝥散㔲㤱ㄸ攴慦㠸㔸㍦搴㜸昴摥搶ㅡ摡㌹户ㅢㄳ攴〷㍥搸㙤〹㠲㡤户㔲㘲愰㘵户搴㉡慦㡥㡥㍦㠵㉥㥣㜴㑡搳ㅢ㐵戹搷㤸扦㡥㈴慢㙢扤て挰捣戶㐸搶搳散捤ㄴ㜷㤳て㔰〲㘲㔳ㅦ㐰㍢挶扥昸攸ㄷ挳㠲㌸愸捣慤㙣㥡捥攱㡡㈰攲㡤挴㡥㙣㤴㜵㈹㌲ㅤ慥㑡㜳昸㘱慢慡ㄶつ㡥㔸㔸愶昵搸㐴扤㉦晤摢㥥戶ち㤰㜹愳散㌵愸愰戶晤㥢昵㔶戴摢捤㉤愰攳㥥㌳㜶搹慢昹㌵㉢ㄸ㥣㐳㐲㜸㤰扦㑢戳攰昷㡣㘹摦㘹㔵㙡㜷㘰㈵㝡㉢攸㜳㜶〶ち晢慣ㄹ扣㕢㜹㑡㘶ㅤ戶㤶攵攰㙦㤴晡㘳愹㈷㕡〷晦㈶敢戱ㄵ愳㡡㥦戵捥㈰晥ㄹ㄰戵㉤㡣㥤㡡㐲户㥥摥攰搲攱晣搶愳㠸て㤹搵㘱㈴捥㘴ち㑦㍥捤㜵㙤㕤㠳收戶攱摣㝣戶散㉣〶㔷挸扥〴㥡㙥敤㉤捤㉣挳㜷昲搷捡〵ㅤ扣㐱㠷㐶ㅢ挵户〸挶㈲ち㈴ぢ㍦摡㈳〴昸攸㑢〰搱㤵ㅤ㐳㘹敢〱㕥昶ㅦ㠰㑣㠴㍦っ㘷㄰㙤愸㡡搰摢ㄶ戲攸㌶扡㙡㡣改慥ㅢ㠳㌶ㄹ㘱㉦㠵〵㌶搱ㄸ㌷愴㌰㙢摦挰挲㕣挳〷攵㔴捥〱㘸㉦ㄷ㔷搱㑣挵㈱搸ㄸㄷ攵㐲㥢㐶㐱摥㕡㐳㈱ㄷ㝥㌴㠶㈳〴扢ㅣ挷㜲昷㉢搸㘷㘳搸㝥㙥㠱㌳昸攸ㅥ㐰戱㑢㍢㠷㉦㑡㐶㐱晢㍡摥㐸捡㈹ち〴挴㠱〲戲戵㐱㔹㡦㕢ㄳ㡤㕢ㅢ㤹搱㔷搱攱ㅡ㍥戸㑦攵㉥〳戴㥦搱ぢ㘸戶㝥㐶㜴㕤㘵㤴㙢㘱㠱㌷ㅡ摤ㄴ挱挶摦摡ㅦ㤹㌹晤戳愸搶㥦㈳昸㘵㠲捦〱昴㐷㉤晢㥥挲ㅤ㘷㤸㔳㠹㤱ㅦ㤰㠷㜰晤㕤昸晤挶攸敢㌷㜸晤攷愸㈶㉡ㅢ㔵捤㜳㉢〱㈳㜳㝢㍥㍥户㉦〰摢㝥㙥㥦摢㘸㙥晤ㄷ搱㐷搶晡㔷㔰挰㕡㤳慢㘵㔶㕦っぢ扣改㈷㙢㌳㍡愴晦㉡挱㤷〸扥㑣昰〲挱㔷〸扥㑡昰㌵㠰㐲㝦挴昱㥡㌰㈱昱ㄱ〶攵㔴㍦搹㑥摥昸㜵ㄴ㡡㕤晤㘴ㄳ㜹昶慦愱愰晦㍡挱㙦㄰晣㈶挱㔵㠲摦〲㈸愶晢挹㌹搲昰ㅢ㐴晥㌶挱㌷〹扥㐵昰㍢〴㉦〲愰㈱㤹㐹ㅡ㝥㥢挸㤷〸㕥㈶昸づ挱敦ㄲ㕣〳㈸愶戳攴慦㡦戵㌷搴昴挳愳㕦ㅣ㈳昷搲昴搳攲ㄳ昸愹昰ㅡてㄵ㜴攱㉦㈵㘴挵慢挸愴ㅦ敥散㔹㤱㘷㑦愷㈰㝢ㄱ㘴㝡〷捦㈱戹ㅡ攱㕣㍥昱〰㍥㜹挸㈵愵㐵㈸晢㝢㘱㐱㈸㑢㤶ㄶ㙡扣㠲㐲戱㉢㑢戶㑤昸㐱㤹昸摤㍣㝣换昵捤愹愰㝦㑥㜹㕢㜹㈷㡣昶㙦ぢ㥢ㄳ收㘹摡扡ち戹づ㑦㤵㘸㑦㐷㘲㜴敡㤴㔲㈹搸挵㠴昹㑤㠸戱㑡攱㔰散戹㤰摡㔳㔱攳㍦扡摥〸〱愲〲ㄷ㘴㕤㌵愶㝡㤰挶㑦㐶㡤て攳㤷㠰搲〶㑦㔶搷ㅢ㔱㘳慡ㄱ㘹晣改愸昱㝦ㅣ摥㕦㙦ㅣ㘹つ昵攴㉣㐵㍡㘱て㈵扢捡搸㕦〵攸㐳昳慣㐵扦慣挷㔲㘸㌲愶ㅣ㔵愸㡡㘷搶㡢〳㐸ㅥ㝥㤷㝦ㅡ攷改㜰散〸挶㕢晤㜹㡥㘹㥣戳㥢㌴〲〳㍦扢㕦挵攱〶㑦㤷㍢㜶捥㔹㌳ㅥ㄰摤搶戴㡦扤㝡㘵㕢戱〸摣捣㡣㕡摦㑤㤲㍦〹㕢㤲挶㝡㐴〹搹㌴捦㉤㜵收㤴㐸〲㉦愳㍤ㄱ㔱㌶昵㝣㠳㘷昴㔷㐱ㅣ㤸㍡㐰ㄶ昴㍦〰㔴〹㍦㥥㤰㑦昵㔳㕢㡢ㄸ㝦て〵愸㜱敡㘹㙡㌷㙤づ㑦愳㑡ㄱ㡢愹㔱㜳ぢ晡㕣㠸收慥愱愰㔱㤷ぢ晡戱㄰扤㑦搰㉦㐴攸搹㄰捤㐳ㄹ〵㡤晡㕥㕡捦㠴攸㝢〴㑤ぢ㈰攸戳㈱晡㕥㐱搳㈶〸晡㑣㠸愶摤㠴㈵〷㈴㝦收晥〴愰㉦晡愳㉤㠳慢ㄲ㈳㑣㙢㡦愲戱ㄸ攲㌸㝢敢搷搹攱捦〰扡㤰戶搰㐲攱㈸攸慦〱ㄳ㕢っ㡤㠶㐴㕥㌹ㄵ扥㔲㑤㥥愶㐵搰㈷㐲戴㥡㍣㡤㡤愰㈷㐳戴㥡㍣捤㡦愰㈷㐲戴㥡晣搵〸㍤ㅥ愲搵攴㘹愲愴昵㔸㠸㔶㤳愷愵ㄲ昴㈳㈱㕡㡤㠴戶㑢搰愳㈱㕡㡤㠴搶㑣搰㥦〸搱㙡㈴戴㙦㠲㍥ㅥ愲搵㐸㘸昱〴晤昱㄰慤㐶㐲ㅢ㈸攸㡦㠵㘸㌵ㄲ㥡㐲㐱㍦ㅣ愲搵㐸㕥㡡搰挷㐲戴ㅡ〹捤愵戴㝥㈸㐴慢㤱搰㠰ち晡㘸㠸㔶㈳愱㐹ㄵ昴㐷㐳戴ㅡ〹㡤慣愰㡦㠴㘸ㄹ㐹㍦捤㡦戰敡つㄴ挰慡㌴㍣搲散㠱戰搹ㄳ㐰攴搳㕡昶㔵㝣㙦㔹昶㈸ㄹㅤ晡捡㝦㠳慥ㅡ〵㡡捦搰晦㌶㉣昰㐶愳㌴挹搸づ㠵㘳ㅢ㘵㤳扦㘷搵㜵〰㡥㔰晦〷摥㤱〵愵晢㍦㠶〵改捥ㄹ㑡昷㠳昱敥㍦㘶ㄳ㜹㈹ち㑤㝥㕤㍦㕦㉥㙢昳㑦㈸ㄴ扢晡昸愶挷昱㐹㕦搱捡ㄷ㉢ㄷ㉦晥扣㉦㌳㜸㈰昳挴㈳扤㉦扥昱搷㍦扤晡愳愷㡥晦晢㉦㕥㝥昹㐷晦㝡昵挶㉦㝥戸㜰晣㉦㕦㜹攵㉦㍥㜹敤挶㑦㜷㕢摦㑤㕦晦昹改敦㍥㌷㜲改戹㘷慤昳昷㥤㝣敥㔳捦㍣㌶㌲㝢搳㔰㔷㔷㜷昷摤〳㝦㜵换㍤晤捦㍦晢㥡昶攷㍦戹搹搵㘴昰㜸㐱昳㌰㌸〹ㄹ挶㑦㔰挰㌰㌸攲昷㜴ㄸ㥣慥㉣搴㕤攱㐲㡤〳㐱愷㠵〳㤰㡡㍢㥢㉢㝡晥〷㙦㜱㡡㘷 | D30: 㜸〱敤㕣㕢㙣ㅣ搷㜹摥㔹敥㉥㜷㤶㕣㤱ㄶ㘵搹㔲ㅣ㥢㠹攳㉢㔵㕡㤴慤挸㜲愲搰扣㠸ㄲ㘳㑡愴㐵㑡㜶㘲ㅢ慢攱敥っ㌹搶捥㉣㍤㌳愴挴挴㑤ㅣ㌴㙤㥤〴㙥ㄳ㌵扤㌸㜶慡挴㑦㜱㔱〴㐸㉦㡡〳昴愵㐰㠱ㄶ㠵搲㙢㠲㈲㐰ㅦ摣愰㘸ㅦ㕡ㄴ〶晡㤲㠷〰改昷晤㘷㘶㜷㜶挹ㅤ搲㙢扢愵ぢ㡥戴晦㥥昹捦㌹㌳攷㥣晦㝡晥晦㉣㔳㕡㉡㤵晡〵㉥㝥昳捡戰㜰摢晣扡ㅦ㤸捥昰㐴慤㕡㌵换㠱㕤㜳晤攱㌱捦㌳搶㘷㙣㍦攸㐲㠳㕣挹㐶扤㥦㉤昹昶㘷捣㝣㘹捤昴㝣㌴捡愶㔲昹扣㥥㐶㍤ㅦ挲㑦㝦㜴愳戳㔷㙦〶㘰㘱㘲㝣㜶昱㔹㍣㜵㍥愸㜹收愱挱ぢ慡敦㠹㤱㤱攱㤱攱愳㠷㡦ㅤㄹ㍥㝣㘸㜰㘲戵ㅡ慣㝡收〹搷㕣つ㍣愳㝡㘸㜰㙥㜵戱㙡㤷ㅦ㌳搷ㄷ㙡㤷㑣昷㠴戹㜸昸挱㐵攳愱㠷㐷ㅥ㍡㝡搴㍡㝥晣攱㕥扣㍡㜵㜶㘲㝣捥㌳㉤晦㕤㝡㘶㤶㐳㝥㘸搲㉣摢㥣㥢㘹㝡戶扢㌴㍣㌱㡥晦戱昱攳敥搸昰晣戲㘹〶㝣戵改㤹㙥搹昴㜵㜴散㜱挶㝣㝦搵㔹攱攲改捥ㄴ愶㕡㌶晣㈰敢㑣㤸搵慡敥㐴㑦捤㍢戳㔸扢慡戱摥敢捣㥢慥㙦〷昶㥡ㅤ慣攷㥣〵㍣愸㔲㜴捥晢收㌹挳㕤㌲捦ㅡ㡥㤹㜵㑥慤摡㤵㡣扡㔲㕤昷㐴㡦㠸て㑣愶㍦㍣收㍢ㄳ换㠶㈷㈳昲戹㌰〹㙤愷扣㜲㜳摢㍢摢㍦㤷㐳㤷㌷昰㤹㜷戵㙦㠷㥡ぢ㠶㔷㙦㌹搴扥㘵㌸昹收ㄱ㍣搰扥㝤㙣㡤㥡晢摣搷扥㡦㉣㘵㜳㙢慤㈷攴㙦㔹㔱㑣㐶捦ㄱ㜴ㄳ攴〹㐸㐰扤㐰搰㐳搰ぢ愰㘵晥ㅢ㔲ㄲ敦挸慡㜴挹㐸㤷ㄶ搳愵㜲扡㔴㐹㤷捣㜴挹㑡㤷㤶搲愵攵㜴挹㑥㤷㥥㑤㤷㉥愱㑤㜴攵扢扢搳攱㜵㉡搰昷㍥昳摤㡢㘷㕥晡晥挸ㄳ㉢摦扢昵㔲敦ㅥ㌴㝡㍣ㅣ搴愴㘷㕣〶慢㌵戸ㄸㄲ挱㝦㕢㑢〵㠴挲㍡㙡ㅤ戳㐶㐶㉡㐷てㅢてㅡ㔹㑥㉢㠱昸㑤㡣搲㡦戶扤搶ㄳ戶㕢愹㕤ㄶ摡摤㌶㙥昸㘶㘳攱㠶挲扡昱摡慡㕢昱㍦戰㜹攵㝣㘰〴收挱搶扡挶㐳㌶㜴㥢㠷㔸㤹扥扣敦昶搶㙥ㄷ㡣敡慡㌹㜶挵㔶搵ㅦ㙣愹㜶收扣摡㘲晢摡㈹捦㝣慥㕥扢㘱㐴㘳㔰㙡㙢昲散つ戳㔴㔵㙡㕣㠳ㄳ换㌵摦㜴㘵㜸㐳捥㥣㕤扥㘴㝡昳㈶㔵愲㔹㤱愹摥捣慡㔰敡㠷㘶㕤㑣ㄴ搲㕡昹㜰ㅣ㙢㥤扣ㄲ㐰㤸捤ち挶扢㘲㝡挱晡㠲戱㔸㌵昷㌷㌵㔱敦㐴挵㠱㈶昴㔴慤扣敡㑦搴摣挰慢㔵㥢㙢挶㉡㙢〶㌴㑤攵㑣慤㘲㘶㌲㈹㔱ち㔰戸㕤㕤㥡㤶扡扦扤㉣〸㈱㘲㈴愶㈰摦摡捣㜶挳攷㌰㍢捣愲㙡㤲㈷搳ㅦ搹攲㘱ㅣ慦攸㤸〴〹㡣捤㠹昶㠳㉦扤㜷㡢挷搶㈹昷摥㌶㑥愷〷挲搹㥦㕣㌳摤攰戴攱㔶慡愶㤷㘸晤㌴㡥㐸敦〳挸扥〵㠵搰㜶昵㘸敡戴㉢摡㝡昶戲㕤〹㤶㜳换愶扤戴ㅣ〰〷ぢ㤹捦㜳㘹㌷㕣晡㑤㐰改㝢〹〶〰ち㠵㔴㙥ㅦㅢ攵ち戸㔲㔹㙡愷〴㔹㙥㔲攴散搷㈴换扤搶㤴㕤つ㑣愵㤴晢㉣㔰㐴㔹㌵㈱㕦㤱㉣敡ㄹ㘵㘵㌰昶㔹ㄳ攰㔲挳㜶㠳昵㠶摣㙥㤰ㄲ挵㐴扢扡㘰挷改〲慡㠲㘶㝤㤰㈰㙢㘰㥡ㄶ㙤㤰摣㌸挶㐴ㄴ㠳〴换㡥㈷㌷㌳ㄹ摢㈷攸〸戴㡦㌳㈱㕢ㅦ㙥慦㈳挸散ㅢ㤹㤴㥤摡捡攳慥㌶摢捣㤷㔷摡散㘶㉣㥣扥㥦攰ㄶ㠲㕢〹づ〰㘸晦〶つ㐷㉤㠷㜲昳愵㝦〰昷晡㙤〴ㅦ〴㠰㝥搲愹㜳㐲㔵㐵ㅦ㙡㍢㝥㈴摢ㄵ攱㈷㡢㔳慣㔴ㄱ㍤攳扡㥦㔹㜴㠴搰愱搷戹㌳㙣㙤㐶㙣散摤敤㜹㌳㍥ㅤ㜲㘴㐲搳昸㕣户㘸ㅡ㕦〸㌶敤搰㙥摤㠱慥晡㈰挱㠷〰ち晡㠷〹㘱㕣攸昰㙥捦愳愷㑢昹扥㜰㡢㤴㌳搴愱㠱てㄹ㤹㕢㠰〴㈵户㘱晢戲敢㐳搳ㅤㅣ戲摥昷㍥昴愱昶昲ㅤㄲ扤挵㙥敥摡ㅤ挶㡢摥愶ㄷ㝤㈷挴㑢晢攷戶㌶收㉥㔴敢㜷ㄳ摣〳搰㘲㘳戸晢㝥扢㤱〲㜱㡢㥤ㄸ攵昶㌲敡㈲㕥敥挲晡㡡㈹ㄶ愸搷㕡㌰扣㈵㌳㐰〴㘳㝡ㄲ扥㜰捤昳捣㉡㌶戵ㄵ㐱㜰晦㜲㑢㌳搲㥦昲㙡づ昱扢㍥戲晦扥㌰っ㤹㑣扡㉢搵攲㈳㈷昸㥡戱㤸㔳㡣㜳㘸㠳ㅦ㙣慦㈴㘲㥤㥡搹㡢晤㤲昷㤷扢㥡愴〳㑤㜲ㅦ㤶㔵扦ㅦ〰㕡㐲晢㜱㕢㡤㜲㠸捤㝥㐹㥡㌵㝢慣㡣昰㈵散㑥㕡㘲㠸ㅢ昴㐸㡦ち搸㡥㈳㝥攰ㄷ㥤㜹摢愹㉢㡢ㅥ㘷捥昴捡㠸㉤搸㔵戳愰挲戲㔴㌵扢扡攲㝤愲㉢扡扡㌶散愷ㄳ攲㙢挲㈷㉤㕡㈲㔱摡ㄳ㉢ㄳ昶攲つ愶㘲ㄸ㤲㑡㈵㈱㌴㔴搷㐰攴㍣戶摤㔵㌱ㅤ愸㤸〷戰㜰晡㘱㠲ㄱ㠲㈳〰搹ㅦ㐲搳㙣㜷攱㤹づ敢㕥㘳㐸扢㔴㑡攵㐹〶〹ㄱ摥㘸慢慣㡥昲㌵ㅦ㈵㌸〶搰攲晥㌰〰㤹挰㠸㐲昲ㄸ㈳㑡ㅡ挳扡㘰㥢㤷挹〳㝢㉣㈴㤶㈶㔶晤愰收㌰戳㔴戴㈶㙢㘷㙢挱愴敤慦㈰ㄳ㌵㘰㠵㠵㈷㤶㑤ㄷ摣攵挱昷㘹挱搵㔶㔶捣㡡㙥捤搷㔶愱摡愶㈷㜷挲挶ㅣ换〱㕦㔲昶收㘹つ㔷㘷晢㘳㍣㐲挳㑡㑢扣㤵搱搸㙤㐵扦戹改敢㙢慣攸㠲ㅤ㔴捤ㅥ㑢〹ㅤ换㜹ぢ慢㠸捣㐱愵摢㕡㔸昶㑣㜳戲㘸㥤昲散㑡搵㜶㑤ㄲ〳㍥㈶㤳㜵㌳收ㄲ戲〴㜳㌵收〰㙢㙥搱㕡昰っ搷㕦㌱㤸㔰㕣摦摢㜴㈷㘹㤱慣㌵㙥扢㍥㕥㈳㔴㘴戹捦㥡㕦慥㕤㐶挶㜶搵㜱㑦ㄹ㉢晥㡥愰ち㤹㕥㕤㐲ㅡ㉤慤愵搳㕡㍥㥤敦㤴㍥摣㤰愷㔲㤴扤っ㠱搰㉡㤵㘵捣㍣挱㝡搳慦て㜳㌴昴搳㌹愶㕥㘴㡦敡挸慥㐴㉤㑣㐹搵㡦戳捦㈳〰㥦㍣㜵㝥扡㤱㤹㝢㐷㌹敢㉣愳晣〹㍡㕥搸愲㥥〸㘱㡣㙥㡦㘲ㄵ攲挸㌹㤰㐰㔰㥣㜷慤散㔷戰愴つ戹㙦㑦愳㌸㠵㑣㔲慦㌵㘳㉣㥡㔵攴愳ㅤ㈳搸愳㙥攸挶㍡㐶搵て敢㈶㙡㡥㘳㤰戵挸㤶昳㘵㠳ㅣ㍣戶ㅡ搴捥搸慥㙥〱〸晦㠵㈸攳ち㔰挶ㄵ㐱昵㕡攷㤸ㅡ㤴㌲㥦㔵㕢㌲㍣㍢㔸㜶散㜲㥥㌷㑣摦敤〸㥥㠴㤰㔳昳㐶㔷愴㌳〶㕢扣昹昳㜰搹晣㘱㤰㝢ㄸ㝡㤴㑢㐷昲㠳㜳搳㕡づ晦戴づ〳㑢㔰㌰ㄲ㈹搵㍦㡥愷㘵攵㜴〴㔴㡥㕣㙦㐵㘷㌰摥晡㍣㌰㑡〹㤱敡〹㉣㠲愸㘰㑣挹㌳挴㥤戳捥扢㜶〰敡㤱㘲㔳㜶㌰改㠳攴〰㈸捡昶昶愰㔰㌵搶㘹愸㙥ㄵ敥搸㔸搵㘴㈶㙥摦㔸ㅦ户ㅢㅦ搹愴㕡㔹㤴㤸㈱搹慡㤱㔸㤶㑤挶戸㤳㑣㡤㈶㠶㍢戲㌶㕡㔲搸戴戱敥搴㈲敦挰㌰〹捦愴昴㑦〸愳㠸㡤搲㐷㔱㘶攸㤶㜱晢㘴ㄶ㠹㘵㙤攸〷ㄴ㘸慢ㄴ慥ㄸ愶〵愷㜱昴愴㘲ㄶ挲㍢挸昸㥥戰㌸扢ㅡ㌴搵ㄸ㔷〶挲㥡戱㙡㜵搶㠵愷㔰㌶扣捡づㄱ㙢捣㑤㔹ㄹ㤱搰㑥㍤〰㍣〵㔷㑣ㄸㄱ㈶㝦ㄴㄸ慥㌵搳㈳〹昱㘰㠸㈳㠴㉣㤶㔹愵㤷㔶攴㜲搷搱㜹摥㥤㌱つ㔷愸㌰ㅦ㔴㈶捤㌵㜱挷ㅡㅥ晤㠰㜴愸敦ㅡ㐵㥦敡搶搸愲て搳ㅥ㔰㥦㠷㈵ㄱ㜴摤㍡挷昰ㄴづ㌳㐰晤㠶愵戹㜲㠰ㄴ㙦晤〱摣㈱散ㅣち㘱㐵㔴ち㠵㕥ㅡ㌵㘹㉥㠱㜹㥢㈷㐱ㄹ敡㤰慡㔰愸㤶㕣晦㌵慡㝤攳㘵㕥慦㡦愶愲㐲攸昰㌱敤㤵攰㐵㠰戸昱っ㈵㈵㘹㈰㑡㥣㉢つ㈷捡慢㌷挲搱搵㈸搲昵昳〲㥣收㘱㑥慢㡦愲㔳挵㜹户挰㠶㔵慤慥敦戱愶摤㜲㜵戵㘲㡡㐹㡥㜴戶㔸收ㅤ㐱㉦㌹ち愸㈴㉡㘱㕤挲㐵㤹挶㤶㡡㔳㈶㤱㍡昷扦昵㌱㜴ㄷ㘵㠷㘷ㄴ昴〹摣㔱敥㤸㡣㑣〸搱㐹㜲㙣挳㤹〵晡㡡㝢ㅢ㠷ㄹ攴㈰ㅤ㔴摢〶ㄴ㜵摡っ捥收搵㌳捡㈲㜱戱㘶㌳戵㤹ㅡ晤昷ㄸ敡戴慤㔰㍢㠲㑥㤸愷㔲㝣戹ㅣㅣ㤳づ㈵㠴て㠱搶㤳慦搴㕢㥦て扦㘱㘴挴ㄱ搱㤸敦攵㡥㈸㠵㔵㠵㌰搱昹㑥㌷㍣㜰㡤㤹㘰㝡攱晡㈴㠰挶㤴㌰㥤㕢戴㔴捥捥ㄴ捡㕢㍢㍢㜷愰㔵㐲戶㌴㥥㔸㘵扥㜲〰挱㝢㄰つㄲ挵㑤昵㐲つ挶㈸搸㈷㠷挴愲㜳㡡㐳づ戶㐳㌵㙦㝦ぢ㜲捥〸㜰ㄴ挶㍤搰㠲ㅥ慢㔴攸晡㈲㔶户㈳愸㡡㘳ㅣ捡㌵摤搷㜲㐰㑢收㐴㕦敦捥㤶㡡昰攰攰㤱挹攱搳㐶㔰㕥㥥て搶搵㈱慥㑥㔹㈲晢〳挴㈶㌶㝤㍢晤攷㡣换㐳愹㙢㕣晢挲㈵户㜶搹㤵㜱㘵㝤㥥〰〴㠷攰㌸㘵㌷〷㔹㐸晤〲晦攴㑡愷戲㙦攰㠹摢ㄹ㌶ㅦ搰〸㤶昰㌹㜲ㄵ昴㘹㝣㔳㈳っ攲㍢㠱㔷攰换搷㑦ㄱ㤰㔷昶戵昰㡡㈸㠳㕤㘶㜱㤷摥㌵㘶搱慥㠳戴㘴ㄸ㄰㍣㍡㌰㤲㑥㘹㝦㡡ㅢㄲㅤ㌴〰攱昴ㄹ㐲㤰敦㐳昸㑥㈰㥦㈸昴昰搸〷て㠹晣晦愱㔴㈴搵㥢㡡搵晦㠲㔰㙢㝦っ㘲〸㤹㐰㤳扡㕣㙡㝦搴㑣愶㔹㐵㈶㡤挷㐳㐴㤶攷挲〲㙦戲㑣摢扥慤〴㌹攷戵扢㌱㝤捦て〲晦ㅦ㙥㑣捦㠱挲扣㌴攵㑢㙢㜷愱㕣㜷ㄷ搲ㅢ摣〵㈶昵挵㕤㤸㘷ㅦ㘶昷㤵扢㄰挶㐶捥〳戱戵扢挰㥣㕦㠲㔳ㄸ㑢挱挶挲ㅤ摣㤱敤㜷ㄸ㌷㍢㡤〳戹愶㡦㍣㍦っ㤸㍦㠱㐸搵㉤ㅢ搱㜳㠶㘷㌸〷〴㝦捡㌳㘱搸扣〵㥣昰㤶㉥散㜱㜰搳ㅡ改戴㐹っ㈳㡡扥敦挶㔹戶㜷慥ㅤ㤴㔲㤷ち敢㙢㜹㉤昷づ㈲㈸ㅡ昷㄰愹捦敥晢敥愹㝦昹捣ㄷ㐷㜳㔰㙢攰㔵晤〲㜰戴㐷㑣ㅤ㜷㤲捥愷㙦㠱㠴㙦散㄰挹捤晣搱捥ㄹ晣㝣挹㕥愹㥡攳㠶㈷㕥㤱慦㍢㔱㔱㌱㕦㡣㌹ㄵ〳敥〴㤷ㄳ㘷㈲㤴换㌹摣ㄲち㤵ㅦ㍤㐹昸㜰㌸㌶㜰㠹昷㐵㈹㐵慤慤㐱敢搰晢捣扥づ㤳昴㌶〷搲散㌵㜲㈷捡㑢搳扥ㄳ搹㍣㠵㐸愵㡥㉡昲㠳昲ㅡ㡦〴㐴㥡ち戹〹㜲㐹㝣㘳挳挳〲愲愹㍥㠵㐲昶〱㠰㠴慣㕢㙢晡㤷㌱㠲㕤㐵㘰搶て〴㜶昸〳ㄷ慣㈲愸ㄸ挵改㍢摤攱㌲ㅣ㄰㤹㈷愶㜱挵慦昹㌴ち戲㤹㈱㘲㈴挲㍥㠵㐲㜴㘵㡦愰戴敤㄰ㄵ㕦㔲㜴㔴㔲㑥〹㜶搶㘱晣慤攰㥣㜴㔷㜱㉡〴戶㈶㈷㐶挳摤㑢㌴㌶愸㤲扦㔳㑤ぢち㐵搸愷㡡昵㑥㍤㘱ㄵ散㤶㝢〰扢㔴㈴〶昹㉢㈲搶て㌵ㅥ㝤㜳㙢つ敤㥣摢㡤〹昲〳ㅦ散昶〴挱挶㕢㈹㌱搰戲摢㙡㤵㔷㐷挷㥦㐶ㄷ㑥㍡愵改㡤愲摣㙢捣㕦㐷㤲搵戵搱〷㘰㘶㕢㈴敢ㄹ昶㘶㡡扢挹〷㈸〱戱愵て愰ㅤ㘷㕦㝣昴㡢㘱㐱ㅣ㔴收㔶戶㑣攷㜰㐵㄰昱㐶㘲㐷㌶捡扡ㄴ㤹づ㔷愵㜹晣戰㔵㔵㡢〶㐷㉣㉣搳㝡㙣愲摥㤷晥㙤㑦㕢〵挸扣㔱昶ㅡ㔴㔰摢晥捤㝡㉢摡敤收ㄶ搱㜱摦ㄹ扢散搵晣㥡ㄵっ捥㈳㈱㍣挸摦愵㔹昰㝢挶戴㙦戶㉡戵㍢戱ㄲ扤ㄵ昴㌹㍢ぢ㠵㝤搶っ摥慤㍣㈵戳づ摢换㜲昰㌷㑡晤戱搴ㄳ慤㠳㝦㤳昵昸慡㔱挵捦㕡㘷ㄱ晦っ㠸摡ㄱ挶㑥㐵愱㕢㑦㙦㜰改㜰㝥敢㌱挴㠷捣敡㌰ㄲ㘷㌲㠵愷㥥攱扡戶慥㐱㜳摢㜰㙥㍥㕢㜶ㄶ㠳㉢㘴㕦〱㑤户昷㤶㘶㤶攱㍢昹㙢攵㠲づ摥愰㐳愳㡤攲㕢〴㘳〹〵㤲㠵ㅦ敤㔱〲㝣昴㘵㠰攸捡㡥愱戴晤〰㉦晢て㐰㈶挲ㅦ㠶㌳㠸㌶㔴㐵攸㙤ㅢ㔹㜴ㅢ㕤㌵挶㜴㌷㡣㐱㥢㡣戰㤷挲〲㥢㘸㡣ㅢ㔲㤸戵慦㘳㘱慥攱㠳㜲㉡攷〰戴㤷㡢慢㘸愶攲㄰㙣㡣㡢㜲愱㑤愳㈰㙦慤愱㤰ぢ㍦ㅡ挳ㄱ㠲㕤㠹㘳戹晢ㄵ散㜳㌱㙣㍦户挰ㄹ㝣㜴て愰搸愵㥤挳ㄷ㈵愳愰扤㠴㌷㤲㜲㡡〲〱㜱愰㠰㙣㙤㔰搶攳搶㐴攳搶㐶㘶昴㘵㜴戸㠶て敥㔳戹换〰敤㘷昴㈲㥡㙤㥣ㄱ㕤㔷ㄹ攵㝡㔸攰㡤㐶㌷㐵戰昱户昶㐷㘶㑥晦㉣慡昵攷〹㝥㤹攰㜳〰晤㔱换扥愷㜱挷ㄹ收㔴㘲攴〷攴㈱㕣㝦ㄷ㝥扦㌹晡挳ㅢ扣晥㜳㔴ㄳ㤵㡤慡收戹㤵㠰㤱戹扤㄰㥦摢ㄷ㠰㙤㍦户捦㙤㌶户晥㡢攸㈳㙢晤㉢㈸㘰慤挹搵㌲慢㉦㠶〵摥昴㤳戵ㄹㅤ搲㝦㤵攰搷〸㝥㥤攰㐵㠲㉦ㄱ㝣㤹攰㉢〰㠵晥㠸攳㌵㘱㐲攲㈳っ捡愹㝥戲㥤扣昱㈵ㄴ㡡㕤晤㘴ㄳ㜹昶㙦愰愰晦㈶挱㔷〹扥㐶㜰㤵攰户〰㡡改㝥㜲㡥㌴晣㍡㤱扦㑤昰㍢〴扦㑢昰㝢〴㉦〳愰㈱㤹㐹ㅡ㝥㠳挸㔷〸㕥㈵昸㈶挱敦ㄳ㕣〳㈸愶戳攴慦㡦戵㌷搴昴挳愳㕦ㅣ㈳昷搲昴搳攲㤳昸愹昰㍡てㄵ㜴攱㉦㈵㘴挵慢挸愴ㅦ改散㔹㤱㘷㑦愷㈰㝢ㄱ㘴㝡〷捦㈱戹ㅡ攱㕣㍥昱㈰㍥㜹挸㈵愵㐵㈸晢敤戰㈰㤴㈵㑢ぢ㌵㕥㐳愱搸㤵㈵摢㈶晣愰㑣晣㙥ㅥ扥攵晡收㔴搰㍦愷扣慤扣ㄳ㐶晢㜷㠴捤〹昳㌴㙤㕤㠵㕣㠷愷㑡戴㘷㈲㌱㍡㝤㕡愹ㄴ散㘲挲晣㈶挴㔸愵㜰㈸昶㕣㐸敤改愸昱昷慥㌷㐲㠰愸挰〵㔹㔷㡤愹ㅥ愴昱㔳㔱攳㈳昸㈵愰戴挱㤳搵昵㘶搴㤸㙡㐴ㅡ㝦㍡㙡晣ㅦ㐷づ搴ㅢ㐷㕡㐳㍤㌹㑢㤱㑥搸㐳挹慥㌲昶㔷〱晡搰㍣㙢搱㉦敢戱ㄴ㥡㡣㈹㐷ㄵ慡攲㤹昵攲〰㤲㠷摦攵捦攰㍣ㅤ㡥ㅤ挱㜸慢㍦捦㌱㡤㜳㜶㤳㐶㘰攰㘷昷㙢㌸摣攰改㜲挷捥㌹㙢搶〳愲摢㥡昶戱㔷慦散㈸ㄶ㠱㥢㤹㔱敢扢㐵昲㈷㘱㑢搲㔸㡦㈸㈱㥢收戹愵捥㥣ㄲ㐹攰㘵戴㈷㈳捡愶㕥㘸昰㡣晥㍡㠸〳㔳〷挸㠲晥〷㠰㉡攱挷ㄳ昲愹㝥㙡㙢ㄱ攳㍦㐴〱㙡㥣㝡㥡摡㑤㥢挷搳愸㔲挴㘲㙡搴摣㠲㍥ㄷ愲戹㙢㈸㘸搴攵㠲㝥㍣㐴敦ㄷ昴㡢ㄱ㝡㉥㐴昳㔰㐶㐱愳扥㤷搶戳㈱晡㕥㐱搳〲〸晡㙣㠸扥㑦搰戴〹㠲㍥ㄳ愲㘹㌷㘱挹〱挹㥦戹㍦〱攸㡢晥㘸换攰㥡挴〸搳摡㘳㘸㉣㠶㌸捥摥晡㜵㜶昸㍥㐰ㄷ搲ㄶ㕡㈸ㅣ〵晤つ㘰㘲㡢愱搱㤰挸㉢愷挲㔷慡挹搳戴〸晡㘴㠸㔶㤳愷戱ㄱ昴㘴㠸㔶㤳愷昹ㄱ昴㐴㠸㔶㤳扦ㅡ愱挷㐳戴㥡㍣㑤㤴戴ㅥぢ搱㙡昲戴㔴㠲㝥㌴㐴慢㤱搰㜶〹㝡㌴㐴慢㤱搰㥡〹晡ㄳ㈱㕡㡤㠴昶㑤搰㈷㐲戴ㅡ〹㉤㥥愰㍦ㅥ愲搵㐸㘸〳〵晤戱㄰慤㐶㐲㔳㈸攸㐷㐲戴ㅡ挹㉢ㄱ晡㜸㠸㔶㈳愱戹㤴搶て㠷㘸㌵ㄲㅡ㔰㐱ㅦぢ搱㙡㈴㌴愹㠲晥㘸㠸㔶㈳愱㤱ㄵ昴搱㄰㉤㈳改愷昹ㄱ㔶扤㠱〲㔸㤵㠶㐷㥡㍤ㄸ㌶㝢ㄲ㠸㝣㕡换扥㡥敦㙤换ㅥ㈵愳㐳㕦昹㙦搰㔵愳㐰昱ㄹ晡摦㠶〵摥㘸㤴㈶ㄹ摢攱㜰㙣愳㙣昲昷慣扡づ挰ㄱ敡晦挰㍢戲愰㜴晦挷戰㈰摤㌹㐳改㝥㈸摥晤挷㙣㈲㉦㐵愱挹慦敢攷换㘵㙤晥〹㠵㘲㔷ㅦ摦昴〴㍥改㉢㕡昹㘲攵攲挵㥦昵㘵〶て㘶㥥㝣戴昷攵㌷晦晡愷㔷㝦昴昴㠹㝦晦昹慢慦晥攸㕦慦摥昸昹㥦㉤㥥昸换搷㕥晢㡢㑦㕥扢昱搳扤搶户搲搷㝦㌶昳慤攷㐷㉥㍤晦㥣㜵晥晥㔳捦㝦敡搹挷㐷收㙥ㅡ敡敡敡敥扥㘷攰慦㙥扤户晦㠵攷摥搰晥晣㈷户戸㥡っㅥ㉦㘸ㅥ〶㈷㈱挳昸〹ちㄸ〶㐷晣㥥づ㠳搳㤵㠵扡㍢㕣愸㜱㈰攸戴㜰〰㔲㜱㔷㜳㐵捦晦〰〵ㄵ㠸ㅤ
A31: Decisioneering:7.0.0.0 | B31: Decisioneering:7.0.0.0 | D31: Decisioneering:7.0.0.0

Sheet Instructions (hidden)
A1: FHWA COST ESTIMATE REVIEW (CER) TEMPLATE
B2: At a very basic level this template takes estimate's current year (CY) costs and inflates it to the year of expenditure (YOE).
B3: Large Major Projects are often broken into several project segments, sometimes spanning many years.
B4: Costs that occur at different points in time should be inflated separately to account for the varying durations.
B5: Project segments are further divided into Project Phases to include Preliminary Engineering(PE), Environmental Mitigation(EM), Utilities(UT), Right of Way(ROW), and Construction (CN) because these costs usually occur at different points in time, have different durations, and therefore need to be separated to compute their year of expenditure. Construction Engineering(CE) and Change Orders (CO) are often associated with CN. Phases that occur at approximately the same time are grouped together. For example, PE+FD+EM, UT+ROW, and CN+CE+CO
B6: The estimate must include all prior costs paid to date by the project account
B7: The project sponsor's estimate should be examined to identify the costs for PE, ROW, and CN for each project segment.
B8: Large Major Projects occuring over many years are often broken into discrete project segments based on the avaibility of project funds to support PE, ROW and CN phases
B9: Contingency should be identified and removed from the base. However, that portion of contingency that includes allowances or construction change orders should remain in the base estimate.
B10: Contingency should be discussed with the project sponsor to understand what it represents.
A12: General Use
B13: This spreadsheet should only be used by an advanced Excel user who is proficient at using Oracle Crystal Ball, familiar with establishing Project Segments/Phases and expert at solving spreadsheet problems. New users should shadow more experienced users before attempting to conduct a cost estimate review using this template.
B14: The FHWA CER guidance should be referenced for details about process and terminology.
B15: The spreadsheet formulas must be adjusted to reflect the specific details of the each project.
B16: In general, entries should be made in yellow shaded cells.
B17: Lime Green shaded cells are reserved for Crystal Ball except for column headings.
B18: Formulas and cell references will need to be established to represent your specific major project.
A20: Names
B21: The Names sheet is where Excel Named Ranges are defined.
B22: The named ranges are used as Data Validation inputs.
B23: The breakout for Project Phase assignment should remain somewhat consistent (PE, ROW, and CN)
B24: It is most likely that the naming convention will need to be updated for the Segment under review.
B25: Other costs can be included where appropriate i.e. Final Design (FD), Environmental Mitigation(EM) etc.
B26: Main purpose is to identify how to break the base cost into Project Phases, start dates, and durations.
B27: This information is used to identify where costs occur (base and risks) and how to apply inflation.
B28: This template recognizes a variety of Project Phases of costs. They can be changed on the Names tab if necessary.
C29: Phases that occur at approximately the same time and share similar inflation rates can be grouped together.
C30: It is important to group as many phases as possible to minimize the cancelling effect of uncorrelated distributions.
C31: 1) Preliminary Engineering (PE), Final Design(FD), or Environmental Mitigation (EM)
C32: 2) Right of Way (ROW) and Utility (UT)
C33: 3) Construction Costs (CN), Construction Engineering (CE), and Construction Change Orders (CO)
D35: Project Phase
D36: PE+FD+EM
D37: UT+ROW
D38: CN+CE+CO
D39: Total Segment
A41: BaseCost&Schedule
C42: The sequence of the segments and phases is represented by using start-finish, finish-start, or finish-finish, and nil logical relationships. This is for visulization purposes only and currently is not used by the model formulas.
D43: Logical Relationship
D44: Start - Start
D45: Start - Finish
D46: Finish - Start
D47: Finish - Finish
D48: Nil
C50: Breaking the base cost into too many segments should be avoided to prevent loss of variation in the base due to the canceling affect of uncorrelated distributions.
C51: For segments that occur more than say 7 to 10 years and further out consider retaining the contingency within the base estimate and not breaking into Phases.
D52: A benefit of this technique is that we are not forced to identify risks that occur too far out into the future.
D53: A benefit of this technique is that we limit the number of distribution curves that must be modeled.
D54: The cost and schedule risk in this case is modeled within the risk register using AASHTO estimates of contingency and discussions with the Project sponsor.
B55: Schedule: Projectwide Duration Analysis
C56: The purpose of this section is to identify where projectwide risks occur and how to apply inflation.
B57: Base Costs: Prior and Fixed Costs:
C58: Enter all prior expended and fixed costs charged to the project account.
B59: Base Cost and Schedule Estimate and Variability:
C60: Some segment on Major Projects may occur far into the future and identifying these risks may create additional uncertainty.
D61: For segment that occur greater than 7 years into the future the CER team may choose to model risk using the Project Sponsor's estimate of contingency.
C62: For segment that retain contingency:
D63: Do not model variation or market condition around the cost or schedule for these segments
D64: This will be accounted for in the risk register.
C65: Base variability is a measure of uncertainty and variability associated with the estimating process
C66: Base variability is a function of the projects current level of design and the process used to develop the estimate
C67: Base variability usually does not exceed +/- 5 to 15% of the total construction and right-of-way costs depending on the level of design.
D68: At the 89-90% level of design base variability would be around 5 to 2%
D69: At the 20-30% level of design base variability would be around 15 to 10%
B70: Market Conditions: Probability (i.e. likelihood)
C71: This section is used to determine the probability (likeliehood) of the better than planned, worse than planned market condition scenarios.
C72: Market conditions is a function of the anticipated level of competition at the time of project letting.
C73: Enter the probability estimates into the yellow shaded cells and copy and paste into the CB cells.
C74: Pcalcs are probability calculations used for 3 mutually exclusive events
B75: Market Conditions: Impact (i.e. offset from base)
C76: This section is used to determine the impact for the better than planned and worse than planned distribution curves.
C77: Impact is defined by the percentage offset from the as-planned distribution curve.
C78: Enter the percent offset into the yellow shaded cells.
B79: Market Condition "Values" Carry Forward to YOE Sheet
C80: This section is used to compute the market condition cost estimate in current year dollars
C81: Crystal ball assumption curves must utilize a hardcoded value to function properly. Copy and paste the appropriate cells using the guidance provided in the columns
A82: Risk Identification
B83: Use this sheet to identify risks for inclusion in the risk register
B84: The Project phases in the Risk identification tab were classified as listed below
D85: Structures and Geo Tech/Soils
D86: Pavement
D87: Traffic
D88: R/W, Utilities and Railroads
D89: Design
D90: Maintenance
D91: Public/Local Gov't Involvement & Project Management
D92: Scheduling and Funding
D93: Environmental & Drainage
D94: Inflation, Delivery and Contingencies
D95: Construction
A96: Risk Register
B97: The purpose of the risk register is to provide an area to quantify the effects of both cost and schedule risks. | K97: Help Me (Click Me)
B98: Where necessary, establish appropriate linkages to basecost to model segments were cost and schedule contingency was retained | K98: (Video: Show Me)
B99: The risk register accounts for the relationship of a prior risks so the order of risks is important.
B100: The relationships that can be modeled include independent, mutually inclusive, and mutually exclusive.
B101: Independent- the risk is independent of the previous risk. Mutually Inclusive(MI)- the risk may occur only when the previous risk occurs. Mutually Exclusive (ME)- the risk may occur when the above risk doesn't occur.
B102: The Project Phase assignment and Segment is used to identify how to inflate risk register costs.
B103: Ensure that all risks are correctly categorized by the Project Phase and project Segment
B104: Projectwide, minor aggregate, and unidentified risk may also be defined in the Risk register. There is no requirement that projectwide or minor aggreagate risks be defined. How risks are defined depends on each cost estimate review.
A106: Correlation
B107: The correlation between two variables (X and Y) measures the strength of the linear relationship between them. The correlation coefficient is always between −1 and 1. Positive values of the correlation coefficient indicate that greater values of one variable are associated with greater values of the other. Negative values of the correlation coefficient indicate that greater values of one variable are associated with lesser values of the other. Values of the correlation coefficient close to 1 or to −1 indicate a strong linear relationship. Values close to 0 indicate a weak linear relationship. The correlation coefficient equal to 1 (or to −1) means that the variables move entirely together (perfect linear relationship); and the correlation coefficient of 0 means that there is no relationship between the two variables—they are uncorrelated.
B108: A highway construction project is often divided by several segments and includes variety of risks and uncertainties. These segments are generally correlated. Similarly, the risk factors within the segments or between segments are not always uncorrelated. As a result, it is necessary to estimate a correlation between segments or risk factors in the probabilistic estimating process. There are two types of correlation: subjective and objective correlation. The subjective correlation involves assigning measures of correlation between variables by using experienced personnel or experts due to lack of data. The objective correlation between two variables is determined based on statistical analysis methods and sampling procedures and simulations which often require a high volume of data available.
B109: Estimating correlations between project segments or risk variables is a challenging task. For example, it is difficult for the estimator to estimate the correlation coefficient between Design Phase (PE+ FD+EM) and Construction Phase (CN+CE+CO) or between geotechnical risk and foundation risk. However, although the estimators may not know the correlation coefficients between these items, they may know that these costs associated with these items are highly positively correlated. This means that if there is a tendency for cost of geotechnical risk to go up, that will cause the cost of foundation structure to increase. The researchers show that most of the correlation values in cost estimating are positive correlations, i.e., values between 0 and 1 (Touran, 1992).
B110: Correlations between project segments/phases or risk variables can be qualitatively assessed by experienced personnel. Based on the previous experience and specific conditions, the experts can estimate the correlation as low, moderate, or high.
B112: Correlations Between Segments and Phases:
B114: The template includes the option to model correlations between segments and phases. Some segment/phases might be related (e.g., because of a common underlying factor), such that if one segment/phase is on the high end of its range in market values, the related segment/phase would also tend to be on the high end of its range (positive correlation) or on the low end of its range (negative correlation).
B115: Segment/phase correlations should be input by the FHWA modeler after gaining a solid understanding of the questions that follow. Inclusion of correlations will not change the mean output, but it will increase the dispersion (std. dev. and 70-80% confidence interval) of the results. When the FHWA modeler believes that correlations exist, they should be included. However, the correlation function should not be “abused” by simply adding correlations to drive a wider dispersion in the model.
B116: Reasons for segment correlations include, but are not limited to, the following questions:
C117: To maintain transparency correlation assumptions must be documented. If they are not defensible they should not be established.
C118: Consider the following questions when deciding to correlate segments and phases.
C119: If constructed within approximately the same timeframe then possibly correlate and consider the additional questions.
D120: built with similar construction processes and materials?
D121: create a strain on contractor pool for other reasons?
D122: likely to experience similar third party contexts (e.g., in the same town, county, etc.)?
D123: likely to experience similar internal department contexts (e.g., changes in leadership, competing resources, etc.)?
D124: financed by the same sources of funding?
D125: of other reasons?
C126: If not constructed within the same timeframe - definetely do not correlate.
D127: ROW and Construction should not be correlated regardless of timeframe because they are NOT related in any tangible way.
B129: Correlations Between Risks in Risk Register:
B131: The template includes the option to model correlations between risks in the risk register. Some risks might be related (e.g., because of a common underlying factor), such that if one risk is on the high end of its range, the related risk would also tend to be on the high end of its range (positive correlation) or on the low end of its range (negative correlation).
B132: Similar to the segment/phase correlations, risk correlations should be input by the FHWA modeler after gaining a solid understanding of the questions that follow. It is not suggested to ask the workshop participants about the correlations directly as they generally do not have experience or training to make these judgements.
B133: As previously stated, FHWA modelers should include these correlations when they believe that there is a basis for the correlation, but they should not include correlations simply with the goal of increasing the dispersion of the output.
B134: Reasons for segment correlations include, but are not limited to, the following questions:
C135: Are two risks related (positively or negatively) because:
C136: their impact stems from the same construction materials and/or processes?
C137: the estimates of their impact could be affected by similar external conditions (e.g., escalation, public involvement)?
C138: the estimates of their impact could be affected by similar internal project factors (e.g., influence of management, organizational priorties)?
C139: their probability of occurrence is affected by similar external conditions?
C140: their probability of occurrence is affected by similar internal project factors?
C141: the occurrence of one risk does not trigger the other risk, but it increases (positive correlation) or decreases (negative correlation) the likelihood?
C142: risks may occur at the same timeframe but are not directly modeled as such in the schedule?
C143: of other reasons?
B146: Correlation can be modeled in Crystal Ball using a correlation matrix tool. When using the correlation matrix tool, Crystal Ball automatically refers the correlation coefficients to a matrix that it creates in the spreadsheet. It is noted that when assigning subjective correlation in Crystal Ball, inconsistent issues may arise in correlation matrix. Crystal Ball provides an option to adjust inconsistent to consistent coefficients before running simulation. This adjustment is not a matter with regard to the correlation evaluation.
D149: Correlation Assessments
D150: High Positive | F150: Suggestion of Correlation Coefficients (Risk Assessors Handbook, 2010)
D151: Moderate Positive
D152: Low Positive | F152: High | G152: 0.75
D153: High Negative | F153: Moderate | G153: 0.5
D154: Moderate Negative | F154: Low | G154: 0.25
D155: Low Negative
D156: Nil
A158: AggMinRisks | B158: This sheet should be used to document any minor or less significant risks that are identified during the review.
B159: The review team may determine a threshold for cost and/or schedule that would trigger a risk to be categorized a minor risk.
B160: The aggregate minor risk table can also be a good tool where the risk facilitator can acknowledge risks in order to move the discussion along.
A162: Adjustments | B162: This sheet is used to document changes made during the review to the total project costs as submitted by the project sponsor.
B163: All changes should be shown in current year dollars.
B164: Costs are not shown in year of expenditure dollars to avoid comparing the Project Sponsor's estimate that included contingency to the post review estimate that includes a risk register. The two are not comparable.
A166: Inflation | B166: Use this sheet to determine the appropriate end of year inflation factor.
A169: Year of Expenditure (YOE) | B169: The YOE sheet inflates the base costs and risk costs to their appropriate YOE based on their phase assignment
B170: All forecast curves are defined on this sheet. This forecast curves include the total project costs (YOE), total project cost (CY), and project completion date.
B171: In addition to the total project forecast curves, if the project is not fully funded, apply a forecast curve to each funded phase.
A174: Report | B174: This sheet is provided to document the final results of the crystal bll simulation used in the final report. On the crystal ball ribbon under Create Report users should set report Preferences/Options to current workbook and ensure the sheet name is identified as report as shown in the image below. This will prevent users from including non related reports in the final spreadsheet
A190: TeachMe | B190: CER concept videos
B191: For an instructional video that explains the CER template in detail, please click the following link.
B192: (Show Me)
A194: Resources
B195: This Sheet details the useful links and basic conceptual ideas of techniques and methods adapted in this template
A197: Best Practices | B197: Base Estimate should clearly separate out contingency and allowances – prevents double counting.
B198: Project risks should be evaluated separately from the base estimate.
B199: Review risk register with team prior to the CER. Risk should be identified & quantified.
B200: Limit the number of variables modeled in Crystal Ball.
B201: Limit the number of phases evaluated.
B202: Clearly define (prior to the review) inflation and escalation. These were used interchangeably.
B203: Incorporate market condition impacts into our model.

Sheet Disclaimer
A1: Updates
A2: This excel template is regularly updated by FHWA. Please contact Ian.Cavanaugh@dot.gov to ensure you have the latest version before use.
A4: Add-ins
A5: This template uses Oracle Crystal Ball add-in. Please ensure you have installed the right add-in (32/64 bit) for your version of Excel.
A7: Limited Warranty and Limitations of Remedies
A8: This software product is provided “as‐is,” without warranty of any kind, either expressed or implied (but not limited to the implied
A9: warranties of merchantability and fitness for a particular purpose). The Federal Highway Administration (FHWA) and distributor do
A10: not warrant that the functions contained in the software will meet the end‐user's requirements or that the operation of the
A11: software will be uninterrupted and error‐free. Under no circumstances will the FHWA or the distributor be liable to the end user for
A12: any damages or claimed lost profits, lost savings, or other incidental or consequential damages rising out of the use or inability to
A13: use the software (even if these organizations have been advised of the possibility of such damages), or for any claim by any other
A14: party.
A16: Notice
A17: The use and testing of the software is being done strictly on a voluntary basis. In exchange for the provision of
A18: software, the user agrees that the Federal Highway Administration, U.S. Department of Transportation, any other agency of the
A19: Federal Government or distributor shall not be responsible for any errors, damage or other liability that may result from any and all
A20: use of the software, including installation and testing of the software. The user further agrees to hold the FHWA, the Federal
A21: Government, and distributor harmless from any resulting liability. The user agrees that this hold harmless provision shall flow to any
A22: person to whom or any entity to which the user provides the software. It is the user's full responsibility to inform any person
A23: to whom or any entity to which it provides the software of this hold harmless provision.
A24: The origin of this software must not be misrepresented; there shall be no claim that this software is the product of or written
A25: by any individual, company or organization other than the Federal Government. Altered versions of this software shall be
A26: plainly marked as ‘altered’ and must not be misrepresented as being the original software. This notice may not be removed
A27: or altered from any distribution, recording, copy, or use of this software.

Sheet InputSource (hidden)
A1: Reference:
A2: SLIDING SCALE CONTINGENCIES FOR THE HIGHWAY CONSTRUCTION
A3: Thesis by Adeniyi O. Olumide, Jr.
A4: Texas A&M University
A5: 2009-12-01
A6: Advisor: Stuart D. Anderson
A7: Source: | B7: https://design.transportation.org/wp-content/uploads/sites/21/2019/09/Sliding-Scale-Contingencies-for-the-Highway-Construction-Project-Development-Process.pdf
A9: Project Complexity
A10: Non-complex
A11: Moderately complex
A12: Most complex
A15: =ProjectComplexity -> 0 | C15: Defintion | D15: Defintion | E15: Defintion | F15: Defintion | G15: Contingency | H15: Contingency | I15: Contingency | J15: Contingency
A16: Project Complexity | B16: Project Type | C16: Phase Description | D16: LowLevelDefinition | E16: MidLevelDefintion | F16: HighLevelDefinition | G16: RangeDefinition | H16: Low | I16: MLE | J16: High | K16: ContingencyRange | N16: Highlighted values show very minor changes from Olumide paper for project defintion. Changes were made so there would not be any gaps in level of definition.
A17: Non-complex | B17: =CONCATENATE(SlidingScaleContingencies[[#This Row],[Project Complexity]],", ",SlidingScaleContingencies[[#This Row],[RangeDefinition]],"%") -> Non-complex, 1-5% | C17: 10 to 20 yrs from letting | D17: 1 | E17: =AVERAGE(SlidingScaleContingencies[[#This Row],[LowLevelDefinition]],SlidingScaleContingencies[[#This Row],[HighLevelDefinition]]) -> 3 | F17: 5 | G17: =CONCATENATE(SlidingScaleContingencies[[#This Row],[LowLevelDefinition]],"-",SlidingScaleContingencies[[#This Row],[HighLevelDefinition]]) -> 1-5 | H17: 23 | I17: 35 | J17: 55 | K17: =CONCATENATE(SlidingScaleContingencies[[#This Row],[Low]],"-",SlidingScaleContingencies[[#This Row],[High]]) -> 23-55
A18: Non-complex | B18: =CONCATENATE(SlidingScaleContingencies[[#This Row],[Project Complexity]],", ",SlidingScaleContingencies[[#This Row],[RangeDefinition]],"%") -> Non-complex, 5-15% | C18: 5 to 10 yrs from letting | D18: 5 | E18: =AVERAGE(SlidingScaleContingencies[[#This Row],[LowLevelDefinition]],SlidingScaleContingencies[[#This Row],[HighLevelDefinition]]) -> 10 | F18: 15 | G18: =CONCATENATE(SlidingScaleContingencies[[#This Row],[LowLevelDefinition]],"-",SlidingScaleContingencies[[#This Row],[HighLevelDefinition]]) -> 5-15 | H18: 20 | I18: 30 | J18: 45 | K18: =CONCATENATE(SlidingScaleContingencies[[#This Row],[Low]],"-",SlidingScaleContingencies[[#This Row],[High]]) -> 20-45
A19: Non-complex | B19: =CONCATENATE(SlidingScaleContingencies[[#This Row],[Project Complexity]],", ",SlidingScaleContingencies[[#This Row],[RangeDefinition]],"%") -> Non-complex, 15-40% | C19: 4 yrs or less from letting | D19: 15 | E19: =AVERAGE(SlidingScaleContingencies[[#This Row],[LowLevelDefinition]],SlidingScaleContingencies[[#This Row],[HighLevelDefinition]]) -> 27.5 | F19: 40 | G19: =CONCATENATE(SlidingScaleContingencies[[#This Row],[LowLevelDefinition]],"-",SlidingScaleContingencies[[#This Row],[HighLevelDefinition]]) -> 15-40 | H19: 15 | I19: 20 | J19: 30 | K19: =CONCATENATE(SlidingScaleContingencies[[#This Row],[Low]],"-",SlidingScaleContingencies[[#This Row],[High]]) -> 15-30
A20: Non-complex | B20: =CONCATENATE(SlidingScaleContingencies[[#This Row],[Project Complexity]],", ",SlidingScaleContingencies[[#This Row],[RangeDefinition]],"%") -> Non-complex, 40-70% | C20: less than 4 yrs from letting | D20: 40 | E20: =AVERAGE(SlidingScaleContingencies[[#This Row],[LowLevelDefinition]],SlidingScaleContingencies[[#This Row],[HighLevelDefinition]]) -> 55 | F20: 70 | G20: =CONCATENATE(SlidingScaleContingencies[[#This Row],[LowLevelDefinition]],"-",SlidingScaleContingencies[[#This Row],[HighLevelDefinition]]) -> 40-70 | H20: 10 | I20: 15 | J20: 22 | K20: =CONCATENATE(SlidingScaleContingencies[[#This Row],[Low]],"-",SlidingScaleContingencies[[#This Row],[High]]) -> 10-22
A21: Non-complex | B21: =CONCATENATE(SlidingScaleContingencies[[#This Row],[Project Complexity]],", ",SlidingScaleContingencies[[#This Row],[RangeDefinition]],"%") -> Non-complex, 70-100% | C21: less than 4 yrs from letting | D21: 70 | E21: =AVERAGE(SlidingScaleContingencies[[#This Row],[LowLevelDefinition]],SlidingScaleContingencies[[#This Row],[HighLevelDefinition]]) -> 85 | F21: 100 | G21: =CONCATENATE(SlidingScaleContingencies[[#This Row],[LowLevelDefinition]],"-",SlidingScaleContingencies[[#This Row],[HighLevelDefinition]]) -> 70-100 | H21: 5 | I21: 9 | J21: 15 | K21: =CONCATENATE(SlidingScaleContingencies[[#This Row],[Low]],"-",SlidingScaleContingencies[[#This Row],[High]]) -> 5-15
A22: Moderately complex | B22: =CONCATENATE(SlidingScaleContingencies[[#This Row],[Project Complexity]],", ",SlidingScaleContingencies[[#This Row],[RangeDefinition]],"%") -> Moderately complex, 1-10% | C22: 10 to 20 yrs from letting | D22: 1 | E22: =AVERAGE(SlidingScaleContingencies[[#This Row],[LowLevelDefinition]],SlidingScaleContingencies[[#This Row],[HighLevelDefinition]]) -> 5.5 | F22: 10 | G22: =CONCATENATE(SlidingScaleContingencies[[#This Row],[LowLevelDefinition]],"-",SlidingScaleContingencies[[#This Row],[HighLevelDefinition]]) -> 1-10 | H22: 30 | I22: 50 | J22: 75 | K22: =CONCATENATE(SlidingScaleContingencies[[#This Row],[Low]],"-",SlidingScaleContingencies[[#This Row],[High]]) -> 30-75
A23: Moderately complex | B23: =CONCATENATE(SlidingScaleContingencies[[#This Row],[Project Complexity]],", ",SlidingScaleContingencies[[#This Row],[RangeDefinition]],"%") -> Moderately complex, 10-25% | C23: 5 to 10 yrs from letting | D23: 10 | E23: =AVERAGE(SlidingScaleContingencies[[#This Row],[LowLevelDefinition]],SlidingScaleContingencies[[#This Row],[HighLevelDefinition]]) -> 17.5 | F23: 25 | G23: =CONCATENATE(SlidingScaleContingencies[[#This Row],[LowLevelDefinition]],"-",SlidingScaleContingencies[[#This Row],[HighLevelDefinition]]) -> 10-25 | H23: 25 | I23: 40 | J23: 60 | K23: =CONCATENATE(SlidingScaleContingencies[[#This Row],[Low]],"-",SlidingScaleContingencies[[#This Row],[High]]) -> 25-60
A24: Moderately complex | B24: =CONCATENATE(SlidingScaleContingencies[[#This Row],[Project Complexity]],", ",SlidingScaleContingencies[[#This Row],[RangeDefinition]],"%") -> Moderately complex, 25-35% | C24: 4 yrs or less from letting | D24: 25 | E24: =AVERAGE(SlidingScaleContingencies[[#This Row],[LowLevelDefinition]],SlidingScaleContingencies[[#This Row],[HighLevelDefinition]]) -> 30 | F24: 35 | G24: =CONCATENATE(SlidingScaleContingencies[[#This Row],[LowLevelDefinition]],"-",SlidingScaleContingencies[[#This Row],[HighLevelDefinition]]) -> 25-35 | H24: 20 | I24: 30 | J24: 40 | K24: =CONCATENATE(SlidingScaleContingencies[[#This Row],[Low]],"-",SlidingScaleContingencies[[#This Row],[High]]) -> 20-40
A25: Moderately complex | B25: =CONCATENATE(SlidingScaleContingencies[[#This Row],[Project Complexity]],", ",SlidingScaleContingencies[[#This Row],[RangeDefinition]],"%") -> Moderately complex, 35-70% | C25: less than 4 yrs from letting | D25: 35 | E25: =AVERAGE(SlidingScaleContingencies[[#This Row],[LowLevelDefinition]],SlidingScaleContingencies[[#This Row],[HighLevelDefinition]]) -> 52.5 | F25: 70 | G25: =CONCATENATE(SlidingScaleContingencies[[#This Row],[LowLevelDefinition]],"-",SlidingScaleContingencies[[#This Row],[HighLevelDefinition]]) -> 35-70 | H25: 14 | I25: 20 | J25: 30 | K25: =CONCATENATE(SlidingScaleContingencies[[#This Row],[Low]],"-",SlidingScaleContingencies[[#This Row],[High]]) -> 14-30
A26: Moderately complex | B26: =CONCATENATE(SlidingScaleContingencies[[#This Row],[Project Complexity]],", ",SlidingScaleContingencies[[#This Row],[RangeDefinition]],"%") -> Moderately complex, 70-100% | C26: less than 4 yrs from letting | D26: 70 | E26: =AVERAGE(SlidingScaleContingencies[[#This Row],[LowLevelDefinition]],SlidingScaleContingencies[[#This Row],[HighLevelDefinition]]) -> 85 | F26: 100 | G26: =CONCATENATE(SlidingScaleContingencies[[#This Row],[LowLevelDefinition]],"-",SlidingScaleContingencies[[#This Row],[HighLevelDefinition]]) -> 70-100 | H26: 7 | I26: 10 | J26: 20 | K26: =CONCATENATE(SlidingScaleContingencies[[#This Row],[Low]],"-",SlidingScaleContingencies[[#This Row],[High]]) -> 7-20
A27: Most complex | B27: =CONCATENATE(SlidingScaleContingencies[[#This Row],[Project Complexity]],", ",SlidingScaleContingencies[[#This Row],[RangeDefinition]],"%") -> Most complex, 1-15% | C27: 10 to 20 yrs from letting | D27: 1 | E27: =AVERAGE(SlidingScaleContingencies[[#This Row],[LowLevelDefinition]],SlidingScaleContingencies[[#This Row],[HighLevelDefinition]]) -> 8 | F27: 15 | G27: =CONCATENATE(SlidingScaleContingencies[[#This Row],[LowLevelDefinition]],"-",SlidingScaleContingencies[[#This Row],[HighLevelDefinition]]) -> 1-15 | H27: 40 | I27: 60 | J27: 100 | K27: =CONCATENATE(SlidingScaleContingencies[[#This Row],[Low]],"-",SlidingScaleContingencies[[#This Row],[High]]) -> 40-100
A28: Most complex | B28: =CONCATENATE(SlidingScaleContingencies[[#This Row],[Project Complexity]],", ",SlidingScaleContingencies[[#This Row],[RangeDefinition]],"%") -> Most complex, 15-35% | C28: 5 to 10 yrs from letting | D28: 15 | E28: =AVERAGE(SlidingScaleContingencies[[#This Row],[LowLevelDefinition]],SlidingScaleContingencies[[#This Row],[HighLevelDefinition]]) -> 25 | F28: 35 | G28: =CONCATENATE(SlidingScaleContingencies[[#This Row],[LowLevelDefinition]],"-",SlidingScaleContingencies[[#This Row],[HighLevelDefinition]]) -> 15-35 | H28: 35 | I28: 50 | J28: 80 | K28: =CONCATENATE(SlidingScaleContingencies[[#This Row],[Low]],"-",SlidingScaleContingencies[[#This Row],[High]]) -> 35-80
A29: Most complex | B29: =CONCATENATE(SlidingScaleContingencies[[#This Row],[Project Complexity]],", ",SlidingScaleContingencies[[#This Row],[RangeDefinition]],"%") -> Most complex, 35-75% | C29: 4 yrs or less from letting | D29: 35 | E29: =AVERAGE(SlidingScaleContingencies[[#This Row],[LowLevelDefinition]],SlidingScaleContingencies[[#This Row],[HighLevelDefinition]]) -> 55 | F29: 75 | G29: =CONCATENATE(SlidingScaleContingencies[[#This Row],[LowLevelDefinition]],"-",SlidingScaleContingencies[[#This Row],[HighLevelDefinition]]) -> 35-75 | H29: 20 | I29: 30 | J29: 49 | K29: =CONCATENATE(SlidingScaleContingencies[[#This Row],[Low]],"-",SlidingScaleContingencies[[#This Row],[High]]) -> 20-49
A30: Most complex | B30: =CONCATENATE(SlidingScaleContingencies[[#This Row],[Project Complexity]],", ",SlidingScaleContingencies[[#This Row],[RangeDefinition]],"%") -> Most complex, 75-100% | C30: less than 4 yrs from letting | D30: 75 | E30: =AVERAGE(SlidingScaleContingencies[[#This Row],[LowLevelDefinition]],SlidingScaleContingencies[[#This Row],[HighLevelDefinition]]) -> 87.5 | F30: 100 | G30: =CONCATENATE(SlidingScaleContingencies[[#This Row],[LowLevelDefinition]],"-",SlidingScaleContingencies[[#This Row],[HighLevelDefinition]]) -> 75-100 | H30: 10 | I30: 20 | J30: 30 | K30: =CONCATENATE(SlidingScaleContingencies[[#This Row],[Low]],"-",SlidingScaleContingencies[[#This Row],[High]]) -> 10-30
A33: Definition Range | D33: Contingency Range
A34: Non-complex | B34: Moderately complex | C34: Most Complex (Major Project) | D34: =A34 -> Non-complex | E34: =B34 -> Moderately complex | F34: Most Complex (Major Project)
A35: =G17 -> 1-5 | B35: =G22 -> 1-10 | C35: =G27 -> 1-15 | D35: =K17 -> 23-55 | E35: =K22 -> 30-75 | F35: =K27 -> 40-100
A36: =G18 -> 5-15 | B36: =G23 -> 10-25 | C36: =G28 -> 15-35 | D36: =K18 -> 20-45 | E36: =K23 -> 25-60 | F36: =K28 -> 35-80
A37: =G19 -> 15-40 | B37: =G24 -> 25-35 | C37: =G29 -> 35-75 | D37: =K19 -> 15-30 | E37: =K24 -> 20-40 | F37: =K29 -> 20-49
A38: =G20 -> 40-70 | B38: =G25 -> 35-70 | C38: =G30 -> 75-100 | D38: =K20 -> 10-22 | E38: =K25 -> 14-30 | F38: =K30 -> 10-30
A39: =G21 -> 70-100 | B39: =G26 -> 70-100 | D39: =K21 -> 5-15 | E39: =K26 -> 7-20
A41: Cell Linkage | B41: Project Complexity | C41: Position | D41: DefRange | E41: ContRange
A42: =IFERROR(VLOOKUP(ProjectComplexity,InputSource!B42:C44,2,FALSE),"") ->  | B42: Non-complex | C42: 1 | D42: =IFERROR(IF(INDEX(A35:C39,,A42)=0,"",INDEX(A35:C39,,A42)),"") ->  | E42: =IFERROR(IF(INDEX(D35:F39,,A42)=0,"",INDEX(D35:F39,,A42)),"") -> 
B43: Moderately complex | C43: 2
B44: Most complex | C44: 3
A48: Confirm Project Design Completion | B48: =IFERROR(VLOOKUP(ProjectDesignCompletion,HOME!H14:H18,1,FALSE),"") -> 
A49: VlookupReffor Low and High | B49: =CONCATENATE(ProjectComplexity,", ",B48,"%") -> , %
A50: ContingencyTraditionalLow | B50: =IFERROR(VLOOKUP($B$49,SlidingScaleContingencies[[Project Type]:[ContingencyRange]],7,FALSE),"") -> 
A51: ContingencyTraditionalMLE | B51: =IFERROR(VLOOKUP($B$49,SlidingScaleContingencies[[Project Type]:[ContingencyRange]],8,FALSE),"") -> 
A52: ContingencyTraditionalHigh | B52: =IFERROR(VLOOKUP($B$49,SlidingScaleContingencies[[Project Type]:[ContingencyRange]],9,FALSE),"") -> 
A54: Project Complexity Table:
A55: Non-complex | B55: Moderately complex | C55: Most complex
A56: =C85 -> Roadway: Maintenance betterment projects | B56: =C104 -> Roadway: 3R and 4R projects which do not add capacity. | C56: =C132 -> Roadway: New highways; major relocations
A57: =C86 -> Roadway: Overlay projects, simple widening without right-of-way (or very minimum right-of-way take) little or no utility coordination | B57: =C105 -> Roadway: Minor roadway relocations. | C57: =C133 -> Roadway: New interchanges
A58: Roadway: Non-complex enhancement projects without new bridges (e.g. bike trails) | B58: Roadway: Certain complex (non-trail enhancements) projects. | C58: Roadway: Capacity adding/major widening
A59: Traffic Control: Single traffic control/management projects | B59: Roadway: Slides, subsidence. | C59: Roadway: Major reconstruction (4R; 3R with multi-phase traffic control)
A60: Traffic Control: Non-ITS but minor safety improvements | B60: Traffic Control: Non-ITS but major safety improvements. | C60: Roadway: Congestion Management Studies are required
A61: Structures: Bridge resurfacing or repairs which do not require re-analysis of bridge capacity | B61: Traffic Control: Interconnected traffic control/management projects. | C61: Traffic Control: Multi-phased traffic control for highway or bridge construction that would mandate CPM during construction
A62: Structures: Pipes, box culverts or minor culvert replacements where design can be picked directly from design manual or standards or using simple software where detailed interpretation is not necessary | B62: Structures: Non-complex (straight geometry with minimal skew; designs using AASHTO description factors | C62: Traffic Control: Major ITS (Electronic surveillance, linkages) corridor project
A63: Structures: Sign structures for which the design can be picked up directly from either the standards or using design computer software | B63: Structures: minimal seismic analysis; | C63: Structures: Unusual (non conventional like segmental, cable stayed, major arches or trusses, steel box girders, movable bridges, etc.)
A64: Structures: Noise walls or retaining walls for which the design can be picked up directly from either the standards or using design computer software | B64: Structures: footings on rock or conventional piles and abutments) bridge replacements with minor (<610m [2,000 ft]) roadway approach work. | C64: Structures: Complex (sharp skewed (less than 70 degree) superstructure, non- conventional piers or abutments, horizontally curved girders,
A65: Right-of- Way: Involve minor right-of-way acquisitions with no displacements, maintain existing access control | B65: Structures: Bridge rehabilitation which requires re-analysis of bridge capacity. | C65: Structures: three dimensional structural analysis, non-conventional piles or caisson foundations, complex seismic analysis, etc.)
A66: Utilities: Minimal, if any | B66: Structures: Bridge mounted signs. | C66: Structures: Major (bridge cost of $5 Million or more-Federal definition)
A67: Environment: Categorical Exclusion (level 1A or 1B) | B67: Structures: Tie back walls. | C67: Structures: Unusual formations (caissons, uncommon piles, mines, Karst situation)
A68: Environment: Minimum interaction with environmental and permitting agencies | B68: Structures: Noise walls. | C68: Right-of-Way: Right-of-Way plans are needed and numerous relocations of residences or displacement of commercial and/or industrial properties are required.
A69: Environment: Minor environmental impacts as appropriate have a Statewide Wetland Finding | B69: Structures: Proprietary/non-proprietary walls. | C69: Right-of-Way: A few to over 20 property owners are involved. Major involvement of environmental clean-up. Before and after analysis
A70: Environment: Do not involve cultural resources, hazardous waste, Section 4(f) evaluations or substantial flood plain encroachments | B70: Right-of- Way: Right-of-Way plans needed with less than 20 moderate to significant claims and very few relocations or displacements. | C70: Utilities: Major utility (transmission lines, substations) relocations or heavy multi- utility coordination is involved
A71: Stakeholders: No public controversy | B71: Utilities: Some utility relocations, most of it prior to construction, but no major utility relocations. | C71: Environment: Environmental Impact Studies are required or complex Environmental Assessment without mitigated finding of no significant impact
B72: Environment: Categorical Exclusion level 2 or mitigated Environmental Assessment projects. | C72: Environment: Studies of multiple alternatives
B73: Environment: Cultural resources (historical, archeological, etc.). Coordination with Museum Commission, FHWA, and/or Advisory Council | C73: Environment: Continued public and elected officials involvement in analyzing and selecting alternates
B74: Environment: Wetland mitigation | C74: Environment: Other agencies (such as FHWA, COE, PHMC, Game Commission, Fish & Boat Commission, DEP, DCNR, EPA, Agricultural Board, etc.) are heavily involved.
B75: Environment: Parkland involvement | C75: Environment: Other agency involvement to protect air; water; games; fish, threatened and endangered species; cultural resources (historical, archaeological, parks, wetlands, etc), etc.
B76: Environment: Water and air pollution mitigation | C76: Stakeholders: Controversial (lack of consensus) and high profile projects. (Fast track design/construction, high public impact, high interaction of elected officials, etc.)
B77: Environment: Major coordination with Game or Fish and Boat commissions | C77: Stakeholders: Major coordination among numerous stakeholders is required.
B78: Environment: Endangered species
B79: Stakeholders: Involvement of public and public officials is moderate due to non- controversial project type
B80: Stakeholders: General communication about project progress is required
A84: Non-complex | B84: Characteristics | C84: Merge
A85: Roadway | B85: Maintenance betterment projects | C85: =CONCATENATE(A85,": ",B85) -> Roadway: Maintenance betterment projects
A86: Roadway | B86: Overlay projects, simple widening without right-of-way (or very minimum right-of-way take) little or no utility coordination | C86: Roadway: Overlay projects, simple widening without right-of-way (or very minimum right-of-way take) little or no utility coordination
A87: Roadway | B87: Non-complex enhancement projects without new bridges (e.g. bike trails) | C87: Roadway: Non-complex enhancement projects without new bridges (e.g. bike trails)
A88: Traffic Control | B88: Single traffic control/management projects | C88: Traffic Control: Single traffic control/management projects
A89: Traffic Control | B89: Non-ITS but minor safety improvements | C89: Traffic Control: Non-ITS but minor safety improvements
A90: Structures | B90: Bridge resurfacing or repairs which do not require re-analysis of bridge capacity | C90: Structures: Bridge resurfacing or repairs which do not require re-analysis of bridge capacity
A91: Structures | B91: Pipes, box culverts or minor culvert replacements where design can be picked directly from design manual or standards or using simple software where detailed interpretation is not necessary | C91: Structures: Pipes, box culverts or minor culvert replacements where design can be picked directly from design manual or standards or using simple software where detailed interpretation is not necessary
A92: Structures | B92: Sign structures for which the design can be picked up directly from either the standards or using design computer software | C92: Structures: Sign structures for which the design can be picked up directly from either the standards or using design computer software
A93: Structures | B93: Noise walls or retaining walls for which the design can be picked up directly from either the standards or using design computer software | C93: Structures: Noise walls or retaining walls for which the design can be picked up directly from either the standards or using design computer software
A94: Right-of- Way | B94: Involve minor right-of-way acquisitions with no displacements, maintain existing access control | C94: Right-of- Way: Involve minor right-of-way acquisitions with no displacements, maintain existing access control
A95: Utilities | B95: Minimal, if any | C95: Utilities: Minimal, if any
A96: Environment | B96: Categorical Exclusion (level 1A or 1B) | C96: Environment: Categorical Exclusion (level 1A or 1B)
A97: Environment | B97: Minimum interaction with environmental and permitting agencies | C97: Environment: Minimum interaction with environmental and permitting agencies
A98: Environment | B98: Minor environmental impacts as appropriate have a Statewide Wetland Finding | C98: Environment: Minor environmental impacts as appropriate have a Statewide Wetland Finding
A99: Environment | B99: Do not involve cultural resources, hazardous waste, Section 4(f) evaluations or substantial flood plain encroachments | C99: Environment: Do not involve cultural resources, hazardous waste, Section 4(f) evaluations or substantial flood plain encroachments
A100: Stakeholders | B100: No public controversy | C100: Stakeholders: No public controversy
A103: Moderately complex | B103: Characteristics | C103: Merge
A104: Roadway | B104: 3R and 4R projects which do not add capacity. | C104: =CONCATENATE(A104,": ",B104) -> Roadway: 3R and 4R projects which do not add capacity.
A105: Roadway | B105: Minor roadway relocations. | C105: Roadway: Minor roadway relocations.
A106: Roadway | B106: Certain complex (non-trail enhancements) projects. | C106: Roadway: Certain complex (non-trail enhancements) projects.
A107: Roadway | B107: Slides, subsidence. | C107: Roadway: Slides, subsidence.
A108: Traffic Control | B108: Non-ITS but major safety improvements. | C108: Traffic Control: Non-ITS but major safety improvements.
A109: Traffic Control | B109: Interconnected traffic control/management projects. | C109: Traffic Control: Interconnected traffic control/management projects.
A110: Structures | B110: Non-complex (straight geometry with minimal skew; designs using AASHTO description factors | C110: Structures: Non-complex (straight geometry with minimal skew; designs using AASHTO description factors
A111: Structures | B111: minimal seismic analysis; | C111: Structures: minimal seismic analysis;
A112: Structures | B112: footings on rock or conventional piles and abutments) bridge replacements with minor (<610m [2,000 ft]) roadway approach work. | C112: Structures: footings on rock or conventional piles and abutments) bridge replacements with minor (<610m [2,000 ft]) roadway approach work.
A113: Structures | B113: Bridge rehabilitation which requires re-analysis of bridge capacity. | C113: Structures: Bridge rehabilitation which requires re-analysis of bridge capacity.
A114: Structures | B114: Bridge mounted signs. | C114: Structures: Bridge mounted signs.
A115: Structures | B115: Tie back walls. | C115: Structures: Tie back walls.
A116: Structures | B116: Noise walls. | C116: Structures: Noise walls.
A117: Structures | B117: Proprietary/non-proprietary walls. | C117: Structures: Proprietary/non-proprietary walls.
A118: Right-of- Way | B118: Right-of-Way plans needed with less than 20 moderate to significant claims and very few relocations or displacements. | C118: Right-of- Way: Right-of-Way plans needed with less than 20 moderate to significant claims and very few relocations or displacements.
A119: Utilities | B119: Some utility relocations, most of it prior to construction, but no major utility relocations. | C119: Utilities: Some utility relocations, most of it prior to construction, but no major utility relocations.
A120: Environment | B120: Categorical Exclusion level 2 or mitigated Environmental Assessment projects. | C120: Environment: Categorical Exclusion level 2 or mitigated Environmental Assessment projects.
A121: Environment | B121: Cultural resources (historical, archeological, etc.). Coordination with Museum Commission, FHWA, and/or Advisory Council | C121: Environment: Cultural resources (historical, archeological, etc.). Coordination with Museum Commission, FHWA, and/or Advisory Council
A122: Environment | B122: Wetland mitigation | C122: Environment: Wetland mitigation
A123: Environment | B123: Parkland involvement | C123: Environment: Parkland involvement
A124: Environment | B124: Water and air pollution mitigation | C124: Environment: Water and air pollution mitigation
A125: Environment | B125: Major coordination with Game or Fish and Boat commissions | C125: Environment: Major coordination with Game or Fish and Boat commissions
A126: Environment | B126: Endangered species | C126: Environment: Endangered species
A127: Stakeholders | B127: Involvement of public and public officials is moderate due to non- controversial project type | C127: Stakeholders: Involvement of public and public officials is moderate due to non- controversial project type
A128: Stakeholders | B128: General communication about project progress is required | C128: Stakeholders: General communication about project progress is required
A131: Most complex | B131: Characteristics | C131: Merge
A132: Roadway | B132: New highways; major relocations | C132: =CONCATENATE(A132,": ",B132) -> Roadway: New highways; major relocations
A133: Roadway | B133: New interchanges | C133: Roadway: New interchanges
A134: Roadway | B134: Capacity adding/major widening | C134: Roadway: Capacity adding/major widening
A135: Roadway | B135: Major reconstruction (4R; 3R with multi-phase traffic control) | C135: Roadway: Major reconstruction (4R; 3R with multi-phase traffic control)
A136: Roadway | B136: Congestion Management Studies are required | C136: Roadway: Congestion Management Studies are required
A137: Traffic Control | B137: Multi-phased traffic control for highway or bridge construction that would mandate CPM during construction | C137: Traffic Control: Multi-phased traffic control for highway or bridge construction that would mandate CPM during construction
A138: Traffic Control | B138: Major ITS (Electronic surveillance, linkages) corridor project | C138: Traffic Control: Major ITS (Electronic surveillance, linkages) corridor project
A139: Structures | B139: Unusual (non conventional like segmental, cable stayed, major arches or trusses, steel box girders, movable bridges, etc.) | C139: Structures: Unusual (non conventional like segmental, cable stayed, major arches or trusses, steel box girders, movable bridges, etc.)
A140: Structures | B140: Complex (sharp skewed (less than 70 degree) superstructure, non- conventional piers or abutments, horizontally curved girders, | C140: Structures: Complex (sharp skewed (less than 70 degree) superstructure, non- conventional piers or abutments, horizontally curved girders,
A141: Structures | B141: three dimensional structural analysis, non-conventional piles or caisson foundations, complex seismic analysis, etc.) | C141: Structures: three dimensional structural analysis, non-conventional piles or caisson foundations, complex seismic analysis, etc.)
A142: Structures | B142: Major (bridge cost of $5 Million or more-Federal definition) | C142: Structures: Major (bridge cost of $5 Million or more-Federal definition)
A143: Structures | B143: Unusual formations (caissons, uncommon piles, mines, Karst situation) | C143: Structures: Unusual formations (caissons, uncommon piles, mines, Karst situation)
A144: Right-of-Way | B144: Right-of-Way plans are needed and numerous relocations of residences or displacement of commercial and/or industrial properties are required. | C144: Right-of-Way: Right-of-Way plans are needed and numerous relocations of residences or displacement of commercial and/or industrial properties are required.
A145: Right-of-Way | B145: A few to over 20 property owners are involved. Major involvement of environmental clean-up. Before and after analysis | C145: Right-of-Way: A few to over 20 property owners are involved. Major involvement of environmental clean-up. Before and after analysis
A146: Utilities | B146: Major utility (transmission lines, substations) relocations or heavy multi- utility coordination is involved | C146: Utilities: Major utility (transmission lines, substations) relocations or heavy multi- utility coordination is involved
A147: Environment | B147: Environmental Impact Studies are required or complex Environmental Assessment without mitigated finding of no significant impact | C147: Environment: Environmental Impact Studies are required or complex Environmental Assessment without mitigated finding of no significant impact
A148: Environment | B148: Studies of multiple alternatives | C148: Environment: Studies of multiple alternatives
A149: Environment | B149: Continued public and elected officials involvement in analyzing and selecting alternates | C149: Environment: Continued public and elected officials involvement in analyzing and selecting alternates
A150: Environment | B150: Other agencies (such as FHWA, COE, PHMC, Game Commission, Fish & Boat Commission, DEP, DCNR, EPA, Agricultural Board, etc.) are heavily involved. | C150: Environment: Other agencies (such as FHWA, COE, PHMC, Game Commission, Fish & Boat Commission, DEP, DCNR, EPA, Agricultural Board, etc.) are heavily involved.
A151: Environment | B151: Other agency involvement to protect air; water; games; fish, threatened and endangered species; cultural resources (historical, archaeological, parks, wetlands, etc), etc. | C151: Environment: Other agency involvement to protect air; water; games; fish, threatened and endangered species; cultural resources (historical, archaeological, parks, wetlands, etc), etc.
A152: Stakeholders | B152: Controversial (lack of consensus) and high profile projects. (Fast track design/construction, high public impact, high interaction of elected officials, etc.) | C152: Stakeholders: Controversial (lack of consensus) and high profile projects. (Fast track design/construction, high public impact, high interaction of elected officials, etc.)
A153: Stakeholders | B153: Major coordination among numerous stakeholders is required. | C153: Stakeholders: Major coordination among numerous stakeholders is required.

Sheet About
A1: About the CSRA Template
A2: Primary / Secondary Indicators | B2: Description | C2: Column Type
A3: 1 / Yellow Shading | B3: Entry Cells - normally these cells require the user to manually enter a value. However some of these cells may be filled out automatically or have default values. Please inspect to verify. | C3: Data Entry Cells with Fixed Formatting
A4: 2 / Light Yellow Shading | B4: Entry Cells - initially set with default values or values entered via form. Yellow shading changes to light yellow when a value is selected from the list of available options. | C4: Data Entry Cells with Fixed Formatting
A5: 3 / Green Shading | B5: Crystal Ball Assumptions may be added by the user | C5: User-Controlled Cells containing Crystal Ball Functions
A6: 4 / Torquise Shading | B6: Crystal Ball Forecast cell | C6: User-Controlled Cells containing Crystal Ball Functions
A7: Orange Shading with White Dots | B7: Notice, usually denotes a changed value to draw attention to cell value and verify entry. | C7: Data Entry or Calculational Cells with Conditional Formatting
A8: Red Hatching | B8: Errors to denote something is wrong, or data is missing, and needs to be fixed. | C8: Data Entry or Calculational Cells with Conditional Formatting
A9: NA | B9: Placeholder - Not applicable | C9: Data Entry or Calculational Cells with Conditional Formatting
A11: Modeling Tips | B11: Additional Instructions
A12: Conduct initial review of the sponsor estimate | B12: Ensure that it is clear to the Estimator the differences between allowances and contingencies. Contingencies have been identified and removed from the estimate to establish the base.
A13: Conduct initial review of the sponsor estimate | B13: Verify all final adjustments have been made to the state estimate.
A14: Conduct initial review of the sponsor estimate | B14: Prior costs are up to date
A15: Conduct initial review of the sponsor estimate | B15: Fixed costs are accounted for in design build type contracts
A16: Conduct initial review of the sponsor estimate | B16: Unit prices and quantities have been reviewed and do not include any hidden contingencies.
A17: Conduct initial review of the sponsor estimate | B17: Allowances have been reviewed and do not include contingencies
A18: Conduct initial review of the sponsor estimate | B18: Inflation values used have been discussed. It is confirmed there is no overlap between inflation (or escalation), market conditions, and material supply demand issues.
A19: Conduct initial review of the sponsor estimate | B19: The inflation values are applied to the appropriate cost phases in the state estimate. The state should provide a basis for the values being used for all cost phases.
A20: Conduct initial review of the sponsor estimate | B20: The state has updated their estimate throughout the review. The state has made all estimate adjustments to items, quantities, and unit costs.
A21: Conduct initial review of the sponsor estimate | B21: Estimate adjustments are provided in a revised estimate summary that identifies the items that have been adjusted. This information is used to prepare the final report and highlight any changes since the last estimate review.
A22: Recognize that base estimate adjustments or changes to prior or fixed costs will change the Base Cost YOE value. | B22: Any change in the Base Cost YOE value requires CB charts that contain this value to be updated.
A23: To include correlations replace Crystal Ball functions in Risk Register with Assumption curves.
A24: Only set Correlations in the risk register on final simulation run as they are removed during synchronization
A25: If using CB Assumptions curves in Risk Register verify they are correctly set up prior to the final run.
A26: Verify Phases and Segments are set correctly.
A27: Review all sheets to identify any red (errors) or orange (note) shaded cells. Verify appropriate values.
A28: Verify simulation switches are set appropriately to determine contingency.
A29: Click the "Check Workbook for Errors" button next to the simulation switches on this sheet to scan the workbook for any errors.
A30: Run small sample size (i.e. around 1000-3000) on draft simulation runs
A31: Run at least 10000 sample size on final simulation
A33: Button Controls:
A34: Add Row: Cntl+Shift+A (context-sensitive)
A35: Add Risk (Cntl+Shift+A) (context-sensitive)
A36: Back: Cntl+Shift+B
A37: Syncronize Risk Register (Cntl+Shift+C)
A38: Delete Row: Cntl+Shift+D (context sensitive)
A39: Check Workbook for Errors (Cntl+Shift+E)
A40: Change Phase Name: Cntl+Shift+F
A41: Delete Phase: Cntl+Shift+H (context-sensitive)
A42: Del Risk (Cntl+Shift+I)
A43: Add Phase-Segment (Cntl+Shift+K) (context-sensitive)
A44: Del Phase-Segment (Cntl+Shift+L) (context-sensitive)
A45: Next: Cntl+Shift+N
A46: Protect Sheet (Cntl+Shift+P)
A47: Change Segment Name: Cntl+Shift+S
A48: Create Summary Percentile Tables (Cntl+Shift+T)
A49: Unprotect Sheet (Cntl+Shift+U)
A50: Copy Values to col (3) (Cntl+Shift+X)
A51: Copy Values to col (4) (Cntl+Shift+Y)
A52: Copy Values to col (5) (Cntl+Shift+Z)

Sheet HOME
A1: Home | C1: =VersionDateLastUpdated -> 45925 | D1: =Version -> 71.3.4
C2: Workbook formatting conventions.
A3: Cntl+Shift+B to Go Back | C3: Project Information Table | H3: Team Member Table
C4: Project Characteristic | D4: Project Information1 | H4: Team Member1 | I4: Role2 | J4: Responsibility2
A5: Cntl+Shift+N to Go Next | C5: Project Title: | I5: Facilitator | J5: Facilitate, Opening & Closing Presentations
C6: Project Sponsor | I6: Risk recorder / modeler | J6: Model
A7: Cntl+Shift+A to Add Row | C7: Review Date From: | I7: Report Writer | J7: Write report
C8: Review Date To: | I8: Division Support | J8: Division Support
A9: Cntl+Shift+D to Delete Row | C9: Last Review Date From:
C10: Last Review Date To:
C11: =IF(ISBLANK(EstLastUpdate)=TRUE,"Enter Date Estimate was Last Updated>>>","Estimate Last Updated:") -> Enter Date Estimate was Last Updated>>> | H11: Suggested Contingency Percentages by Project Complexity and Design Completion
A12: Place your curser within the Table PRIOR | C12: Project Complexity: | H12: Selected Project Complexity: | I12: =IFERROR(ProjectComplexity,"") -> 0 | J12: =CONCATENATE(">>>Characteristics") -> >>>Characteristics
A13: to clicking the Add or Delete button | C13: =IF(InputSource!B48="", "SELECT % Design Completion >>>","Design Completion, (%)") -> SELECT % Design Completion >>> | H13: Select % Design Completion | I13: Contingency Range, (%) | J13: =IFERROR(IF(INDEX(ProjectComplexityCharacteristics[],,ProjectComplexityCellReference)=0,"",INDEX(ProjectComplexityCharacteristics[],,ProjectComplexityCellReference)),"") -> 
C14: Contract Type: | H14: =IFERROR(IF(INDEX(InputSource!A35:C39,,InputSource!A42)=0,"",INDEX(InputSource!A35:C39,,InputSource!A42)),"") ->  | I14: =IFERROR(IF(INDEX(InputSource!D35:F39,,InputSource!A42)=0,"",INDEX(InputSource!D35:F39,,InputSource!A42)),"") -> 
C15: Project Web Site:

Sheet StructuredEstimate
A1: StructuredEstimate | C1: Use the Estimate Summary sheet to simplify analysis by combining cost phases, where applicable, prior to establishing the Segment and Phases names
A2: Workbook formatting conventions. | C2: Tables should be revised as necessary to reflect the Estimator's summary estimate. Provide a Template in a separate file to the Estimator to track changes to the base estimate.
C3: Place cursor in table to add or delete row. Add rows as necessary to create the estimate summary.1
A5: Cntl+Shift+A to Add Row | C5: Estimate Summary Cost Phase and Schedule | K5: =EstLastUpdate -> 0 | L5: <<< Estimate last updated
C6: Cost Phase1 | D6: Cost Estimate, CY1 | E6: Contingency Estimate, CY1 | F6: Base Estimate, CY1 | G6: Inflation, %1 | H6: Inflation Point1 | I6: Base Start Date1 | J6: Base End Date1 | K6: Total Cost, YOE
K7: =D7*(1+G7)^((I7-$K$5)/365+(StructuredEstimate!J7-StructuredEstimate!I7)*0.5/365) -> 0
A8: Cntl+Shift+D to Delete Row | K8: =D8*(1+G8)^((I8-$K$5)/365+(StructuredEstimate!J8-StructuredEstimate!I8)*0.5/365) -> 0
K9: =D9*(1+G9)^((I9-$K$5)/365+(StructuredEstimate!J9-StructuredEstimate!I9)*0.5/365) -> 0
A10: Place your curser within the Table PRIOR | K10: =D10*(1+G10)^((I10-$K$5)/365+(StructuredEstimate!J10-StructuredEstimate!I10)*0.5/365) -> 0
A11: to clicking the Add or Delete button | K11: =D11*(1+G11)^((I11-$K$5)/365+(StructuredEstimate!J11-StructuredEstimate!I11)*0.5/365) -> 0
C12: Prior Cost | K12: =D12 -> 0
C13: Fixed Cost | K13: =D13 -> 0
C15: Total | D15: =SUBTOTAL(109,EstimateSummary[Cost Estimate, CY1]) -> 0 | E15: =SUBTOTAL(109,EstimateSummary[Contingency Estimate, CY1]) -> 0 | F15: =SUBTOTAL(109,EstimateSummary[Base Estimate, CY1]) -> 0 | K15: =SUBTOTAL(109,EstimateSummary[Total Cost, YOE]) -> 0
C16: Instructions: Provide a template of the estimate summary above to the Estimator to complete and return when changes are made to the base estimate.
C17: If the base estimate changes during a risk workshop the estimator can provide the revised summary and the values can be pasted into the CSRA template.
C18: The above table values should be referenced to the Structured table below so that the Structured table is automatically updated and refreshed when the Base Estimate is revised.
C20: Add rows as necessary to structure the estimate for risk modeling. Be sure and established links connecting the combined phases1
C21: Structured Estimate Summary Cost Phase and Schedule (link to the BaseUncertainty sheet).
C22: Combined Cost Phase | D22: Cost Estimate, CY | E22: Contingency Estimate, CY | F22: Base Estimate, CY | G22: Inflation, % | H22: Inflation Point | I22: Base Start Date | J22: Base End Date | K22: Total Cost, YOE
C23: PE | D23: =D7 -> 0 | E23: =E7 -> 0 | F23: =F7 -> 0 | G23: 0.025 | H23: 0.5 | I23: 45901 | J23: 46265 | K23: =D23*(1+G23)^((I23-$K$5)/365+(StructuredEstimate!J23-StructuredEstimate!I23)*0.5/365) -> 0
C24: RW+EM+UT | D24: =SUM(D8:D10) -> 0 | E24: =SUM(E8:E10) -> 0 | F24: =SUM(F8:F10) -> 0 | G24: 0.04 | H24: 0.5 | I24: 45901 | J24: 46265 | K24: =D24*(1+G24)^((I24-$K$5)/365+(StructuredEstimate!J24-StructuredEstimate!I24)*0.5/365) -> 0
C25: CN+CEI | D25: =SUM(D11:D11) -> 0 | E25: =SUM(E11:E11) -> 0 | F25: =SUM(F11:F11) -> 0 | G25: 0.03 | H25: 0.5 | I25: 46265 | J25: 46996 | K25: =D25*(1+G25)^((I25-$K$5)/365+(StructuredEstimate!J25-StructuredEstimate!I25)*0.5/365) -> 0
K26: =D26 -> 0
C27: Prior Cost | D27: =D12 -> 0 | K27: 0
C28: Fixed Cost | K28: =D28 -> 0
C30: Total | D30: =SUBTOTAL(109,StructuredEstimate[Cost Estimate, CY]) -> 0 | E30: =SUBTOTAL(109,StructuredEstimate[Contingency Estimate, CY]) -> 0 | F30: =SUBTOTAL(109,StructuredEstimate[Base Estimate, CY]) -> 0 | K30: =SUBTOTAL(109,StructuredEstimate[Total Cost, YOE]) -> 0
C31: Note: the Structured table can be linked to BaseUncertainty Sheet to automatically provide updates when the estimate summary table is updated.

Sheet Names
A1: Names | B1: The project phase and project segment should be established only AFTER the estimate has been properly structured to minimize the number of segments and phases
A2: Workbook formatting conventions. | B2: Place your curser within the Table PRIOR to | F2: Place your curser within the Table PRIOR to | K2: Place your curser within the Table PRIOR to
B3: clicking the Add or Delete button1 | F3: clicking the Add or Delete button1 | K3: clicking the Add button1
B4: Project Segment Definition Table | F4: Project Phase Definition Table | K4: Risk Category Definition Table | N4: List of Inflation Table Names
A5: Place cursor in table | B5: Seg # | C5: ProjectSegment1 | D5: Segment Description1 | F5: ProjectPhase1 | G5: Phase Inflation Table1 | I5: CorrelationCostDuration | K5: Risk Category1 | L5: Description1 | N5: Inflation Table Names
A6: Cntl+Shift+A to Add Row | B6: 1 | C6: Segment 1 | F6: PE | G6: PEInflationTable | K6: ENV | L6: Environmental | N6: PEInflationTable
F7: RW | G7: ROWInflationTable | K7: 3rdP | L7: Third-Party | N7: ROWInflationTable
A8: Place cursor in phase table | F8: CN+CEI | G8: CNInflationTable | I8: High Positive | K8: RW | L8: Right of Way | N8: CNInflationTable
A9: Cntl+Shift+D to Delete Phase | I9: Moderate Positive | K9: ORG | L9: Organizational | N9: UTInflationTable
F10: PE | G10: Preliminary Engineering | I10: Low Positive | K10: EXT | L10: External
A11: Place cursor in segment table | F11: RW | G11: Right of Way | I11: High Negative | K11: BRG | L11: Bridge
A12: Cntl+Shift+D to Delete Segment | F12: UT | G12: Utility | I12: Moderate Negative | K12: RDWY | L12: Roadway
F13: CN | G13: Construction | I13: Low Negative | K13: CN | L13: Construction
F14: PM | G14: Program Management | I14: Nil | K14: DES | L14: Design
A15: Phase cursor in phase table | F15: CEI | G15: Construction, Engineering, and Inspection | K15: LPA | L15: Local Public Agency
A16: Cntl+Shift+F to Change Phase Name | F16: AGN | G16: Agency | K16: FUND | L16: Funding
F17: Custom | G17: Describe Custom Phase
F18: Custom | G18: Describe Custom Phase
F19: Custom | G19: Describe Custom Phase
A20: Phase cursor in segment table | F20: Custom | G20: Describe Custom Phase
A21: Cntl+Shift+S to Change Segment Name | F21: Custom | G21: Describe Custom Phase
F22: Custom | G22: Describe Custom Phase
A23: Place your curser within the Table PRIOR
A24: to clicking the Add or Delete button

Sheet Inflation
A1: Inflation | B1: Note: Inflation tables use compound interest. | I1: Workbook formatting conventions.
B2: Note: This sheet is protected to prevent unintentional changes. Use the password "cadre" to unprotect.
B4: PEInflationTable Defaults | Q4: ROWInflationTable Defaults | AF4: CNInflationTable Defaults | AU4: UTInflationTable Defaults
C5: Annual Inflation | R5: Annual Inflation | AG5: Annual Inflation | AV5: Annual Inflation
B8: PEInflationTable | E8: Cumulative Factor (by Month) | Q8: ROWInflationTable | T8: Cumulative Factor (by Month) | AF8: CNInflationTable | AI8: Cumulative Factor (by Month) | AU8: UTInflationTable | AX8: Cumulative Factor (by Month)
B9: Year | C9: Rate1 | D9: 1 | E9: 2 | F9: 3 | G9: 4 | H9: 5 | I9: 6 | J9: 7 | K9: 8 | L9: 9 | M9: 10 | N9: 11 | O9: 12 | Q9: Year | R9: Rate1 | S9: 1 | T9: 2 | U9: 3 | V9: 4 | W9: 5 | X9: 6 | Y9: 7 | Z9: 8 | AA9: 9 | AB9: 10 | AC9: 11 | AD9: 12 | AF9: Year | AG9: Rate1 | AH9: 1 | AI9: 2 | AJ9: 3 | AK9: 4 | AL9: 5 | AM9: 6 | AN9: 7 | AO9: 8 | AP9: 9 | AQ9: 10 | AR9: 11 | AS9: 12 | AU9: Year | AV9: Rate1 | AW9: 1 | AX9: 2 | AY9: 3 | AZ9: 4 | BA9: 5 | BB9: 6 | BC9: 7 | BD9: 8 | BE9: 9 | BF9: 10 | BG9: 11 | BH9: 12
B10: =YEAR(EstLastUpdate) -> 1900 | C10: =Inf_PERate -> 0 | D10: =IF(EstLastUpdate>DATE(PEInflationTable[[#This Row],[Year]],1,1),0,(1+PEInflationTable[[#This Row],[Rate1]])^(1/12)) -> 1 | E10: =IF(PEInflationTable[[#This Row],[1]]>0,(1+PEInflationTable[[#This Row],[Rate1]])^(1/12)*PEInflationTable[[#This Row],[1]],IF(EstLastUpdate>DATE(PEInflationTable[[#This Row],[Year]],2,1),0,(1+PEInflationTable[[#This Row],[Rate1]])^(1/12))) -> 1 | F10: =IF(PEInflationTable[[#This Row],[2]]>0,(1+PEInflationTable[[#This Row],[Rate1]])^(1/12)*PEInflationTable[[#This Row],[2]],IF(EstLastUpdate>DATE(PEInflationTable[[#This Row],[Year]],3,1),0,(1+PEInflationTable[[#This Row],[Rate1]])^(1/12))) -> 1 | G10: =IF(PEInflationTable[[#This Row],[3]]>0,(1+PEInflationTable[[#This Row],[Rate1]])^(1/12)*PEInflationTable[[#This Row],[3]],IF(EstLastUpdate>DATE(PEInflationTable[[#This Row],[Year]],4,1),0,(1+PEInflationTable[[#This Row],[Rate1]])^(1/12))) -> 1 | H10: =IF(PEInflationTable[[#This Row],[4]]>0,(1+PEInflationTable[[#This Row],[Rate1]])^(1/12)*PEInflationTable[[#This Row],[4]],IF(EstLastUpdate>DATE(PEInflationTable[[#This Row],[Year]],5,1),0,(1+PEInflationTable[[#This Row],[Rate1]])^(1/12))) -> 1 | I10: =IF(PEInflationTable[[#This Row],[5]]>0,(1+PEInflationTable[[#This Row],[Rate1]])^(1/12)*PEInflationTable[[#This Row],[5]],IF(EstLastUpdate>DATE(PEInflationTable[[#This Row],[Year]],6,1),0,(1+PEInflationTable[[#This Row],[Rate1]])^(1/12))) -> 1 | J10: =IF(PEInflationTable[[#This Row],[6]]>0,(1+PEInflationTable[[#This Row],[Rate1]])^(1/12)*PEInflationTable[[#This Row],[6]],IF(EstLastUpdate>DATE(PEInflationTable[[#This Row],[Year]],7,1),0,(1+PEInflationTable[[#This Row],[Rate1]])^(1/12))) -> 1 | K10: =IF(PEInflationTable[[#This Row],[7]]>0,(1+PEInflationTable[[#This Row],[Rate1]])^(1/12)*PEInflationTable[[#This Row],[7]],IF(EstLastUpdate>DATE(PEInflationTable[[#This Row],[Year]],8,1),0,(1+PEInflationTable[[#This Row],[Rate1]])^(1/12))) -> 1 | L10: =IF(PEInflationTable[[#This Row],[8]]>0,(1+PEInflationTable[[#This Row],[Rate1]])^(1/12)*PEInflationTable[[#This Row],[8]],IF(EstLastUpdate>DATE(PEInflationTable[[#This Row],[Year]],9,1),0,(1+PEInflationTable[[#This Row],[Rate1]])^(1/12))) -> 1 | M10: =IF(PEInflationTable[[#This Row],[9]]>0,(1+PEInflationTable[[#This Row],[Rate1]])^(1/12)*PEInflationTable[[#This Row],[9]],IF(EstLastUpdate>DATE(PEInflationTable[[#This Row],[Year]],10,1),0,(1+PEInflationTable[[#This Row],[Rate1]])^(1/12))) -> 1 | N10: =IF(PEInflationTable[[#This Row],[10]]>0,(1+PEInflationTable[[#This Row],[Rate1]])^(1/12)*PEInflationTable[[#This Row],[10]],IF(EstLastUpdate>DATE(PEInflationTable[[#This Row],[Year]],11,1),0,(1+PEInflationTable[[#This Row],[Rate1]])^(1/12))) -> 1 | O10: =IF(PEInflationTable[[#This Row],[11]]>0,(1+PEInflationTable[[#This Row],[Rate1]])^(1/12)*PEInflationTable[[#This Row],[11]],IF(EstLastUpdate>DATE(PEInflationTable[[#This Row],[Year]],12,1),0,(1+PEInflationTable[[#This Row],[Rate1]])^(1/12))) -> 1 | Q10: =YEAR(EstLastUpdate) -> 1900 | R10: =Inf_ROWRate -> 0 | S10: =IF(EstLastUpdate>DATE(ROWInflationTable[[#This Row],[Year]],1,1),0,(1+ROWInflationTable[[#This Row],[Rate1]])^(1/12)) -> 1 | T10: =IF(ROWInflationTable[[#This Row],[1]]>0,(1+ROWInflationTable[[#This Row],[Rate1]])^(1/12)*ROWInflationTable[[#This Row],[1]],IF(EstLastUpdate>DATE(ROWInflationTable[[#This Row],[Year]],2,1),0,(1+ROWInflationTable[[#This Row],[Rate1]])^(1/12))) -> 1 | U10: =IF(ROWInflationTable[[#This Row],[2]]>0,(1+ROWInflationTable[[#This Row],[Rate1]])^(1/12)*ROWInflationTable[[#This Row],[2]],IF(EstLastUpdate>DATE(ROWInflationTable[[#This Row],[Year]],3,1),0,(1+ROWInflationTable[[#This Row],[Rate1]])^(1/12))) -> 1 | V10: =IF(ROWInflationTable[[#This Row],[3]]>0,(1+ROWInflationTable[[#This Row],[Rate1]])^(1/12)*ROWInflationTable[[#This Row],[3]],IF(EstLastUpdate>DATE(ROWInflationTable[[#This Row],[Year]],4,1),0,(1+ROWInflationTable[[#This Row],[Rate1]])^(1/12))) -> 1 | W10: =IF(ROWInflationTable[[#This Row],[4]]>0,(1+ROWInflationTable[[#This Row],[Rate1]])^(1/12)*ROWInflationTable[[#This Row],[4]],IF(EstLastUpdate>DATE(ROWInflationTable[[#This Row],[Year]],5,1),0,(1+ROWInflationTable[[#This Row],[Rate1]])^(1/12))) -> 1 | X10: =IF(ROWInflationTable[[#This Row],[5]]>0,(1+ROWInflationTable[[#This Row],[Rate1]])^(1/12)*ROWInflationTable[[#This Row],[5]],IF(EstLastUpdate>DATE(ROWInflationTable[[#This Row],[Year]],6,1),0,(1+ROWInflationTable[[#This Row],[Rate1]])^(1/12))) -> 1 | Y10: =IF(ROWInflationTable[[#This Row],[6]]>0,(1+ROWInflationTable[[#This Row],[Rate1]])^(1/12)*ROWInflationTable[[#This Row],[6]],IF(EstLastUpdate>DATE(ROWInflationTable[[#This Row],[Year]],7,1),0,(1+ROWInflationTable[[#This Row],[Rate1]])^(1/12))) -> 1 | Z10: =IF(ROWInflationTable[[#This Row],[7]]>0,(1+ROWInflationTable[[#This Row],[Rate1]])^(1/12)*ROWInflationTable[[#This Row],[7]],IF(EstLastUpdate>DATE(ROWInflationTable[[#This Row],[Year]],8,1),0,(1+ROWInflationTable[[#This Row],[Rate1]])^(1/12))) -> 1 | AA10: =IF(ROWInflationTable[[#This Row],[8]]>0,(1+ROWInflationTable[[#This Row],[Rate1]])^(1/12)*ROWInflationTable[[#This Row],[8]],IF(EstLastUpdate>DATE(ROWInflationTable[[#This Row],[Year]],9,1),0,(1+ROWInflationTable[[#This Row],[Rate1]])^(1/12))) -> 1 | AB10: =IF(ROWInflationTable[[#This Row],[9]]>0,(1+ROWInflationTable[[#This Row],[Rate1]])^(1/12)*ROWInflationTable[[#This Row],[9]],IF(EstLastUpdate>DATE(ROWInflationTable[[#This Row],[Year]],10,1),0,(1+ROWInflationTable[[#This Row],[Rate1]])^(1/12))) -> 1 | AC10: =IF(ROWInflationTable[[#This Row],[10]]>0,(1+ROWInflationTable[[#This Row],[Rate1]])^(1/12)*ROWInflationTable[[#This Row],[10]],IF(EstLastUpdate>DATE(ROWInflationTable[[#This Row],[Year]],11,1),0,(1+ROWInflationTable[[#This Row],[Rate1]])^(1/12))) -> 1 | AD10: =IF(ROWInflationTable[[#This Row],[11]]>0,(1+ROWInflationTable[[#This Row],[Rate1]])^(1/12)*ROWInflationTable[[#This Row],[11]],IF(EstLastUpdate>DATE(ROWInflationTable[[#This Row],[Year]],12,1),0,(1+ROWInflationTable[[#This Row],[Rate1]])^(1/12))) -> 1 | AF10: =YEAR(EstLastUpdate) -> 1900 | AG10: =Inf_CNRate -> 0 | AH10: =IF(EstLastUpdate>DATE(CNInflationTable[[#This Row],[Year]],1,1),0,(1+CNInflationTable[[#This Row],[Rate1]])^(1/12)) -> 1 | AI10: =IF(CNInflationTable[[#This Row],[1]]>0,(1+CNInflationTable[[#This Row],[Rate1]])^(1/12)*CNInflationTable[[#This Row],[1]],IF(EstLastUpdate>DATE(CNInflationTable[[#This Row],[Year]],2,1),0,(1+CNInflationTable[[#This Row],[Rate1]])^(1/12))) -> 1 | AJ10: =IF(CNInflationTable[[#This Row],[2]]>0,(1+CNInflationTable[[#This Row],[Rate1]])^(1/12)*CNInflationTable[[#This Row],[2]],IF(EstLastUpdate>DATE(CNInflationTable[[#This Row],[Year]],3,1),0,(1+CNInflationTable[[#This Row],[Rate1]])^(1/12))) -> 1 | AK10: =IF(CNInflationTable[[#This Row],[3]]>0,(1+CNInflationTable[[#This Row],[Rate1]])^(1/12)*CNInflationTable[[#This Row],[3]],IF(EstLastUpdate>DATE(CNInflationTable[[#This Row],[Year]],4,1),0,(1+CNInflationTable[[#This Row],[Rate1]])^(1/12))) -> 1 | AL10: =IF(CNInflationTable[[#This Row],[4]]>0,(1+CNInflationTable[[#This Row],[Rate1]])^(1/12)*CNInflationTable[[#This Row],[4]],IF(EstLastUpdate>DATE(CNInflationTable[[#This Row],[Year]],5,1),0,(1+CNInflationTable[[#This Row],[Rate1]])^(1/12))) -> 1 | AM10: =IF(CNInflationTable[[#This Row],[5]]>0,(1+CNInflationTable[[#This Row],[Rate1]])^(1/12)*CNInflationTable[[#This Row],[5]],IF(EstLastUpdate>DATE(CNInflationTable[[#This Row],[Year]],6,1),0,(1+CNInflationTable[[#This Row],[Rate1]])^(1/12))) -> 1 | AN10: =IF(CNInflationTable[[#This Row],[6]]>0,(1+CNInflationTable[[#This Row],[Rate1]])^(1/12)*CNInflationTable[[#This Row],[6]],IF(EstLastUpdate>DATE(CNInflationTable[[#This Row],[Year]],7,1),0,(1+CNInflationTable[[#This Row],[Rate1]])^(1/12))) -> 1 | AO10: =IF(CNInflationTable[[#This Row],[7]]>0,(1+CNInflationTable[[#This Row],[Rate1]])^(1/12)*CNInflationTable[[#This Row],[7]],IF(EstLastUpdate>DATE(CNInflationTable[[#This Row],[Year]],8,1),0,(1+CNInflationTable[[#This Row],[Rate1]])^(1/12))) -> 1 | AP10: =IF(CNInflationTable[[#This Row],[8]]>0,(1+CNInflationTable[[#This Row],[Rate1]])^(1/12)*CNInflationTable[[#This Row],[8]],IF(EstLastUpdate>DATE(CNInflationTable[[#This Row],[Year]],9,1),0,(1+CNInflationTable[[#This Row],[Rate1]])^(1/12))) -> 1 | AQ10: =IF(CNInflationTable[[#This Row],[9]]>0,(1+CNInflationTable[[#This Row],[Rate1]])^(1/12)*CNInflationTable[[#This Row],[9]],IF(EstLastUpdate>DATE(CNInflationTable[[#This Row],[Year]],10,1),0,(1+CNInflationTable[[#This Row],[Rate1]])^(1/12))) -> 1 | AR10: =IF(CNInflationTable[[#This Row],[10]]>0,(1+CNInflationTable[[#This Row],[Rate1]])^(1/12)*CNInflationTable[[#This Row],[10]],IF(EstLastUpdate>DATE(CNInflationTable[[#This Row],[Year]],11,1),0,(1+CNInflationTable[[#This Row],[Rate1]])^(1/12))) -> 1 | AS10: =IF(CNInflationTable[[#This Row],[11]]>0,(1+CNInflationTable[[#This Row],[Rate1]])^(1/12)*CNInflationTable[[#This Row],[11]],IF(EstLastUpdate>DATE(CNInflationTable[[#This Row],[Year]],12,1),0,(1+CNInflationTable[[#This Row],[Rate1]])^(1/12))) -> 1 | AU10: =YEAR(EstLastUpdate) -> 1900 | AV10: =Inf_UTRate -> 0 | AW10: =IF(EstLastUpdate>DATE(UTInflationTable[[#This Row],[Year]],1,1),0,(1+UTInflationTable[[#This Row],[Rate1]])^(1/12)) -> 1 | AX10: =IF(UTInflationTable[[#This Row],[1]]>0,(1+UTInflationTable[[#This Row],[Rate1]])^(1/12)*UTInflationTable[[#This Row],[1]],IF(EstLastUpdate>DATE(UTInflationTable[[#This Row],[Year]],2,1),0,(1+UTInflationTable[[#This Row],[Rate1]])^(1/12))) -> 1 | AY10: =IF(UTInflationTable[[#This Row],[2]]>0,(1+UTInflationTable[[#This Row],[Rate1]])^(1/12)*UTInflationTable[[#This Row],[2]],IF(EstLastUpdate>DATE(UTInflationTable[[#This Row],[Year]],3,1),0,(1+UTInflationTable[[#This Row],[Rate1]])^(1/12))) -> 1 | AZ10: =IF(UTInflationTable[[#This Row],[3]]>0,(1+UTInflationTable[[#This Row],[Rate1]])^(1/12)*UTInflationTable[[#This Row],[3]],IF(EstLastUpdate>DATE(UTInflationTable[[#This Row],[Year]],4,1),0,(1+UTInflationTable[[#This Row],[Rate1]])^(1/12))) -> 1 | BA10: =IF(UTInflationTable[[#This Row],[4]]>0,(1+UTInflationTable[[#This Row],[Rate1]])^(1/12)*UTInflationTable[[#This Row],[4]],IF(EstLastUpdate>DATE(UTInflationTable[[#This Row],[Year]],5,1),0,(1+UTInflationTable[[#This Row],[Rate1]])^(1/12))) -> 1 | BB10: =IF(UTInflationTable[[#This Row],[5]]>0,(1+UTInflationTable[[#This Row],[Rate1]])^(1/12)*UTInflationTable[[#This Row],[5]],IF(EstLastUpdate>DATE(UTInflationTable[[#This Row],[Year]],6,1),0,(1+UTInflationTable[[#This Row],[Rate1]])^(1/12))) -> 1 | BC10: =IF(UTInflationTable[[#This Row],[6]]>0,(1+UTInflationTable[[#This Row],[Rate1]])^(1/12)*UTInflationTable[[#This Row],[6]],IF(EstLastUpdate>DATE(UTInflationTable[[#This Row],[Year]],7,1),0,(1+UTInflationTable[[#This Row],[Rate1]])^(1/12))) -> 1 | BD10: =IF(UTInflationTable[[#This Row],[7]]>0,(1+UTInflationTable[[#This Row],[Rate1]])^(1/12)*UTInflationTable[[#This Row],[7]],IF(EstLastUpdate>DATE(UTInflationTable[[#This Row],[Year]],8,1),0,(1+UTInflationTable[[#This Row],[Rate1]])^(1/12))) -> 1 | BE10: =IF(UTInflationTable[[#This Row],[8]]>0,(1+UTInflationTable[[#This Row],[Rate1]])^(1/12)*UTInflationTable[[#This Row],[8]],IF(EstLastUpdate>DATE(UTInflationTable[[#This Row],[Year]],9,1),0,(1+UTInflationTable[[#This Row],[Rate1]])^(1/12))) -> 1 | BF10: =IF(UTInflationTable[[#This Row],[9]]>0,(1+UTInflationTable[[#This Row],[Rate1]])^(1/12)*UTInflationTable[[#This Row],[9]],IF(EstLastUpdate>DATE(UTInflationTable[[#This Row],[Year]],10,1),0,(1+UTInflationTable[[#This Row],[Rate1]])^(1/12))) -> 1 | BG10: =IF(UTInflationTable[[#This Row],[10]]>0,(1+UTInflationTable[[#This Row],[Rate1]])^(1/12)*UTInflationTable[[#This Row],[10]],IF(EstLastUpdate>DATE(UTInflationTable[[#This Row],[Year]],11,1),0,(1+UTInflationTable[[#This Row],[Rate1]])^(1/12))) -> 1 | BH10: =IF(UTInflationTable[[#This Row],[11]]>0,(1+UTInflationTable[[#This Row],[Rate1]])^(1/12)*UTInflationTable[[#This Row],[11]],IF(EstLastUpdate>DATE(UTInflationTable[[#This Row],[Year]],12,1),0,(1+UTInflationTable[[#This Row],[Rate1]])^(1/12))) -> 1
B11: =OFFSET(PEInflationTable[[#This Row],[Year]],-1,0)+1 -> 1901 | C11: 0 | D11: =IF(OFFSET(PEInflationTable[[#This Row],[12]],-1,0)>0,(1+PEInflationTable[[#This Row],[Rate1]])^(1/12)*OFFSET(PEInflationTable[[#This Row],[12]],-1,0),IF(EstLastUpdate>DATE(PEInflationTable[[#This Row],[Year]],1,1),0,(1+PEInflationTable[[#This Row],[Rate1]])^(1/12))) -> 1 | E11: =IF(PEInflationTable[[#This Row],[1]]>0,(1+PEInflationTable[[#This Row],[Rate1]])^(1/12)*PEInflationTable[[#This Row],[1]],IF(EstLastUpdate>DATE(PEInflationTable[[#This Row],[Year]],2,1),0,(1+PEInflationTable[[#This Row],[Rate1]])^(1/12))) -> 1 | F11: =IF(PEInflationTable[[#This Row],[2]]>0,(1+PEInflationTable[[#This Row],[Rate1]])^(1/12)*PEInflationTable[[#This Row],[2]],IF(EstLastUpdate>DATE(PEInflationTable[[#This Row],[Year]],3,1),0,(1+PEInflationTable[[#This Row],[Rate1]])^(1/12))) -> 1 | G11: =IF(PEInflationTable[[#This Row],[3]]>0,(1+PEInflationTable[[#This Row],[Rate1]])^(1/12)*PEInflationTable[[#This Row],[3]],IF(EstLastUpdate>DATE(PEInflationTable[[#This Row],[Year]],4,1),0,(1+PEInflationTable[[#This Row],[Rate1]])^(1/12))) -> 1 | H11: =IF(PEInflationTable[[#This Row],[4]]>0,(1+PEInflationTable[[#This Row],[Rate1]])^(1/12)*PEInflationTable[[#This Row],[4]],IF(EstLastUpdate>DATE(PEInflationTable[[#This Row],[Year]],5,1),0,(1+PEInflationTable[[#This Row],[Rate1]])^(1/12))) -> 1 | I11: =IF(PEInflationTable[[#This Row],[5]]>0,(1+PEInflationTable[[#This Row],[Rate1]])^(1/12)*PEInflationTable[[#This Row],[5]],IF(EstLastUpdate>DATE(PEInflationTable[[#This Row],[Year]],6,1),0,(1+PEInflationTable[[#This Row],[Rate1]])^(1/12))) -> 1 | J11: =IF(PEInflationTable[[#This Row],[6]]>0,(1+PEInflationTable[[#This Row],[Rate1]])^(1/12)*PEInflationTable[[#This Row],[6]],IF(EstLastUpdate>DATE(PEInflationTable[[#This Row],[Year]],7,1),0,(1+PEInflationTable[[#This Row],[Rate1]])^(1/12))) -> 1 | K11: =IF(PEInflationTable[[#This Row],[7]]>0,(1+PEInflationTable[[#This Row],[Rate1]])^(1/12)*PEInflationTable[[#This Row],[7]],IF(EstLastUpdate>DATE(PEInflationTable[[#This Row],[Year]],8,1),0,(1+PEInflationTable[[#This Row],[Rate1]])^(1/12))) -> 1 | L11: =IF(PEInflationTable[[#This Row],[8]]>0,(1+PEInflationTable[[#This Row],[Rate1]])^(1/12)*PEInflationTable[[#This Row],[8]],IF(EstLastUpdate>DATE(PEInflationTable[[#This Row],[Year]],9,1),0,(1+PEInflationTable[[#This Row],[Rate1]])^(1/12))) -> 1 | M11: =IF(PEInflationTable[[#This Row],[9]]>0,(1+PEInflationTable[[#This Row],[Rate1]])^(1/12)*PEInflationTable[[#This Row],[9]],IF(EstLastUpdate>DATE(PEInflationTable[[#This Row],[Year]],10,1),0,(1+PEInflationTable[[#This Row],[Rate1]])^(1/12))) -> 1 | N11: =IF(PEInflationTable[[#This Row],[10]]>0,(1+PEInflationTable[[#This Row],[Rate1]])^(1/12)*PEInflationTable[[#This Row],[10]],IF(EstLastUpdate>DATE(PEInflationTable[[#This Row],[Year]],11,1),0,(1+PEInflationTable[[#This Row],[Rate1]])^(1/12))) -> 1 | O11: =IF(PEInflationTable[[#This Row],[11]]>0,(1+PEInflationTable[[#This Row],[Rate1]])^(1/12)*PEInflationTable[[#This Row],[11]],IF(EstLastUpdate>DATE(PEInflationTable[[#This Row],[Year]],12,1),0,(1+PEInflationTable[[#This Row],[Rate1]])^(1/12))) -> 1 | Q11: =OFFSET(ROWInflationTable[[#This Row],[Year]],-1,0)+1 -> 1901 | R11: 0 | S11: =IF(OFFSET(ROWInflationTable[[#This Row],[12]],-1,0)>0,(1+ROWInflationTable[[#This Row],[Rate1]])^(1/12)*OFFSET(ROWInflationTable[[#This Row],[12]],-1,0),IF(EstLastUpdate>DATE(ROWInflationTable[[#This Row],[Year]],1,1),0,(1+ROWInflationTable[[#This Row],[Rate1]])^(1/12))) -> 1 | T11: =IF(ROWInflationTable[[#This Row],[1]]>0,(1+ROWInflationTable[[#This Row],[Rate1]])^(1/12)*ROWInflationTable[[#This Row],[1]],IF(EstLastUpdate>DATE(ROWInflationTable[[#This Row],[Year]],2,1),0,(1+ROWInflationTable[[#This Row],[Rate1]])^(1/12))) -> 1 | U11: =IF(ROWInflationTable[[#This Row],[2]]>0,(1+ROWInflationTable[[#This Row],[Rate1]])^(1/12)*ROWInflationTable[[#This Row],[2]],IF(EstLastUpdate>DATE(ROWInflationTable[[#This Row],[Year]],3,1),0,(1+ROWInflationTable[[#This Row],[Rate1]])^(1/12))) -> 1 | V11: =IF(ROWInflationTable[[#This Row],[3]]>0,(1+ROWInflationTable[[#This Row],[Rate1]])^(1/12)*ROWInflationTable[[#This Row],[3]],IF(EstLastUpdate>DATE(ROWInflationTable[[#This Row],[Year]],4,1),0,(1+ROWInflationTable[[#This Row],[Rate1]])^(1/12))) -> 1 | W11: =IF(ROWInflationTable[[#This Row],[4]]>0,(1+ROWInflationTable[[#This Row],[Rate1]])^(1/12)*ROWInflationTable[[#This Row],[4]],IF(EstLastUpdate>DATE(ROWInflationTable[[#This Row],[Year]],5,1),0,(1+ROWInflationTable[[#This Row],[Rate1]])^(1/12))) -> 1 | X11: =IF(ROWInflationTable[[#This Row],[5]]>0,(1+ROWInflationTable[[#This Row],[Rate1]])^(1/12)*ROWInflationTable[[#This Row],[5]],IF(EstLastUpdate>DATE(ROWInflationTable[[#This Row],[Year]],6,1),0,(1+ROWInflationTable[[#This Row],[Rate1]])^(1/12))) -> 1 | Y11: =IF(ROWInflationTable[[#This Row],[6]]>0,(1+ROWInflationTable[[#This Row],[Rate1]])^(1/12)*ROWInflationTable[[#This Row],[6]],IF(EstLastUpdate>DATE(ROWInflationTable[[#This Row],[Year]],7,1),0,(1+ROWInflationTable[[#This Row],[Rate1]])^(1/12))) -> 1 | Z11: =IF(ROWInflationTable[[#This Row],[7]]>0,(1+ROWInflationTable[[#This Row],[Rate1]])^(1/12)*ROWInflationTable[[#This Row],[7]],IF(EstLastUpdate>DATE(ROWInflationTable[[#This Row],[Year]],8,1),0,(1+ROWInflationTable[[#This Row],[Rate1]])^(1/12))) -> 1 | AA11: =IF(ROWInflationTable[[#This Row],[8]]>0,(1+ROWInflationTable[[#This Row],[Rate1]])^(1/12)*ROWInflationTable[[#This Row],[8]],IF(EstLastUpdate>DATE(ROWInflationTable[[#This Row],[Year]],9,1),0,(1+ROWInflationTable[[#This Row],[Rate1]])^(1/12))) -> 1 | AB11: =IF(ROWInflationTable[[#This Row],[9]]>0,(1+ROWInflationTable[[#This Row],[Rate1]])^(1/12)*ROWInflationTable[[#This Row],[9]],IF(EstLastUpdate>DATE(ROWInflationTable[[#This Row],[Year]],10,1),0,(1+ROWInflationTable[[#This Row],[Rate1]])^(1/12))) -> 1 | AC11: =IF(ROWInflationTable[[#This Row],[10]]>0,(1+ROWInflationTable[[#This Row],[Rate1]])^(1/12)*ROWInflationTable[[#This Row],[10]],IF(EstLastUpdate>DATE(ROWInflationTable[[#This Row],[Year]],11,1),0,(1+ROWInflationTable[[#This Row],[Rate1]])^(1/12))) -> 1 | AD11: =IF(ROWInflationTable[[#This Row],[11]]>0,(1+ROWInflationTable[[#This Row],[Rate1]])^(1/12)*ROWInflationTable[[#This Row],[11]],IF(EstLastUpdate>DATE(ROWInflationTable[[#This Row],[Year]],12,1),0,(1+ROWInflationTable[[#This Row],[Rate1]])^(1/12))) -> 1 | AF11: =OFFSET(CNInflationTable[[#This Row],[Year]],-1,0)+1 -> 1901 | AG11: 0 | AH11: =IF(OFFSET(CNInflationTable[[#This Row],[12]],-1,0)>0,(1+CNInflationTable[[#This Row],[Rate1]])^(1/12)*OFFSET(CNInflationTable[[#This Row],[12]],-1,0),IF(EstLastUpdate>DATE(CNInflationTable[[#This Row],[Year]],1,1),0,(1+CNInflationTable[[#This Row],[Rate1]])^(1/12))) -> 1 | AI11: =IF(CNInflationTable[[#This Row],[1]]>0,(1+CNInflationTable[[#This Row],[Rate1]])^(1/12)*CNInflationTable[[#This Row],[1]],IF(EstLastUpdate>DATE(CNInflationTable[[#This Row],[Year]],2,1),0,(1+CNInflationTable[[#This Row],[Rate1]])^(1/12))) -> 1 | AJ11: =IF(CNInflationTable[[#This Row],[2]]>0,(1+CNInflationTable[[#This Row],[Rate1]])^(1/12)*CNInflationTable[[#This Row],[2]],IF(EstLastUpdate>DATE(CNInflationTable[[#This Row],[Year]],3,1),0,(1+CNInflationTable[[#This Row],[Rate1]])^(1/12))) -> 1 | AK11: =IF(CNInflationTable[[#This Row],[3]]>0,(1+CNInflationTable[[#This Row],[Rate1]])^(1/12)*CNInflationTable[[#This Row],[3]],IF(EstLastUpdate>DATE(CNInflationTable[[#This Row],[Year]],4,1),0,(1+CNInflationTable[[#This Row],[Rate1]])^(1/12))) -> 1 | AL11: =IF(CNInflationTable[[#This Row],[4]]>0,(1+CNInflationTable[[#This Row],[Rate1]])^(1/12)*CNInflationTable[[#This Row],[4]],IF(EstLastUpdate>DATE(CNInflationTable[[#This Row],[Year]],5,1),0,(1+CNInflationTable[[#This Row],[Rate1]])^(1/12))) -> 1 | AM11: =IF(CNInflationTable[[#This Row],[5]]>0,(1+CNInflationTable[[#This Row],[Rate1]])^(1/12)*CNInflationTable[[#This Row],[5]],IF(EstLastUpdate>DATE(CNInflationTable[[#This Row],[Year]],6,1),0,(1+CNInflationTable[[#This Row],[Rate1]])^(1/12))) -> 1 | AN11: =IF(CNInflationTable[[#This Row],[6]]>0,(1+CNInflationTable[[#This Row],[Rate1]])^(1/12)*CNInflationTable[[#This Row],[6]],IF(EstLastUpdate>DATE(CNInflationTable[[#This Row],[Year]],7,1),0,(1+CNInflationTable[[#This Row],[Rate1]])^(1/12))) -> 1 | AO11: =IF(CNInflationTable[[#This Row],[7]]>0,(1+CNInflationTable[[#This Row],[Rate1]])^(1/12)*CNInflationTable[[#This Row],[7]],IF(EstLastUpdate>DATE(CNInflationTable[[#This Row],[Year]],8,1),0,(1+CNInflationTable[[#This Row],[Rate1]])^(1/12))) -> 1 | AP11: =IF(CNInflationTable[[#This Row],[8]]>0,(1+CNInflationTable[[#This Row],[Rate1]])^(1/12)*CNInflationTable[[#This Row],[8]],IF(EstLastUpdate>DATE(CNInflationTable[[#This Row],[Year]],9,1),0,(1+CNInflationTable[[#This Row],[Rate1]])^(1/12))) -> 1 | AQ11: =IF(CNInflationTable[[#This Row],[9]]>0,(1+CNInflationTable[[#This Row],[Rate1]])^(1/12)*CNInflationTable[[#This Row],[9]],IF(EstLastUpdate>DATE(CNInflationTable[[#This Row],[Year]],10,1),0,(1+CNInflationTable[[#This Row],[Rate1]])^(1/12))) -> 1 | AR11: =IF(CNInflationTable[[#This Row],[10]]>0,(1+CNInflationTable[[#This Row],[Rate1]])^(1/12)*CNInflationTable[[#This Row],[10]],IF(EstLastUpdate>DATE(CNInflationTable[[#This Row],[Year]],11,1),0,(1+CNInflationTable[[#This Row],[Rate1]])^(1/12))) -> 1 | AS11: =IF(CNInflationTable[[#This Row],[11]]>0,(1+CNInflationTable[[#This Row],[Rate1]])^(1/12)*CNInflationTable[[#This Row],[11]],IF(EstLastUpdate>DATE(CNInflationTable[[#This Row],[Year]],12,1),0,(1+CNInflationTable[[#This Row],[Rate1]])^(1/12))) -> 1 | AU11: =OFFSET(UTInflationTable[[#This Row],[Year]],-1,0)+1 -> 1901 | AV11: 0 | AW11: =IF(OFFSET(UTInflationTable[[#This Row],[12]],-1,0)>0,(1+UTInflationTable[[#This Row],[Rate1]])^(1/12)*OFFSET(UTInflationTable[[#This Row],[12]],-1,0),IF(EstLastUpdate>DATE(UTInflationTable[[#This Row],[Year]],1,1),0,(1+UTInflationTable[[#This Row],[Rate1]])^(1/12))) -> 1 | AX11: =IF(UTInflationTable[[#This Row],[1]]>0,(1+UTInflationTable[[#This Row],[Rate1]])^(1/12)*UTInflationTable[[#This Row],[1]],IF(EstLastUpdate>DATE(UTInflationTable[[#This Row],[Year]],2,1),0,(1+UTInflationTable[[#This Row],[Rate1]])^(1/12))) -> 1 | AY11: =IF(UTInflationTable[[#This Row],[2]]>0,(1+UTInflationTable[[#This Row],[Rate1]])^(1/12)*UTInflationTable[[#This Row],[2]],IF(EstLastUpdate>DATE(UTInflationTable[[#This Row],[Year]],3,1),0,(1+UTInflationTable[[#This Row],[Rate1]])^(1/12))) -> 1 | AZ11: =IF(UTInflationTable[[#This Row],[3]]>0,(1+UTInflationTable[[#This Row],[Rate1]])^(1/12)*UTInflationTable[[#This Row],[3]],IF(EstLastUpdate>DATE(UTInflationTable[[#This Row],[Year]],4,1),0,(1+UTInflationTable[[#This Row],[Rate1]])^(1/12))) -> 1 | BA11: =IF(UTInflationTable[[#This Row],[4]]>0,(1+UTInflationTable[[#This Row],[Rate1]])^(1/12)*UTInflationTable[[#This Row],[4]],IF(EstLastUpdate>DATE(UTInflationTable[[#This Row],[Year]],5,1),0,(1+UTInflationTable[[#This Row],[Rate1]])^(1/12))) -> 1 | BB11: =IF(UTInflationTable[[#This Row],[5]]>0,(1+UTInflationTable[[#This Row],[Rate1]])^(1/12)*UTInflationTable[[#This Row],[5]],IF(EstLastUpdate>DATE(UTInflationTable[[#This Row],[Year]],6,1),0,(1+UTInflationTable[[#This Row],[Rate1]])^(1/12))) -> 1 | BC11: =IF(UTInflationTable[[#This Row],[6]]>0,(1+UTInflationTable[[#This Row],[Rate1]])^(1/12)*UTInflationTable[[#This Row],[6]],IF(EstLastUpdate>DATE(UTInflationTable[[#This Row],[Year]],7,1),0,(1+UTInflationTable[[#This Row],[Rate1]])^(1/12))) -> 1 | BD11: =IF(UTInflationTable[[#This Row],[7]]>0,(1+UTInflationTable[[#This Row],[Rate1]])^(1/12)*UTInflationTable[[#This Row],[7]],IF(EstLastUpdate>DATE(UTInflationTable[[#This Row],[Year]],8,1),0,(1+UTInflationTable[[#This Row],[Rate1]])^(1/12))) -> 1 | BE11: =IF(UTInflationTable[[#This Row],[8]]>0,(1+UTInflationTable[[#This Row],[Rate1]])^(1/12)*UTInflationTable[[#This Row],[8]],IF(EstLastUpdate>DATE(UTInflationTable[[#This Row],[Year]],9,1),0,(1+UTInflationTable[[#This Row],[Rate1]])^(1/12))) -> 1 | BF11: =IF(UTInflationTable[[#This Row],[9]]>0,(1+UTInflationTable[[#This Row],[Rate1]])^(1/12)*UTInflationTable[[#This Row],[9]],IF(EstLastUpdate>DATE(UTInflationTable[[#This Row],[Year]],10,1),0,(1+UTInflationTable[[#This Row],[Rate1]])^(1/12))) -> 1 | BG11: =IF(UTInflationTable[[#This Row],[10]]>0,(1+UTInflationTable[[#This Row],[Rate1]])^(1/12)*UTInflationTable[[#This Row],[10]],IF(EstLastUpdate>DATE(UTInflationTable[[#This Row],[Year]],11,1),0,(1+UTInflationTable[[#This Row],[Rate1]])^(1/12))) -> 1 | BH11: =IF(UTInflationTable[[#This Row],[11]]>0,(1+UTInflationTable[[#This Row],[Rate1]])^(1/12)*UTInflationTable[[#This Row],[11]],IF(EstLastUpdate>DATE(UTInflationTable[[#This Row],[Year]],12,1),0,(1+UTInflationTable[[#This Row],[Rate1]])^(1/12))) -> 1
B12: =OFFSET(PEInflationTable[[#This Row],[Year]],-1,0)+1 -> 1902 | C12: 0 | D12: =IF(OFFSET(PEInflationTable[[#This Row],[12]],-1,0)>0,(1+PEInflationTable[[#This Row],[Rate1]])^(1/12)*OFFSET(PEInflationTable[[#This Row],[12]],-1,0),IF(EstLastUpdate>DATE(PEInflationTable[[#This Row],[Year]],1,1),0,(1+PEInflationTable[[#This Row],[Rate1]])^(1/12))) -> 1 | E12: =IF(PEInflationTable[[#This Row],[1]]>0,(1+PEInflationTable[[#This Row],[Rate1]])^(1/12)*PEInflationTable[[#This Row],[1]],IF(EstLastUpdate>DATE(PEInflationTable[[#This Row],[Year]],2,1),0,(1+PEInflationTable[[#This Row],[Rate1]])^(1/12))) -> 1 | F12: =IF(PEInflationTable[[#This Row],[2]]>0,(1+PEInflationTable[[#This Row],[Rate1]])^(1/12)*PEInflationTable[[#This Row],[2]],IF(EstLastUpdate>DATE(PEInflationTable[[#This Row],[Year]],3,1),0,(1+PEInflationTable[[#This Row],[Rate1]])^(1/12))) -> 1 | G12: =IF(PEInflationTable[[#This Row],[3]]>0,(1+PEInflationTable[[#This Row],[Rate1]])^(1/12)*PEInflationTable[[#This Row],[3]],IF(EstLastUpdate>DATE(PEInflationTable[[#This Row],[Year]],4,1),0,(1+PEInflationTable[[#This Row],[Rate1]])^(1/12))) -> 1 | H12: =IF(PEInflationTable[[#This Row],[4]]>0,(1+PEInflationTable[[#This Row],[Rate1]])^(1/12)*PEInflationTable[[#This Row],[4]],IF(EstLastUpdate>DATE(PEInflationTable[[#This Row],[Year]],5,1),0,(1+PEInflationTable[[#This Row],[Rate1]])^(1/12))) -> 1 | I12: =IF(PEInflationTable[[#This Row],[5]]>0,(1+PEInflationTable[[#This Row],[Rate1]])^(1/12)*PEInflationTable[[#This Row],[5]],IF(EstLastUpdate>DATE(PEInflationTable[[#This Row],[Year]],6,1),0,(1+PEInflationTable[[#This Row],[Rate1]])^(1/12))) -> 1 | J12: =IF(PEInflationTable[[#This Row],[6]]>0,(1+PEInflationTable[[#This Row],[Rate1]])^(1/12)*PEInflationTable[[#This Row],[6]],IF(EstLastUpdate>DATE(PEInflationTable[[#This Row],[Year]],7,1),0,(1+PEInflationTable[[#This Row],[Rate1]])^(1/12))) -> 1 | K12: =IF(PEInflationTable[[#This Row],[7]]>0,(1+PEInflationTable[[#This Row],[Rate1]])^(1/12)*PEInflationTable[[#This Row],[7]],IF(EstLastUpdate>DATE(PEInflationTable[[#This Row],[Year]],8,1),0,(1+PEInflationTable[[#This Row],[Rate1]])^(1/12))) -> 1 | L12: =IF(PEInflationTable[[#This Row],[8]]>0,(1+PEInflationTable[[#This Row],[Rate1]])^(1/12)*PEInflationTable[[#This Row],[8]],IF(EstLastUpdate>DATE(PEInflationTable[[#This Row],[Year]],9,1),0,(1+PEInflationTable[[#This Row],[Rate1]])^(1/12))) -> 1 | M12: =IF(PEInflationTable[[#This Row],[9]]>0,(1+PEInflationTable[[#This Row],[Rate1]])^(1/12)*PEInflationTable[[#This Row],[9]],IF(EstLastUpdate>DATE(PEInflationTable[[#This Row],[Year]],10,1),0,(1+PEInflationTable[[#This Row],[Rate1]])^(1/12))) -> 1 | N12: =IF(PEInflationTable[[#This Row],[10]]>0,(1+PEInflationTable[[#This Row],[Rate1]])^(1/12)*PEInflationTable[[#This Row],[10]],IF(EstLastUpdate>DATE(PEInflationTable[[#This Row],[Year]],11,1),0,(1+PEInflationTable[[#This Row],[Rate1]])^(1/12))) -> 1 | O12: =IF(PEInflationTable[[#This Row],[11]]>0,(1+PEInflationTable[[#This Row],[Rate1]])^(1/12)*PEInflationTable[[#This Row],[11]],IF(EstLastUpdate>DATE(PEInflationTable[[#This Row],[Year]],12,1),0,(1+PEInflationTable[[#This Row],[Rate1]])^(1/12))) -> 1 | Q12: =Q11+1 -> 1902 | R12: 0 | S12: =IF(OFFSET(ROWInflationTable[[#This Row],[12]],-1,0)>0,(1+ROWInflationTable[[#This Row],[Rate1]])^(1/12)*OFFSET(ROWInflationTable[[#This Row],[12]],-1,0),IF(EstLastUpdate>DATE(ROWInflationTable[[#This Row],[Year]],1,1),0,(1+ROWInflationTable[[#This Row],[Rate1]])^(1/12))) -> 1 | T12: =IF(ROWInflationTable[[#This Row],[1]]>0,(1+ROWInflationTable[[#This Row],[Rate1]])^(1/12)*ROWInflationTable[[#This Row],[1]],IF(EstLastUpdate>DATE(ROWInflationTable[[#This Row],[Year]],2,1),0,(1+ROWInflationTable[[#This Row],[Rate1]])^(1/12))) -> 1 | U12: =IF(ROWInflationTable[[#This Row],[2]]>0,(1+ROWInflationTable[[#This Row],[Rate1]])^(1/12)*ROWInflationTable[[#This Row],[2]],IF(EstLastUpdate>DATE(ROWInflationTable[[#This Row],[Year]],3,1),0,(1+ROWInflationTable[[#This Row],[Rate1]])^(1/12))) -> 1 | V12: =IF(ROWInflationTable[[#This Row],[3]]>0,(1+ROWInflationTable[[#This Row],[Rate1]])^(1/12)*ROWInflationTable[[#This Row],[3]],IF(EstLastUpdate>DATE(ROWInflationTable[[#This Row],[Year]],4,1),0,(1+ROWInflationTable[[#This Row],[Rate1]])^(1/12))) -> 1 | W12: =IF(ROWInflationTable[[#This Row],[4]]>0,(1+ROWInflationTable[[#This Row],[Rate1]])^(1/12)*ROWInflationTable[[#This Row],[4]],IF(EstLastUpdate>DATE(ROWInflationTable[[#This Row],[Year]],5,1),0,(1+ROWInflationTable[[#This Row],[Rate1]])^(1/12))) -> 1 | X12: =IF(ROWInflationTable[[#This Row],[5]]>0,(1+ROWInflationTable[[#This Row],[Rate1]])^(1/12)*ROWInflationTable[[#This Row],[5]],IF(EstLastUpdate>DATE(ROWInflationTable[[#This Row],[Year]],6,1),0,(1+ROWInflationTable[[#This Row],[Rate1]])^(1/12))) -> 1 | Y12: =IF(ROWInflationTable[[#This Row],[6]]>0,(1+ROWInflationTable[[#This Row],[Rate1]])^(1/12)*ROWInflationTable[[#This Row],[6]],IF(EstLastUpdate>DATE(ROWInflationTable[[#This Row],[Year]],7,1),0,(1+ROWInflationTable[[#This Row],[Rate1]])^(1/12))) -> 1 | Z12: =IF(ROWInflationTable[[#This Row],[7]]>0,(1+ROWInflationTable[[#This Row],[Rate1]])^(1/12)*ROWInflationTable[[#This Row],[7]],IF(EstLastUpdate>DATE(ROWInflationTable[[#This Row],[Year]],8,1),0,(1+ROWInflationTable[[#This Row],[Rate1]])^(1/12))) -> 1 | AA12: =IF(ROWInflationTable[[#This Row],[8]]>0,(1+ROWInflationTable[[#This Row],[Rate1]])^(1/12)*ROWInflationTable[[#This Row],[8]],IF(EstLastUpdate>DATE(ROWInflationTable[[#This Row],[Year]],9,1),0,(1+ROWInflationTable[[#This Row],[Rate1]])^(1/12))) -> 1 | AB12: =IF(ROWInflationTable[[#This Row],[9]]>0,(1+ROWInflationTable[[#This Row],[Rate1]])^(1/12)*ROWInflationTable[[#This Row],[9]],IF(EstLastUpdate>DATE(ROWInflationTable[[#This Row],[Year]],10,1),0,(1+ROWInflationTable[[#This Row],[Rate1]])^(1/12))) -> 1 | AC12: =IF(ROWInflationTable[[#This Row],[10]]>0,(1+ROWInflationTable[[#This Row],[Rate1]])^(1/12)*ROWInflationTable[[#This Row],[10]],IF(EstLastUpdate>DATE(ROWInflationTable[[#This Row],[Year]],11,1),0,(1+ROWInflationTable[[#This Row],[Rate1]])^(1/12))) -> 1 | AD12: =IF(ROWInflationTable[[#This Row],[11]]>0,(1+ROWInflationTable[[#This Row],[Rate1]])^(1/12)*ROWInflationTable[[#This Row],[11]],IF(EstLastUpdate>DATE(ROWInflationTable[[#This Row],[Year]],12,1),0,(1+ROWInflationTable[[#This Row],[Rate1]])^(1/12))) -> 1 | AF12: =AF11+1 -> 1902 | AG12: 0 | AH12: =IF(OFFSET(CNInflationTable[[#This Row],[12]],-1,0)>0,(1+CNInflationTable[[#This Row],[Rate1]])^(1/12)*OFFSET(CNInflationTable[[#This Row],[12]],-1,0),IF(EstLastUpdate>DATE(CNInflationTable[[#This Row],[Year]],1,1),0,(1+CNInflationTable[[#This Row],[Rate1]])^(1/12))) -> 1 | AI12: =IF(CNInflationTable[[#This Row],[1]]>0,(1+CNInflationTable[[#This Row],[Rate1]])^(1/12)*CNInflationTable[[#This Row],[1]],IF(EstLastUpdate>DATE(CNInflationTable[[#This Row],[Year]],2,1),0,(1+CNInflationTable[[#This Row],[Rate1]])^(1/12))) -> 1 | AJ12: =IF(CNInflationTable[[#This Row],[2]]>0,(1+CNInflationTable[[#This Row],[Rate1]])^(1/12)*CNInflationTable[[#This Row],[2]],IF(EstLastUpdate>DATE(CNInflationTable[[#This Row],[Year]],3,1),0,(1+CNInflationTable[[#This Row],[Rate1]])^(1/12))) -> 1 | AK12: =IF(CNInflationTable[[#This Row],[3]]>0,(1+CNInflationTable[[#This Row],[Rate1]])^(1/12)*CNInflationTable[[#This Row],[3]],IF(EstLastUpdate>DATE(CNInflationTable[[#This Row],[Year]],4,1),0,(1+CNInflationTable[[#This Row],[Rate1]])^(1/12))) -> 1 | AL12: =IF(CNInflationTable[[#This Row],[4]]>0,(1+CNInflationTable[[#This Row],[Rate1]])^(1/12)*CNInflationTable[[#This Row],[4]],IF(EstLastUpdate>DATE(CNInflationTable[[#This Row],[Year]],5,1),0,(1+CNInflationTable[[#This Row],[Rate1]])^(1/12))) -> 1 | AM12: =IF(CNInflationTable[[#This Row],[5]]>0,(1+CNInflationTable[[#This Row],[Rate1]])^(1/12)*CNInflationTable[[#This Row],[5]],IF(EstLastUpdate>DATE(CNInflationTable[[#This Row],[Year]],6,1),0,(1+CNInflationTable[[#This Row],[Rate1]])^(1/12))) -> 1 | AN12: =IF(CNInflationTable[[#This Row],[6]]>0,(1+CNInflationTable[[#This Row],[Rate1]])^(1/12)*CNInflationTable[[#This Row],[6]],IF(EstLastUpdate>DATE(CNInflationTable[[#This Row],[Year]],7,1),0,(1+CNInflationTable[[#This Row],[Rate1]])^(1/12))) -> 1 | AO12: =IF(CNInflationTable[[#This Row],[7]]>0,(1+CNInflationTable[[#This Row],[Rate1]])^(1/12)*CNInflationTable[[#This Row],[7]],IF(EstLastUpdate>DATE(CNInflationTable[[#This Row],[Year]],8,1),0,(1+CNInflationTable[[#This Row],[Rate1]])^(1/12))) -> 1 | AP12: =IF(CNInflationTable[[#This Row],[8]]>0,(1+CNInflationTable[[#This Row],[Rate1]])^(1/12)*CNInflationTable[[#This Row],[8]],IF(EstLastUpdate>DATE(CNInflationTable[[#This Row],[Year]],9,1),0,(1+CNInflationTable[[#This Row],[Rate1]])^(1/12))) -> 1 | AQ12: =IF(CNInflationTable[[#This Row],[9]]>0,(1+CNInflationTable[[#This Row],[Rate1]])^(1/12)*CNInflationTable[[#This Row],[9]],IF(EstLastUpdate>DATE(CNInflationTable[[#This Row],[Year]],10,1),0,(1+CNInflationTable[[#This Row],[Rate1]])^(1/12))) -> 1 | AR12: =IF(CNInflationTable[[#This Row],[10]]>0,(1+CNInflationTable[[#This Row],[Rate1]])^(1/12)*CNInflationTable[[#This Row],[10]],IF(EstLastUpdate>DATE(CNInflationTable[[#This Row],[Year]],11,1),0,(1+CNInflationTable[[#This Row],[Rate1]])^(1/12))) -> 1 | AS12: =IF(CNInflationTable[[#This Row],[11]]>0,(1+CNInflationTable[[#This Row],[Rate1]])^(1/12)*CNInflationTable[[#This Row],[11]],IF(EstLastUpdate>DATE(CNInflationTable[[#This Row],[Year]],12,1),0,(1+CNInflationTable[[#This Row],[Rate1]])^(1/12))) -> 1 | AU12: =AU11+1 -> 1902 | AV12: 0 | AW12: =IF(OFFSET(UTInflationTable[[#This Row],[12]],-1,0)>0,(1+UTInflationTable[[#This Row],[Rate1]])^(1/12)*OFFSET(UTInflationTable[[#This Row],[12]],-1,0),IF(EstLastUpdate>DATE(UTInflationTable[[#This Row],[Year]],1,1),0,(1+UTInflationTable[[#This Row],[Rate1]])^(1/12))) -> 1 | AX12: =IF(UTInflationTable[[#This Row],[1]]>0,(1+UTInflationTable[[#This Row],[Rate1]])^(1/12)*UTInflationTable[[#This Row],[1]],IF(EstLastUpdate>DATE(UTInflationTable[[#This Row],[Year]],2,1),0,(1+UTInflationTable[[#This Row],[Rate1]])^(1/12))) -> 1 | AY12: =IF(UTInflationTable[[#This Row],[2]]>0,(1+UTInflationTable[[#This Row],[Rate1]])^(1/12)*UTInflationTable[[#This Row],[2]],IF(EstLastUpdate>DATE(UTInflationTable[[#This Row],[Year]],3,1),0,(1+UTInflationTable[[#This Row],[Rate1]])^(1/12))) -> 1 | AZ12: =IF(UTInflationTable[[#This Row],[3]]>0,(1+UTInflationTable[[#This Row],[Rate1]])^(1/12)*UTInflationTable[[#This Row],[3]],IF(EstLastUpdate>DATE(UTInflationTable[[#This Row],[Year]],4,1),0,(1+UTInflationTable[[#This Row],[Rate1]])^(1/12))) -> 1 | BA12: =IF(UTInflationTable[[#This Row],[4]]>0,(1+UTInflationTable[[#This Row],[Rate1]])^(1/12)*UTInflationTable[[#This Row],[4]],IF(EstLastUpdate>DATE(UTInflationTable[[#This Row],[Year]],5,1),0,(1+UTInflationTable[[#This Row],[Rate1]])^(1/12))) -> 1 | BB12: =IF(UTInflationTable[[#This Row],[5]]>0,(1+UTInflationTable[[#This Row],[Rate1]])^(1/12)*UTInflationTable[[#This Row],[5]],IF(EstLastUpdate>DATE(UTInflationTable[[#This Row],[Year]],6,1),0,(1+UTInflationTable[[#This Row],[Rate1]])^(1/12))) -> 1 | BC12: =IF(UTInflationTable[[#This Row],[6]]>0,(1+UTInflationTable[[#This Row],[Rate1]])^(1/12)*UTInflationTable[[#This Row],[6]],IF(EstLastUpdate>DATE(UTInflationTable[[#This Row],[Year]],7,1),0,(1+UTInflationTable[[#This Row],[Rate1]])^(1/12))) -> 1 | BD12: =IF(UTInflationTable[[#This Row],[7]]>0,(1+UTInflationTable[[#This Row],[Rate1]])^(1/12)*UTInflationTable[[#This Row],[7]],IF(EstLastUpdate>DATE(UTInflationTable[[#This Row],[Year]],8,1),0,(1+UTInflationTable[[#This Row],[Rate1]])^(1/12))) -> 1 | BE12: =IF(UTInflationTable[[#This Row],[8]]>0,(1+UTInflationTable[[#This Row],[Rate1]])^(1/12)*UTInflationTable[[#This Row],[8]],IF(EstLastUpdate>DATE(UTInflationTable[[#This Row],[Year]],9,1),0,(1+UTInflationTable[[#This Row],[Rate1]])^(1/12))) -> 1 | BF12: =IF(UTInflationTable[[#This Row],[9]]>0,(1+UTInflationTable[[#This Row],[Rate1]])^(1/12)*UTInflationTable[[#This Row],[9]],IF(EstLastUpdate>DATE(UTInflationTable[[#This Row],[Year]],10,1),0,(1+UTInflationTable[[#This Row],[Rate1]])^(1/12))) -> 1 | BG12: =IF(UTInflationTable[[#This Row],[10]]>0,(1+UTInflationTable[[#This Row],[Rate1]])^(1/12)*UTInflationTable[[#This Row],[10]],IF(EstLastUpdate>DATE(UTInflationTable[[#This Row],[Year]],11,1),0,(1+UTInflationTable[[#This Row],[Rate1]])^(1/12))) -> 1 | BH12: =IF(UTInflationTable[[#This Row],[11]]>0,(1+UTInflationTable[[#This Row],[Rate1]])^(1/12)*UTInflationTable[[#This Row],[11]],IF(EstLastUpdate>DATE(UTInflationTable[[#This Row],[Year]],12,1),0,(1+UTInflationTable[[#This Row],[Rate1]])^(1/12))) -> 1
B13: =OFFSET(PEInflationTable[[#This Row],[Year]],-1,0)+1 -> 1903 | C13: 0 | D13: =IF(OFFSET(PEInflationTable[[#This Row],[12]],-1,0)>0,(1+PEInflationTable[[#This Row],[Rate1]])^(1/12)*OFFSET(PEInflationTable[[#This Row],[12]],-1,0),IF(EstLastUpdate>DATE(PEInflationTable[[#This Row],[Year]],1,1),0,(1+PEInflationTable[[#This Row],[Rate1]])^(1/12))) -> 1 | E13: =IF(PEInflationTable[[#This Row],[1]]>0,(1+PEInflationTable[[#This Row],[Rate1]])^(1/12)*PEInflationTable[[#This Row],[1]],IF(EstLastUpdate>DATE(PEInflationTable[[#This Row],[Year]],2,1),0,(1+PEInflationTable[[#This Row],[Rate1]])^(1/12))) -> 1 | F13: =IF(PEInflationTable[[#This Row],[2]]>0,(1+PEInflationTable[[#This Row],[Rate1]])^(1/12)*PEInflationTable[[#This Row],[2]],IF(EstLastUpdate>DATE(PEInflationTable[[#This Row],[Year]],3,1),0,(1+PEInflationTable[[#This Row],[Rate1]])^(1/12))) -> 1 | G13: =IF(PEInflationTable[[#This Row],[3]]>0,(1+PEInflationTable[[#This Row],[Rate1]])^(1/12)*PEInflationTable[[#This Row],[3]],IF(EstLastUpdate>DATE(PEInflationTable[[#This Row],[Year]],4,1),0,(1+PEInflationTable[[#This Row],[Rate1]])^(1/12))) -> 1 | H13: =IF(PEInflationTable[[#This Row],[4]]>0,(1+PEInflationTable[[#This Row],[Rate1]])^(1/12)*PEInflationTable[[#This Row],[4]],IF(EstLastUpdate>DATE(PEInflationTable[[#This Row],[Year]],5,1),0,(1+PEInflationTable[[#This Row],[Rate1]])^(1/12))) -> 1 | I13: =IF(PEInflationTable[[#This Row],[5]]>0,(1+PEInflationTable[[#This Row],[Rate1]])^(1/12)*PEInflationTable[[#This Row],[5]],IF(EstLastUpdate>DATE(PEInflationTable[[#This Row],[Year]],6,1),0,(1+PEInflationTable[[#This Row],[Rate1]])^(1/12))) -> 1 | J13: =IF(PEInflationTable[[#This Row],[6]]>0,(1+PEInflationTable[[#This Row],[Rate1]])^(1/12)*PEInflationTable[[#This Row],[6]],IF(EstLastUpdate>DATE(PEInflationTable[[#This Row],[Year]],7,1),0,(1+PEInflationTable[[#This Row],[Rate1]])^(1/12))) -> 1 | K13: =IF(PEInflationTable[[#This Row],[7]]>0,(1+PEInflationTable[[#This Row],[Rate1]])^(1/12)*PEInflationTable[[#This Row],[7]],IF(EstLastUpdate>DATE(PEInflationTable[[#This Row],[Year]],8,1),0,(1+PEInflationTable[[#This Row],[Rate1]])^(1/12))) -> 1 | L13: =IF(PEInflationTable[[#This Row],[8]]>0,(1+PEInflationTable[[#This Row],[Rate1]])^(1/12)*PEInflationTable[[#This Row],[8]],IF(EstLastUpdate>DATE(PEInflationTable[[#This Row],[Year]],9,1),0,(1+PEInflationTable[[#This Row],[Rate1]])^(1/12))) -> 1 | M13: =IF(PEInflationTable[[#This Row],[9]]>0,(1+PEInflationTable[[#This Row],[Rate1]])^(1/12)*PEInflationTable[[#This Row],[9]],IF(EstLastUpdate>DATE(PEInflationTable[[#This Row],[Year]],10,1),0,(1+PEInflationTable[[#This Row],[Rate1]])^(1/12))) -> 1 | N13: =IF(PEInflationTable[[#This Row],[10]]>0,(1+PEInflationTable[[#This Row],[Rate1]])^(1/12)*PEInflationTable[[#This Row],[10]],IF(EstLastUpdate>DATE(PEInflationTable[[#This Row],[Year]],11,1),0,(1+PEInflationTable[[#This Row],[Rate1]])^(1/12))) -> 1 | O13: =IF(PEInflationTable[[#This Row],[11]]>0,(1+PEInflationTable[[#This Row],[Rate1]])^(1/12)*PEInflationTable[[#This Row],[11]],IF(EstLastUpdate>DATE(PEInflationTable[[#This Row],[Year]],12,1),0,(1+PEInflationTable[[#This Row],[Rate1]])^(1/12))) -> 1 | Q13: 1903 | R13: 0 | S13: =IF(OFFSET(ROWInflationTable[[#This Row],[12]],-1,0)>0,(1+ROWInflationTable[[#This Row],[Rate1]])^(1/12)*OFFSET(ROWInflationTable[[#This Row],[12]],-1,0),IF(EstLastUpdate>DATE(ROWInflationTable[[#This Row],[Year]],1,1),0,(1+ROWInflationTable[[#This Row],[Rate1]])^(1/12))) -> 1 | T13: =IF(ROWInflationTable[[#This Row],[1]]>0,(1+ROWInflationTable[[#This Row],[Rate1]])^(1/12)*ROWInflationTable[[#This Row],[1]],IF(EstLastUpdate>DATE(ROWInflationTable[[#This Row],[Year]],2,1),0,(1+ROWInflationTable[[#This Row],[Rate1]])^(1/12))) -> 1 | U13: =IF(ROWInflationTable[[#This Row],[2]]>0,(1+ROWInflationTable[[#This Row],[Rate1]])^(1/12)*ROWInflationTable[[#This Row],[2]],IF(EstLastUpdate>DATE(ROWInflationTable[[#This Row],[Year]],3,1),0,(1+ROWInflationTable[[#This Row],[Rate1]])^(1/12))) -> 1 | V13: =IF(ROWInflationTable[[#This Row],[3]]>0,(1+ROWInflationTable[[#This Row],[Rate1]])^(1/12)*ROWInflationTable[[#This Row],[3]],IF(EstLastUpdate>DATE(ROWInflationTable[[#This Row],[Year]],4,1),0,(1+ROWInflationTable[[#This Row],[Rate1]])^(1/12))) -> 1 | W13: =IF(ROWInflationTable[[#This Row],[4]]>0,(1+ROWInflationTable[[#This Row],[Rate1]])^(1/12)*ROWInflationTable[[#This Row],[4]],IF(EstLastUpdate>DATE(ROWInflationTable[[#This Row],[Year]],5,1),0,(1+ROWInflationTable[[#This Row],[Rate1]])^(1/12))) -> 1 | X13: =IF(ROWInflationTable[[#This Row],[5]]>0,(1+ROWInflationTable[[#This Row],[Rate1]])^(1/12)*ROWInflationTable[[#This Row],[5]],IF(EstLastUpdate>DATE(ROWInflationTable[[#This Row],[Year]],6,1),0,(1+ROWInflationTable[[#This Row],[Rate1]])^(1/12))) -> 1 | Y13: =IF(ROWInflationTable[[#This Row],[6]]>0,(1+ROWInflationTable[[#This Row],[Rate1]])^(1/12)*ROWInflationTable[[#This Row],[6]],IF(EstLastUpdate>DATE(ROWInflationTable[[#This Row],[Year]],7,1),0,(1+ROWInflationTable[[#This Row],[Rate1]])^(1/12))) -> 1 | Z13: =IF(ROWInflationTable[[#This Row],[7]]>0,(1+ROWInflationTable[[#This Row],[Rate1]])^(1/12)*ROWInflationTable[[#This Row],[7]],IF(EstLastUpdate>DATE(ROWInflationTable[[#This Row],[Year]],8,1),0,(1+ROWInflationTable[[#This Row],[Rate1]])^(1/12))) -> 1 | AA13: =IF(ROWInflationTable[[#This Row],[8]]>0,(1+ROWInflationTable[[#This Row],[Rate1]])^(1/12)*ROWInflationTable[[#This Row],[8]],IF(EstLastUpdate>DATE(ROWInflationTable[[#This Row],[Year]],9,1),0,(1+ROWInflationTable[[#This Row],[Rate1]])^(1/12))) -> 1 | AB13: =IF(ROWInflationTable[[#This Row],[9]]>0,(1+ROWInflationTable[[#This Row],[Rate1]])^(1/12)*ROWInflationTable[[#This Row],[9]],IF(EstLastUpdate>DATE(ROWInflationTable[[#This Row],[Year]],10,1),0,(1+ROWInflationTable[[#This Row],[Rate1]])^(1/12))) -> 1 | AC13: =IF(ROWInflationTable[[#This Row],[10]]>0,(1+ROWInflationTable[[#This Row],[Rate1]])^(1/12)*ROWInflationTable[[#This Row],[10]],IF(EstLastUpdate>DATE(ROWInflationTable[[#This Row],[Year]],11,1),0,(1+ROWInflationTable[[#This Row],[Rate1]])^(1/12))) -> 1 | AD13: =IF(ROWInflationTable[[#This Row],[11]]>0,(1+ROWInflationTable[[#This Row],[Rate1]])^(1/12)*ROWInflationTable[[#This Row],[11]],IF(EstLastUpdate>DATE(ROWInflationTable[[#This Row],[Year]],12,1),0,(1+ROWInflationTable[[#This Row],[Rate1]])^(1/12))) -> 1 | AF13: 1903 | AG13: 0 | AH13: =IF(OFFSET(CNInflationTable[[#This Row],[12]],-1,0)>0,(1+CNInflationTable[[#This Row],[Rate1]])^(1/12)*OFFSET(CNInflationTable[[#This Row],[12]],-1,0),IF(EstLastUpdate>DATE(CNInflationTable[[#This Row],[Year]],1,1),0,(1+CNInflationTable[[#This Row],[Rate1]])^(1/12))) -> 1 | AI13: =IF(CNInflationTable[[#This Row],[1]]>0,(1+CNInflationTable[[#This Row],[Rate1]])^(1/12)*CNInflationTable[[#This Row],[1]],IF(EstLastUpdate>DATE(CNInflationTable[[#This Row],[Year]],2,1),0,(1+CNInflationTable[[#This Row],[Rate1]])^(1/12))) -> 1 | AJ13: =IF(CNInflationTable[[#This Row],[2]]>0,(1+CNInflationTable[[#This Row],[Rate1]])^(1/12)*CNInflationTable[[#This Row],[2]],IF(EstLastUpdate>DATE(CNInflationTable[[#This Row],[Year]],3,1),0,(1+CNInflationTable[[#This Row],[Rate1]])^(1/12))) -> 1 | AK13: =IF(CNInflationTable[[#This Row],[3]]>0,(1+CNInflationTable[[#This Row],[Rate1]])^(1/12)*CNInflationTable[[#This Row],[3]],IF(EstLastUpdate>DATE(CNInflationTable[[#This Row],[Year]],4,1),0,(1+CNInflationTable[[#This Row],[Rate1]])^(1/12))) -> 1 | AL13: =IF(CNInflationTable[[#This Row],[4]]>0,(1+CNInflationTable[[#This Row],[Rate1]])^(1/12)*CNInflationTable[[#This Row],[4]],IF(EstLastUpdate>DATE(CNInflationTable[[#This Row],[Year]],5,1),0,(1+CNInflationTable[[#This Row],[Rate1]])^(1/12))) -> 1 | AM13: =IF(CNInflationTable[[#This Row],[5]]>0,(1+CNInflationTable[[#This Row],[Rate1]])^(1/12)*CNInflationTable[[#This Row],[5]],IF(EstLastUpdate>DATE(CNInflationTable[[#This Row],[Year]],6,1),0,(1+CNInflationTable[[#This Row],[Rate1]])^(1/12))) -> 1 | AN13: =IF(CNInflationTable[[#This Row],[6]]>0,(1+CNInflationTable[[#This Row],[Rate1]])^(1/12)*CNInflationTable[[#This Row],[6]],IF(EstLastUpdate>DATE(CNInflationTable[[#This Row],[Year]],7,1),0,(1+CNInflationTable[[#This Row],[Rate1]])^(1/12))) -> 1 | AO13: =IF(CNInflationTable[[#This Row],[7]]>0,(1+CNInflationTable[[#This Row],[Rate1]])^(1/12)*CNInflationTable[[#This Row],[7]],IF(EstLastUpdate>DATE(CNInflationTable[[#This Row],[Year]],8,1),0,(1+CNInflationTable[[#This Row],[Rate1]])^(1/12))) -> 1 | AP13: =IF(CNInflationTable[[#This Row],[8]]>0,(1+CNInflationTable[[#This Row],[Rate1]])^(1/12)*CNInflationTable[[#This Row],[8]],IF(EstLastUpdate>DATE(CNInflationTable[[#This Row],[Year]],9,1),0,(1+CNInflationTable[[#This Row],[Rate1]])^(1/12))) -> 1 | AQ13: =IF(CNInflationTable[[#This Row],[9]]>0,(1+CNInflationTable[[#This Row],[Rate1]])^(1/12)*CNInflationTable[[#This Row],[9]],IF(EstLastUpdate>DATE(CNInflationTable[[#This Row],[Year]],10,1),0,(1+CNInflationTable[[#This Row],[Rate1]])^(1/12))) -> 1 | AR13: =IF(CNInflationTable[[#This Row],[10]]>0,(1+CNInflationTable[[#This Row],[Rate1]])^(1/12)*CNInflationTable[[#This Row],[10]],IF(EstLastUpdate>DATE(CNInflationTable[[#This Row],[Year]],11,1),0,(1+CNInflationTable[[#This Row],[Rate1]])^(1/12))) -> 1 | AS13: =IF(CNInflationTable[[#This Row],[11]]>0,(1+CNInflationTable[[#This Row],[Rate1]])^(1/12)*CNInflationTable[[#This Row],[11]],IF(EstLastUpdate>DATE(CNInflationTable[[#This Row],[Year]],12,1),0,(1+CNInflationTable[[#This Row],[Rate1]])^(1/12))) -> 1 | AU13: 1903 | AV13: 0 | AW13: =IF(OFFSET(UTInflationTable[[#This Row],[12]],-1,0)>0,(1+UTInflationTable[[#This Row],[Rate1]])^(1/12)*OFFSET(UTInflationTable[[#This Row],[12]],-1,0),IF(EstLastUpdate>DATE(UTInflationTable[[#This Row],[Year]],1,1),0,(1+UTInflationTable[[#This Row],[Rate1]])^(1/12))) -> 1 | AX13: =IF(UTInflationTable[[#This Row],[1]]>0,(1+UTInflationTable[[#This Row],[Rate1]])^(1/12)*UTInflationTable[[#This Row],[1]],IF(EstLastUpdate>DATE(UTInflationTable[[#This Row],[Year]],2,1),0,(1+UTInflationTable[[#This Row],[Rate1]])^(1/12))) -> 1 | AY13: =IF(UTInflationTable[[#This Row],[2]]>0,(1+UTInflationTable[[#This Row],[Rate1]])^(1/12)*UTInflationTable[[#This Row],[2]],IF(EstLastUpdate>DATE(UTInflationTable[[#This Row],[Year]],3,1),0,(1+UTInflationTable[[#This Row],[Rate1]])^(1/12))) -> 1 | AZ13: =IF(UTInflationTable[[#This Row],[3]]>0,(1+UTInflationTable[[#This Row],[Rate1]])^(1/12)*UTInflationTable[[#This Row],[3]],IF(EstLastUpdate>DATE(UTInflationTable[[#This Row],[Year]],4,1),0,(1+UTInflationTable[[#This Row],[Rate1]])^(1/12))) -> 1 | BA13: =IF(UTInflationTable[[#This Row],[4]]>0,(1+UTInflationTable[[#This Row],[Rate1]])^(1/12)*UTInflationTable[[#This Row],[4]],IF(EstLastUpdate>DATE(UTInflationTable[[#This Row],[Year]],5,1),0,(1+UTInflationTable[[#This Row],[Rate1]])^(1/12))) -> 1 | BB13: =IF(UTInflationTable[[#This Row],[5]]>0,(1+UTInflationTable[[#This Row],[Rate1]])^(1/12)*UTInflationTable[[#This Row],[5]],IF(EstLastUpdate>DATE(UTInflationTable[[#This Row],[Year]],6,1),0,(1+UTInflationTable[[#This Row],[Rate1]])^(1/12))) -> 1 | BC13: =IF(UTInflationTable[[#This Row],[6]]>0,(1+UTInflationTable[[#This Row],[Rate1]])^(1/12)*UTInflationTable[[#This Row],[6]],IF(EstLastUpdate>DATE(UTInflationTable[[#This Row],[Year]],7,1),0,(1+UTInflationTable[[#This Row],[Rate1]])^(1/12))) -> 1 | BD13: =IF(UTInflationTable[[#This Row],[7]]>0,(1+UTInflationTable[[#This Row],[Rate1]])^(1/12)*UTInflationTable[[#This Row],[7]],IF(EstLastUpdate>DATE(UTInflationTable[[#This Row],[Year]],8,1),0,(1+UTInflationTable[[#This Row],[Rate1]])^(1/12))) -> 1 | BE13: =IF(UTInflationTable[[#This Row],[8]]>0,(1+UTInflationTable[[#This Row],[Rate1]])^(1/12)*UTInflationTable[[#This Row],[8]],IF(EstLastUpdate>DATE(UTInflationTable[[#This Row],[Year]],9,1),0,(1+UTInflationTable[[#This Row],[Rate1]])^(1/12))) -> 1 | BF13: =IF(UTInflationTable[[#This Row],[9]]>0,(1+UTInflationTable[[#This Row],[Rate1]])^(1/12)*UTInflationTable[[#This Row],[9]],IF(EstLastUpdate>DATE(UTInflationTable[[#This Row],[Year]],10,1),0,(1+UTInflationTable[[#This Row],[Rate1]])^(1/12))) -> 1 | BG13: =IF(UTInflationTable[[#This Row],[10]]>0,(1+UTInflationTable[[#This Row],[Rate1]])^(1/12)*UTInflationTable[[#This Row],[10]],IF(EstLastUpdate>DATE(UTInflationTable[[#This Row],[Year]],11,1),0,(1+UTInflationTable[[#This Row],[Rate1]])^(1/12))) -> 1 | BH13: =IF(UTInflationTable[[#This Row],[11]]>0,(1+UTInflationTable[[#This Row],[Rate1]])^(1/12)*UTInflationTable[[#This Row],[11]],IF(EstLastUpdate>DATE(UTInflationTable[[#This Row],[Year]],12,1),0,(1+UTInflationTable[[#This Row],[Rate1]])^(1/12))) -> 1
B14: =OFFSET(PEInflationTable[[#This Row],[Year]],-1,0)+1 -> 1904 | C14: 0 | D14: =IF(OFFSET(PEInflationTable[[#This Row],[12]],-1,0)>0,(1+PEInflationTable[[#This Row],[Rate1]])^(1/12)*OFFSET(PEInflationTable[[#This Row],[12]],-1,0),IF(EstLastUpdate>DATE(PEInflationTable[[#This Row],[Year]],1,1),0,(1+PEInflationTable[[#This Row],[Rate1]])^(1/12))) -> 1 | E14: =IF(PEInflationTable[[#This Row],[1]]>0,(1+PEInflationTable[[#This Row],[Rate1]])^(1/12)*PEInflationTable[[#This Row],[1]],IF(EstLastUpdate>DATE(PEInflationTable[[#This Row],[Year]],2,1),0,(1+PEInflationTable[[#This Row],[Rate1]])^(1/12))) -> 1 | F14: =IF(PEInflationTable[[#This Row],[2]]>0,(1+PEInflationTable[[#This Row],[Rate1]])^(1/12)*PEInflationTable[[#This Row],[2]],IF(EstLastUpdate>DATE(PEInflationTable[[#This Row],[Year]],3,1),0,(1+PEInflationTable[[#This Row],[Rate1]])^(1/12))) -> 1 | G14: =IF(PEInflationTable[[#This Row],[3]]>0,(1+PEInflationTable[[#This Row],[Rate1]])^(1/12)*PEInflationTable[[#This Row],[3]],IF(EstLastUpdate>DATE(PEInflationTable[[#This Row],[Year]],4,1),0,(1+PEInflationTable[[#This Row],[Rate1]])^(1/12))) -> 1 | H14: =IF(PEInflationTable[[#This Row],[4]]>0,(1+PEInflationTable[[#This Row],[Rate1]])^(1/12)*PEInflationTable[[#This Row],[4]],IF(EstLastUpdate>DATE(PEInflationTable[[#This Row],[Year]],5,1),0,(1+PEInflationTable[[#This Row],[Rate1]])^(1/12))) -> 1 | I14: =IF(PEInflationTable[[#This Row],[5]]>0,(1+PEInflationTable[[#This Row],[Rate1]])^(1/12)*PEInflationTable[[#This Row],[5]],IF(EstLastUpdate>DATE(PEInflationTable[[#This Row],[Year]],6,1),0,(1+PEInflationTable[[#This Row],[Rate1]])^(1/12))) -> 1 | J14: =IF(PEInflationTable[[#This Row],[6]]>0,(1+PEInflationTable[[#This Row],[Rate1]])^(1/12)*PEInflationTable[[#This Row],[6]],IF(EstLastUpdate>DATE(PEInflationTable[[#This Row],[Year]],7,1),0,(1+PEInflationTable[[#This Row],[Rate1]])^(1/12))) -> 1 | K14: =IF(PEInflationTable[[#This Row],[7]]>0,(1+PEInflationTable[[#This Row],[Rate1]])^(1/12)*PEInflationTable[[#This Row],[7]],IF(EstLastUpdate>DATE(PEInflationTable[[#This Row],[Year]],8,1),0,(1+PEInflationTable[[#This Row],[Rate1]])^(1/12))) -> 1 | L14: =IF(PEInflationTable[[#This Row],[8]]>0,(1+PEInflationTable[[#This Row],[Rate1]])^(1/12)*PEInflationTable[[#This Row],[8]],IF(EstLastUpdate>DATE(PEInflationTable[[#This Row],[Year]],9,1),0,(1+PEInflationTable[[#This Row],[Rate1]])^(1/12))) -> 1 | M14: =IF(PEInflationTable[[#This Row],[9]]>0,(1+PEInflationTable[[#This Row],[Rate1]])^(1/12)*PEInflationTable[[#This Row],[9]],IF(EstLastUpdate>DATE(PEInflationTable[[#This Row],[Year]],10,1),0,(1+PEInflationTable[[#This Row],[Rate1]])^(1/12))) -> 1 | N14: =IF(PEInflationTable[[#This Row],[10]]>0,(1+PEInflationTable[[#This Row],[Rate1]])^(1/12)*PEInflationTable[[#This Row],[10]],IF(EstLastUpdate>DATE(PEInflationTable[[#This Row],[Year]],11,1),0,(1+PEInflationTable[[#This Row],[Rate1]])^(1/12))) -> 1 | O14: =IF(PEInflationTable[[#This Row],[11]]>0,(1+PEInflationTable[[#This Row],[Rate1]])^(1/12)*PEInflationTable[[#This Row],[11]],IF(EstLastUpdate>DATE(PEInflationTable[[#This Row],[Year]],12,1),0,(1+PEInflationTable[[#This Row],[Rate1]])^(1/12))) -> 1 | Q14: 1904 | R14: 0 | S14: =IF(OFFSET(ROWInflationTable[[#This Row],[12]],-1,0)>0,(1+ROWInflationTable[[#This Row],[Rate1]])^(1/12)*OFFSET(ROWInflationTable[[#This Row],[12]],-1,0),IF(EstLastUpdate>DATE(ROWInflationTable[[#This Row],[Year]],1,1),0,(1+ROWInflationTable[[#This Row],[Rate1]])^(1/12))) -> 1 | T14: =IF(ROWInflationTable[[#This Row],[1]]>0,(1+ROWInflationTable[[#This Row],[Rate1]])^(1/12)*ROWInflationTable[[#This Row],[1]],IF(EstLastUpdate>DATE(ROWInflationTable[[#This Row],[Year]],2,1),0,(1+ROWInflationTable[[#This Row],[Rate1]])^(1/12))) -> 1 | U14: =IF(ROWInflationTable[[#This Row],[2]]>0,(1+ROWInflationTable[[#This Row],[Rate1]])^(1/12)*ROWInflationTable[[#This Row],[2]],IF(EstLastUpdate>DATE(ROWInflationTable[[#This Row],[Year]],3,1),0,(1+ROWInflationTable[[#This Row],[Rate1]])^(1/12))) -> 1 | V14: =IF(ROWInflationTable[[#This Row],[3]]>0,(1+ROWInflationTable[[#This Row],[Rate1]])^(1/12)*ROWInflationTable[[#This Row],[3]],IF(EstLastUpdate>DATE(ROWInflationTable[[#This Row],[Year]],4,1),0,(1+ROWInflationTable[[#This Row],[Rate1]])^(1/12))) -> 1 | W14: =IF(ROWInflationTable[[#This Row],[4]]>0,(1+ROWInflationTable[[#This Row],[Rate1]])^(1/12)*ROWInflationTable[[#This Row],[4]],IF(EstLastUpdate>DATE(ROWInflationTable[[#This Row],[Year]],5,1),0,(1+ROWInflationTable[[#This Row],[Rate1]])^(1/12))) -> 1 | X14: =IF(ROWInflationTable[[#This Row],[5]]>0,(1+ROWInflationTable[[#This Row],[Rate1]])^(1/12)*ROWInflationTable[[#This Row],[5]],IF(EstLastUpdate>DATE(ROWInflationTable[[#This Row],[Year]],6,1),0,(1+ROWInflationTable[[#This Row],[Rate1]])^(1/12))) -> 1 | Y14: =IF(ROWInflationTable[[#This Row],[6]]>0,(1+ROWInflationTable[[#This Row],[Rate1]])^(1/12)*ROWInflationTable[[#This Row],[6]],IF(EstLastUpdate>DATE(ROWInflationTable[[#This Row],[Year]],7,1),0,(1+ROWInflationTable[[#This Row],[Rate1]])^(1/12))) -> 1 | Z14: =IF(ROWInflationTable[[#This Row],[7]]>0,(1+ROWInflationTable[[#This Row],[Rate1]])^(1/12)*ROWInflationTable[[#This Row],[7]],IF(EstLastUpdate>DATE(ROWInflationTable[[#This Row],[Year]],8,1),0,(1+ROWInflationTable[[#This Row],[Rate1]])^(1/12))) -> 1 | AA14: =IF(ROWInflationTable[[#This Row],[8]]>0,(1+ROWInflationTable[[#This Row],[Rate1]])^(1/12)*ROWInflationTable[[#This Row],[8]],IF(EstLastUpdate>DATE(ROWInflationTable[[#This Row],[Year]],9,1),0,(1+ROWInflationTable[[#This Row],[Rate1]])^(1/12))) -> 1 | AB14: =IF(ROWInflationTable[[#This Row],[9]]>0,(1+ROWInflationTable[[#This Row],[Rate1]])^(1/12)*ROWInflationTable[[#This Row],[9]],IF(EstLastUpdate>DATE(ROWInflationTable[[#This Row],[Year]],10,1),0,(1+ROWInflationTable[[#This Row],[Rate1]])^(1/12))) -> 1 | AC14: =IF(ROWInflationTable[[#This Row],[10]]>0,(1+ROWInflationTable[[#This Row],[Rate1]])^(1/12)*ROWInflationTable[[#This Row],[10]],IF(EstLastUpdate>DATE(ROWInflationTable[[#This Row],[Year]],11,1),0,(1+ROWInflationTable[[#This Row],[Rate1]])^(1/12))) -> 1 | AD14: =IF(ROWInflationTable[[#This Row],[11]]>0,(1+ROWInflationTable[[#This Row],[Rate1]])^(1/12)*ROWInflationTable[[#This Row],[11]],IF(EstLastUpdate>DATE(ROWInflationTable[[#This Row],[Year]],12,1),0,(1+ROWInflationTable[[#This Row],[Rate1]])^(1/12))) -> 1 | AF14: 1904 | AG14: 0 | AH14: =IF(OFFSET(CNInflationTable[[#This Row],[12]],-1,0)>0,(1+CNInflationTable[[#This Row],[Rate1]])^(1/12)*OFFSET(CNInflationTable[[#This Row],[12]],-1,0),IF(EstLastUpdate>DATE(CNInflationTable[[#This Row],[Year]],1,1),0,(1+CNInflationTable[[#This Row],[Rate1]])^(1/12))) -> 1 | AI14: =IF(CNInflationTable[[#This Row],[1]]>0,(1+CNInflationTable[[#This Row],[Rate1]])^(1/12)*CNInflationTable[[#This Row],[1]],IF(EstLastUpdate>DATE(CNInflationTable[[#This Row],[Year]],2,1),0,(1+CNInflationTable[[#This Row],[Rate1]])^(1/12))) -> 1 | AJ14: =IF(CNInflationTable[[#This Row],[2]]>0,(1+CNInflationTable[[#This Row],[Rate1]])^(1/12)*CNInflationTable[[#This Row],[2]],IF(EstLastUpdate>DATE(CNInflationTable[[#This Row],[Year]],3,1),0,(1+CNInflationTable[[#This Row],[Rate1]])^(1/12))) -> 1 | AK14: =IF(CNInflationTable[[#This Row],[3]]>0,(1+CNInflationTable[[#This Row],[Rate1]])^(1/12)*CNInflationTable[[#This Row],[3]],IF(EstLastUpdate>DATE(CNInflationTable[[#This Row],[Year]],4,1),0,(1+CNInflationTable[[#This Row],[Rate1]])^(1/12))) -> 1 | AL14: =IF(CNInflationTable[[#This Row],[4]]>0,(1+CNInflationTable[[#This Row],[Rate1]])^(1/12)*CNInflationTable[[#This Row],[4]],IF(EstLastUpdate>DATE(CNInflationTable[[#This Row],[Year]],5,1),0,(1+CNInflationTable[[#This Row],[Rate1]])^(1/12))) -> 1 | AM14: =IF(CNInflationTable[[#This Row],[5]]>0,(1+CNInflationTable[[#This Row],[Rate1]])^(1/12)*CNInflationTable[[#This Row],[5]],IF(EstLastUpdate>DATE(CNInflationTable[[#This Row],[Year]],6,1),0,(1+CNInflationTable[[#This Row],[Rate1]])^(1/12))) -> 1 | AN14: =IF(CNInflationTable[[#This Row],[6]]>0,(1+CNInflationTable[[#This Row],[Rate1]])^(1/12)*CNInflationTable[[#This Row],[6]],IF(EstLastUpdate>DATE(CNInflationTable[[#This Row],[Year]],7,1),0,(1+CNInflationTable[[#This Row],[Rate1]])^(1/12))) -> 1 | AO14: =IF(CNInflationTable[[#This Row],[7]]>0,(1+CNInflationTable[[#This Row],[Rate1]])^(1/12)*CNInflationTable[[#This Row],[7]],IF(EstLastUpdate>DATE(CNInflationTable[[#This Row],[Year]],8,1),0,(1+CNInflationTable[[#This Row],[Rate1]])^(1/12))) -> 1 | AP14: =IF(CNInflationTable[[#This Row],[8]]>0,(1+CNInflationTable[[#This Row],[Rate1]])^(1/12)*CNInflationTable[[#This Row],[8]],IF(EstLastUpdate>DATE(CNInflationTable[[#This Row],[Year]],9,1),0,(1+CNInflationTable[[#This Row],[Rate1]])^(1/12))) -> 1 | AQ14: =IF(CNInflationTable[[#This Row],[9]]>0,(1+CNInflationTable[[#This Row],[Rate1]])^(1/12)*CNInflationTable[[#This Row],[9]],IF(EstLastUpdate>DATE(CNInflationTable[[#This Row],[Year]],10,1),0,(1+CNInflationTable[[#This Row],[Rate1]])^(1/12))) -> 1 | AR14: =IF(CNInflationTable[[#This Row],[10]]>0,(1+CNInflationTable[[#This Row],[Rate1]])^(1/12)*CNInflationTable[[#This Row],[10]],IF(EstLastUpdate>DATE(CNInflationTable[[#This Row],[Year]],11,1),0,(1+CNInflationTable[[#This Row],[Rate1]])^(1/12))) -> 1 | AS14: =IF(CNInflationTable[[#This Row],[11]]>0,(1+CNInflationTable[[#This Row],[Rate1]])^(1/12)*CNInflationTable[[#This Row],[11]],IF(EstLastUpdate>DATE(CNInflationTable[[#This Row],[Year]],12,1),0,(1+CNInflationTable[[#This Row],[Rate1]])^(1/12))) -> 1 | AU14: 1904 | AV14: 0 | AW14: =IF(OFFSET(UTInflationTable[[#This Row],[12]],-1,0)>0,(1+UTInflationTable[[#This Row],[Rate1]])^(1/12)*OFFSET(UTInflationTable[[#This Row],[12]],-1,0),IF(EstLastUpdate>DATE(UTInflationTable[[#This Row],[Year]],1,1),0,(1+UTInflationTable[[#This Row],[Rate1]])^(1/12))) -> 1 | AX14: =IF(UTInflationTable[[#This Row],[1]]>0,(1+UTInflationTable[[#This Row],[Rate1]])^(1/12)*UTInflationTable[[#This Row],[1]],IF(EstLastUpdate>DATE(UTInflationTable[[#This Row],[Year]],2,1),0,(1+UTInflationTable[[#This Row],[Rate1]])^(1/12))) -> 1 | AY14: =IF(UTInflationTable[[#This Row],[2]]>0,(1+UTInflationTable[[#This Row],[Rate1]])^(1/12)*UTInflationTable[[#This Row],[2]],IF(EstLastUpdate>DATE(UTInflationTable[[#This Row],[Year]],3,1),0,(1+UTInflationTable[[#This Row],[Rate1]])^(1/12))) -> 1 | AZ14: =IF(UTInflationTable[[#This Row],[3]]>0,(1+UTInflationTable[[#This Row],[Rate1]])^(1/12)*UTInflationTable[[#This Row],[3]],IF(EstLastUpdate>DATE(UTInflationTable[[#This Row],[Year]],4,1),0,(1+UTInflationTable[[#This Row],[Rate1]])^(1/12))) -> 1 | BA14: =IF(UTInflationTable[[#This Row],[4]]>0,(1+UTInflationTable[[#This Row],[Rate1]])^(1/12)*UTInflationTable[[#This Row],[4]],IF(EstLastUpdate>DATE(UTInflationTable[[#This Row],[Year]],5,1),0,(1+UTInflationTable[[#This Row],[Rate1]])^(1/12))) -> 1 | BB14: =IF(UTInflationTable[[#This Row],[5]]>0,(1+UTInflationTable[[#This Row],[Rate1]])^(1/12)*UTInflationTable[[#This Row],[5]],IF(EstLastUpdate>DATE(UTInflationTable[[#This Row],[Year]],6,1),0,(1+UTInflationTable[[#This Row],[Rate1]])^(1/12))) -> 1 | BC14: =IF(UTInflationTable[[#This Row],[6]]>0,(1+UTInflationTable[[#This Row],[Rate1]])^(1/12)*UTInflationTable[[#This Row],[6]],IF(EstLastUpdate>DATE(UTInflationTable[[#This Row],[Year]],7,1),0,(1+UTInflationTable[[#This Row],[Rate1]])^(1/12))) -> 1 | BD14: =IF(UTInflationTable[[#This Row],[7]]>0,(1+UTInflationTable[[#This Row],[Rate1]])^(1/12)*UTInflationTable[[#This Row],[7]],IF(EstLastUpdate>DATE(UTInflationTable[[#This Row],[Year]],8,1),0,(1+UTInflationTable[[#This Row],[Rate1]])^(1/12))) -> 1 | BE14: =IF(UTInflationTable[[#This Row],[8]]>0,(1+UTInflationTable[[#This Row],[Rate1]])^(1/12)*UTInflationTable[[#This Row],[8]],IF(EstLastUpdate>DATE(UTInflationTable[[#This Row],[Year]],9,1),0,(1+UTInflationTable[[#This Row],[Rate1]])^(1/12))) -> 1 | BF14: =IF(UTInflationTable[[#This Row],[9]]>0,(1+UTInflationTable[[#This Row],[Rate1]])^(1/12)*UTInflationTable[[#This Row],[9]],IF(EstLastUpdate>DATE(UTInflationTable[[#This Row],[Year]],10,1),0,(1+UTInflationTable[[#This Row],[Rate1]])^(1/12))) -> 1 | BG14: =IF(UTInflationTable[[#This Row],[10]]>0,(1+UTInflationTable[[#This Row],[Rate1]])^(1/12)*UTInflationTable[[#This Row],[10]],IF(EstLastUpdate>DATE(UTInflationTable[[#This Row],[Year]],11,1),0,(1+UTInflationTable[[#This Row],[Rate1]])^(1/12))) -> 1 | BH14: =IF(UTInflationTable[[#This Row],[11]]>0,(1+UTInflationTable[[#This Row],[Rate1]])^(1/12)*UTInflationTable[[#This Row],[11]],IF(EstLastUpdate>DATE(UTInflationTable[[#This Row],[Year]],12,1),0,(1+UTInflationTable[[#This Row],[Rate1]])^(1/12))) -> 1
B15: =OFFSET(PEInflationTable[[#This Row],[Year]],-1,0)+1 -> 1905 | C15: 0 | D15: =IF(OFFSET(PEInflationTable[[#This Row],[12]],-1,0)>0,(1+PEInflationTable[[#This Row],[Rate1]])^(1/12)*OFFSET(PEInflationTable[[#This Row],[12]],-1,0),IF(EstLastUpdate>DATE(PEInflationTable[[#This Row],[Year]],1,1),0,(1+PEInflationTable[[#This Row],[Rate1]])^(1/12))) -> 1 | E15: =IF(PEInflationTable[[#This Row],[1]]>0,(1+PEInflationTable[[#This Row],[Rate1]])^(1/12)*PEInflationTable[[#This Row],[1]],IF(EstLastUpdate>DATE(PEInflationTable[[#This Row],[Year]],2,1),0,(1+PEInflationTable[[#This Row],[Rate1]])^(1/12))) -> 1 | F15: =IF(PEInflationTable[[#This Row],[2]]>0,(1+PEInflationTable[[#This Row],[Rate1]])^(1/12)*PEInflationTable[[#This Row],[2]],IF(EstLastUpdate>DATE(PEInflationTable[[#This Row],[Year]],3,1),0,(1+PEInflationTable[[#This Row],[Rate1]])^(1/12))) -> 1 | G15: =IF(PEInflationTable[[#This Row],[3]]>0,(1+PEInflationTable[[#This Row],[Rate1]])^(1/12)*PEInflationTable[[#This Row],[3]],IF(EstLastUpdate>DATE(PEInflationTable[[#This Row],[Year]],4,1),0,(1+PEInflationTable[[#This Row],[Rate1]])^(1/12))) -> 1 | H15: =IF(PEInflationTable[[#This Row],[4]]>0,(1+PEInflationTable[[#This Row],[Rate1]])^(1/12)*PEInflationTable[[#This Row],[4]],IF(EstLastUpdate>DATE(PEInflationTable[[#This Row],[Year]],5,1),0,(1+PEInflationTable[[#This Row],[Rate1]])^(1/12))) -> 1 | I15: =IF(PEInflationTable[[#This Row],[5]]>0,(1+PEInflationTable[[#This Row],[Rate1]])^(1/12)*PEInflationTable[[#This Row],[5]],IF(EstLastUpdate>DATE(PEInflationTable[[#This Row],[Year]],6,1),0,(1+PEInflationTable[[#This Row],[Rate1]])^(1/12))) -> 1 | J15: =IF(PEInflationTable[[#This Row],[6]]>0,(1+PEInflationTable[[#This Row],[Rate1]])^(1/12)*PEInflationTable[[#This Row],[6]],IF(EstLastUpdate>DATE(PEInflationTable[[#This Row],[Year]],7,1),0,(1+PEInflationTable[[#This Row],[Rate1]])^(1/12))) -> 1 | K15: =IF(PEInflationTable[[#This Row],[7]]>0,(1+PEInflationTable[[#This Row],[Rate1]])^(1/12)*PEInflationTable[[#This Row],[7]],IF(EstLastUpdate>DATE(PEInflationTable[[#This Row],[Year]],8,1),0,(1+PEInflationTable[[#This Row],[Rate1]])^(1/12))) -> 1 | L15: =IF(PEInflationTable[[#This Row],[8]]>0,(1+PEInflationTable[[#This Row],[Rate1]])^(1/12)*PEInflationTable[[#This Row],[8]],IF(EstLastUpdate>DATE(PEInflationTable[[#This Row],[Year]],9,1),0,(1+PEInflationTable[[#This Row],[Rate1]])^(1/12))) -> 1 | M15: =IF(PEInflationTable[[#This Row],[9]]>0,(1+PEInflationTable[[#This Row],[Rate1]])^(1/12)*PEInflationTable[[#This Row],[9]],IF(EstLastUpdate>DATE(PEInflationTable[[#This Row],[Year]],10,1),0,(1+PEInflationTable[[#This Row],[Rate1]])^(1/12))) -> 1 | N15: =IF(PEInflationTable[[#This Row],[10]]>0,(1+PEInflationTable[[#This Row],[Rate1]])^(1/12)*PEInflationTable[[#This Row],[10]],IF(EstLastUpdate>DATE(PEInflationTable[[#This Row],[Year]],11,1),0,(1+PEInflationTable[[#This Row],[Rate1]])^(1/12))) -> 1 | O15: =IF(PEInflationTable[[#This Row],[11]]>0,(1+PEInflationTable[[#This Row],[Rate1]])^(1/12)*PEInflationTable[[#This Row],[11]],IF(EstLastUpdate>DATE(PEInflationTable[[#This Row],[Year]],12,1),0,(1+PEInflationTable[[#This Row],[Rate1]])^(1/12))) -> 1 | Q15: 1905 | R15: 0 | S15: =IF(OFFSET(ROWInflationTable[[#This Row],[12]],-1,0)>0,(1+ROWInflationTable[[#This Row],[Rate1]])^(1/12)*OFFSET(ROWInflationTable[[#This Row],[12]],-1,0),IF(EstLastUpdate>DATE(ROWInflationTable[[#This Row],[Year]],1,1),0,(1+ROWInflationTable[[#This Row],[Rate1]])^(1/12))) -> 1 | T15: =IF(ROWInflationTable[[#This Row],[1]]>0,(1+ROWInflationTable[[#This Row],[Rate1]])^(1/12)*ROWInflationTable[[#This Row],[1]],IF(EstLastUpdate>DATE(ROWInflationTable[[#This Row],[Year]],2,1),0,(1+ROWInflationTable[[#This Row],[Rate1]])^(1/12))) -> 1 | U15: =IF(ROWInflationTable[[#This Row],[2]]>0,(1+ROWInflationTable[[#This Row],[Rate1]])^(1/12)*ROWInflationTable[[#This Row],[2]],IF(EstLastUpdate>DATE(ROWInflationTable[[#This Row],[Year]],3,1),0,(1+ROWInflationTable[[#This Row],[Rate1]])^(1/12))) -> 1 | V15: =IF(ROWInflationTable[[#This Row],[3]]>0,(1+ROWInflationTable[[#This Row],[Rate1]])^(1/12)*ROWInflationTable[[#This Row],[3]],IF(EstLastUpdate>DATE(ROWInflationTable[[#This Row],[Year]],4,1),0,(1+ROWInflationTable[[#This Row],[Rate1]])^(1/12))) -> 1 | W15: =IF(ROWInflationTable[[#This Row],[4]]>0,(1+ROWInflationTable[[#This Row],[Rate1]])^(1/12)*ROWInflationTable[[#This Row],[4]],IF(EstLastUpdate>DATE(ROWInflationTable[[#This Row],[Year]],5,1),0,(1+ROWInflationTable[[#This Row],[Rate1]])^(1/12))) -> 1 | X15: =IF(ROWInflationTable[[#This Row],[5]]>0,(1+ROWInflationTable[[#This Row],[Rate1]])^(1/12)*ROWInflationTable[[#This Row],[5]],IF(EstLastUpdate>DATE(ROWInflationTable[[#This Row],[Year]],6,1),0,(1+ROWInflationTable[[#This Row],[Rate1]])^(1/12))) -> 1 | Y15: =IF(ROWInflationTable[[#This Row],[6]]>0,(1+ROWInflationTable[[#This Row],[Rate1]])^(1/12)*ROWInflationTable[[#This Row],[6]],IF(EstLastUpdate>DATE(ROWInflationTable[[#This Row],[Year]],7,1),0,(1+ROWInflationTable[[#This Row],[Rate1]])^(1/12))) -> 1 | Z15: =IF(ROWInflationTable[[#This Row],[7]]>0,(1+ROWInflationTable[[#This Row],[Rate1]])^(1/12)*ROWInflationTable[[#This Row],[7]],IF(EstLastUpdate>DATE(ROWInflationTable[[#This Row],[Year]],8,1),0,(1+ROWInflationTable[[#This Row],[Rate1]])^(1/12))) -> 1 | AA15: =IF(ROWInflationTable[[#This Row],[8]]>0,(1+ROWInflationTable[[#This Row],[Rate1]])^(1/12)*ROWInflationTable[[#This Row],[8]],IF(EstLastUpdate>DATE(ROWInflationTable[[#This Row],[Year]],9,1),0,(1+ROWInflationTable[[#This Row],[Rate1]])^(1/12))) -> 1 | AB15: =IF(ROWInflationTable[[#This Row],[9]]>0,(1+ROWInflationTable[[#This Row],[Rate1]])^(1/12)*ROWInflationTable[[#This Row],[9]],IF(EstLastUpdate>DATE(ROWInflationTable[[#This Row],[Year]],10,1),0,(1+ROWInflationTable[[#This Row],[Rate1]])^(1/12))) -> 1 | AC15: =IF(ROWInflationTable[[#This Row],[10]]>0,(1+ROWInflationTable[[#This Row],[Rate1]])^(1/12)*ROWInflationTable[[#This Row],[10]],IF(EstLastUpdate>DATE(ROWInflationTable[[#This Row],[Year]],11,1),0,(1+ROWInflationTable[[#This Row],[Rate1]])^(1/12))) -> 1 | AD15: =IF(ROWInflationTable[[#This Row],[11]]>0,(1+ROWInflationTable[[#This Row],[Rate1]])^(1/12)*ROWInflationTable[[#This Row],[11]],IF(EstLastUpdate>DATE(ROWInflationTable[[#This Row],[Year]],12,1),0,(1+ROWInflationTable[[#This Row],[Rate1]])^(1/12))) -> 1 | AF15: 1905 | AG15: 0 | AH15: =IF(OFFSET(CNInflationTable[[#This Row],[12]],-1,0)>0,(1+CNInflationTable[[#This Row],[Rate1]])^(1/12)*OFFSET(CNInflationTable[[#This Row],[12]],-1,0),IF(EstLastUpdate>DATE(CNInflationTable[[#This Row],[Year]],1,1),0,(1+CNInflationTable[[#This Row],[Rate1]])^(1/12))) -> 1 | AI15: =IF(CNInflationTable[[#This Row],[1]]>0,(1+CNInflationTable[[#This Row],[Rate1]])^(1/12)*CNInflationTable[[#This Row],[1]],IF(EstLastUpdate>DATE(CNInflationTable[[#This Row],[Year]],2,1),0,(1+CNInflationTable[[#This Row],[Rate1]])^(1/12))) -> 1 | AJ15: =IF(CNInflationTable[[#This Row],[2]]>0,(1+CNInflationTable[[#This Row],[Rate1]])^(1/12)*CNInflationTable[[#This Row],[2]],IF(EstLastUpdate>DATE(CNInflationTable[[#This Row],[Year]],3,1),0,(1+CNInflationTable[[#This Row],[Rate1]])^(1/12))) -> 1 | AK15: =IF(CNInflationTable[[#This Row],[3]]>0,(1+CNInflationTable[[#This Row],[Rate1]])^(1/12)*CNInflationTable[[#This Row],[3]],IF(EstLastUpdate>DATE(CNInflationTable[[#This Row],[Year]],4,1),0,(1+CNInflationTable[[#This Row],[Rate1]])^(1/12))) -> 1 | AL15: =IF(CNInflationTable[[#This Row],[4]]>0,(1+CNInflationTable[[#This Row],[Rate1]])^(1/12)*CNInflationTable[[#This Row],[4]],IF(EstLastUpdate>DATE(CNInflationTable[[#This Row],[Year]],5,1),0,(1+CNInflationTable[[#This Row],[Rate1]])^(1/12))) -> 1 | AM15: =IF(CNInflationTable[[#This Row],[5]]>0,(1+CNInflationTable[[#This Row],[Rate1]])^(1/12)*CNInflationTable[[#This Row],[5]],IF(EstLastUpdate>DATE(CNInflationTable[[#This Row],[Year]],6,1),0,(1+CNInflationTable[[#This Row],[Rate1]])^(1/12))) -> 1 | AN15: =IF(CNInflationTable[[#This Row],[6]]>0,(1+CNInflationTable[[#This Row],[Rate1]])^(1/12)*CNInflationTable[[#This Row],[6]],IF(EstLastUpdate>DATE(CNInflationTable[[#This Row],[Year]],7,1),0,(1+CNInflationTable[[#This Row],[Rate1]])^(1/12))) -> 1 | AO15: =IF(CNInflationTable[[#This Row],[7]]>0,(1+CNInflationTable[[#This Row],[Rate1]])^(1/12)*CNInflationTable[[#This Row],[7]],IF(EstLastUpdate>DATE(CNInflationTable[[#This Row],[Year]],8,1),0,(1+CNInflationTable[[#This Row],[Rate1]])^(1/12))) -> 1 | AP15: =IF(CNInflationTable[[#This Row],[8]]>0,(1+CNInflationTable[[#This Row],[Rate1]])^(1/12)*CNInflationTable[[#This Row],[8]],IF(EstLastUpdate>DATE(CNInflationTable[[#This Row],[Year]],9,1),0,(1+CNInflationTable[[#This Row],[Rate1]])^(1/12))) -> 1 | AQ15: =IF(CNInflationTable[[#This Row],[9]]>0,(1+CNInflationTable[[#This Row],[Rate1]])^(1/12)*CNInflationTable[[#This Row],[9]],IF(EstLastUpdate>DATE(CNInflationTable[[#This Row],[Year]],10,1),0,(1+CNInflationTable[[#This Row],[Rate1]])^(1/12))) -> 1 | AR15: =IF(CNInflationTable[[#This Row],[10]]>0,(1+CNInflationTable[[#This Row],[Rate1]])^(1/12)*CNInflationTable[[#This Row],[10]],IF(EstLastUpdate>DATE(CNInflationTable[[#This Row],[Year]],11,1),0,(1+CNInflationTable[[#This Row],[Rate1]])^(1/12))) -> 1 | AS15: =IF(CNInflationTable[[#This Row],[11]]>0,(1+CNInflationTable[[#This Row],[Rate1]])^(1/12)*CNInflationTable[[#This Row],[11]],IF(EstLastUpdate>DATE(CNInflationTable[[#This Row],[Year]],12,1),0,(1+CNInflationTable[[#This Row],[Rate1]])^(1/12))) -> 1 | AU15: 1905 | AV15: 0 | AW15: =IF(OFFSET(UTInflationTable[[#This Row],[12]],-1,0)>0,(1+UTInflationTable[[#This Row],[Rate1]])^(1/12)*OFFSET(UTInflationTable[[#This Row],[12]],-1,0),IF(EstLastUpdate>DATE(UTInflationTable[[#This Row],[Year]],1,1),0,(1+UTInflationTable[[#This Row],[Rate1]])^(1/12))) -> 1 | AX15: =IF(UTInflationTable[[#This Row],[1]]>0,(1+UTInflationTable[[#This Row],[Rate1]])^(1/12)*UTInflationTable[[#This Row],[1]],IF(EstLastUpdate>DATE(UTInflationTable[[#This Row],[Year]],2,1),0,(1+UTInflationTable[[#This Row],[Rate1]])^(1/12))) -> 1 | AY15: =IF(UTInflationTable[[#This Row],[2]]>0,(1+UTInflationTable[[#This Row],[Rate1]])^(1/12)*UTInflationTable[[#This Row],[2]],IF(EstLastUpdate>DATE(UTInflationTable[[#This Row],[Year]],3,1),0,(1+UTInflationTable[[#This Row],[Rate1]])^(1/12))) -> 1 | AZ15: =IF(UTInflationTable[[#This Row],[3]]>0,(1+UTInflationTable[[#This Row],[Rate1]])^(1/12)*UTInflationTable[[#This Row],[3]],IF(EstLastUpdate>DATE(UTInflationTable[[#This Row],[Year]],4,1),0,(1+UTInflationTable[[#This Row],[Rate1]])^(1/12))) -> 1 | BA15: =IF(UTInflationTable[[#This Row],[4]]>0,(1+UTInflationTable[[#This Row],[Rate1]])^(1/12)*UTInflationTable[[#This Row],[4]],IF(EstLastUpdate>DATE(UTInflationTable[[#This Row],[Year]],5,1),0,(1+UTInflationTable[[#This Row],[Rate1]])^(1/12))) -> 1 | BB15: =IF(UTInflationTable[[#This Row],[5]]>0,(1+UTInflationTable[[#This Row],[Rate1]])^(1/12)*UTInflationTable[[#This Row],[5]],IF(EstLastUpdate>DATE(UTInflationTable[[#This Row],[Year]],6,1),0,(1+UTInflationTable[[#This Row],[Rate1]])^(1/12))) -> 1 | BC15: =IF(UTInflationTable[[#This Row],[6]]>0,(1+UTInflationTable[[#This Row],[Rate1]])^(1/12)*UTInflationTable[[#This Row],[6]],IF(EstLastUpdate>DATE(UTInflationTable[[#This Row],[Year]],7,1),0,(1+UTInflationTable[[#This Row],[Rate1]])^(1/12))) -> 1 | BD15: =IF(UTInflationTable[[#This Row],[7]]>0,(1+UTInflationTable[[#This Row],[Rate1]])^(1/12)*UTInflationTable[[#This Row],[7]],IF(EstLastUpdate>DATE(UTInflationTable[[#This Row],[Year]],8,1),0,(1+UTInflationTable[[#This Row],[Rate1]])^(1/12))) -> 1 | BE15: =IF(UTInflationTable[[#This Row],[8]]>0,(1+UTInflationTable[[#This Row],[Rate1]])^(1/12)*UTInflationTable[[#This Row],[8]],IF(EstLastUpdate>DATE(UTInflationTable[[#This Row],[Year]],9,1),0,(1+UTInflationTable[[#This Row],[Rate1]])^(1/12))) -> 1 | BF15: =IF(UTInflationTable[[#This Row],[9]]>0,(1+UTInflationTable[[#This Row],[Rate1]])^(1/12)*UTInflationTable[[#This Row],[9]],IF(EstLastUpdate>DATE(UTInflationTable[[#This Row],[Year]],10,1),0,(1+UTInflationTable[[#This Row],[Rate1]])^(1/12))) -> 1 | BG15: =IF(UTInflationTable[[#This Row],[10]]>0,(1+UTInflationTable[[#This Row],[Rate1]])^(1/12)*UTInflationTable[[#This Row],[10]],IF(EstLastUpdate>DATE(UTInflationTable[[#This Row],[Year]],11,1),0,(1+UTInflationTable[[#This Row],[Rate1]])^(1/12))) -> 1 | BH15: =IF(UTInflationTable[[#This Row],[11]]>0,(1+UTInflationTable[[#This Row],[Rate1]])^(1/12)*UTInflationTable[[#This Row],[11]],IF(EstLastUpdate>DATE(UTInflationTable[[#This Row],[Year]],12,1),0,(1+UTInflationTable[[#This Row],[Rate1]])^(1/12))) -> 1
B16: =OFFSET(PEInflationTable[[#This Row],[Year]],-1,0)+1 -> 1906 | C16: 0 | D16: =IF(OFFSET(PEInflationTable[[#This Row],[12]],-1,0)>0,(1+PEInflationTable[[#This Row],[Rate1]])^(1/12)*OFFSET(PEInflationTable[[#This Row],[12]],-1,0),IF(EstLastUpdate>DATE(PEInflationTable[[#This Row],[Year]],1,1),0,(1+PEInflationTable[[#This Row],[Rate1]])^(1/12))) -> 1 | E16: =IF(PEInflationTable[[#This Row],[1]]>0,(1+PEInflationTable[[#This Row],[Rate1]])^(1/12)*PEInflationTable[[#This Row],[1]],IF(EstLastUpdate>DATE(PEInflationTable[[#This Row],[Year]],2,1),0,(1+PEInflationTable[[#This Row],[Rate1]])^(1/12))) -> 1 | F16: =IF(PEInflationTable[[#This Row],[2]]>0,(1+PEInflationTable[[#This Row],[Rate1]])^(1/12)*PEInflationTable[[#This Row],[2]],IF(EstLastUpdate>DATE(PEInflationTable[[#This Row],[Year]],3,1),0,(1+PEInflationTable[[#This Row],[Rate1]])^(1/12))) -> 1 | G16: =IF(PEInflationTable[[#This Row],[3]]>0,(1+PEInflationTable[[#This Row],[Rate1]])^(1/12)*PEInflationTable[[#This Row],[3]],IF(EstLastUpdate>DATE(PEInflationTable[[#This Row],[Year]],4,1),0,(1+PEInflationTable[[#This Row],[Rate1]])^(1/12))) -> 1 | H16: =IF(PEInflationTable[[#This Row],[4]]>0,(1+PEInflationTable[[#This Row],[Rate1]])^(1/12)*PEInflationTable[[#This Row],[4]],IF(EstLastUpdate>DATE(PEInflationTable[[#This Row],[Year]],5,1),0,(1+PEInflationTable[[#This Row],[Rate1]])^(1/12))) -> 1 | I16: =IF(PEInflationTable[[#This Row],[5]]>0,(1+PEInflationTable[[#This Row],[Rate1]])^(1/12)*PEInflationTable[[#This Row],[5]],IF(EstLastUpdate>DATE(PEInflationTable[[#This Row],[Year]],6,1),0,(1+PEInflationTable[[#This Row],[Rate1]])^(1/12))) -> 1 | J16: =IF(PEInflationTable[[#This Row],[6]]>0,(1+PEInflationTable[[#This Row],[Rate1]])^(1/12)*PEInflationTable[[#This Row],[6]],IF(EstLastUpdate>DATE(PEInflationTable[[#This Row],[Year]],7,1),0,(1+PEInflationTable[[#This Row],[Rate1]])^(1/12))) -> 1 | K16: =IF(PEInflationTable[[#This Row],[7]]>0,(1+PEInflationTable[[#This Row],[Rate1]])^(1/12)*PEInflationTable[[#This Row],[7]],IF(EstLastUpdate>DATE(PEInflationTable[[#This Row],[Year]],8,1),0,(1+PEInflationTable[[#This Row],[Rate1]])^(1/12))) -> 1 | L16: =IF(PEInflationTable[[#This Row],[8]]>0,(1+PEInflationTable[[#This Row],[Rate1]])^(1/12)*PEInflationTable[[#This Row],[8]],IF(EstLastUpdate>DATE(PEInflationTable[[#This Row],[Year]],9,1),0,(1+PEInflationTable[[#This Row],[Rate1]])^(1/12))) -> 1 | M16: =IF(PEInflationTable[[#This Row],[9]]>0,(1+PEInflationTable[[#This Row],[Rate1]])^(1/12)*PEInflationTable[[#This Row],[9]],IF(EstLastUpdate>DATE(PEInflationTable[[#This Row],[Year]],10,1),0,(1+PEInflationTable[[#This Row],[Rate1]])^(1/12))) -> 1 | N16: =IF(PEInflationTable[[#This Row],[10]]>0,(1+PEInflationTable[[#This Row],[Rate1]])^(1/12)*PEInflationTable[[#This Row],[10]],IF(EstLastUpdate>DATE(PEInflationTable[[#This Row],[Year]],11,1),0,(1+PEInflationTable[[#This Row],[Rate1]])^(1/12))) -> 1 | O16: =IF(PEInflationTable[[#This Row],[11]]>0,(1+PEInflationTable[[#This Row],[Rate1]])^(1/12)*PEInflationTable[[#This Row],[11]],IF(EstLastUpdate>DATE(PEInflationTable[[#This Row],[Year]],12,1),0,(1+PEInflationTable[[#This Row],[Rate1]])^(1/12))) -> 1 | Q16: 1906 | R16: 0 | S16: =IF(OFFSET(ROWInflationTable[[#This Row],[12]],-1,0)>0,(1+ROWInflationTable[[#This Row],[Rate1]])^(1/12)*OFFSET(ROWInflationTable[[#This Row],[12]],-1,0),IF(EstLastUpdate>DATE(ROWInflationTable[[#This Row],[Year]],1,1),0,(1+ROWInflationTable[[#This Row],[Rate1]])^(1/12))) -> 1 | T16: =IF(ROWInflationTable[[#This Row],[1]]>0,(1+ROWInflationTable[[#This Row],[Rate1]])^(1/12)*ROWInflationTable[[#This Row],[1]],IF(EstLastUpdate>DATE(ROWInflationTable[[#This Row],[Year]],2,1),0,(1+ROWInflationTable[[#This Row],[Rate1]])^(1/12))) -> 1 | U16: =IF(ROWInflationTable[[#This Row],[2]]>0,(1+ROWInflationTable[[#This Row],[Rate1]])^(1/12)*ROWInflationTable[[#This Row],[2]],IF(EstLastUpdate>DATE(ROWInflationTable[[#This Row],[Year]],3,1),0,(1+ROWInflationTable[[#This Row],[Rate1]])^(1/12))) -> 1 | V16: =IF(ROWInflationTable[[#This Row],[3]]>0,(1+ROWInflationTable[[#This Row],[Rate1]])^(1/12)*ROWInflationTable[[#This Row],[3]],IF(EstLastUpdate>DATE(ROWInflationTable[[#This Row],[Year]],4,1),0,(1+ROWInflationTable[[#This Row],[Rate1]])^(1/12))) -> 1 | W16: =IF(ROWInflationTable[[#This Row],[4]]>0,(1+ROWInflationTable[[#This Row],[Rate1]])^(1/12)*ROWInflationTable[[#This Row],[4]],IF(EstLastUpdate>DATE(ROWInflationTable[[#This Row],[Year]],5,1),0,(1+ROWInflationTable[[#This Row],[Rate1]])^(1/12))) -> 1 | X16: =IF(ROWInflationTable[[#This Row],[5]]>0,(1+ROWInflationTable[[#This Row],[Rate1]])^(1/12)*ROWInflationTable[[#This Row],[5]],IF(EstLastUpdate>DATE(ROWInflationTable[[#This Row],[Year]],6,1),0,(1+ROWInflationTable[[#This Row],[Rate1]])^(1/12))) -> 1 | Y16: =IF(ROWInflationTable[[#This Row],[6]]>0,(1+ROWInflationTable[[#This Row],[Rate1]])^(1/12)*ROWInflationTable[[#This Row],[6]],IF(EstLastUpdate>DATE(ROWInflationTable[[#This Row],[Year]],7,1),0,(1+ROWInflationTable[[#This Row],[Rate1]])^(1/12))) -> 1 | Z16: =IF(ROWInflationTable[[#This Row],[7]]>0,(1+ROWInflationTable[[#This Row],[Rate1]])^(1/12)*ROWInflationTable[[#This Row],[7]],IF(EstLastUpdate>DATE(ROWInflationTable[[#This Row],[Year]],8,1),0,(1+ROWInflationTable[[#This Row],[Rate1]])^(1/12))) -> 1 | AA16: =IF(ROWInflationTable[[#This Row],[8]]>0,(1+ROWInflationTable[[#This Row],[Rate1]])^(1/12)*ROWInflationTable[[#This Row],[8]],IF(EstLastUpdate>DATE(ROWInflationTable[[#This Row],[Year]],9,1),0,(1+ROWInflationTable[[#This Row],[Rate1]])^(1/12))) -> 1 | AB16: =IF(ROWInflationTable[[#This Row],[9]]>0,(1+ROWInflationTable[[#This Row],[Rate1]])^(1/12)*ROWInflationTable[[#This Row],[9]],IF(EstLastUpdate>DATE(ROWInflationTable[[#This Row],[Year]],10,1),0,(1+ROWInflationTable[[#This Row],[Rate1]])^(1/12))) -> 1 | AC16: =IF(ROWInflationTable[[#This Row],[10]]>0,(1+ROWInflationTable[[#This Row],[Rate1]])^(1/12)*ROWInflationTable[[#This Row],[10]],IF(EstLastUpdate>DATE(ROWInflationTable[[#This Row],[Year]],11,1),0,(1+ROWInflationTable[[#This Row],[Rate1]])^(1/12))) -> 1 | AD16: =IF(ROWInflationTable[[#This Row],[11]]>0,(1+ROWInflationTable[[#This Row],[Rate1]])^(1/12)*ROWInflationTable[[#This Row],[11]],IF(EstLastUpdate>DATE(ROWInflationTable[[#This Row],[Year]],12,1),0,(1+ROWInflationTable[[#This Row],[Rate1]])^(1/12))) -> 1 | AF16: 1906 | AG16: 0 | AH16: =IF(OFFSET(CNInflationTable[[#This Row],[12]],-1,0)>0,(1+CNInflationTable[[#This Row],[Rate1]])^(1/12)*OFFSET(CNInflationTable[[#This Row],[12]],-1,0),IF(EstLastUpdate>DATE(CNInflationTable[[#This Row],[Year]],1,1),0,(1+CNInflationTable[[#This Row],[Rate1]])^(1/12))) -> 1 | AI16: =IF(CNInflationTable[[#This Row],[1]]>0,(1+CNInflationTable[[#This Row],[Rate1]])^(1/12)*CNInflationTable[[#This Row],[1]],IF(EstLastUpdate>DATE(CNInflationTable[[#This Row],[Year]],2,1),0,(1+CNInflationTable[[#This Row],[Rate1]])^(1/12))) -> 1 | AJ16: =IF(CNInflationTable[[#This Row],[2]]>0,(1+CNInflationTable[[#This Row],[Rate1]])^(1/12)*CNInflationTable[[#This Row],[2]],IF(EstLastUpdate>DATE(CNInflationTable[[#This Row],[Year]],3,1),0,(1+CNInflationTable[[#This Row],[Rate1]])^(1/12))) -> 1 | AK16: =IF(CNInflationTable[[#This Row],[3]]>0,(1+CNInflationTable[[#This Row],[Rate1]])^(1/12)*CNInflationTable[[#This Row],[3]],IF(EstLastUpdate>DATE(CNInflationTable[[#This Row],[Year]],4,1),0,(1+CNInflationTable[[#This Row],[Rate1]])^(1/12))) -> 1 | AL16: =IF(CNInflationTable[[#This Row],[4]]>0,(1+CNInflationTable[[#This Row],[Rate1]])^(1/12)*CNInflationTable[[#This Row],[4]],IF(EstLastUpdate>DATE(CNInflationTable[[#This Row],[Year]],5,1),0,(1+CNInflationTable[[#This Row],[Rate1]])^(1/12))) -> 1 | AM16: =IF(CNInflationTable[[#This Row],[5]]>0,(1+CNInflationTable[[#This Row],[Rate1]])^(1/12)*CNInflationTable[[#This Row],[5]],IF(EstLastUpdate>DATE(CNInflationTable[[#This Row],[Year]],6,1),0,(1+CNInflationTable[[#This Row],[Rate1]])^(1/12))) -> 1 | AN16: =IF(CNInflationTable[[#This Row],[6]]>0,(1+CNInflationTable[[#This Row],[Rate1]])^(1/12)*CNInflationTable[[#This Row],[6]],IF(EstLastUpdate>DATE(CNInflationTable[[#This Row],[Year]],7,1),0,(1+CNInflationTable[[#This Row],[Rate1]])^(1/12))) -> 1 | AO16: =IF(CNInflationTable[[#This Row],[7]]>0,(1+CNInflationTable[[#This Row],[Rate1]])^(1/12)*CNInflationTable[[#This Row],[7]],IF(EstLastUpdate>DATE(CNInflationTable[[#This Row],[Year]],8,1),0,(1+CNInflationTable[[#This Row],[Rate1]])^(1/12))) -> 1 | AP16: =IF(CNInflationTable[[#This Row],[8]]>0,(1+CNInflationTable[[#This Row],[Rate1]])^(1/12)*CNInflationTable[[#This Row],[8]],IF(EstLastUpdate>DATE(CNInflationTable[[#This Row],[Year]],9,1),0,(1+CNInflationTable[[#This Row],[Rate1]])^(1/12))) -> 1 | AQ16: =IF(CNInflationTable[[#This Row],[9]]>0,(1+CNInflationTable[[#This Row],[Rate1]])^(1/12)*CNInflationTable[[#This Row],[9]],IF(EstLastUpdate>DATE(CNInflationTable[[#This Row],[Year]],10,1),0,(1+CNInflationTable[[#This Row],[Rate1]])^(1/12))) -> 1 | AR16: =IF(CNInflationTable[[#This Row],[10]]>0,(1+CNInflationTable[[#This Row],[Rate1]])^(1/12)*CNInflationTable[[#This Row],[10]],IF(EstLastUpdate>DATE(CNInflationTable[[#This Row],[Year]],11,1),0,(1+CNInflationTable[[#This Row],[Rate1]])^(1/12))) -> 1 | AS16: =IF(CNInflationTable[[#This Row],[11]]>0,(1+CNInflationTable[[#This Row],[Rate1]])^(1/12)*CNInflationTable[[#This Row],[11]],IF(EstLastUpdate>DATE(CNInflationTable[[#This Row],[Year]],12,1),0,(1+CNInflationTable[[#This Row],[Rate1]])^(1/12))) -> 1 | AU16: 1906 | AV16: 0 | AW16: =IF(OFFSET(UTInflationTable[[#This Row],[12]],-1,0)>0,(1+UTInflationTable[[#This Row],[Rate1]])^(1/12)*OFFSET(UTInflationTable[[#This Row],[12]],-1,0),IF(EstLastUpdate>DATE(UTInflationTable[[#This Row],[Year]],1,1),0,(1+UTInflationTable[[#This Row],[Rate1]])^(1/12))) -> 1 | AX16: =IF(UTInflationTable[[#This Row],[1]]>0,(1+UTInflationTable[[#This Row],[Rate1]])^(1/12)*UTInflationTable[[#This Row],[1]],IF(EstLastUpdate>DATE(UTInflationTable[[#This Row],[Year]],2,1),0,(1+UTInflationTable[[#This Row],[Rate1]])^(1/12))) -> 1 | AY16: =IF(UTInflationTable[[#This Row],[2]]>0,(1+UTInflationTable[[#This Row],[Rate1]])^(1/12)*UTInflationTable[[#This Row],[2]],IF(EstLastUpdate>DATE(UTInflationTable[[#This Row],[Year]],3,1),0,(1+UTInflationTable[[#This Row],[Rate1]])^(1/12))) -> 1 | AZ16: =IF(UTInflationTable[[#This Row],[3]]>0,(1+UTInflationTable[[#This Row],[Rate1]])^(1/12)*UTInflationTable[[#This Row],[3]],IF(EstLastUpdate>DATE(UTInflationTable[[#This Row],[Year]],4,1),0,(1+UTInflationTable[[#This Row],[Rate1]])^(1/12))) -> 1 | BA16: =IF(UTInflationTable[[#This Row],[4]]>0,(1+UTInflationTable[[#This Row],[Rate1]])^(1/12)*UTInflationTable[[#This Row],[4]],IF(EstLastUpdate>DATE(UTInflationTable[[#This Row],[Year]],5,1),0,(1+UTInflationTable[[#This Row],[Rate1]])^(1/12))) -> 1 | BB16: =IF(UTInflationTable[[#This Row],[5]]>0,(1+UTInflationTable[[#This Row],[Rate1]])^(1/12)*UTInflationTable[[#This Row],[5]],IF(EstLastUpdate>DATE(UTInflationTable[[#This Row],[Year]],6,1),0,(1+UTInflationTable[[#This Row],[Rate1]])^(1/12))) -> 1 | BC16: =IF(UTInflationTable[[#This Row],[6]]>0,(1+UTInflationTable[[#This Row],[Rate1]])^(1/12)*UTInflationTable[[#This Row],[6]],IF(EstLastUpdate>DATE(UTInflationTable[[#This Row],[Year]],7,1),0,(1+UTInflationTable[[#This Row],[Rate1]])^(1/12))) -> 1 | BD16: =IF(UTInflationTable[[#This Row],[7]]>0,(1+UTInflationTable[[#This Row],[Rate1]])^(1/12)*UTInflationTable[[#This Row],[7]],IF(EstLastUpdate>DATE(UTInflationTable[[#This Row],[Year]],8,1),0,(1+UTInflationTable[[#This Row],[Rate1]])^(1/12))) -> 1 | BE16: =IF(UTInflationTable[[#This Row],[8]]>0,(1+UTInflationTable[[#This Row],[Rate1]])^(1/12)*UTInflationTable[[#This Row],[8]],IF(EstLastUpdate>DATE(UTInflationTable[[#This Row],[Year]],9,1),0,(1+UTInflationTable[[#This Row],[Rate1]])^(1/12))) -> 1 | BF16: =IF(UTInflationTable[[#This Row],[9]]>0,(1+UTInflationTable[[#This Row],[Rate1]])^(1/12)*UTInflationTable[[#This Row],[9]],IF(EstLastUpdate>DATE(UTInflationTable[[#This Row],[Year]],10,1),0,(1+UTInflationTable[[#This Row],[Rate1]])^(1/12))) -> 1 | BG16: =IF(UTInflationTable[[#This Row],[10]]>0,(1+UTInflationTable[[#This Row],[Rate1]])^(1/12)*UTInflationTable[[#This Row],[10]],IF(EstLastUpdate>DATE(UTInflationTable[[#This Row],[Year]],11,1),0,(1+UTInflationTable[[#This Row],[Rate1]])^(1/12))) -> 1 | BH16: =IF(UTInflationTable[[#This Row],[11]]>0,(1+UTInflationTable[[#This Row],[Rate1]])^(1/12)*UTInflationTable[[#This Row],[11]],IF(EstLastUpdate>DATE(UTInflationTable[[#This Row],[Year]],12,1),0,(1+UTInflationTable[[#This Row],[Rate1]])^(1/12))) -> 1
B17: =OFFSET(PEInflationTable[[#This Row],[Year]],-1,0)+1 -> 1907 | C17: 0 | D17: =IF(OFFSET(PEInflationTable[[#This Row],[12]],-1,0)>0,(1+PEInflationTable[[#This Row],[Rate1]])^(1/12)*OFFSET(PEInflationTable[[#This Row],[12]],-1,0),IF(EstLastUpdate>DATE(PEInflationTable[[#This Row],[Year]],1,1),0,(1+PEInflationTable[[#This Row],[Rate1]])^(1/12))) -> 1 | E17: =IF(PEInflationTable[[#This Row],[1]]>0,(1+PEInflationTable[[#This Row],[Rate1]])^(1/12)*PEInflationTable[[#This Row],[1]],IF(EstLastUpdate>DATE(PEInflationTable[[#This Row],[Year]],2,1),0,(1+PEInflationTable[[#This Row],[Rate1]])^(1/12))) -> 1 | F17: =IF(PEInflationTable[[#This Row],[2]]>0,(1+PEInflationTable[[#This Row],[Rate1]])^(1/12)*PEInflationTable[[#This Row],[2]],IF(EstLastUpdate>DATE(PEInflationTable[[#This Row],[Year]],3,1),0,(1+PEInflationTable[[#This Row],[Rate1]])^(1/12))) -> 1 | G17: =IF(PEInflationTable[[#This Row],[3]]>0,(1+PEInflationTable[[#This Row],[Rate1]])^(1/12)*PEInflationTable[[#This Row],[3]],IF(EstLastUpdate>DATE(PEInflationTable[[#This Row],[Year]],4,1),0,(1+PEInflationTable[[#This Row],[Rate1]])^(1/12))) -> 1 | H17: =IF(PEInflationTable[[#This Row],[4]]>0,(1+PEInflationTable[[#This Row],[Rate1]])^(1/12)*PEInflationTable[[#This Row],[4]],IF(EstLastUpdate>DATE(PEInflationTable[[#This Row],[Year]],5,1),0,(1+PEInflationTable[[#This Row],[Rate1]])^(1/12))) -> 1 | I17: =IF(PEInflationTable[[#This Row],[5]]>0,(1+PEInflationTable[[#This Row],[Rate1]])^(1/12)*PEInflationTable[[#This Row],[5]],IF(EstLastUpdate>DATE(PEInflationTable[[#This Row],[Year]],6,1),0,(1+PEInflationTable[[#This Row],[Rate1]])^(1/12))) -> 1 | J17: =IF(PEInflationTable[[#This Row],[6]]>0,(1+PEInflationTable[[#This Row],[Rate1]])^(1/12)*PEInflationTable[[#This Row],[6]],IF(EstLastUpdate>DATE(PEInflationTable[[#This Row],[Year]],7,1),0,(1+PEInflationTable[[#This Row],[Rate1]])^(1/12))) -> 1 | K17: =IF(PEInflationTable[[#This Row],[7]]>0,(1+PEInflationTable[[#This Row],[Rate1]])^(1/12)*PEInflationTable[[#This Row],[7]],IF(EstLastUpdate>DATE(PEInflationTable[[#This Row],[Year]],8,1),0,(1+PEInflationTable[[#This Row],[Rate1]])^(1/12))) -> 1 | L17: =IF(PEInflationTable[[#This Row],[8]]>0,(1+PEInflationTable[[#This Row],[Rate1]])^(1/12)*PEInflationTable[[#This Row],[8]],IF(EstLastUpdate>DATE(PEInflationTable[[#This Row],[Year]],9,1),0,(1+PEInflationTable[[#This Row],[Rate1]])^(1/12))) -> 1 | M17: =IF(PEInflationTable[[#This Row],[9]]>0,(1+PEInflationTable[[#This Row],[Rate1]])^(1/12)*PEInflationTable[[#This Row],[9]],IF(EstLastUpdate>DATE(PEInflationTable[[#This Row],[Year]],10,1),0,(1+PEInflationTable[[#This Row],[Rate1]])^(1/12))) -> 1 | N17: =IF(PEInflationTable[[#This Row],[10]]>0,(1+PEInflationTable[[#This Row],[Rate1]])^(1/12)*PEInflationTable[[#This Row],[10]],IF(EstLastUpdate>DATE(PEInflationTable[[#This Row],[Year]],11,1),0,(1+PEInflationTable[[#This Row],[Rate1]])^(1/12))) -> 1 | O17: =IF(PEInflationTable[[#This Row],[11]]>0,(1+PEInflationTable[[#This Row],[Rate1]])^(1/12)*PEInflationTable[[#This Row],[11]],IF(EstLastUpdate>DATE(PEInflationTable[[#This Row],[Year]],12,1),0,(1+PEInflationTable[[#This Row],[Rate1]])^(1/12))) -> 1 | Q17: 1907 | R17: 0 | S17: =IF(OFFSET(ROWInflationTable[[#This Row],[12]],-1,0)>0,(1+ROWInflationTable[[#This Row],[Rate1]])^(1/12)*OFFSET(ROWInflationTable[[#This Row],[12]],-1,0),IF(EstLastUpdate>DATE(ROWInflationTable[[#This Row],[Year]],1,1),0,(1+ROWInflationTable[[#This Row],[Rate1]])^(1/12))) -> 1 | T17: =IF(ROWInflationTable[[#This Row],[1]]>0,(1+ROWInflationTable[[#This Row],[Rate1]])^(1/12)*ROWInflationTable[[#This Row],[1]],IF(EstLastUpdate>DATE(ROWInflationTable[[#This Row],[Year]],2,1),0,(1+ROWInflationTable[[#This Row],[Rate1]])^(1/12))) -> 1 | U17: =IF(ROWInflationTable[[#This Row],[2]]>0,(1+ROWInflationTable[[#This Row],[Rate1]])^(1/12)*ROWInflationTable[[#This Row],[2]],IF(EstLastUpdate>DATE(ROWInflationTable[[#This Row],[Year]],3,1),0,(1+ROWInflationTable[[#This Row],[Rate1]])^(1/12))) -> 1 | V17: =IF(ROWInflationTable[[#This Row],[3]]>0,(1+ROWInflationTable[[#This Row],[Rate1]])^(1/12)*ROWInflationTable[[#This Row],[3]],IF(EstLastUpdate>DATE(ROWInflationTable[[#This Row],[Year]],4,1),0,(1+ROWInflationTable[[#This Row],[Rate1]])^(1/12))) -> 1 | W17: =IF(ROWInflationTable[[#This Row],[4]]>0,(1+ROWInflationTable[[#This Row],[Rate1]])^(1/12)*ROWInflationTable[[#This Row],[4]],IF(EstLastUpdate>DATE(ROWInflationTable[[#This Row],[Year]],5,1),0,(1+ROWInflationTable[[#This Row],[Rate1]])^(1/12))) -> 1 | X17: =IF(ROWInflationTable[[#This Row],[5]]>0,(1+ROWInflationTable[[#This Row],[Rate1]])^(1/12)*ROWInflationTable[[#This Row],[5]],IF(EstLastUpdate>DATE(ROWInflationTable[[#This Row],[Year]],6,1),0,(1+ROWInflationTable[[#This Row],[Rate1]])^(1/12))) -> 1 | Y17: =IF(ROWInflationTable[[#This Row],[6]]>0,(1+ROWInflationTable[[#This Row],[Rate1]])^(1/12)*ROWInflationTable[[#This Row],[6]],IF(EstLastUpdate>DATE(ROWInflationTable[[#This Row],[Year]],7,1),0,(1+ROWInflationTable[[#This Row],[Rate1]])^(1/12))) -> 1 | Z17: =IF(ROWInflationTable[[#This Row],[7]]>0,(1+ROWInflationTable[[#This Row],[Rate1]])^(1/12)*ROWInflationTable[[#This Row],[7]],IF(EstLastUpdate>DATE(ROWInflationTable[[#This Row],[Year]],8,1),0,(1+ROWInflationTable[[#This Row],[Rate1]])^(1/12))) -> 1 | AA17: =IF(ROWInflationTable[[#This Row],[8]]>0,(1+ROWInflationTable[[#This Row],[Rate1]])^(1/12)*ROWInflationTable[[#This Row],[8]],IF(EstLastUpdate>DATE(ROWInflationTable[[#This Row],[Year]],9,1),0,(1+ROWInflationTable[[#This Row],[Rate1]])^(1/12))) -> 1 | AB17: =IF(ROWInflationTable[[#This Row],[9]]>0,(1+ROWInflationTable[[#This Row],[Rate1]])^(1/12)*ROWInflationTable[[#This Row],[9]],IF(EstLastUpdate>DATE(ROWInflationTable[[#This Row],[Year]],10,1),0,(1+ROWInflationTable[[#This Row],[Rate1]])^(1/12))) -> 1 | AC17: =IF(ROWInflationTable[[#This Row],[10]]>0,(1+ROWInflationTable[[#This Row],[Rate1]])^(1/12)*ROWInflationTable[[#This Row],[10]],IF(EstLastUpdate>DATE(ROWInflationTable[[#This Row],[Year]],11,1),0,(1+ROWInflationTable[[#This Row],[Rate1]])^(1/12))) -> 1 | AD17: =IF(ROWInflationTable[[#This Row],[11]]>0,(1+ROWInflationTable[[#This Row],[Rate1]])^(1/12)*ROWInflationTable[[#This Row],[11]],IF(EstLastUpdate>DATE(ROWInflationTable[[#This Row],[Year]],12,1),0,(1+ROWInflationTable[[#This Row],[Rate1]])^(1/12))) -> 1 | AF17: 1907 | AG17: 0 | AH17: =IF(OFFSET(CNInflationTable[[#This Row],[12]],-1,0)>0,(1+CNInflationTable[[#This Row],[Rate1]])^(1/12)*OFFSET(CNInflationTable[[#This Row],[12]],-1,0),IF(EstLastUpdate>DATE(CNInflationTable[[#This Row],[Year]],1,1),0,(1+CNInflationTable[[#This Row],[Rate1]])^(1/12))) -> 1 | AI17: =IF(CNInflationTable[[#This Row],[1]]>0,(1+CNInflationTable[[#This Row],[Rate1]])^(1/12)*CNInflationTable[[#This Row],[1]],IF(EstLastUpdate>DATE(CNInflationTable[[#This Row],[Year]],2,1),0,(1+CNInflationTable[[#This Row],[Rate1]])^(1/12))) -> 1 | AJ17: =IF(CNInflationTable[[#This Row],[2]]>0,(1+CNInflationTable[[#This Row],[Rate1]])^(1/12)*CNInflationTable[[#This Row],[2]],IF(EstLastUpdate>DATE(CNInflationTable[[#This Row],[Year]],3,1),0,(1+CNInflationTable[[#This Row],[Rate1]])^(1/12))) -> 1 | AK17: =IF(CNInflationTable[[#This Row],[3]]>0,(1+CNInflationTable[[#This Row],[Rate1]])^(1/12)*CNInflationTable[[#This Row],[3]],IF(EstLastUpdate>DATE(CNInflationTable[[#This Row],[Year]],4,1),0,(1+CNInflationTable[[#This Row],[Rate1]])^(1/12))) -> 1 | AL17: =IF(CNInflationTable[[#This Row],[4]]>0,(1+CNInflationTable[[#This Row],[Rate1]])^(1/12)*CNInflationTable[[#This Row],[4]],IF(EstLastUpdate>DATE(CNInflationTable[[#This Row],[Year]],5,1),0,(1+CNInflationTable[[#This Row],[Rate1]])^(1/12))) -> 1 | AM17: =IF(CNInflationTable[[#This Row],[5]]>0,(1+CNInflationTable[[#This Row],[Rate1]])^(1/12)*CNInflationTable[[#This Row],[5]],IF(EstLastUpdate>DATE(CNInflationTable[[#This Row],[Year]],6,1),0,(1+CNInflationTable[[#This Row],[Rate1]])^(1/12))) -> 1 | AN17: =IF(CNInflationTable[[#This Row],[6]]>0,(1+CNInflationTable[[#This Row],[Rate1]])^(1/12)*CNInflationTable[[#This Row],[6]],IF(EstLastUpdate>DATE(CNInflationTable[[#This Row],[Year]],7,1),0,(1+CNInflationTable[[#This Row],[Rate1]])^(1/12))) -> 1 | AO17: =IF(CNInflationTable[[#This Row],[7]]>0,(1+CNInflationTable[[#This Row],[Rate1]])^(1/12)*CNInflationTable[[#This Row],[7]],IF(EstLastUpdate>DATE(CNInflationTable[[#This Row],[Year]],8,1),0,(1+CNInflationTable[[#This Row],[Rate1]])^(1/12))) -> 1 | AP17: =IF(CNInflationTable[[#This Row],[8]]>0,(1+CNInflationTable[[#This Row],[Rate1]])^(1/12)*CNInflationTable[[#This Row],[8]],IF(EstLastUpdate>DATE(CNInflationTable[[#This Row],[Year]],9,1),0,(1+CNInflationTable[[#This Row],[Rate1]])^(1/12))) -> 1 | AQ17: =IF(CNInflationTable[[#This Row],[9]]>0,(1+CNInflationTable[[#This Row],[Rate1]])^(1/12)*CNInflationTable[[#This Row],[9]],IF(EstLastUpdate>DATE(CNInflationTable[[#This Row],[Year]],10,1),0,(1+CNInflationTable[[#This Row],[Rate1]])^(1/12))) -> 1 | AR17: =IF(CNInflationTable[[#This Row],[10]]>0,(1+CNInflationTable[[#This Row],[Rate1]])^(1/12)*CNInflationTable[[#This Row],[10]],IF(EstLastUpdate>DATE(CNInflationTable[[#This Row],[Year]],11,1),0,(1+CNInflationTable[[#This Row],[Rate1]])^(1/12))) -> 1 | AS17: =IF(CNInflationTable[[#This Row],[11]]>0,(1+CNInflationTable[[#This Row],[Rate1]])^(1/12)*CNInflationTable[[#This Row],[11]],IF(EstLastUpdate>DATE(CNInflationTable[[#This Row],[Year]],12,1),0,(1+CNInflationTable[[#This Row],[Rate1]])^(1/12))) -> 1 | AU17: 1907 | AV17: 0 | AW17: =IF(OFFSET(UTInflationTable[[#This Row],[12]],-1,0)>0,(1+UTInflationTable[[#This Row],[Rate1]])^(1/12)*OFFSET(UTInflationTable[[#This Row],[12]],-1,0),IF(EstLastUpdate>DATE(UTInflationTable[[#This Row],[Year]],1,1),0,(1+UTInflationTable[[#This Row],[Rate1]])^(1/12))) -> 1 | AX17: =IF(UTInflationTable[[#This Row],[1]]>0,(1+UTInflationTable[[#This Row],[Rate1]])^(1/12)*UTInflationTable[[#This Row],[1]],IF(EstLastUpdate>DATE(UTInflationTable[[#This Row],[Year]],2,1),0,(1+UTInflationTable[[#This Row],[Rate1]])^(1/12))) -> 1 | AY17: =IF(UTInflationTable[[#This Row],[2]]>0,(1+UTInflationTable[[#This Row],[Rate1]])^(1/12)*UTInflationTable[[#This Row],[2]],IF(EstLastUpdate>DATE(UTInflationTable[[#This Row],[Year]],3,1),0,(1+UTInflationTable[[#This Row],[Rate1]])^(1/12))) -> 1 | AZ17: =IF(UTInflationTable[[#This Row],[3]]>0,(1+UTInflationTable[[#This Row],[Rate1]])^(1/12)*UTInflationTable[[#This Row],[3]],IF(EstLastUpdate>DATE(UTInflationTable[[#This Row],[Year]],4,1),0,(1+UTInflationTable[[#This Row],[Rate1]])^(1/12))) -> 1 | BA17: =IF(UTInflationTable[[#This Row],[4]]>0,(1+UTInflationTable[[#This Row],[Rate1]])^(1/12)*UTInflationTable[[#This Row],[4]],IF(EstLastUpdate>DATE(UTInflationTable[[#This Row],[Year]],5,1),0,(1+UTInflationTable[[#This Row],[Rate1]])^(1/12))) -> 1 | BB17: =IF(UTInflationTable[[#This Row],[5]]>0,(1+UTInflationTable[[#This Row],[Rate1]])^(1/12)*UTInflationTable[[#This Row],[5]],IF(EstLastUpdate>DATE(UTInflationTable[[#This Row],[Year]],6,1),0,(1+UTInflationTable[[#This Row],[Rate1]])^(1/12))) -> 1 | BC17: =IF(UTInflationTable[[#This Row],[6]]>0,(1+UTInflationTable[[#This Row],[Rate1]])^(1/12)*UTInflationTable[[#This Row],[6]],IF(EstLastUpdate>DATE(UTInflationTable[[#This Row],[Year]],7,1),0,(1+UTInflationTable[[#This Row],[Rate1]])^(1/12))) -> 1 | BD17: =IF(UTInflationTable[[#This Row],[7]]>0,(1+UTInflationTable[[#This Row],[Rate1]])^(1/12)*UTInflationTable[[#This Row],[7]],IF(EstLastUpdate>DATE(UTInflationTable[[#This Row],[Year]],8,1),0,(1+UTInflationTable[[#This Row],[Rate1]])^(1/12))) -> 1 | BE17: =IF(UTInflationTable[[#This Row],[8]]>0,(1+UTInflationTable[[#This Row],[Rate1]])^(1/12)*UTInflationTable[[#This Row],[8]],IF(EstLastUpdate>DATE(UTInflationTable[[#This Row],[Year]],9,1),0,(1+UTInflationTable[[#This Row],[Rate1]])^(1/12))) -> 1 | BF17: =IF(UTInflationTable[[#This Row],[9]]>0,(1+UTInflationTable[[#This Row],[Rate1]])^(1/12)*UTInflationTable[[#This Row],[9]],IF(EstLastUpdate>DATE(UTInflationTable[[#This Row],[Year]],10,1),0,(1+UTInflationTable[[#This Row],[Rate1]])^(1/12))) -> 1 | BG17: =IF(UTInflationTable[[#This Row],[10]]>0,(1+UTInflationTable[[#This Row],[Rate1]])^(1/12)*UTInflationTable[[#This Row],[10]],IF(EstLastUpdate>DATE(UTInflationTable[[#This Row],[Year]],11,1),0,(1+UTInflationTable[[#This Row],[Rate1]])^(1/12))) -> 1 | BH17: =IF(UTInflationTable[[#This Row],[11]]>0,(1+UTInflationTable[[#This Row],[Rate1]])^(1/12)*UTInflationTable[[#This Row],[11]],IF(EstLastUpdate>DATE(UTInflationTable[[#This Row],[Year]],12,1),0,(1+UTInflationTable[[#This Row],[Rate1]])^(1/12))) -> 1
B18: =OFFSET(PEInflationTable[[#This Row],[Year]],-1,0)+1 -> 1908 | C18: 0 | D18: =IF(OFFSET(PEInflationTable[[#This Row],[12]],-1,0)>0,(1+PEInflationTable[[#This Row],[Rate1]])^(1/12)*OFFSET(PEInflationTable[[#This Row],[12]],-1,0),IF(EstLastUpdate>DATE(PEInflationTable[[#This Row],[Year]],1,1),0,(1+PEInflationTable[[#This Row],[Rate1]])^(1/12))) -> 1 | E18: =IF(PEInflationTable[[#This Row],[1]]>0,(1+PEInflationTable[[#This Row],[Rate1]])^(1/12)*PEInflationTable[[#This Row],[1]],IF(EstLastUpdate>DATE(PEInflationTable[[#This Row],[Year]],2,1),0,(1+PEInflationTable[[#This Row],[Rate1]])^(1/12))) -> 1 | F18: =IF(PEInflationTable[[#This Row],[2]]>0,(1+PEInflationTable[[#This Row],[Rate1]])^(1/12)*PEInflationTable[[#This Row],[2]],IF(EstLastUpdate>DATE(PEInflationTable[[#This Row],[Year]],3,1),0,(1+PEInflationTable[[#This Row],[Rate1]])^(1/12))) -> 1 | G18: =IF(PEInflationTable[[#This Row],[3]]>0,(1+PEInflationTable[[#This Row],[Rate1]])^(1/12)*PEInflationTable[[#This Row],[3]],IF(EstLastUpdate>DATE(PEInflationTable[[#This Row],[Year]],4,1),0,(1+PEInflationTable[[#This Row],[Rate1]])^(1/12))) -> 1 | H18: =IF(PEInflationTable[[#This Row],[4]]>0,(1+PEInflationTable[[#This Row],[Rate1]])^(1/12)*PEInflationTable[[#This Row],[4]],IF(EstLastUpdate>DATE(PEInflationTable[[#This Row],[Year]],5,1),0,(1+PEInflationTable[[#This Row],[Rate1]])^(1/12))) -> 1 | I18: =IF(PEInflationTable[[#This Row],[5]]>0,(1+PEInflationTable[[#This Row],[Rate1]])^(1/12)*PEInflationTable[[#This Row],[5]],IF(EstLastUpdate>DATE(PEInflationTable[[#This Row],[Year]],6,1),0,(1+PEInflationTable[[#This Row],[Rate1]])^(1/12))) -> 1 | J18: =IF(PEInflationTable[[#This Row],[6]]>0,(1+PEInflationTable[[#This Row],[Rate1]])^(1/12)*PEInflationTable[[#This Row],[6]],IF(EstLastUpdate>DATE(PEInflationTable[[#This Row],[Year]],7,1),0,(1+PEInflationTable[[#This Row],[Rate1]])^(1/12))) -> 1 | K18: =IF(PEInflationTable[[#This Row],[7]]>0,(1+PEInflationTable[[#This Row],[Rate1]])^(1/12)*PEInflationTable[[#This Row],[7]],IF(EstLastUpdate>DATE(PEInflationTable[[#This Row],[Year]],8,1),0,(1+PEInflationTable[[#This Row],[Rate1]])^(1/12))) -> 1 | L18: =IF(PEInflationTable[[#This Row],[8]]>0,(1+PEInflationTable[[#This Row],[Rate1]])^(1/12)*PEInflationTable[[#This Row],[8]],IF(EstLastUpdate>DATE(PEInflationTable[[#This Row],[Year]],9,1),0,(1+PEInflationTable[[#This Row],[Rate1]])^(1/12))) -> 1 | M18: =IF(PEInflationTable[[#This Row],[9]]>0,(1+PEInflationTable[[#This Row],[Rate1]])^(1/12)*PEInflationTable[[#This Row],[9]],IF(EstLastUpdate>DATE(PEInflationTable[[#This Row],[Year]],10,1),0,(1+PEInflationTable[[#This Row],[Rate1]])^(1/12))) -> 1 | N18: =IF(PEInflationTable[[#This Row],[10]]>0,(1+PEInflationTable[[#This Row],[Rate1]])^(1/12)*PEInflationTable[[#This Row],[10]],IF(EstLastUpdate>DATE(PEInflationTable[[#This Row],[Year]],11,1),0,(1+PEInflationTable[[#This Row],[Rate1]])^(1/12))) -> 1 | O18: =IF(PEInflationTable[[#This Row],[11]]>0,(1+PEInflationTable[[#This Row],[Rate1]])^(1/12)*PEInflationTable[[#This Row],[11]],IF(EstLastUpdate>DATE(PEInflationTable[[#This Row],[Year]],12,1),0,(1+PEInflationTable[[#This Row],[Rate1]])^(1/12))) -> 1 | Q18: 1908 | R18: 0 | S18: =IF(OFFSET(ROWInflationTable[[#This Row],[12]],-1,0)>0,(1+ROWInflationTable[[#This Row],[Rate1]])^(1/12)*OFFSET(ROWInflationTable[[#This Row],[12]],-1,0),IF(EstLastUpdate>DATE(ROWInflationTable[[#This Row],[Year]],1,1),0,(1+ROWInflationTable[[#This Row],[Rate1]])^(1/12))) -> 1 | T18: =IF(ROWInflationTable[[#This Row],[1]]>0,(1+ROWInflationTable[[#This Row],[Rate1]])^(1/12)*ROWInflationTable[[#This Row],[1]],IF(EstLastUpdate>DATE(ROWInflationTable[[#This Row],[Year]],2,1),0,(1+ROWInflationTable[[#This Row],[Rate1]])^(1/12))) -> 1 | U18: =IF(ROWInflationTable[[#This Row],[2]]>0,(1+ROWInflationTable[[#This Row],[Rate1]])^(1/12)*ROWInflationTable[[#This Row],[2]],IF(EstLastUpdate>DATE(ROWInflationTable[[#This Row],[Year]],3,1),0,(1+ROWInflationTable[[#This Row],[Rate1]])^(1/12))) -> 1 | V18: =IF(ROWInflationTable[[#This Row],[3]]>0,(1+ROWInflationTable[[#This Row],[Rate1]])^(1/12)*ROWInflationTable[[#This Row],[3]],IF(EstLastUpdate>DATE(ROWInflationTable[[#This Row],[Year]],4,1),0,(1+ROWInflationTable[[#This Row],[Rate1]])^(1/12))) -> 1 | W18: =IF(ROWInflationTable[[#This Row],[4]]>0,(1+ROWInflationTable[[#This Row],[Rate1]])^(1/12)*ROWInflationTable[[#This Row],[4]],IF(EstLastUpdate>DATE(ROWInflationTable[[#This Row],[Year]],5,1),0,(1+ROWInflationTable[[#This Row],[Rate1]])^(1/12))) -> 1 | X18: =IF(ROWInflationTable[[#This Row],[5]]>0,(1+ROWInflationTable[[#This Row],[Rate1]])^(1/12)*ROWInflationTable[[#This Row],[5]],IF(EstLastUpdate>DATE(ROWInflationTable[[#This Row],[Year]],6,1),0,(1+ROWInflationTable[[#This Row],[Rate1]])^(1/12))) -> 1 | Y18: =IF(ROWInflationTable[[#This Row],[6]]>0,(1+ROWInflationTable[[#This Row],[Rate1]])^(1/12)*ROWInflationTable[[#This Row],[6]],IF(EstLastUpdate>DATE(ROWInflationTable[[#This Row],[Year]],7,1),0,(1+ROWInflationTable[[#This Row],[Rate1]])^(1/12))) -> 1 | Z18: =IF(ROWInflationTable[[#This Row],[7]]>0,(1+ROWInflationTable[[#This Row],[Rate1]])^(1/12)*ROWInflationTable[[#This Row],[7]],IF(EstLastUpdate>DATE(ROWInflationTable[[#This Row],[Year]],8,1),0,(1+ROWInflationTable[[#This Row],[Rate1]])^(1/12))) -> 1 | AA18: =IF(ROWInflationTable[[#This Row],[8]]>0,(1+ROWInflationTable[[#This Row],[Rate1]])^(1/12)*ROWInflationTable[[#This Row],[8]],IF(EstLastUpdate>DATE(ROWInflationTable[[#This Row],[Year]],9,1),0,(1+ROWInflationTable[[#This Row],[Rate1]])^(1/12))) -> 1 | AB18: =IF(ROWInflationTable[[#This Row],[9]]>0,(1+ROWInflationTable[[#This Row],[Rate1]])^(1/12)*ROWInflationTable[[#This Row],[9]],IF(EstLastUpdate>DATE(ROWInflationTable[[#This Row],[Year]],10,1),0,(1+ROWInflationTable[[#This Row],[Rate1]])^(1/12))) -> 1 | AC18: =IF(ROWInflationTable[[#This Row],[10]]>0,(1+ROWInflationTable[[#This Row],[Rate1]])^(1/12)*ROWInflationTable[[#This Row],[10]],IF(EstLastUpdate>DATE(ROWInflationTable[[#This Row],[Year]],11,1),0,(1+ROWInflationTable[[#This Row],[Rate1]])^(1/12))) -> 1 | AD18: =IF(ROWInflationTable[[#This Row],[11]]>0,(1+ROWInflationTable[[#This Row],[Rate1]])^(1/12)*ROWInflationTable[[#This Row],[11]],IF(EstLastUpdate>DATE(ROWInflationTable[[#This Row],[Year]],12,1),0,(1+ROWInflationTable[[#This Row],[Rate1]])^(1/12))) -> 1 | AF18: 1908 | AG18: 0 | AH18: =IF(OFFSET(CNInflationTable[[#This Row],[12]],-1,0)>0,(1+CNInflationTable[[#This Row],[Rate1]])^(1/12)*OFFSET(CNInflationTable[[#This Row],[12]],-1,0),IF(EstLastUpdate>DATE(CNInflationTable[[#This Row],[Year]],1,1),0,(1+CNInflationTable[[#This Row],[Rate1]])^(1/12))) -> 1 | AI18: =IF(CNInflationTable[[#This Row],[1]]>0,(1+CNInflationTable[[#This Row],[Rate1]])^(1/12)*CNInflationTable[[#This Row],[1]],IF(EstLastUpdate>DATE(CNInflationTable[[#This Row],[Year]],2,1),0,(1+CNInflationTable[[#This Row],[Rate1]])^(1/12))) -> 1 | AJ18: =IF(CNInflationTable[[#This Row],[2]]>0,(1+CNInflationTable[[#This Row],[Rate1]])^(1/12)*CNInflationTable[[#This Row],[2]],IF(EstLastUpdate>DATE(CNInflationTable[[#This Row],[Year]],3,1),0,(1+CNInflationTable[[#This Row],[Rate1]])^(1/12))) -> 1 | AK18: =IF(CNInflationTable[[#This Row],[3]]>0,(1+CNInflationTable[[#This Row],[Rate1]])^(1/12)*CNInflationTable[[#This Row],[3]],IF(EstLastUpdate>DATE(CNInflationTable[[#This Row],[Year]],4,1),0,(1+CNInflationTable[[#This Row],[Rate1]])^(1/12))) -> 1 | AL18: =IF(CNInflationTable[[#This Row],[4]]>0,(1+CNInflationTable[[#This Row],[Rate1]])^(1/12)*CNInflationTable[[#This Row],[4]],IF(EstLastUpdate>DATE(CNInflationTable[[#This Row],[Year]],5,1),0,(1+CNInflationTable[[#This Row],[Rate1]])^(1/12))) -> 1 | AM18: =IF(CNInflationTable[[#This Row],[5]]>0,(1+CNInflationTable[[#This Row],[Rate1]])^(1/12)*CNInflationTable[[#This Row],[5]],IF(EstLastUpdate>DATE(CNInflationTable[[#This Row],[Year]],6,1),0,(1+CNInflationTable[[#This Row],[Rate1]])^(1/12))) -> 1 | AN18: =IF(CNInflationTable[[#This Row],[6]]>0,(1+CNInflationTable[[#This Row],[Rate1]])^(1/12)*CNInflationTable[[#This Row],[6]],IF(EstLastUpdate>DATE(CNInflationTable[[#This Row],[Year]],7,1),0,(1+CNInflationTable[[#This Row],[Rate1]])^(1/12))) -> 1 | AO18: =IF(CNInflationTable[[#This Row],[7]]>0,(1+CNInflationTable[[#This Row],[Rate1]])^(1/12)*CNInflationTable[[#This Row],[7]],IF(EstLastUpdate>DATE(CNInflationTable[[#This Row],[Year]],8,1),0,(1+CNInflationTable[[#This Row],[Rate1]])^(1/12))) -> 1 | AP18: =IF(CNInflationTable[[#This Row],[8]]>0,(1+CNInflationTable[[#This Row],[Rate1]])^(1/12)*CNInflationTable[[#This Row],[8]],IF(EstLastUpdate>DATE(CNInflationTable[[#This Row],[Year]],9,1),0,(1+CNInflationTable[[#This Row],[Rate1]])^(1/12))) -> 1 | AQ18: =IF(CNInflationTable[[#This Row],[9]]>0,(1+CNInflationTable[[#This Row],[Rate1]])^(1/12)*CNInflationTable[[#This Row],[9]],IF(EstLastUpdate>DATE(CNInflationTable[[#This Row],[Year]],10,1),0,(1+CNInflationTable[[#This Row],[Rate1]])^(1/12))) -> 1 | AR18: =IF(CNInflationTable[[#This Row],[10]]>0,(1+CNInflationTable[[#This Row],[Rate1]])^(1/12)*CNInflationTable[[#This Row],[10]],IF(EstLastUpdate>DATE(CNInflationTable[[#This Row],[Year]],11,1),0,(1+CNInflationTable[[#This Row],[Rate1]])^(1/12))) -> 1 | AS18: =IF(CNInflationTable[[#This Row],[11]]>0,(1+CNInflationTable[[#This Row],[Rate1]])^(1/12)*CNInflationTable[[#This Row],[11]],IF(EstLastUpdate>DATE(CNInflationTable[[#This Row],[Year]],12,1),0,(1+CNInflationTable[[#This Row],[Rate1]])^(1/12))) -> 1 | AU18: 1908 | AV18: 0 | AW18: =IF(OFFSET(UTInflationTable[[#This Row],[12]],-1,0)>0,(1+UTInflationTable[[#This Row],[Rate1]])^(1/12)*OFFSET(UTInflationTable[[#This Row],[12]],-1,0),IF(EstLastUpdate>DATE(UTInflationTable[[#This Row],[Year]],1,1),0,(1+UTInflationTable[[#This Row],[Rate1]])^(1/12))) -> 1 | AX18: =IF(UTInflationTable[[#This Row],[1]]>0,(1+UTInflationTable[[#This Row],[Rate1]])^(1/12)*UTInflationTable[[#This Row],[1]],IF(EstLastUpdate>DATE(UTInflationTable[[#This Row],[Year]],2,1),0,(1+UTInflationTable[[#This Row],[Rate1]])^(1/12))) -> 1 | AY18: =IF(UTInflationTable[[#This Row],[2]]>0,(1+UTInflationTable[[#This Row],[Rate1]])^(1/12)*UTInflationTable[[#This Row],[2]],IF(EstLastUpdate>DATE(UTInflationTable[[#This Row],[Year]],3,1),0,(1+UTInflationTable[[#This Row],[Rate1]])^(1/12))) -> 1 | AZ18: =IF(UTInflationTable[[#This Row],[3]]>0,(1+UTInflationTable[[#This Row],[Rate1]])^(1/12)*UTInflationTable[[#This Row],[3]],IF(EstLastUpdate>DATE(UTInflationTable[[#This Row],[Year]],4,1),0,(1+UTInflationTable[[#This Row],[Rate1]])^(1/12))) -> 1 | BA18: =IF(UTInflationTable[[#This Row],[4]]>0,(1+UTInflationTable[[#This Row],[Rate1]])^(1/12)*UTInflationTable[[#This Row],[4]],IF(EstLastUpdate>DATE(UTInflationTable[[#This Row],[Year]],5,1),0,(1+UTInflationTable[[#This Row],[Rate1]])^(1/12))) -> 1 | BB18: =IF(UTInflationTable[[#This Row],[5]]>0,(1+UTInflationTable[[#This Row],[Rate1]])^(1/12)*UTInflationTable[[#This Row],[5]],IF(EstLastUpdate>DATE(UTInflationTable[[#This Row],[Year]],6,1),0,(1+UTInflationTable[[#This Row],[Rate1]])^(1/12))) -> 1 | BC18: =IF(UTInflationTable[[#This Row],[6]]>0,(1+UTInflationTable[[#This Row],[Rate1]])^(1/12)*UTInflationTable[[#This Row],[6]],IF(EstLastUpdate>DATE(UTInflationTable[[#This Row],[Year]],7,1),0,(1+UTInflationTable[[#This Row],[Rate1]])^(1/12))) -> 1 | BD18: =IF(UTInflationTable[[#This Row],[7]]>0,(1+UTInflationTable[[#This Row],[Rate1]])^(1/12)*UTInflationTable[[#This Row],[7]],IF(EstLastUpdate>DATE(UTInflationTable[[#This Row],[Year]],8,1),0,(1+UTInflationTable[[#This Row],[Rate1]])^(1/12))) -> 1 | BE18: =IF(UTInflationTable[[#This Row],[8]]>0,(1+UTInflationTable[[#This Row],[Rate1]])^(1/12)*UTInflationTable[[#This Row],[8]],IF(EstLastUpdate>DATE(UTInflationTable[[#This Row],[Year]],9,1),0,(1+UTInflationTable[[#This Row],[Rate1]])^(1/12))) -> 1 | BF18: =IF(UTInflationTable[[#This Row],[9]]>0,(1+UTInflationTable[[#This Row],[Rate1]])^(1/12)*UTInflationTable[[#This Row],[9]],IF(EstLastUpdate>DATE(UTInflationTable[[#This Row],[Year]],10,1),0,(1+UTInflationTable[[#This Row],[Rate1]])^(1/12))) -> 1 | BG18: =IF(UTInflationTable[[#This Row],[10]]>0,(1+UTInflationTable[[#This Row],[Rate1]])^(1/12)*UTInflationTable[[#This Row],[10]],IF(EstLastUpdate>DATE(UTInflationTable[[#This Row],[Year]],11,1),0,(1+UTInflationTable[[#This Row],[Rate1]])^(1/12))) -> 1 | BH18: =IF(UTInflationTable[[#This Row],[11]]>0,(1+UTInflationTable[[#This Row],[Rate1]])^(1/12)*UTInflationTable[[#This Row],[11]],IF(EstLastUpdate>DATE(UTInflationTable[[#This Row],[Year]],12,1),0,(1+UTInflationTable[[#This Row],[Rate1]])^(1/12))) -> 1
B19: =OFFSET(PEInflationTable[[#This Row],[Year]],-1,0)+1 -> 1909 | C19: 0 | D19: =IF(OFFSET(PEInflationTable[[#This Row],[12]],-1,0)>0,(1+PEInflationTable[[#This Row],[Rate1]])^(1/12)*OFFSET(PEInflationTable[[#This Row],[12]],-1,0),IF(EstLastUpdate>DATE(PEInflationTable[[#This Row],[Year]],1,1),0,(1+PEInflationTable[[#This Row],[Rate1]])^(1/12))) -> 1 | E19: =IF(PEInflationTable[[#This Row],[1]]>0,(1+PEInflationTable[[#This Row],[Rate1]])^(1/12)*PEInflationTable[[#This Row],[1]],IF(EstLastUpdate>DATE(PEInflationTable[[#This Row],[Year]],2,1),0,(1+PEInflationTable[[#This Row],[Rate1]])^(1/12))) -> 1 | F19: =IF(PEInflationTable[[#This Row],[2]]>0,(1+PEInflationTable[[#This Row],[Rate1]])^(1/12)*PEInflationTable[[#This Row],[2]],IF(EstLastUpdate>DATE(PEInflationTable[[#This Row],[Year]],3,1),0,(1+PEInflationTable[[#This Row],[Rate1]])^(1/12))) -> 1 | G19: =IF(PEInflationTable[[#This Row],[3]]>0,(1+PEInflationTable[[#This Row],[Rate1]])^(1/12)*PEInflationTable[[#This Row],[3]],IF(EstLastUpdate>DATE(PEInflationTable[[#This Row],[Year]],4,1),0,(1+PEInflationTable[[#This Row],[Rate1]])^(1/12))) -> 1 | H19: =IF(PEInflationTable[[#This Row],[4]]>0,(1+PEInflationTable[[#This Row],[Rate1]])^(1/12)*PEInflationTable[[#This Row],[4]],IF(EstLastUpdate>DATE(PEInflationTable[[#This Row],[Year]],5,1),0,(1+PEInflationTable[[#This Row],[Rate1]])^(1/12))) -> 1 | I19: =IF(PEInflationTable[[#This Row],[5]]>0,(1+PEInflationTable[[#This Row],[Rate1]])^(1/12)*PEInflationTable[[#This Row],[5]],IF(EstLastUpdate>DATE(PEInflationTable[[#This Row],[Year]],6,1),0,(1+PEInflationTable[[#This Row],[Rate1]])^(1/12))) -> 1 | J19: =IF(PEInflationTable[[#This Row],[6]]>0,(1+PEInflationTable[[#This Row],[Rate1]])^(1/12)*PEInflationTable[[#This Row],[6]],IF(EstLastUpdate>DATE(PEInflationTable[[#This Row],[Year]],7,1),0,(1+PEInflationTable[[#This Row],[Rate1]])^(1/12))) -> 1 | K19: =IF(PEInflationTable[[#This Row],[7]]>0,(1+PEInflationTable[[#This Row],[Rate1]])^(1/12)*PEInflationTable[[#This Row],[7]],IF(EstLastUpdate>DATE(PEInflationTable[[#This Row],[Year]],8,1),0,(1+PEInflationTable[[#This Row],[Rate1]])^(1/12))) -> 1 | L19: =IF(PEInflationTable[[#This Row],[8]]>0,(1+PEInflationTable[[#This Row],[Rate1]])^(1/12)*PEInflationTable[[#This Row],[8]],IF(EstLastUpdate>DATE(PEInflationTable[[#This Row],[Year]],9,1),0,(1+PEInflationTable[[#This Row],[Rate1]])^(1/12))) -> 1 | M19: =IF(PEInflationTable[[#This Row],[9]]>0,(1+PEInflationTable[[#This Row],[Rate1]])^(1/12)*PEInflationTable[[#This Row],[9]],IF(EstLastUpdate>DATE(PEInflationTable[[#This Row],[Year]],10,1),0,(1+PEInflationTable[[#This Row],[Rate1]])^(1/12))) -> 1 | N19: =IF(PEInflationTable[[#This Row],[10]]>0,(1+PEInflationTable[[#This Row],[Rate1]])^(1/12)*PEInflationTable[[#This Row],[10]],IF(EstLastUpdate>DATE(PEInflationTable[[#This Row],[Year]],11,1),0,(1+PEInflationTable[[#This Row],[Rate1]])^(1/12))) -> 1 | O19: =IF(PEInflationTable[[#This Row],[11]]>0,(1+PEInflationTable[[#This Row],[Rate1]])^(1/12)*PEInflationTable[[#This Row],[11]],IF(EstLastUpdate>DATE(PEInflationTable[[#This Row],[Year]],12,1),0,(1+PEInflationTable[[#This Row],[Rate1]])^(1/12))) -> 1 | Q19: 1909 | R19: 0 | S19: =IF(OFFSET(ROWInflationTable[[#This Row],[12]],-1,0)>0,(1+ROWInflationTable[[#This Row],[Rate1]])^(1/12)*OFFSET(ROWInflationTable[[#This Row],[12]],-1,0),IF(EstLastUpdate>DATE(ROWInflationTable[[#This Row],[Year]],1,1),0,(1+ROWInflationTable[[#This Row],[Rate1]])^(1/12))) -> 1 | T19: =IF(ROWInflationTable[[#This Row],[1]]>0,(1+ROWInflationTable[[#This Row],[Rate1]])^(1/12)*ROWInflationTable[[#This Row],[1]],IF(EstLastUpdate>DATE(ROWInflationTable[[#This Row],[Year]],2,1),0,(1+ROWInflationTable[[#This Row],[Rate1]])^(1/12))) -> 1 | U19: =IF(ROWInflationTable[[#This Row],[2]]>0,(1+ROWInflationTable[[#This Row],[Rate1]])^(1/12)*ROWInflationTable[[#This Row],[2]],IF(EstLastUpdate>DATE(ROWInflationTable[[#This Row],[Year]],3,1),0,(1+ROWInflationTable[[#This Row],[Rate1]])^(1/12))) -> 1 | V19: =IF(ROWInflationTable[[#This Row],[3]]>0,(1+ROWInflationTable[[#This Row],[Rate1]])^(1/12)*ROWInflationTable[[#This Row],[3]],IF(EstLastUpdate>DATE(ROWInflationTable[[#This Row],[Year]],4,1),0,(1+ROWInflationTable[[#This Row],[Rate1]])^(1/12))) -> 1 | W19: =IF(ROWInflationTable[[#This Row],[4]]>0,(1+ROWInflationTable[[#This Row],[Rate1]])^(1/12)*ROWInflationTable[[#This Row],[4]],IF(EstLastUpdate>DATE(ROWInflationTable[[#This Row],[Year]],5,1),0,(1+ROWInflationTable[[#This Row],[Rate1]])^(1/12))) -> 1 | X19: =IF(ROWInflationTable[[#This Row],[5]]>0,(1+ROWInflationTable[[#This Row],[Rate1]])^(1/12)*ROWInflationTable[[#This Row],[5]],IF(EstLastUpdate>DATE(ROWInflationTable[[#This Row],[Year]],6,1),0,(1+ROWInflationTable[[#This Row],[Rate1]])^(1/12))) -> 1 | Y19: =IF(ROWInflationTable[[#This Row],[6]]>0,(1+ROWInflationTable[[#This Row],[Rate1]])^(1/12)*ROWInflationTable[[#This Row],[6]],IF(EstLastUpdate>DATE(ROWInflationTable[[#This Row],[Year]],7,1),0,(1+ROWInflationTable[[#This Row],[Rate1]])^(1/12))) -> 1 | Z19: =IF(ROWInflationTable[[#This Row],[7]]>0,(1+ROWInflationTable[[#This Row],[Rate1]])^(1/12)*ROWInflationTable[[#This Row],[7]],IF(EstLastUpdate>DATE(ROWInflationTable[[#This Row],[Year]],8,1),0,(1+ROWInflationTable[[#This Row],[Rate1]])^(1/12))) -> 1 | AA19: =IF(ROWInflationTable[[#This Row],[8]]>0,(1+ROWInflationTable[[#This Row],[Rate1]])^(1/12)*ROWInflationTable[[#This Row],[8]],IF(EstLastUpdate>DATE(ROWInflationTable[[#This Row],[Year]],9,1),0,(1+ROWInflationTable[[#This Row],[Rate1]])^(1/12))) -> 1 | AB19: =IF(ROWInflationTable[[#This Row],[9]]>0,(1+ROWInflationTable[[#This Row],[Rate1]])^(1/12)*ROWInflationTable[[#This Row],[9]],IF(EstLastUpdate>DATE(ROWInflationTable[[#This Row],[Year]],10,1),0,(1+ROWInflationTable[[#This Row],[Rate1]])^(1/12))) -> 1 | AC19: =IF(ROWInflationTable[[#This Row],[10]]>0,(1+ROWInflationTable[[#This Row],[Rate1]])^(1/12)*ROWInflationTable[[#This Row],[10]],IF(EstLastUpdate>DATE(ROWInflationTable[[#This Row],[Year]],11,1),0,(1+ROWInflationTable[[#This Row],[Rate1]])^(1/12))) -> 1 | AD19: =IF(ROWInflationTable[[#This Row],[11]]>0,(1+ROWInflationTable[[#This Row],[Rate1]])^(1/12)*ROWInflationTable[[#This Row],[11]],IF(EstLastUpdate>DATE(ROWInflationTable[[#This Row],[Year]],12,1),0,(1+ROWInflationTable[[#This Row],[Rate1]])^(1/12))) -> 1 | AF19: 1909 | AG19: 0 | AH19: =IF(OFFSET(CNInflationTable[[#This Row],[12]],-1,0)>0,(1+CNInflationTable[[#This Row],[Rate1]])^(1/12)*OFFSET(CNInflationTable[[#This Row],[12]],-1,0),IF(EstLastUpdate>DATE(CNInflationTable[[#This Row],[Year]],1,1),0,(1+CNInflationTable[[#This Row],[Rate1]])^(1/12))) -> 1 | AI19: =IF(CNInflationTable[[#This Row],[1]]>0,(1+CNInflationTable[[#This Row],[Rate1]])^(1/12)*CNInflationTable[[#This Row],[1]],IF(EstLastUpdate>DATE(CNInflationTable[[#This Row],[Year]],2,1),0,(1+CNInflationTable[[#This Row],[Rate1]])^(1/12))) -> 1 | AJ19: =IF(CNInflationTable[[#This Row],[2]]>0,(1+CNInflationTable[[#This Row],[Rate1]])^(1/12)*CNInflationTable[[#This Row],[2]],IF(EstLastUpdate>DATE(CNInflationTable[[#This Row],[Year]],3,1),0,(1+CNInflationTable[[#This Row],[Rate1]])^(1/12))) -> 1 | AK19: =IF(CNInflationTable[[#This Row],[3]]>0,(1+CNInflationTable[[#This Row],[Rate1]])^(1/12)*CNInflationTable[[#This Row],[3]],IF(EstLastUpdate>DATE(CNInflationTable[[#This Row],[Year]],4,1),0,(1+CNInflationTable[[#This Row],[Rate1]])^(1/12))) -> 1 | AL19: =IF(CNInflationTable[[#This Row],[4]]>0,(1+CNInflationTable[[#This Row],[Rate1]])^(1/12)*CNInflationTable[[#This Row],[4]],IF(EstLastUpdate>DATE(CNInflationTable[[#This Row],[Year]],5,1),0,(1+CNInflationTable[[#This Row],[Rate1]])^(1/12))) -> 1 | AM19: =IF(CNInflationTable[[#This Row],[5]]>0,(1+CNInflationTable[[#This Row],[Rate1]])^(1/12)*CNInflationTable[[#This Row],[5]],IF(EstLastUpdate>DATE(CNInflationTable[[#This Row],[Year]],6,1),0,(1+CNInflationTable[[#This Row],[Rate1]])^(1/12))) -> 1 | AN19: =IF(CNInflationTable[[#This Row],[6]]>0,(1+CNInflationTable[[#This Row],[Rate1]])^(1/12)*CNInflationTable[[#This Row],[6]],IF(EstLastUpdate>DATE(CNInflationTable[[#This Row],[Year]],7,1),0,(1+CNInflationTable[[#This Row],[Rate1]])^(1/12))) -> 1 | AO19: =IF(CNInflationTable[[#This Row],[7]]>0,(1+CNInflationTable[[#This Row],[Rate1]])^(1/12)*CNInflationTable[[#This Row],[7]],IF(EstLastUpdate>DATE(CNInflationTable[[#This Row],[Year]],8,1),0,(1+CNInflationTable[[#This Row],[Rate1]])^(1/12))) -> 1 | AP19: =IF(CNInflationTable[[#This Row],[8]]>0,(1+CNInflationTable[[#This Row],[Rate1]])^(1/12)*CNInflationTable[[#This Row],[8]],IF(EstLastUpdate>DATE(CNInflationTable[[#This Row],[Year]],9,1),0,(1+CNInflationTable[[#This Row],[Rate1]])^(1/12))) -> 1 | AQ19: =IF(CNInflationTable[[#This Row],[9]]>0,(1+CNInflationTable[[#This Row],[Rate1]])^(1/12)*CNInflationTable[[#This Row],[9]],IF(EstLastUpdate>DATE(CNInflationTable[[#This Row],[Year]],10,1),0,(1+CNInflationTable[[#This Row],[Rate1]])^(1/12))) -> 1 | AR19: =IF(CNInflationTable[[#This Row],[10]]>0,(1+CNInflationTable[[#This Row],[Rate1]])^(1/12)*CNInflationTable[[#This Row],[10]],IF(EstLastUpdate>DATE(CNInflationTable[[#This Row],[Year]],11,1),0,(1+CNInflationTable[[#This Row],[Rate1]])^(1/12))) -> 1 | AS19: =IF(CNInflationTable[[#This Row],[11]]>0,(1+CNInflationTable[[#This Row],[Rate1]])^(1/12)*CNInflationTable[[#This Row],[11]],IF(EstLastUpdate>DATE(CNInflationTable[[#This Row],[Year]],12,1),0,(1+CNInflationTable[[#This Row],[Rate1]])^(1/12))) -> 1 | AU19: 1909 | AV19: 0 | AW19: =IF(OFFSET(UTInflationTable[[#This Row],[12]],-1,0)>0,(1+UTInflationTable[[#This Row],[Rate1]])^(1/12)*OFFSET(UTInflationTable[[#This Row],[12]],-1,0),IF(EstLastUpdate>DATE(UTInflationTable[[#This Row],[Year]],1,1),0,(1+UTInflationTable[[#This Row],[Rate1]])^(1/12))) -> 1 | AX19: =IF(UTInflationTable[[#This Row],[1]]>0,(1+UTInflationTable[[#This Row],[Rate1]])^(1/12)*UTInflationTable[[#This Row],[1]],IF(EstLastUpdate>DATE(UTInflationTable[[#This Row],[Year]],2,1),0,(1+UTInflationTable[[#This Row],[Rate1]])^(1/12))) -> 1 | AY19: =IF(UTInflationTable[[#This Row],[2]]>0,(1+UTInflationTable[[#This Row],[Rate1]])^(1/12)*UTInflationTable[[#This Row],[2]],IF(EstLastUpdate>DATE(UTInflationTable[[#This Row],[Year]],3,1),0,(1+UTInflationTable[[#This Row],[Rate1]])^(1/12))) -> 1 | AZ19: =IF(UTInflationTable[[#This Row],[3]]>0,(1+UTInflationTable[[#This Row],[Rate1]])^(1/12)*UTInflationTable[[#This Row],[3]],IF(EstLastUpdate>DATE(UTInflationTable[[#This Row],[Year]],4,1),0,(1+UTInflationTable[[#This Row],[Rate1]])^(1/12))) -> 1 | BA19: =IF(UTInflationTable[[#This Row],[4]]>0,(1+UTInflationTable[[#This Row],[Rate1]])^(1/12)*UTInflationTable[[#This Row],[4]],IF(EstLastUpdate>DATE(UTInflationTable[[#This Row],[Year]],5,1),0,(1+UTInflationTable[[#This Row],[Rate1]])^(1/12))) -> 1 | BB19: =IF(UTInflationTable[[#This Row],[5]]>0,(1+UTInflationTable[[#This Row],[Rate1]])^(1/12)*UTInflationTable[[#This Row],[5]],IF(EstLastUpdate>DATE(UTInflationTable[[#This Row],[Year]],6,1),0,(1+UTInflationTable[[#This Row],[Rate1]])^(1/12))) -> 1 | BC19: =IF(UTInflationTable[[#This Row],[6]]>0,(1+UTInflationTable[[#This Row],[Rate1]])^(1/12)*UTInflationTable[[#This Row],[6]],IF(EstLastUpdate>DATE(UTInflationTable[[#This Row],[Year]],7,1),0,(1+UTInflationTable[[#This Row],[Rate1]])^(1/12))) -> 1 | BD19: =IF(UTInflationTable[[#This Row],[7]]>0,(1+UTInflationTable[[#This Row],[Rate1]])^(1/12)*UTInflationTable[[#This Row],[7]],IF(EstLastUpdate>DATE(UTInflationTable[[#This Row],[Year]],8,1),0,(1+UTInflationTable[[#This Row],[Rate1]])^(1/12))) -> 1 | BE19: =IF(UTInflationTable[[#This Row],[8]]>0,(1+UTInflationTable[[#This Row],[Rate1]])^(1/12)*UTInflationTable[[#This Row],[8]],IF(EstLastUpdate>DATE(UTInflationTable[[#This Row],[Year]],9,1),0,(1+UTInflationTable[[#This Row],[Rate1]])^(1/12))) -> 1 | BF19: =IF(UTInflationTable[[#This Row],[9]]>0,(1+UTInflationTable[[#This Row],[Rate1]])^(1/12)*UTInflationTable[[#This Row],[9]],IF(EstLastUpdate>DATE(UTInflationTable[[#This Row],[Year]],10,1),0,(1+UTInflationTable[[#This Row],[Rate1]])^(1/12))) -> 1 | BG19: =IF(UTInflationTable[[#This Row],[10]]>0,(1+UTInflationTable[[#This Row],[Rate1]])^(1/12)*UTInflationTable[[#This Row],[10]],IF(EstLastUpdate>DATE(UTInflationTable[[#This Row],[Year]],11,1),0,(1+UTInflationTable[[#This Row],[Rate1]])^(1/12))) -> 1 | BH19: =IF(UTInflationTable[[#This Row],[11]]>0,(1+UTInflationTable[[#This Row],[Rate1]])^(1/12)*UTInflationTable[[#This Row],[11]],IF(EstLastUpdate>DATE(UTInflationTable[[#This Row],[Year]],12,1),0,(1+UTInflationTable[[#This Row],[Rate1]])^(1/12))) -> 1
B20: =OFFSET(PEInflationTable[[#This Row],[Year]],-1,0)+1 -> 1910 | C20: 0 | D20: =IF(OFFSET(PEInflationTable[[#This Row],[12]],-1,0)>0,(1+PEInflationTable[[#This Row],[Rate1]])^(1/12)*OFFSET(PEInflationTable[[#This Row],[12]],-1,0),IF(EstLastUpdate>DATE(PEInflationTable[[#This Row],[Year]],1,1),0,(1+PEInflationTable[[#This Row],[Rate1]])^(1/12))) -> 1 | E20: =IF(PEInflationTable[[#This Row],[1]]>0,(1+PEInflationTable[[#This Row],[Rate1]])^(1/12)*PEInflationTable[[#This Row],[1]],IF(EstLastUpdate>DATE(PEInflationTable[[#This Row],[Year]],2,1),0,(1+PEInflationTable[[#This Row],[Rate1]])^(1/12))) -> 1 | F20: =IF(PEInflationTable[[#This Row],[2]]>0,(1+PEInflationTable[[#This Row],[Rate1]])^(1/12)*PEInflationTable[[#This Row],[2]],IF(EstLastUpdate>DATE(PEInflationTable[[#This Row],[Year]],3,1),0,(1+PEInflationTable[[#This Row],[Rate1]])^(1/12))) -> 1 | G20: =IF(PEInflationTable[[#This Row],[3]]>0,(1+PEInflationTable[[#This Row],[Rate1]])^(1/12)*PEInflationTable[[#This Row],[3]],IF(EstLastUpdate>DATE(PEInflationTable[[#This Row],[Year]],4,1),0,(1+PEInflationTable[[#This Row],[Rate1]])^(1/12))) -> 1 | H20: =IF(PEInflationTable[[#This Row],[4]]>0,(1+PEInflationTable[[#This Row],[Rate1]])^(1/12)*PEInflationTable[[#This Row],[4]],IF(EstLastUpdate>DATE(PEInflationTable[[#This Row],[Year]],5,1),0,(1+PEInflationTable[[#This Row],[Rate1]])^(1/12))) -> 1 | I20: =IF(PEInflationTable[[#This Row],[5]]>0,(1+PEInflationTable[[#This Row],[Rate1]])^(1/12)*PEInflationTable[[#This Row],[5]],IF(EstLastUpdate>DATE(PEInflationTable[[#This Row],[Year]],6,1),0,(1+PEInflationTable[[#This Row],[Rate1]])^(1/12))) -> 1 | J20: =IF(PEInflationTable[[#This Row],[6]]>0,(1+PEInflationTable[[#This Row],[Rate1]])^(1/12)*PEInflationTable[[#This Row],[6]],IF(EstLastUpdate>DATE(PEInflationTable[[#This Row],[Year]],7,1),0,(1+PEInflationTable[[#This Row],[Rate1]])^(1/12))) -> 1 | K20: =IF(PEInflationTable[[#This Row],[7]]>0,(1+PEInflationTable[[#This Row],[Rate1]])^(1/12)*PEInflationTable[[#This Row],[7]],IF(EstLastUpdate>DATE(PEInflationTable[[#This Row],[Year]],8,1),0,(1+PEInflationTable[[#This Row],[Rate1]])^(1/12))) -> 1 | L20: =IF(PEInflationTable[[#This Row],[8]]>0,(1+PEInflationTable[[#This Row],[Rate1]])^(1/12)*PEInflationTable[[#This Row],[8]],IF(EstLastUpdate>DATE(PEInflationTable[[#This Row],[Year]],9,1),0,(1+PEInflationTable[[#This Row],[Rate1]])^(1/12))) -> 1 | M20: =IF(PEInflationTable[[#This Row],[9]]>0,(1+PEInflationTable[[#This Row],[Rate1]])^(1/12)*PEInflationTable[[#This Row],[9]],IF(EstLastUpdate>DATE(PEInflationTable[[#This Row],[Year]],10,1),0,(1+PEInflationTable[[#This Row],[Rate1]])^(1/12))) -> 1 | N20: =IF(PEInflationTable[[#This Row],[10]]>0,(1+PEInflationTable[[#This Row],[Rate1]])^(1/12)*PEInflationTable[[#This Row],[10]],IF(EstLastUpdate>DATE(PEInflationTable[[#This Row],[Year]],11,1),0,(1+PEInflationTable[[#This Row],[Rate1]])^(1/12))) -> 1 | O20: =IF(PEInflationTable[[#This Row],[11]]>0,(1+PEInflationTable[[#This Row],[Rate1]])^(1/12)*PEInflationTable[[#This Row],[11]],IF(EstLastUpdate>DATE(PEInflationTable[[#This Row],[Year]],12,1),0,(1+PEInflationTable[[#This Row],[Rate1]])^(1/12))) -> 1 | Q20: 1910 | R20: 0 | S20: =IF(OFFSET(ROWInflationTable[[#This Row],[12]],-1,0)>0,(1+ROWInflationTable[[#This Row],[Rate1]])^(1/12)*OFFSET(ROWInflationTable[[#This Row],[12]],-1,0),IF(EstLastUpdate>DATE(ROWInflationTable[[#This Row],[Year]],1,1),0,(1+ROWInflationTable[[#This Row],[Rate1]])^(1/12))) -> 1 | T20: =IF(ROWInflationTable[[#This Row],[1]]>0,(1+ROWInflationTable[[#This Row],[Rate1]])^(1/12)*ROWInflationTable[[#This Row],[1]],IF(EstLastUpdate>DATE(ROWInflationTable[[#This Row],[Year]],2,1),0,(1+ROWInflationTable[[#This Row],[Rate1]])^(1/12))) -> 1 | U20: =IF(ROWInflationTable[[#This Row],[2]]>0,(1+ROWInflationTable[[#This Row],[Rate1]])^(1/12)*ROWInflationTable[[#This Row],[2]],IF(EstLastUpdate>DATE(ROWInflationTable[[#This Row],[Year]],3,1),0,(1+ROWInflationTable[[#This Row],[Rate1]])^(1/12))) -> 1 | V20: =IF(ROWInflationTable[[#This Row],[3]]>0,(1+ROWInflationTable[[#This Row],[Rate1]])^(1/12)*ROWInflationTable[[#This Row],[3]],IF(EstLastUpdate>DATE(ROWInflationTable[[#This Row],[Year]],4,1),0,(1+ROWInflationTable[[#This Row],[Rate1]])^(1/12))) -> 1 | W20: =IF(ROWInflationTable[[#This Row],[4]]>0,(1+ROWInflationTable[[#This Row],[Rate1]])^(1/12)*ROWInflationTable[[#This Row],[4]],IF(EstLastUpdate>DATE(ROWInflationTable[[#This Row],[Year]],5,1),0,(1+ROWInflationTable[[#This Row],[Rate1]])^(1/12))) -> 1 | X20: =IF(ROWInflationTable[[#This Row],[5]]>0,(1+ROWInflationTable[[#This Row],[Rate1]])^(1/12)*ROWInflationTable[[#This Row],[5]],IF(EstLastUpdate>DATE(ROWInflationTable[[#This Row],[Year]],6,1),0,(1+ROWInflationTable[[#This Row],[Rate1]])^(1/12))) -> 1 | Y20: =IF(ROWInflationTable[[#This Row],[6]]>0,(1+ROWInflationTable[[#This Row],[Rate1]])^(1/12)*ROWInflationTable[[#This Row],[6]],IF(EstLastUpdate>DATE(ROWInflationTable[[#This Row],[Year]],7,1),0,(1+ROWInflationTable[[#This Row],[Rate1]])^(1/12))) -> 1 | Z20: =IF(ROWInflationTable[[#This Row],[7]]>0,(1+ROWInflationTable[[#This Row],[Rate1]])^(1/12)*ROWInflationTable[[#This Row],[7]],IF(EstLastUpdate>DATE(ROWInflationTable[[#This Row],[Year]],8,1),0,(1+ROWInflationTable[[#This Row],[Rate1]])^(1/12))) -> 1 | AA20: =IF(ROWInflationTable[[#This Row],[8]]>0,(1+ROWInflationTable[[#This Row],[Rate1]])^(1/12)*ROWInflationTable[[#This Row],[8]],IF(EstLastUpdate>DATE(ROWInflationTable[[#This Row],[Year]],9,1),0,(1+ROWInflationTable[[#This Row],[Rate1]])^(1/12))) -> 1 | AB20: =IF(ROWInflationTable[[#This Row],[9]]>0,(1+ROWInflationTable[[#This Row],[Rate1]])^(1/12)*ROWInflationTable[[#This Row],[9]],IF(EstLastUpdate>DATE(ROWInflationTable[[#This Row],[Year]],10,1),0,(1+ROWInflationTable[[#This Row],[Rate1]])^(1/12))) -> 1 | AC20: =IF(ROWInflationTable[[#This Row],[10]]>0,(1+ROWInflationTable[[#This Row],[Rate1]])^(1/12)*ROWInflationTable[[#This Row],[10]],IF(EstLastUpdate>DATE(ROWInflationTable[[#This Row],[Year]],11,1),0,(1+ROWInflationTable[[#This Row],[Rate1]])^(1/12))) -> 1 | AD20: =IF(ROWInflationTable[[#This Row],[11]]>0,(1+ROWInflationTable[[#This Row],[Rate1]])^(1/12)*ROWInflationTable[[#This Row],[11]],IF(EstLastUpdate>DATE(ROWInflationTable[[#This Row],[Year]],12,1),0,(1+ROWInflationTable[[#This Row],[Rate1]])^(1/12))) -> 1 | AF20: 1910 | AG20: 0 | AH20: =IF(OFFSET(CNInflationTable[[#This Row],[12]],-1,0)>0,(1+CNInflationTable[[#This Row],[Rate1]])^(1/12)*OFFSET(CNInflationTable[[#This Row],[12]],-1,0),IF(EstLastUpdate>DATE(CNInflationTable[[#This Row],[Year]],1,1),0,(1+CNInflationTable[[#This Row],[Rate1]])^(1/12))) -> 1 | AI20: =IF(CNInflationTable[[#This Row],[1]]>0,(1+CNInflationTable[[#This Row],[Rate1]])^(1/12)*CNInflationTable[[#This Row],[1]],IF(EstLastUpdate>DATE(CNInflationTable[[#This Row],[Year]],2,1),0,(1+CNInflationTable[[#This Row],[Rate1]])^(1/12))) -> 1 | AJ20: =IF(CNInflationTable[[#This Row],[2]]>0,(1+CNInflationTable[[#This Row],[Rate1]])^(1/12)*CNInflationTable[[#This Row],[2]],IF(EstLastUpdate>DATE(CNInflationTable[[#This Row],[Year]],3,1),0,(1+CNInflationTable[[#This Row],[Rate1]])^(1/12))) -> 1 | AK20: =IF(CNInflationTable[[#This Row],[3]]>0,(1+CNInflationTable[[#This Row],[Rate1]])^(1/12)*CNInflationTable[[#This Row],[3]],IF(EstLastUpdate>DATE(CNInflationTable[[#This Row],[Year]],4,1),0,(1+CNInflationTable[[#This Row],[Rate1]])^(1/12))) -> 1 | AL20: =IF(CNInflationTable[[#This Row],[4]]>0,(1+CNInflationTable[[#This Row],[Rate1]])^(1/12)*CNInflationTable[[#This Row],[4]],IF(EstLastUpdate>DATE(CNInflationTable[[#This Row],[Year]],5,1),0,(1+CNInflationTable[[#This Row],[Rate1]])^(1/12))) -> 1 | AM20: =IF(CNInflationTable[[#This Row],[5]]>0,(1+CNInflationTable[[#This Row],[Rate1]])^(1/12)*CNInflationTable[[#This Row],[5]],IF(EstLastUpdate>DATE(CNInflationTable[[#This Row],[Year]],6,1),0,(1+CNInflationTable[[#This Row],[Rate1]])^(1/12))) -> 1 | AN20: =IF(CNInflationTable[[#This Row],[6]]>0,(1+CNInflationTable[[#This Row],[Rate1]])^(1/12)*CNInflationTable[[#This Row],[6]],IF(EstLastUpdate>DATE(CNInflationTable[[#This Row],[Year]],7,1),0,(1+CNInflationTable[[#This Row],[Rate1]])^(1/12))) -> 1 | AO20: =IF(CNInflationTable[[#This Row],[7]]>0,(1+CNInflationTable[[#This Row],[Rate1]])^(1/12)*CNInflationTable[[#This Row],[7]],IF(EstLastUpdate>DATE(CNInflationTable[[#This Row],[Year]],8,1),0,(1+CNInflationTable[[#This Row],[Rate1]])^(1/12))) -> 1 | AP20: =IF(CNInflationTable[[#This Row],[8]]>0,(1+CNInflationTable[[#This Row],[Rate1]])^(1/12)*CNInflationTable[[#This Row],[8]],IF(EstLastUpdate>DATE(CNInflationTable[[#This Row],[Year]],9,1),0,(1+CNInflationTable[[#This Row],[Rate1]])^(1/12))) -> 1 | AQ20: =IF(CNInflationTable[[#This Row],[9]]>0,(1+CNInflationTable[[#This Row],[Rate1]])^(1/12)*CNInflationTable[[#This Row],[9]],IF(EstLastUpdate>DATE(CNInflationTable[[#This Row],[Year]],10,1),0,(1+CNInflationTable[[#This Row],[Rate1]])^(1/12))) -> 1 | AR20: =IF(CNInflationTable[[#This Row],[10]]>0,(1+CNInflationTable[[#This Row],[Rate1]])^(1/12)*CNInflationTable[[#This Row],[10]],IF(EstLastUpdate>DATE(CNInflationTable[[#This Row],[Year]],11,1),0,(1+CNInflationTable[[#This Row],[Rate1]])^(1/12))) -> 1 | AS20: =IF(CNInflationTable[[#This Row],[11]]>0,(1+CNInflationTable[[#This Row],[Rate1]])^(1/12)*CNInflationTable[[#This Row],[11]],IF(EstLastUpdate>DATE(CNInflationTable[[#This Row],[Year]],12,1),0,(1+CNInflationTable[[#This Row],[Rate1]])^(1/12))) -> 1 | AU20: 1910 | AV20: 0 | AW20: =IF(OFFSET(UTInflationTable[[#This Row],[12]],-1,0)>0,(1+UTInflationTable[[#This Row],[Rate1]])^(1/12)*OFFSET(UTInflationTable[[#This Row],[12]],-1,0),IF(EstLastUpdate>DATE(UTInflationTable[[#This Row],[Year]],1,1),0,(1+UTInflationTable[[#This Row],[Rate1]])^(1/12))) -> 1 | AX20: =IF(UTInflationTable[[#This Row],[1]]>0,(1+UTInflationTable[[#This Row],[Rate1]])^(1/12)*UTInflationTable[[#This Row],[1]],IF(EstLastUpdate>DATE(UTInflationTable[[#This Row],[Year]],2,1),0,(1+UTInflationTable[[#This Row],[Rate1]])^(1/12))) -> 1 | AY20: =IF(UTInflationTable[[#This Row],[2]]>0,(1+UTInflationTable[[#This Row],[Rate1]])^(1/12)*UTInflationTable[[#This Row],[2]],IF(EstLastUpdate>DATE(UTInflationTable[[#This Row],[Year]],3,1),0,(1+UTInflationTable[[#This Row],[Rate1]])^(1/12))) -> 1 | AZ20: =IF(UTInflationTable[[#This Row],[3]]>0,(1+UTInflationTable[[#This Row],[Rate1]])^(1/12)*UTInflationTable[[#This Row],[3]],IF(EstLastUpdate>DATE(UTInflationTable[[#This Row],[Year]],4,1),0,(1+UTInflationTable[[#This Row],[Rate1]])^(1/12))) -> 1 | BA20: =IF(UTInflationTable[[#This Row],[4]]>0,(1+UTInflationTable[[#This Row],[Rate1]])^(1/12)*UTInflationTable[[#This Row],[4]],IF(EstLastUpdate>DATE(UTInflationTable[[#This Row],[Year]],5,1),0,(1+UTInflationTable[[#This Row],[Rate1]])^(1/12))) -> 1 | BB20: =IF(UTInflationTable[[#This Row],[5]]>0,(1+UTInflationTable[[#This Row],[Rate1]])^(1/12)*UTInflationTable[[#This Row],[5]],IF(EstLastUpdate>DATE(UTInflationTable[[#This Row],[Year]],6,1),0,(1+UTInflationTable[[#This Row],[Rate1]])^(1/12))) -> 1 | BC20: =IF(UTInflationTable[[#This Row],[6]]>0,(1+UTInflationTable[[#This Row],[Rate1]])^(1/12)*UTInflationTable[[#This Row],[6]],IF(EstLastUpdate>DATE(UTInflationTable[[#This Row],[Year]],7,1),0,(1+UTInflationTable[[#This Row],[Rate1]])^(1/12))) -> 1 | BD20: =IF(UTInflationTable[[#This Row],[7]]>0,(1+UTInflationTable[[#This Row],[Rate1]])^(1/12)*UTInflationTable[[#This Row],[7]],IF(EstLastUpdate>DATE(UTInflationTable[[#This Row],[Year]],8,1),0,(1+UTInflationTable[[#This Row],[Rate1]])^(1/12))) -> 1 | BE20: =IF(UTInflationTable[[#This Row],[8]]>0,(1+UTInflationTable[[#This Row],[Rate1]])^(1/12)*UTInflationTable[[#This Row],[8]],IF(EstLastUpdate>DATE(UTInflationTable[[#This Row],[Year]],9,1),0,(1+UTInflationTable[[#This Row],[Rate1]])^(1/12))) -> 1 | BF20: =IF(UTInflationTable[[#This Row],[9]]>0,(1+UTInflationTable[[#This Row],[Rate1]])^(1/12)*UTInflationTable[[#This Row],[9]],IF(EstLastUpdate>DATE(UTInflationTable[[#This Row],[Year]],10,1),0,(1+UTInflationTable[[#This Row],[Rate1]])^(1/12))) -> 1 | BG20: =IF(UTInflationTable[[#This Row],[10]]>0,(1+UTInflationTable[[#This Row],[Rate1]])^(1/12)*UTInflationTable[[#This Row],[10]],IF(EstLastUpdate>DATE(UTInflationTable[[#This Row],[Year]],11,1),0,(1+UTInflationTable[[#This Row],[Rate1]])^(1/12))) -> 1 | BH20: =IF(UTInflationTable[[#This Row],[11]]>0,(1+UTInflationTable[[#This Row],[Rate1]])^(1/12)*UTInflationTable[[#This Row],[11]],IF(EstLastUpdate>DATE(UTInflationTable[[#This Row],[Year]],12,1),0,(1+UTInflationTable[[#This Row],[Rate1]])^(1/12))) -> 1
B21: =OFFSET(PEInflationTable[[#This Row],[Year]],-1,0)+1 -> 1911 | C21: 0 | D21: =IF(OFFSET(PEInflationTable[[#This Row],[12]],-1,0)>0,(1+PEInflationTable[[#This Row],[Rate1]])^(1/12)*OFFSET(PEInflationTable[[#This Row],[12]],-1,0),IF(EstLastUpdate>DATE(PEInflationTable[[#This Row],[Year]],1,1),0,(1+PEInflationTable[[#This Row],[Rate1]])^(1/12))) -> 1 | E21: =IF(PEInflationTable[[#This Row],[1]]>0,(1+PEInflationTable[[#This Row],[Rate1]])^(1/12)*PEInflationTable[[#This Row],[1]],IF(EstLastUpdate>DATE(PEInflationTable[[#This Row],[Year]],2,1),0,(1+PEInflationTable[[#This Row],[Rate1]])^(1/12))) -> 1 | F21: =IF(PEInflationTable[[#This Row],[2]]>0,(1+PEInflationTable[[#This Row],[Rate1]])^(1/12)*PEInflationTable[[#This Row],[2]],IF(EstLastUpdate>DATE(PEInflationTable[[#This Row],[Year]],3,1),0,(1+PEInflationTable[[#This Row],[Rate1]])^(1/12))) -> 1 | G21: =IF(PEInflationTable[[#This Row],[3]]>0,(1+PEInflationTable[[#This Row],[Rate1]])^(1/12)*PEInflationTable[[#This Row],[3]],IF(EstLastUpdate>DATE(PEInflationTable[[#This Row],[Year]],4,1),0,(1+PEInflationTable[[#This Row],[Rate1]])^(1/12))) -> 1 | H21: =IF(PEInflationTable[[#This Row],[4]]>0,(1+PEInflationTable[[#This Row],[Rate1]])^(1/12)*PEInflationTable[[#This Row],[4]],IF(EstLastUpdate>DATE(PEInflationTable[[#This Row],[Year]],5,1),0,(1+PEInflationTable[[#This Row],[Rate1]])^(1/12))) -> 1 | I21: =IF(PEInflationTable[[#This Row],[5]]>0,(1+PEInflationTable[[#This Row],[Rate1]])^(1/12)*PEInflationTable[[#This Row],[5]],IF(EstLastUpdate>DATE(PEInflationTable[[#This Row],[Year]],6,1),0,(1+PEInflationTable[[#This Row],[Rate1]])^(1/12))) -> 1 | J21: =IF(PEInflationTable[[#This Row],[6]]>0,(1+PEInflationTable[[#This Row],[Rate1]])^(1/12)*PEInflationTable[[#This Row],[6]],IF(EstLastUpdate>DATE(PEInflationTable[[#This Row],[Year]],7,1),0,(1+PEInflationTable[[#This Row],[Rate1]])^(1/12))) -> 1 | K21: =IF(PEInflationTable[[#This Row],[7]]>0,(1+PEInflationTable[[#This Row],[Rate1]])^(1/12)*PEInflationTable[[#This Row],[7]],IF(EstLastUpdate>DATE(PEInflationTable[[#This Row],[Year]],8,1),0,(1+PEInflationTable[[#This Row],[Rate1]])^(1/12))) -> 1 | L21: =IF(PEInflationTable[[#This Row],[8]]>0,(1+PEInflationTable[[#This Row],[Rate1]])^(1/12)*PEInflationTable[[#This Row],[8]],IF(EstLastUpdate>DATE(PEInflationTable[[#This Row],[Year]],9,1),0,(1+PEInflationTable[[#This Row],[Rate1]])^(1/12))) -> 1 | M21: =IF(PEInflationTable[[#This Row],[9]]>0,(1+PEInflationTable[[#This Row],[Rate1]])^(1/12)*PEInflationTable[[#This Row],[9]],IF(EstLastUpdate>DATE(PEInflationTable[[#This Row],[Year]],10,1),0,(1+PEInflationTable[[#This Row],[Rate1]])^(1/12))) -> 1 | N21: =IF(PEInflationTable[[#This Row],[10]]>0,(1+PEInflationTable[[#This Row],[Rate1]])^(1/12)*PEInflationTable[[#This Row],[10]],IF(EstLastUpdate>DATE(PEInflationTable[[#This Row],[Year]],11,1),0,(1+PEInflationTable[[#This Row],[Rate1]])^(1/12))) -> 1 | O21: =IF(PEInflationTable[[#This Row],[11]]>0,(1+PEInflationTable[[#This Row],[Rate1]])^(1/12)*PEInflationTable[[#This Row],[11]],IF(EstLastUpdate>DATE(PEInflationTable[[#This Row],[Year]],12,1),0,(1+PEInflationTable[[#This Row],[Rate1]])^(1/12))) -> 1 | Q21: 1911 | R21: 0 | S21: =IF(OFFSET(ROWInflationTable[[#This Row],[12]],-1,0)>0,(1+ROWInflationTable[[#This Row],[Rate1]])^(1/12)*OFFSET(ROWInflationTable[[#This Row],[12]],-1,0),IF(EstLastUpdate>DATE(ROWInflationTable[[#This Row],[Year]],1,1),0,(1+ROWInflationTable[[#This Row],[Rate1]])^(1/12))) -> 1 | T21: =IF(ROWInflationTable[[#This Row],[1]]>0,(1+ROWInflationTable[[#This Row],[Rate1]])^(1/12)*ROWInflationTable[[#This Row],[1]],IF(EstLastUpdate>DATE(ROWInflationTable[[#This Row],[Year]],2,1),0,(1+ROWInflationTable[[#This Row],[Rate1]])^(1/12))) -> 1 | U21: =IF(ROWInflationTable[[#This Row],[2]]>0,(1+ROWInflationTable[[#This Row],[Rate1]])^(1/12)*ROWInflationTable[[#This Row],[2]],IF(EstLastUpdate>DATE(ROWInflationTable[[#This Row],[Year]],3,1),0,(1+ROWInflationTable[[#This Row],[Rate1]])^(1/12))) -> 1 | V21: =IF(ROWInflationTable[[#This Row],[3]]>0,(1+ROWInflationTable[[#This Row],[Rate1]])^(1/12)*ROWInflationTable[[#This Row],[3]],IF(EstLastUpdate>DATE(ROWInflationTable[[#This Row],[Year]],4,1),0,(1+ROWInflationTable[[#This Row],[Rate1]])^(1/12))) -> 1 | W21: =IF(ROWInflationTable[[#This Row],[4]]>0,(1+ROWInflationTable[[#This Row],[Rate1]])^(1/12)*ROWInflationTable[[#This Row],[4]],IF(EstLastUpdate>DATE(ROWInflationTable[[#This Row],[Year]],5,1),0,(1+ROWInflationTable[[#This Row],[Rate1]])^(1/12))) -> 1 | X21: =IF(ROWInflationTable[[#This Row],[5]]>0,(1+ROWInflationTable[[#This Row],[Rate1]])^(1/12)*ROWInflationTable[[#This Row],[5]],IF(EstLastUpdate>DATE(ROWInflationTable[[#This Row],[Year]],6,1),0,(1+ROWInflationTable[[#This Row],[Rate1]])^(1/12))) -> 1 | Y21: =IF(ROWInflationTable[[#This Row],[6]]>0,(1+ROWInflationTable[[#This Row],[Rate1]])^(1/12)*ROWInflationTable[[#This Row],[6]],IF(EstLastUpdate>DATE(ROWInflationTable[[#This Row],[Year]],7,1),0,(1+ROWInflationTable[[#This Row],[Rate1]])^(1/12))) -> 1 | Z21: =IF(ROWInflationTable[[#This Row],[7]]>0,(1+ROWInflationTable[[#This Row],[Rate1]])^(1/12)*ROWInflationTable[[#This Row],[7]],IF(EstLastUpdate>DATE(ROWInflationTable[[#This Row],[Year]],8,1),0,(1+ROWInflationTable[[#This Row],[Rate1]])^(1/12))) -> 1 | AA21: =IF(ROWInflationTable[[#This Row],[8]]>0,(1+ROWInflationTable[[#This Row],[Rate1]])^(1/12)*ROWInflationTable[[#This Row],[8]],IF(EstLastUpdate>DATE(ROWInflationTable[[#This Row],[Year]],9,1),0,(1+ROWInflationTable[[#This Row],[Rate1]])^(1/12))) -> 1 | AB21: =IF(ROWInflationTable[[#This Row],[9]]>0,(1+ROWInflationTable[[#This Row],[Rate1]])^(1/12)*ROWInflationTable[[#This Row],[9]],IF(EstLastUpdate>DATE(ROWInflationTable[[#This Row],[Year]],10,1),0,(1+ROWInflationTable[[#This Row],[Rate1]])^(1/12))) -> 1 | AC21: =IF(ROWInflationTable[[#This Row],[10]]>0,(1+ROWInflationTable[[#This Row],[Rate1]])^(1/12)*ROWInflationTable[[#This Row],[10]],IF(EstLastUpdate>DATE(ROWInflationTable[[#This Row],[Year]],11,1),0,(1+ROWInflationTable[[#This Row],[Rate1]])^(1/12))) -> 1 | AD21: =IF(ROWInflationTable[[#This Row],[11]]>0,(1+ROWInflationTable[[#This Row],[Rate1]])^(1/12)*ROWInflationTable[[#This Row],[11]],IF(EstLastUpdate>DATE(ROWInflationTable[[#This Row],[Year]],12,1),0,(1+ROWInflationTable[[#This Row],[Rate1]])^(1/12))) -> 1 | AF21: 1911 | AG21: 0 | AH21: =IF(OFFSET(CNInflationTable[[#This Row],[12]],-1,0)>0,(1+CNInflationTable[[#This Row],[Rate1]])^(1/12)*OFFSET(CNInflationTable[[#This Row],[12]],-1,0),IF(EstLastUpdate>DATE(CNInflationTable[[#This Row],[Year]],1,1),0,(1+CNInflationTable[[#This Row],[Rate1]])^(1/12))) -> 1 | AI21: =IF(CNInflationTable[[#This Row],[1]]>0,(1+CNInflationTable[[#This Row],[Rate1]])^(1/12)*CNInflationTable[[#This Row],[1]],IF(EstLastUpdate>DATE(CNInflationTable[[#This Row],[Year]],2,1),0,(1+CNInflationTable[[#This Row],[Rate1]])^(1/12))) -> 1 | AJ21: =IF(CNInflationTable[[#This Row],[2]]>0,(1+CNInflationTable[[#This Row],[Rate1]])^(1/12)*CNInflationTable[[#This Row],[2]],IF(EstLastUpdate>DATE(CNInflationTable[[#This Row],[Year]],3,1),0,(1+CNInflationTable[[#This Row],[Rate1]])^(1/12))) -> 1 | AK21: =IF(CNInflationTable[[#This Row],[3]]>0,(1+CNInflationTable[[#This Row],[Rate1]])^(1/12)*CNInflationTable[[#This Row],[3]],IF(EstLastUpdate>DATE(CNInflationTable[[#This Row],[Year]],4,1),0,(1+CNInflationTable[[#This Row],[Rate1]])^(1/12))) -> 1 | AL21: =IF(CNInflationTable[[#This Row],[4]]>0,(1+CNInflationTable[[#This Row],[Rate1]])^(1/12)*CNInflationTable[[#This Row],[4]],IF(EstLastUpdate>DATE(CNInflationTable[[#This Row],[Year]],5,1),0,(1+CNInflationTable[[#This Row],[Rate1]])^(1/12))) -> 1 | AM21: =IF(CNInflationTable[[#This Row],[5]]>0,(1+CNInflationTable[[#This Row],[Rate1]])^(1/12)*CNInflationTable[[#This Row],[5]],IF(EstLastUpdate>DATE(CNInflationTable[[#This Row],[Year]],6,1),0,(1+CNInflationTable[[#This Row],[Rate1]])^(1/12))) -> 1 | AN21: =IF(CNInflationTable[[#This Row],[6]]>0,(1+CNInflationTable[[#This Row],[Rate1]])^(1/12)*CNInflationTable[[#This Row],[6]],IF(EstLastUpdate>DATE(CNInflationTable[[#This Row],[Year]],7,1),0,(1+CNInflationTable[[#This Row],[Rate1]])^(1/12))) -> 1 | AO21: =IF(CNInflationTable[[#This Row],[7]]>0,(1+CNInflationTable[[#This Row],[Rate1]])^(1/12)*CNInflationTable[[#This Row],[7]],IF(EstLastUpdate>DATE(CNInflationTable[[#This Row],[Year]],8,1),0,(1+CNInflationTable[[#This Row],[Rate1]])^(1/12))) -> 1 | AP21: =IF(CNInflationTable[[#This Row],[8]]>0,(1+CNInflationTable[[#This Row],[Rate1]])^(1/12)*CNInflationTable[[#This Row],[8]],IF(EstLastUpdate>DATE(CNInflationTable[[#This Row],[Year]],9,1),0,(1+CNInflationTable[[#This Row],[Rate1]])^(1/12))) -> 1 | AQ21: =IF(CNInflationTable[[#This Row],[9]]>0,(1+CNInflationTable[[#This Row],[Rate1]])^(1/12)*CNInflationTable[[#This Row],[9]],IF(EstLastUpdate>DATE(CNInflationTable[[#This Row],[Year]],10,1),0,(1+CNInflationTable[[#This Row],[Rate1]])^(1/12))) -> 1 | AR21: =IF(CNInflationTable[[#This Row],[10]]>0,(1+CNInflationTable[[#This Row],[Rate1]])^(1/12)*CNInflationTable[[#This Row],[10]],IF(EstLastUpdate>DATE(CNInflationTable[[#This Row],[Year]],11,1),0,(1+CNInflationTable[[#This Row],[Rate1]])^(1/12))) -> 1 | AS21: =IF(CNInflationTable[[#This Row],[11]]>0,(1+CNInflationTable[[#This Row],[Rate1]])^(1/12)*CNInflationTable[[#This Row],[11]],IF(EstLastUpdate>DATE(CNInflationTable[[#This Row],[Year]],12,1),0,(1+CNInflationTable[[#This Row],[Rate1]])^(1/12))) -> 1 | AU21: 1911 | AV21: 0 | AW21: =IF(OFFSET(UTInflationTable[[#This Row],[12]],-1,0)>0,(1+UTInflationTable[[#This Row],[Rate1]])^(1/12)*OFFSET(UTInflationTable[[#This Row],[12]],-1,0),IF(EstLastUpdate>DATE(UTInflationTable[[#This Row],[Year]],1,1),0,(1+UTInflationTable[[#This Row],[Rate1]])^(1/12))) -> 1 | AX21: =IF(UTInflationTable[[#This Row],[1]]>0,(1+UTInflationTable[[#This Row],[Rate1]])^(1/12)*UTInflationTable[[#This Row],[1]],IF(EstLastUpdate>DATE(UTInflationTable[[#This Row],[Year]],2,1),0,(1+UTInflationTable[[#This Row],[Rate1]])^(1/12))) -> 1 | AY21: =IF(UTInflationTable[[#This Row],[2]]>0,(1+UTInflationTable[[#This Row],[Rate1]])^(1/12)*UTInflationTable[[#This Row],[2]],IF(EstLastUpdate>DATE(UTInflationTable[[#This Row],[Year]],3,1),0,(1+UTInflationTable[[#This Row],[Rate1]])^(1/12))) -> 1 | AZ21: =IF(UTInflationTable[[#This Row],[3]]>0,(1+UTInflationTable[[#This Row],[Rate1]])^(1/12)*UTInflationTable[[#This Row],[3]],IF(EstLastUpdate>DATE(UTInflationTable[[#This Row],[Year]],4,1),0,(1+UTInflationTable[[#This Row],[Rate1]])^(1/12))) -> 1 | BA21: =IF(UTInflationTable[[#This Row],[4]]>0,(1+UTInflationTable[[#This Row],[Rate1]])^(1/12)*UTInflationTable[[#This Row],[4]],IF(EstLastUpdate>DATE(UTInflationTable[[#This Row],[Year]],5,1),0,(1+UTInflationTable[[#This Row],[Rate1]])^(1/12))) -> 1 | BB21: =IF(UTInflationTable[[#This Row],[5]]>0,(1+UTInflationTable[[#This Row],[Rate1]])^(1/12)*UTInflationTable[[#This Row],[5]],IF(EstLastUpdate>DATE(UTInflationTable[[#This Row],[Year]],6,1),0,(1+UTInflationTable[[#This Row],[Rate1]])^(1/12))) -> 1 | BC21: =IF(UTInflationTable[[#This Row],[6]]>0,(1+UTInflationTable[[#This Row],[Rate1]])^(1/12)*UTInflationTable[[#This Row],[6]],IF(EstLastUpdate>DATE(UTInflationTable[[#This Row],[Year]],7,1),0,(1+UTInflationTable[[#This Row],[Rate1]])^(1/12))) -> 1 | BD21: =IF(UTInflationTable[[#This Row],[7]]>0,(1+UTInflationTable[[#This Row],[Rate1]])^(1/12)*UTInflationTable[[#This Row],[7]],IF(EstLastUpdate>DATE(UTInflationTable[[#This Row],[Year]],8,1),0,(1+UTInflationTable[[#This Row],[Rate1]])^(1/12))) -> 1 | BE21: =IF(UTInflationTable[[#This Row],[8]]>0,(1+UTInflationTable[[#This Row],[Rate1]])^(1/12)*UTInflationTable[[#This Row],[8]],IF(EstLastUpdate>DATE(UTInflationTable[[#This Row],[Year]],9,1),0,(1+UTInflationTable[[#This Row],[Rate1]])^(1/12))) -> 1 | BF21: =IF(UTInflationTable[[#This Row],[9]]>0,(1+UTInflationTable[[#This Row],[Rate1]])^(1/12)*UTInflationTable[[#This Row],[9]],IF(EstLastUpdate>DATE(UTInflationTable[[#This Row],[Year]],10,1),0,(1+UTInflationTable[[#This Row],[Rate1]])^(1/12))) -> 1 | BG21: =IF(UTInflationTable[[#This Row],[10]]>0,(1+UTInflationTable[[#This Row],[Rate1]])^(1/12)*UTInflationTable[[#This Row],[10]],IF(EstLastUpdate>DATE(UTInflationTable[[#This Row],[Year]],11,1),0,(1+UTInflationTable[[#This Row],[Rate1]])^(1/12))) -> 1 | BH21: =IF(UTInflationTable[[#This Row],[11]]>0,(1+UTInflationTable[[#This Row],[Rate1]])^(1/12)*UTInflationTable[[#This Row],[11]],IF(EstLastUpdate>DATE(UTInflationTable[[#This Row],[Year]],12,1),0,(1+UTInflationTable[[#This Row],[Rate1]])^(1/12))) -> 1
B22: =OFFSET(PEInflationTable[[#This Row],[Year]],-1,0)+1 -> 1912 | C22: 0 | D22: =IF(OFFSET(PEInflationTable[[#This Row],[12]],-1,0)>0,(1+PEInflationTable[[#This Row],[Rate1]])^(1/12)*OFFSET(PEInflationTable[[#This Row],[12]],-1,0),IF(EstLastUpdate>DATE(PEInflationTable[[#This Row],[Year]],1,1),0,(1+PEInflationTable[[#This Row],[Rate1]])^(1/12))) -> 1 | E22: =IF(PEInflationTable[[#This Row],[1]]>0,(1+PEInflationTable[[#This Row],[Rate1]])^(1/12)*PEInflationTable[[#This Row],[1]],IF(EstLastUpdate>DATE(PEInflationTable[[#This Row],[Year]],2,1),0,(1+PEInflationTable[[#This Row],[Rate1]])^(1/12))) -> 1 | F22: =IF(PEInflationTable[[#This Row],[2]]>0,(1+PEInflationTable[[#This Row],[Rate1]])^(1/12)*PEInflationTable[[#This Row],[2]],IF(EstLastUpdate>DATE(PEInflationTable[[#This Row],[Year]],3,1),0,(1+PEInflationTable[[#This Row],[Rate1]])^(1/12))) -> 1 | G22: =IF(PEInflationTable[[#This Row],[3]]>0,(1+PEInflationTable[[#This Row],[Rate1]])^(1/12)*PEInflationTable[[#This Row],[3]],IF(EstLastUpdate>DATE(PEInflationTable[[#This Row],[Year]],4,1),0,(1+PEInflationTable[[#This Row],[Rate1]])^(1/12))) -> 1 | H22: =IF(PEInflationTable[[#This Row],[4]]>0,(1+PEInflationTable[[#This Row],[Rate1]])^(1/12)*PEInflationTable[[#This Row],[4]],IF(EstLastUpdate>DATE(PEInflationTable[[#This Row],[Year]],5,1),0,(1+PEInflationTable[[#This Row],[Rate1]])^(1/12))) -> 1 | I22: =IF(PEInflationTable[[#This Row],[5]]>0,(1+PEInflationTable[[#This Row],[Rate1]])^(1/12)*PEInflationTable[[#This Row],[5]],IF(EstLastUpdate>DATE(PEInflationTable[[#This Row],[Year]],6,1),0,(1+PEInflationTable[[#This Row],[Rate1]])^(1/12))) -> 1 | J22: =IF(PEInflationTable[[#This Row],[6]]>0,(1+PEInflationTable[[#This Row],[Rate1]])^(1/12)*PEInflationTable[[#This Row],[6]],IF(EstLastUpdate>DATE(PEInflationTable[[#This Row],[Year]],7,1),0,(1+PEInflationTable[[#This Row],[Rate1]])^(1/12))) -> 1 | K22: =IF(PEInflationTable[[#This Row],[7]]>0,(1+PEInflationTable[[#This Row],[Rate1]])^(1/12)*PEInflationTable[[#This Row],[7]],IF(EstLastUpdate>DATE(PEInflationTable[[#This Row],[Year]],8,1),0,(1+PEInflationTable[[#This Row],[Rate1]])^(1/12))) -> 1 | L22: =IF(PEInflationTable[[#This Row],[8]]>0,(1+PEInflationTable[[#This Row],[Rate1]])^(1/12)*PEInflationTable[[#This Row],[8]],IF(EstLastUpdate>DATE(PEInflationTable[[#This Row],[Year]],9,1),0,(1+PEInflationTable[[#This Row],[Rate1]])^(1/12))) -> 1 | M22: =IF(PEInflationTable[[#This Row],[9]]>0,(1+PEInflationTable[[#This Row],[Rate1]])^(1/12)*PEInflationTable[[#This Row],[9]],IF(EstLastUpdate>DATE(PEInflationTable[[#This Row],[Year]],10,1),0,(1+PEInflationTable[[#This Row],[Rate1]])^(1/12))) -> 1 | N22: =IF(PEInflationTable[[#This Row],[10]]>0,(1+PEInflationTable[[#This Row],[Rate1]])^(1/12)*PEInflationTable[[#This Row],[10]],IF(EstLastUpdate>DATE(PEInflationTable[[#This Row],[Year]],11,1),0,(1+PEInflationTable[[#This Row],[Rate1]])^(1/12))) -> 1 | O22: =IF(PEInflationTable[[#This Row],[11]]>0,(1+PEInflationTable[[#This Row],[Rate1]])^(1/12)*PEInflationTable[[#This Row],[11]],IF(EstLastUpdate>DATE(PEInflationTable[[#This Row],[Year]],12,1),0,(1+PEInflationTable[[#This Row],[Rate1]])^(1/12))) -> 1 | Q22: 1912 | R22: 0 | S22: =IF(OFFSET(ROWInflationTable[[#This Row],[12]],-1,0)>0,(1+ROWInflationTable[[#This Row],[Rate1]])^(1/12)*OFFSET(ROWInflationTable[[#This Row],[12]],-1,0),IF(EstLastUpdate>DATE(ROWInflationTable[[#This Row],[Year]],1,1),0,(1+ROWInflationTable[[#This Row],[Rate1]])^(1/12))) -> 1 | T22: =IF(ROWInflationTable[[#This Row],[1]]>0,(1+ROWInflationTable[[#This Row],[Rate1]])^(1/12)*ROWInflationTable[[#This Row],[1]],IF(EstLastUpdate>DATE(ROWInflationTable[[#This Row],[Year]],2,1),0,(1+ROWInflationTable[[#This Row],[Rate1]])^(1/12))) -> 1 | U22: =IF(ROWInflationTable[[#This Row],[2]]>0,(1+ROWInflationTable[[#This Row],[Rate1]])^(1/12)*ROWInflationTable[[#This Row],[2]],IF(EstLastUpdate>DATE(ROWInflationTable[[#This Row],[Year]],3,1),0,(1+ROWInflationTable[[#This Row],[Rate1]])^(1/12))) -> 1 | V22: =IF(ROWInflationTable[[#This Row],[3]]>0,(1+ROWInflationTable[[#This Row],[Rate1]])^(1/12)*ROWInflationTable[[#This Row],[3]],IF(EstLastUpdate>DATE(ROWInflationTable[[#This Row],[Year]],4,1),0,(1+ROWInflationTable[[#This Row],[Rate1]])^(1/12))) -> 1 | W22: =IF(ROWInflationTable[[#This Row],[4]]>0,(1+ROWInflationTable[[#This Row],[Rate1]])^(1/12)*ROWInflationTable[[#This Row],[4]],IF(EstLastUpdate>DATE(ROWInflationTable[[#This Row],[Year]],5,1),0,(1+ROWInflationTable[[#This Row],[Rate1]])^(1/12))) -> 1 | X22: =IF(ROWInflationTable[[#This Row],[5]]>0,(1+ROWInflationTable[[#This Row],[Rate1]])^(1/12)*ROWInflationTable[[#This Row],[5]],IF(EstLastUpdate>DATE(ROWInflationTable[[#This Row],[Year]],6,1),0,(1+ROWInflationTable[[#This Row],[Rate1]])^(1/12))) -> 1 | Y22: =IF(ROWInflationTable[[#This Row],[6]]>0,(1+ROWInflationTable[[#This Row],[Rate1]])^(1/12)*ROWInflationTable[[#This Row],[6]],IF(EstLastUpdate>DATE(ROWInflationTable[[#This Row],[Year]],7,1),0,(1+ROWInflationTable[[#This Row],[Rate1]])^(1/12))) -> 1 | Z22: =IF(ROWInflationTable[[#This Row],[7]]>0,(1+ROWInflationTable[[#This Row],[Rate1]])^(1/12)*ROWInflationTable[[#This Row],[7]],IF(EstLastUpdate>DATE(ROWInflationTable[[#This Row],[Year]],8,1),0,(1+ROWInflationTable[[#This Row],[Rate1]])^(1/12))) -> 1 | AA22: =IF(ROWInflationTable[[#This Row],[8]]>0,(1+ROWInflationTable[[#This Row],[Rate1]])^(1/12)*ROWInflationTable[[#This Row],[8]],IF(EstLastUpdate>DATE(ROWInflationTable[[#This Row],[Year]],9,1),0,(1+ROWInflationTable[[#This Row],[Rate1]])^(1/12))) -> 1 | AB22: =IF(ROWInflationTable[[#This Row],[9]]>0,(1+ROWInflationTable[[#This Row],[Rate1]])^(1/12)*ROWInflationTable[[#This Row],[9]],IF(EstLastUpdate>DATE(ROWInflationTable[[#This Row],[Year]],10,1),0,(1+ROWInflationTable[[#This Row],[Rate1]])^(1/12))) -> 1 | AC22: =IF(ROWInflationTable[[#This Row],[10]]>0,(1+ROWInflationTable[[#This Row],[Rate1]])^(1/12)*ROWInflationTable[[#This Row],[10]],IF(EstLastUpdate>DATE(ROWInflationTable[[#This Row],[Year]],11,1),0,(1+ROWInflationTable[[#This Row],[Rate1]])^(1/12))) -> 1 | AD22: =IF(ROWInflationTable[[#This Row],[11]]>0,(1+ROWInflationTable[[#This Row],[Rate1]])^(1/12)*ROWInflationTable[[#This Row],[11]],IF(EstLastUpdate>DATE(ROWInflationTable[[#This Row],[Year]],12,1),0,(1+ROWInflationTable[[#This Row],[Rate1]])^(1/12))) -> 1 | AF22: 1912 | AG22: 0 | AH22: =IF(OFFSET(CNInflationTable[[#This Row],[12]],-1,0)>0,(1+CNInflationTable[[#This Row],[Rate1]])^(1/12)*OFFSET(CNInflationTable[[#This Row],[12]],-1,0),IF(EstLastUpdate>DATE(CNInflationTable[[#This Row],[Year]],1,1),0,(1+CNInflationTable[[#This Row],[Rate1]])^(1/12))) -> 1 | AI22: =IF(CNInflationTable[[#This Row],[1]]>0,(1+CNInflationTable[[#This Row],[Rate1]])^(1/12)*CNInflationTable[[#This Row],[1]],IF(EstLastUpdate>DATE(CNInflationTable[[#This Row],[Year]],2,1),0,(1+CNInflationTable[[#This Row],[Rate1]])^(1/12))) -> 1 | AJ22: =IF(CNInflationTable[[#This Row],[2]]>0,(1+CNInflationTable[[#This Row],[Rate1]])^(1/12)*CNInflationTable[[#This Row],[2]],IF(EstLastUpdate>DATE(CNInflationTable[[#This Row],[Year]],3,1),0,(1+CNInflationTable[[#This Row],[Rate1]])^(1/12))) -> 1 | AK22: =IF(CNInflationTable[[#This Row],[3]]>0,(1+CNInflationTable[[#This Row],[Rate1]])^(1/12)*CNInflationTable[[#This Row],[3]],IF(EstLastUpdate>DATE(CNInflationTable[[#This Row],[Year]],4,1),0,(1+CNInflationTable[[#This Row],[Rate1]])^(1/12))) -> 1 | AL22: =IF(CNInflationTable[[#This Row],[4]]>0,(1+CNInflationTable[[#This Row],[Rate1]])^(1/12)*CNInflationTable[[#This Row],[4]],IF(EstLastUpdate>DATE(CNInflationTable[[#This Row],[Year]],5,1),0,(1+CNInflationTable[[#This Row],[Rate1]])^(1/12))) -> 1 | AM22: =IF(CNInflationTable[[#This Row],[5]]>0,(1+CNInflationTable[[#This Row],[Rate1]])^(1/12)*CNInflationTable[[#This Row],[5]],IF(EstLastUpdate>DATE(CNInflationTable[[#This Row],[Year]],6,1),0,(1+CNInflationTable[[#This Row],[Rate1]])^(1/12))) -> 1 | AN22: =IF(CNInflationTable[[#This Row],[6]]>0,(1+CNInflationTable[[#This Row],[Rate1]])^(1/12)*CNInflationTable[[#This Row],[6]],IF(EstLastUpdate>DATE(CNInflationTable[[#This Row],[Year]],7,1),0,(1+CNInflationTable[[#This Row],[Rate1]])^(1/12))) -> 1 | AO22: =IF(CNInflationTable[[#This Row],[7]]>0,(1+CNInflationTable[[#This Row],[Rate1]])^(1/12)*CNInflationTable[[#This Row],[7]],IF(EstLastUpdate>DATE(CNInflationTable[[#This Row],[Year]],8,1),0,(1+CNInflationTable[[#This Row],[Rate1]])^(1/12))) -> 1 | AP22: =IF(CNInflationTable[[#This Row],[8]]>0,(1+CNInflationTable[[#This Row],[Rate1]])^(1/12)*CNInflationTable[[#This Row],[8]],IF(EstLastUpdate>DATE(CNInflationTable[[#This Row],[Year]],9,1),0,(1+CNInflationTable[[#This Row],[Rate1]])^(1/12))) -> 1 | AQ22: =IF(CNInflationTable[[#This Row],[9]]>0,(1+CNInflationTable[[#This Row],[Rate1]])^(1/12)*CNInflationTable[[#This Row],[9]],IF(EstLastUpdate>DATE(CNInflationTable[[#This Row],[Year]],10,1),0,(1+CNInflationTable[[#This Row],[Rate1]])^(1/12))) -> 1 | AR22: =IF(CNInflationTable[[#This Row],[10]]>0,(1+CNInflationTable[[#This Row],[Rate1]])^(1/12)*CNInflationTable[[#This Row],[10]],IF(EstLastUpdate>DATE(CNInflationTable[[#This Row],[Year]],11,1),0,(1+CNInflationTable[[#This Row],[Rate1]])^(1/12))) -> 1 | AS22: =IF(CNInflationTable[[#This Row],[11]]>0,(1+CNInflationTable[[#This Row],[Rate1]])^(1/12)*CNInflationTable[[#This Row],[11]],IF(EstLastUpdate>DATE(CNInflationTable[[#This Row],[Year]],12,1),0,(1+CNInflationTable[[#This Row],[Rate1]])^(1/12))) -> 1 | AU22: 1912 | AV22: 0 | AW22: =IF(OFFSET(UTInflationTable[[#This Row],[12]],-1,0)>0,(1+UTInflationTable[[#This Row],[Rate1]])^(1/12)*OFFSET(UTInflationTable[[#This Row],[12]],-1,0),IF(EstLastUpdate>DATE(UTInflationTable[[#This Row],[Year]],1,1),0,(1+UTInflationTable[[#This Row],[Rate1]])^(1/12))) -> 1 | AX22: =IF(UTInflationTable[[#This Row],[1]]>0,(1+UTInflationTable[[#This Row],[Rate1]])^(1/12)*UTInflationTable[[#This Row],[1]],IF(EstLastUpdate>DATE(UTInflationTable[[#This Row],[Year]],2,1),0,(1+UTInflationTable[[#This Row],[Rate1]])^(1/12))) -> 1 | AY22: =IF(UTInflationTable[[#This Row],[2]]>0,(1+UTInflationTable[[#This Row],[Rate1]])^(1/12)*UTInflationTable[[#This Row],[2]],IF(EstLastUpdate>DATE(UTInflationTable[[#This Row],[Year]],3,1),0,(1+UTInflationTable[[#This Row],[Rate1]])^(1/12))) -> 1 | AZ22: =IF(UTInflationTable[[#This Row],[3]]>0,(1+UTInflationTable[[#This Row],[Rate1]])^(1/12)*UTInflationTable[[#This Row],[3]],IF(EstLastUpdate>DATE(UTInflationTable[[#This Row],[Year]],4,1),0,(1+UTInflationTable[[#This Row],[Rate1]])^(1/12))) -> 1 | BA22: =IF(UTInflationTable[[#This Row],[4]]>0,(1+UTInflationTable[[#This Row],[Rate1]])^(1/12)*UTInflationTable[[#This Row],[4]],IF(EstLastUpdate>DATE(UTInflationTable[[#This Row],[Year]],5,1),0,(1+UTInflationTable[[#This Row],[Rate1]])^(1/12))) -> 1 | BB22: =IF(UTInflationTable[[#This Row],[5]]>0,(1+UTInflationTable[[#This Row],[Rate1]])^(1/12)*UTInflationTable[[#This Row],[5]],IF(EstLastUpdate>DATE(UTInflationTable[[#This Row],[Year]],6,1),0,(1+UTInflationTable[[#This Row],[Rate1]])^(1/12))) -> 1 | BC22: =IF(UTInflationTable[[#This Row],[6]]>0,(1+UTInflationTable[[#This Row],[Rate1]])^(1/12)*UTInflationTable[[#This Row],[6]],IF(EstLastUpdate>DATE(UTInflationTable[[#This Row],[Year]],7,1),0,(1+UTInflationTable[[#This Row],[Rate1]])^(1/12))) -> 1 | BD22: =IF(UTInflationTable[[#This Row],[7]]>0,(1+UTInflationTable[[#This Row],[Rate1]])^(1/12)*UTInflationTable[[#This Row],[7]],IF(EstLastUpdate>DATE(UTInflationTable[[#This Row],[Year]],8,1),0,(1+UTInflationTable[[#This Row],[Rate1]])^(1/12))) -> 1 | BE22: =IF(UTInflationTable[[#This Row],[8]]>0,(1+UTInflationTable[[#This Row],[Rate1]])^(1/12)*UTInflationTable[[#This Row],[8]],IF(EstLastUpdate>DATE(UTInflationTable[[#This Row],[Year]],9,1),0,(1+UTInflationTable[[#This Row],[Rate1]])^(1/12))) -> 1 | BF22: =IF(UTInflationTable[[#This Row],[9]]>0,(1+UTInflationTable[[#This Row],[Rate1]])^(1/12)*UTInflationTable[[#This Row],[9]],IF(EstLastUpdate>DATE(UTInflationTable[[#This Row],[Year]],10,1),0,(1+UTInflationTable[[#This Row],[Rate1]])^(1/12))) -> 1 | BG22: =IF(UTInflationTable[[#This Row],[10]]>0,(1+UTInflationTable[[#This Row],[Rate1]])^(1/12)*UTInflationTable[[#This Row],[10]],IF(EstLastUpdate>DATE(UTInflationTable[[#This Row],[Year]],11,1),0,(1+UTInflationTable[[#This Row],[Rate1]])^(1/12))) -> 1 | BH22: =IF(UTInflationTable[[#This Row],[11]]>0,(1+UTInflationTable[[#This Row],[Rate1]])^(1/12)*UTInflationTable[[#This Row],[11]],IF(EstLastUpdate>DATE(UTInflationTable[[#This Row],[Year]],12,1),0,(1+UTInflationTable[[#This Row],[Rate1]])^(1/12))) -> 1
B23: =OFFSET(PEInflationTable[[#This Row],[Year]],-1,0)+1 -> 1913 | C23: 0 | D23: =IF(OFFSET(PEInflationTable[[#This Row],[12]],-1,0)>0,(1+PEInflationTable[[#This Row],[Rate1]])^(1/12)*OFFSET(PEInflationTable[[#This Row],[12]],-1,0),IF(EstLastUpdate>DATE(PEInflationTable[[#This Row],[Year]],1,1),0,(1+PEInflationTable[[#This Row],[Rate1]])^(1/12))) -> 1 | E23: =IF(PEInflationTable[[#This Row],[1]]>0,(1+PEInflationTable[[#This Row],[Rate1]])^(1/12)*PEInflationTable[[#This Row],[1]],IF(EstLastUpdate>DATE(PEInflationTable[[#This Row],[Year]],2,1),0,(1+PEInflationTable[[#This Row],[Rate1]])^(1/12))) -> 1 | F23: =IF(PEInflationTable[[#This Row],[2]]>0,(1+PEInflationTable[[#This Row],[Rate1]])^(1/12)*PEInflationTable[[#This Row],[2]],IF(EstLastUpdate>DATE(PEInflationTable[[#This Row],[Year]],3,1),0,(1+PEInflationTable[[#This Row],[Rate1]])^(1/12))) -> 1 | G23: =IF(PEInflationTable[[#This Row],[3]]>0,(1+PEInflationTable[[#This Row],[Rate1]])^(1/12)*PEInflationTable[[#This Row],[3]],IF(EstLastUpdate>DATE(PEInflationTable[[#This Row],[Year]],4,1),0,(1+PEInflationTable[[#This Row],[Rate1]])^(1/12))) -> 1 | H23: =IF(PEInflationTable[[#This Row],[4]]>0,(1+PEInflationTable[[#This Row],[Rate1]])^(1/12)*PEInflationTable[[#This Row],[4]],IF(EstLastUpdate>DATE(PEInflationTable[[#This Row],[Year]],5,1),0,(1+PEInflationTable[[#This Row],[Rate1]])^(1/12))) -> 1 | I23: =IF(PEInflationTable[[#This Row],[5]]>0,(1+PEInflationTable[[#This Row],[Rate1]])^(1/12)*PEInflationTable[[#This Row],[5]],IF(EstLastUpdate>DATE(PEInflationTable[[#This Row],[Year]],6,1),0,(1+PEInflationTable[[#This Row],[Rate1]])^(1/12))) -> 1 | J23: =IF(PEInflationTable[[#This Row],[6]]>0,(1+PEInflationTable[[#This Row],[Rate1]])^(1/12)*PEInflationTable[[#This Row],[6]],IF(EstLastUpdate>DATE(PEInflationTable[[#This Row],[Year]],7,1),0,(1+PEInflationTable[[#This Row],[Rate1]])^(1/12))) -> 1 | K23: =IF(PEInflationTable[[#This Row],[7]]>0,(1+PEInflationTable[[#This Row],[Rate1]])^(1/12)*PEInflationTable[[#This Row],[7]],IF(EstLastUpdate>DATE(PEInflationTable[[#This Row],[Year]],8,1),0,(1+PEInflationTable[[#This Row],[Rate1]])^(1/12))) -> 1 | L23: =IF(PEInflationTable[[#This Row],[8]]>0,(1+PEInflationTable[[#This Row],[Rate1]])^(1/12)*PEInflationTable[[#This Row],[8]],IF(EstLastUpdate>DATE(PEInflationTable[[#This Row],[Year]],9,1),0,(1+PEInflationTable[[#This Row],[Rate1]])^(1/12))) -> 1 | M23: =IF(PEInflationTable[[#This Row],[9]]>0,(1+PEInflationTable[[#This Row],[Rate1]])^(1/12)*PEInflationTable[[#This Row],[9]],IF(EstLastUpdate>DATE(PEInflationTable[[#This Row],[Year]],10,1),0,(1+PEInflationTable[[#This Row],[Rate1]])^(1/12))) -> 1 | N23: =IF(PEInflationTable[[#This Row],[10]]>0,(1+PEInflationTable[[#This Row],[Rate1]])^(1/12)*PEInflationTable[[#This Row],[10]],IF(EstLastUpdate>DATE(PEInflationTable[[#This Row],[Year]],11,1),0,(1+PEInflationTable[[#This Row],[Rate1]])^(1/12))) -> 1 | O23: =IF(PEInflationTable[[#This Row],[11]]>0,(1+PEInflationTable[[#This Row],[Rate1]])^(1/12)*PEInflationTable[[#This Row],[11]],IF(EstLastUpdate>DATE(PEInflationTable[[#This Row],[Year]],12,1),0,(1+PEInflationTable[[#This Row],[Rate1]])^(1/12))) -> 1 | Q23: 1913 | R23: 0 | S23: =IF(OFFSET(ROWInflationTable[[#This Row],[12]],-1,0)>0,(1+ROWInflationTable[[#This Row],[Rate1]])^(1/12)*OFFSET(ROWInflationTable[[#This Row],[12]],-1,0),IF(EstLastUpdate>DATE(ROWInflationTable[[#This Row],[Year]],1,1),0,(1+ROWInflationTable[[#This Row],[Rate1]])^(1/12))) -> 1 | T23: =IF(ROWInflationTable[[#This Row],[1]]>0,(1+ROWInflationTable[[#This Row],[Rate1]])^(1/12)*ROWInflationTable[[#This Row],[1]],IF(EstLastUpdate>DATE(ROWInflationTable[[#This Row],[Year]],2,1),0,(1+ROWInflationTable[[#This Row],[Rate1]])^(1/12))) -> 1 | U23: =IF(ROWInflationTable[[#This Row],[2]]>0,(1+ROWInflationTable[[#This Row],[Rate1]])^(1/12)*ROWInflationTable[[#This Row],[2]],IF(EstLastUpdate>DATE(ROWInflationTable[[#This Row],[Year]],3,1),0,(1+ROWInflationTable[[#This Row],[Rate1]])^(1/12))) -> 1 | V23: =IF(ROWInflationTable[[#This Row],[3]]>0,(1+ROWInflationTable[[#This Row],[Rate1]])^(1/12)*ROWInflationTable[[#This Row],[3]],IF(EstLastUpdate>DATE(ROWInflationTable[[#This Row],[Year]],4,1),0,(1+ROWInflationTable[[#This Row],[Rate1]])^(1/12))) -> 1 | W23: =IF(ROWInflationTable[[#This Row],[4]]>0,(1+ROWInflationTable[[#This Row],[Rate1]])^(1/12)*ROWInflationTable[[#This Row],[4]],IF(EstLastUpdate>DATE(ROWInflationTable[[#This Row],[Year]],5,1),0,(1+ROWInflationTable[[#This Row],[Rate1]])^(1/12))) -> 1 | X23: =IF(ROWInflationTable[[#This Row],[5]]>0,(1+ROWInflationTable[[#This Row],[Rate1]])^(1/12)*ROWInflationTable[[#This Row],[5]],IF(EstLastUpdate>DATE(ROWInflationTable[[#This Row],[Year]],6,1),0,(1+ROWInflationTable[[#This Row],[Rate1]])^(1/12))) -> 1 | Y23: =IF(ROWInflationTable[[#This Row],[6]]>0,(1+ROWInflationTable[[#This Row],[Rate1]])^(1/12)*ROWInflationTable[[#This Row],[6]],IF(EstLastUpdate>DATE(ROWInflationTable[[#This Row],[Year]],7,1),0,(1+ROWInflationTable[[#This Row],[Rate1]])^(1/12))) -> 1 | Z23: =IF(ROWInflationTable[[#This Row],[7]]>0,(1+ROWInflationTable[[#This Row],[Rate1]])^(1/12)*ROWInflationTable[[#This Row],[7]],IF(EstLastUpdate>DATE(ROWInflationTable[[#This Row],[Year]],8,1),0,(1+ROWInflationTable[[#This Row],[Rate1]])^(1/12))) -> 1 | AA23: =IF(ROWInflationTable[[#This Row],[8]]>0,(1+ROWInflationTable[[#This Row],[Rate1]])^(1/12)*ROWInflationTable[[#This Row],[8]],IF(EstLastUpdate>DATE(ROWInflationTable[[#This Row],[Year]],9,1),0,(1+ROWInflationTable[[#This Row],[Rate1]])^(1/12))) -> 1 | AB23: =IF(ROWInflationTable[[#This Row],[9]]>0,(1+ROWInflationTable[[#This Row],[Rate1]])^(1/12)*ROWInflationTable[[#This Row],[9]],IF(EstLastUpdate>DATE(ROWInflationTable[[#This Row],[Year]],10,1),0,(1+ROWInflationTable[[#This Row],[Rate1]])^(1/12))) -> 1 | AC23: =IF(ROWInflationTable[[#This Row],[10]]>0,(1+ROWInflationTable[[#This Row],[Rate1]])^(1/12)*ROWInflationTable[[#This Row],[10]],IF(EstLastUpdate>DATE(ROWInflationTable[[#This Row],[Year]],11,1),0,(1+ROWInflationTable[[#This Row],[Rate1]])^(1/12))) -> 1 | AD23: =IF(ROWInflationTable[[#This Row],[11]]>0,(1+ROWInflationTable[[#This Row],[Rate1]])^(1/12)*ROWInflationTable[[#This Row],[11]],IF(EstLastUpdate>DATE(ROWInflationTable[[#This Row],[Year]],12,1),0,(1+ROWInflationTable[[#This Row],[Rate1]])^(1/12))) -> 1 | AF23: 1913 | AG23: 0 | AH23: =IF(OFFSET(CNInflationTable[[#This Row],[12]],-1,0)>0,(1+CNInflationTable[[#This Row],[Rate1]])^(1/12)*OFFSET(CNInflationTable[[#This Row],[12]],-1,0),IF(EstLastUpdate>DATE(CNInflationTable[[#This Row],[Year]],1,1),0,(1+CNInflationTable[[#This Row],[Rate1]])^(1/12))) -> 1 | AI23: =IF(CNInflationTable[[#This Row],[1]]>0,(1+CNInflationTable[[#This Row],[Rate1]])^(1/12)*CNInflationTable[[#This Row],[1]],IF(EstLastUpdate>DATE(CNInflationTable[[#This Row],[Year]],2,1),0,(1+CNInflationTable[[#This Row],[Rate1]])^(1/12))) -> 1 | AJ23: =IF(CNInflationTable[[#This Row],[2]]>0,(1+CNInflationTable[[#This Row],[Rate1]])^(1/12)*CNInflationTable[[#This Row],[2]],IF(EstLastUpdate>DATE(CNInflationTable[[#This Row],[Year]],3,1),0,(1+CNInflationTable[[#This Row],[Rate1]])^(1/12))) -> 1 | AK23: =IF(CNInflationTable[[#This Row],[3]]>0,(1+CNInflationTable[[#This Row],[Rate1]])^(1/12)*CNInflationTable[[#This Row],[3]],IF(EstLastUpdate>DATE(CNInflationTable[[#This Row],[Year]],4,1),0,(1+CNInflationTable[[#This Row],[Rate1]])^(1/12))) -> 1 | AL23: =IF(CNInflationTable[[#This Row],[4]]>0,(1+CNInflationTable[[#This Row],[Rate1]])^(1/12)*CNInflationTable[[#This Row],[4]],IF(EstLastUpdate>DATE(CNInflationTable[[#This Row],[Year]],5,1),0,(1+CNInflationTable[[#This Row],[Rate1]])^(1/12))) -> 1 | AM23: =IF(CNInflationTable[[#This Row],[5]]>0,(1+CNInflationTable[[#This Row],[Rate1]])^(1/12)*CNInflationTable[[#This Row],[5]],IF(EstLastUpdate>DATE(CNInflationTable[[#This Row],[Year]],6,1),0,(1+CNInflationTable[[#This Row],[Rate1]])^(1/12))) -> 1 | AN23: =IF(CNInflationTable[[#This Row],[6]]>0,(1+CNInflationTable[[#This Row],[Rate1]])^(1/12)*CNInflationTable[[#This Row],[6]],IF(EstLastUpdate>DATE(CNInflationTable[[#This Row],[Year]],7,1),0,(1+CNInflationTable[[#This Row],[Rate1]])^(1/12))) -> 1 | AO23: =IF(CNInflationTable[[#This Row],[7]]>0,(1+CNInflationTable[[#This Row],[Rate1]])^(1/12)*CNInflationTable[[#This Row],[7]],IF(EstLastUpdate>DATE(CNInflationTable[[#This Row],[Year]],8,1),0,(1+CNInflationTable[[#This Row],[Rate1]])^(1/12))) -> 1 | AP23: =IF(CNInflationTable[[#This Row],[8]]>0,(1+CNInflationTable[[#This Row],[Rate1]])^(1/12)*CNInflationTable[[#This Row],[8]],IF(EstLastUpdate>DATE(CNInflationTable[[#This Row],[Year]],9,1),0,(1+CNInflationTable[[#This Row],[Rate1]])^(1/12))) -> 1 | AQ23: =IF(CNInflationTable[[#This Row],[9]]>0,(1+CNInflationTable[[#This Row],[Rate1]])^(1/12)*CNInflationTable[[#This Row],[9]],IF(EstLastUpdate>DATE(CNInflationTable[[#This Row],[Year]],10,1),0,(1+CNInflationTable[[#This Row],[Rate1]])^(1/12))) -> 1 | AR23: =IF(CNInflationTable[[#This Row],[10]]>0,(1+CNInflationTable[[#This Row],[Rate1]])^(1/12)*CNInflationTable[[#This Row],[10]],IF(EstLastUpdate>DATE(CNInflationTable[[#This Row],[Year]],11,1),0,(1+CNInflationTable[[#This Row],[Rate1]])^(1/12))) -> 1 | AS23: =IF(CNInflationTable[[#This Row],[11]]>0,(1+CNInflationTable[[#This Row],[Rate1]])^(1/12)*CNInflationTable[[#This Row],[11]],IF(EstLastUpdate>DATE(CNInflationTable[[#This Row],[Year]],12,1),0,(1+CNInflationTable[[#This Row],[Rate1]])^(1/12))) -> 1 | AU23: 1913 | AV23: 0 | AW23: =IF(OFFSET(UTInflationTable[[#This Row],[12]],-1,0)>0,(1+UTInflationTable[[#This Row],[Rate1]])^(1/12)*OFFSET(UTInflationTable[[#This Row],[12]],-1,0),IF(EstLastUpdate>DATE(UTInflationTable[[#This Row],[Year]],1,1),0,(1+UTInflationTable[[#This Row],[Rate1]])^(1/12))) -> 1 | AX23: =IF(UTInflationTable[[#This Row],[1]]>0,(1+UTInflationTable[[#This Row],[Rate1]])^(1/12)*UTInflationTable[[#This Row],[1]],IF(EstLastUpdate>DATE(UTInflationTable[[#This Row],[Year]],2,1),0,(1+UTInflationTable[[#This Row],[Rate1]])^(1/12))) -> 1 | AY23: =IF(UTInflationTable[[#This Row],[2]]>0,(1+UTInflationTable[[#This Row],[Rate1]])^(1/12)*UTInflationTable[[#This Row],[2]],IF(EstLastUpdate>DATE(UTInflationTable[[#This Row],[Year]],3,1),0,(1+UTInflationTable[[#This Row],[Rate1]])^(1/12))) -> 1 | AZ23: =IF(UTInflationTable[[#This Row],[3]]>0,(1+UTInflationTable[[#This Row],[Rate1]])^(1/12)*UTInflationTable[[#This Row],[3]],IF(EstLastUpdate>DATE(UTInflationTable[[#This Row],[Year]],4,1),0,(1+UTInflationTable[[#This Row],[Rate1]])^(1/12))) -> 1 | BA23: =IF(UTInflationTable[[#This Row],[4]]>0,(1+UTInflationTable[[#This Row],[Rate1]])^(1/12)*UTInflationTable[[#This Row],[4]],IF(EstLastUpdate>DATE(UTInflationTable[[#This Row],[Year]],5,1),0,(1+UTInflationTable[[#This Row],[Rate1]])^(1/12))) -> 1 | BB23: =IF(UTInflationTable[[#This Row],[5]]>0,(1+UTInflationTable[[#This Row],[Rate1]])^(1/12)*UTInflationTable[[#This Row],[5]],IF(EstLastUpdate>DATE(UTInflationTable[[#This Row],[Year]],6,1),0,(1+UTInflationTable[[#This Row],[Rate1]])^(1/12))) -> 1 | BC23: =IF(UTInflationTable[[#This Row],[6]]>0,(1+UTInflationTable[[#This Row],[Rate1]])^(1/12)*UTInflationTable[[#This Row],[6]],IF(EstLastUpdate>DATE(UTInflationTable[[#This Row],[Year]],7,1),0,(1+UTInflationTable[[#This Row],[Rate1]])^(1/12))) -> 1 | BD23: =IF(UTInflationTable[[#This Row],[7]]>0,(1+UTInflationTable[[#This Row],[Rate1]])^(1/12)*UTInflationTable[[#This Row],[7]],IF(EstLastUpdate>DATE(UTInflationTable[[#This Row],[Year]],8,1),0,(1+UTInflationTable[[#This Row],[Rate1]])^(1/12))) -> 1 | BE23: =IF(UTInflationTable[[#This Row],[8]]>0,(1+UTInflationTable[[#This Row],[Rate1]])^(1/12)*UTInflationTable[[#This Row],[8]],IF(EstLastUpdate>DATE(UTInflationTable[[#This Row],[Year]],9,1),0,(1+UTInflationTable[[#This Row],[Rate1]])^(1/12))) -> 1 | BF23: =IF(UTInflationTable[[#This Row],[9]]>0,(1+UTInflationTable[[#This Row],[Rate1]])^(1/12)*UTInflationTable[[#This Row],[9]],IF(EstLastUpdate>DATE(UTInflationTable[[#This Row],[Year]],10,1),0,(1+UTInflationTable[[#This Row],[Rate1]])^(1/12))) -> 1 | BG23: =IF(UTInflationTable[[#This Row],[10]]>0,(1+UTInflationTable[[#This Row],[Rate1]])^(1/12)*UTInflationTable[[#This Row],[10]],IF(EstLastUpdate>DATE(UTInflationTable[[#This Row],[Year]],11,1),0,(1+UTInflationTable[[#This Row],[Rate1]])^(1/12))) -> 1 | BH23: =IF(UTInflationTable[[#This Row],[11]]>0,(1+UTInflationTable[[#This Row],[Rate1]])^(1/12)*UTInflationTable[[#This Row],[11]],IF(EstLastUpdate>DATE(UTInflationTable[[#This Row],[Year]],12,1),0,(1+UTInflationTable[[#This Row],[Rate1]])^(1/12))) -> 1
B24: =OFFSET(PEInflationTable[[#This Row],[Year]],-1,0)+1 -> 1914 | C24: 0 | D24: =IF(OFFSET(PEInflationTable[[#This Row],[12]],-1,0)>0,(1+PEInflationTable[[#This Row],[Rate1]])^(1/12)*OFFSET(PEInflationTable[[#This Row],[12]],-1,0),IF(EstLastUpdate>DATE(PEInflationTable[[#This Row],[Year]],1,1),0,(1+PEInflationTable[[#This Row],[Rate1]])^(1/12))) -> 1 | E24: =IF(PEInflationTable[[#This Row],[1]]>0,(1+PEInflationTable[[#This Row],[Rate1]])^(1/12)*PEInflationTable[[#This Row],[1]],IF(EstLastUpdate>DATE(PEInflationTable[[#This Row],[Year]],2,1),0,(1+PEInflationTable[[#This Row],[Rate1]])^(1/12))) -> 1 | F24: =IF(PEInflationTable[[#This Row],[2]]>0,(1+PEInflationTable[[#This Row],[Rate1]])^(1/12)*PEInflationTable[[#This Row],[2]],IF(EstLastUpdate>DATE(PEInflationTable[[#This Row],[Year]],3,1),0,(1+PEInflationTable[[#This Row],[Rate1]])^(1/12))) -> 1 | G24: =IF(PEInflationTable[[#This Row],[3]]>0,(1+PEInflationTable[[#This Row],[Rate1]])^(1/12)*PEInflationTable[[#This Row],[3]],IF(EstLastUpdate>DATE(PEInflationTable[[#This Row],[Year]],4,1),0,(1+PEInflationTable[[#This Row],[Rate1]])^(1/12))) -> 1 | H24: =IF(PEInflationTable[[#This Row],[4]]>0,(1+PEInflationTable[[#This Row],[Rate1]])^(1/12)*PEInflationTable[[#This Row],[4]],IF(EstLastUpdate>DATE(PEInflationTable[[#This Row],[Year]],5,1),0,(1+PEInflationTable[[#This Row],[Rate1]])^(1/12))) -> 1 | I24: =IF(PEInflationTable[[#This Row],[5]]>0,(1+PEInflationTable[[#This Row],[Rate1]])^(1/12)*PEInflationTable[[#This Row],[5]],IF(EstLastUpdate>DATE(PEInflationTable[[#This Row],[Year]],6,1),0,(1+PEInflationTable[[#This Row],[Rate1]])^(1/12))) -> 1 | J24: =IF(PEInflationTable[[#This Row],[6]]>0,(1+PEInflationTable[[#This Row],[Rate1]])^(1/12)*PEInflationTable[[#This Row],[6]],IF(EstLastUpdate>DATE(PEInflationTable[[#This Row],[Year]],7,1),0,(1+PEInflationTable[[#This Row],[Rate1]])^(1/12))) -> 1 | K24: =IF(PEInflationTable[[#This Row],[7]]>0,(1+PEInflationTable[[#This Row],[Rate1]])^(1/12)*PEInflationTable[[#This Row],[7]],IF(EstLastUpdate>DATE(PEInflationTable[[#This Row],[Year]],8,1),0,(1+PEInflationTable[[#This Row],[Rate1]])^(1/12))) -> 1 | L24: =IF(PEInflationTable[[#This Row],[8]]>0,(1+PEInflationTable[[#This Row],[Rate1]])^(1/12)*PEInflationTable[[#This Row],[8]],IF(EstLastUpdate>DATE(PEInflationTable[[#This Row],[Year]],9,1),0,(1+PEInflationTable[[#This Row],[Rate1]])^(1/12))) -> 1 | M24: =IF(PEInflationTable[[#This Row],[9]]>0,(1+PEInflationTable[[#This Row],[Rate1]])^(1/12)*PEInflationTable[[#This Row],[9]],IF(EstLastUpdate>DATE(PEInflationTable[[#This Row],[Year]],10,1),0,(1+PEInflationTable[[#This Row],[Rate1]])^(1/12))) -> 1 | N24: =IF(PEInflationTable[[#This Row],[10]]>0,(1+PEInflationTable[[#This Row],[Rate1]])^(1/12)*PEInflationTable[[#This Row],[10]],IF(EstLastUpdate>DATE(PEInflationTable[[#This Row],[Year]],11,1),0,(1+PEInflationTable[[#This Row],[Rate1]])^(1/12))) -> 1 | O24: =IF(PEInflationTable[[#This Row],[11]]>0,(1+PEInflationTable[[#This Row],[Rate1]])^(1/12)*PEInflationTable[[#This Row],[11]],IF(EstLastUpdate>DATE(PEInflationTable[[#This Row],[Year]],12,1),0,(1+PEInflationTable[[#This Row],[Rate1]])^(1/12))) -> 1 | Q24: 1914 | R24: 0 | S24: =IF(OFFSET(ROWInflationTable[[#This Row],[12]],-1,0)>0,(1+ROWInflationTable[[#This Row],[Rate1]])^(1/12)*OFFSET(ROWInflationTable[[#This Row],[12]],-1,0),IF(EstLastUpdate>DATE(ROWInflationTable[[#This Row],[Year]],1,1),0,(1+ROWInflationTable[[#This Row],[Rate1]])^(1/12))) -> 1 | T24: =IF(ROWInflationTable[[#This Row],[1]]>0,(1+ROWInflationTable[[#This Row],[Rate1]])^(1/12)*ROWInflationTable[[#This Row],[1]],IF(EstLastUpdate>DATE(ROWInflationTable[[#This Row],[Year]],2,1),0,(1+ROWInflationTable[[#This Row],[Rate1]])^(1/12))) -> 1 | U24: =IF(ROWInflationTable[[#This Row],[2]]>0,(1+ROWInflationTable[[#This Row],[Rate1]])^(1/12)*ROWInflationTable[[#This Row],[2]],IF(EstLastUpdate>DATE(ROWInflationTable[[#This Row],[Year]],3,1),0,(1+ROWInflationTable[[#This Row],[Rate1]])^(1/12))) -> 1 | V24: =IF(ROWInflationTable[[#This Row],[3]]>0,(1+ROWInflationTable[[#This Row],[Rate1]])^(1/12)*ROWInflationTable[[#This Row],[3]],IF(EstLastUpdate>DATE(ROWInflationTable[[#This Row],[Year]],4,1),0,(1+ROWInflationTable[[#This Row],[Rate1]])^(1/12))) -> 1 | W24: =IF(ROWInflationTable[[#This Row],[4]]>0,(1+ROWInflationTable[[#This Row],[Rate1]])^(1/12)*ROWInflationTable[[#This Row],[4]],IF(EstLastUpdate>DATE(ROWInflationTable[[#This Row],[Year]],5,1),0,(1+ROWInflationTable[[#This Row],[Rate1]])^(1/12))) -> 1 | X24: =IF(ROWInflationTable[[#This Row],[5]]>0,(1+ROWInflationTable[[#This Row],[Rate1]])^(1/12)*ROWInflationTable[[#This Row],[5]],IF(EstLastUpdate>DATE(ROWInflationTable[[#This Row],[Year]],6,1),0,(1+ROWInflationTable[[#This Row],[Rate1]])^(1/12))) -> 1 | Y24: =IF(ROWInflationTable[[#This Row],[6]]>0,(1+ROWInflationTable[[#This Row],[Rate1]])^(1/12)*ROWInflationTable[[#This Row],[6]],IF(EstLastUpdate>DATE(ROWInflationTable[[#This Row],[Year]],7,1),0,(1+ROWInflationTable[[#This Row],[Rate1]])^(1/12))) -> 1 | Z24: =IF(ROWInflationTable[[#This Row],[7]]>0,(1+ROWInflationTable[[#This Row],[Rate1]])^(1/12)*ROWInflationTable[[#This Row],[7]],IF(EstLastUpdate>DATE(ROWInflationTable[[#This Row],[Year]],8,1),0,(1+ROWInflationTable[[#This Row],[Rate1]])^(1/12))) -> 1 | AA24: =IF(ROWInflationTable[[#This Row],[8]]>0,(1+ROWInflationTable[[#This Row],[Rate1]])^(1/12)*ROWInflationTable[[#This Row],[8]],IF(EstLastUpdate>DATE(ROWInflationTable[[#This Row],[Year]],9,1),0,(1+ROWInflationTable[[#This Row],[Rate1]])^(1/12))) -> 1 | AB24: =IF(ROWInflationTable[[#This Row],[9]]>0,(1+ROWInflationTable[[#This Row],[Rate1]])^(1/12)*ROWInflationTable[[#This Row],[9]],IF(EstLastUpdate>DATE(ROWInflationTable[[#This Row],[Year]],10,1),0,(1+ROWInflationTable[[#This Row],[Rate1]])^(1/12))) -> 1 | AC24: =IF(ROWInflationTable[[#This Row],[10]]>0,(1+ROWInflationTable[[#This Row],[Rate1]])^(1/12)*ROWInflationTable[[#This Row],[10]],IF(EstLastUpdate>DATE(ROWInflationTable[[#This Row],[Year]],11,1),0,(1+ROWInflationTable[[#This Row],[Rate1]])^(1/12))) -> 1 | AD24: =IF(ROWInflationTable[[#This Row],[11]]>0,(1+ROWInflationTable[[#This Row],[Rate1]])^(1/12)*ROWInflationTable[[#This Row],[11]],IF(EstLastUpdate>DATE(ROWInflationTable[[#This Row],[Year]],12,1),0,(1+ROWInflationTable[[#This Row],[Rate1]])^(1/12))) -> 1 | AF24: 1914 | AG24: 0 | AH24: =IF(OFFSET(CNInflationTable[[#This Row],[12]],-1,0)>0,(1+CNInflationTable[[#This Row],[Rate1]])^(1/12)*OFFSET(CNInflationTable[[#This Row],[12]],-1,0),IF(EstLastUpdate>DATE(CNInflationTable[[#This Row],[Year]],1,1),0,(1+CNInflationTable[[#This Row],[Rate1]])^(1/12))) -> 1 | AI24: =IF(CNInflationTable[[#This Row],[1]]>0,(1+CNInflationTable[[#This Row],[Rate1]])^(1/12)*CNInflationTable[[#This Row],[1]],IF(EstLastUpdate>DATE(CNInflationTable[[#This Row],[Year]],2,1),0,(1+CNInflationTable[[#This Row],[Rate1]])^(1/12))) -> 1 | AJ24: =IF(CNInflationTable[[#This Row],[2]]>0,(1+CNInflationTable[[#This Row],[Rate1]])^(1/12)*CNInflationTable[[#This Row],[2]],IF(EstLastUpdate>DATE(CNInflationTable[[#This Row],[Year]],3,1),0,(1+CNInflationTable[[#This Row],[Rate1]])^(1/12))) -> 1 | AK24: =IF(CNInflationTable[[#This Row],[3]]>0,(1+CNInflationTable[[#This Row],[Rate1]])^(1/12)*CNInflationTable[[#This Row],[3]],IF(EstLastUpdate>DATE(CNInflationTable[[#This Row],[Year]],4,1),0,(1+CNInflationTable[[#This Row],[Rate1]])^(1/12))) -> 1 | AL24: =IF(CNInflationTable[[#This Row],[4]]>0,(1+CNInflationTable[[#This Row],[Rate1]])^(1/12)*CNInflationTable[[#This Row],[4]],IF(EstLastUpdate>DATE(CNInflationTable[[#This Row],[Year]],5,1),0,(1+CNInflationTable[[#This Row],[Rate1]])^(1/12))) -> 1 | AM24: =IF(CNInflationTable[[#This Row],[5]]>0,(1+CNInflationTable[[#This Row],[Rate1]])^(1/12)*CNInflationTable[[#This Row],[5]],IF(EstLastUpdate>DATE(CNInflationTable[[#This Row],[Year]],6,1),0,(1+CNInflationTable[[#This Row],[Rate1]])^(1/12))) -> 1 | AN24: =IF(CNInflationTable[[#This Row],[6]]>0,(1+CNInflationTable[[#This Row],[Rate1]])^(1/12)*CNInflationTable[[#This Row],[6]],IF(EstLastUpdate>DATE(CNInflationTable[[#This Row],[Year]],7,1),0,(1+CNInflationTable[[#This Row],[Rate1]])^(1/12))) -> 1 | AO24: =IF(CNInflationTable[[#This Row],[7]]>0,(1+CNInflationTable[[#This Row],[Rate1]])^(1/12)*CNInflationTable[[#This Row],[7]],IF(EstLastUpdate>DATE(CNInflationTable[[#This Row],[Year]],8,1),0,(1+CNInflationTable[[#This Row],[Rate1]])^(1/12))) -> 1 | AP24: =IF(CNInflationTable[[#This Row],[8]]>0,(1+CNInflationTable[[#This Row],[Rate1]])^(1/12)*CNInflationTable[[#This Row],[8]],IF(EstLastUpdate>DATE(CNInflationTable[[#This Row],[Year]],9,1),0,(1+CNInflationTable[[#This Row],[Rate1]])^(1/12))) -> 1 | AQ24: =IF(CNInflationTable[[#This Row],[9]]>0,(1+CNInflationTable[[#This Row],[Rate1]])^(1/12)*CNInflationTable[[#This Row],[9]],IF(EstLastUpdate>DATE(CNInflationTable[[#This Row],[Year]],10,1),0,(1+CNInflationTable[[#This Row],[Rate1]])^(1/12))) -> 1 | AR24: =IF(CNInflationTable[[#This Row],[10]]>0,(1+CNInflationTable[[#This Row],[Rate1]])^(1/12)*CNInflationTable[[#This Row],[10]],IF(EstLastUpdate>DATE(CNInflationTable[[#This Row],[Year]],11,1),0,(1+CNInflationTable[[#This Row],[Rate1]])^(1/12))) -> 1 | AS24: =IF(CNInflationTable[[#This Row],[11]]>0,(1+CNInflationTable[[#This Row],[Rate1]])^(1/12)*CNInflationTable[[#This Row],[11]],IF(EstLastUpdate>DATE(CNInflationTable[[#This Row],[Year]],12,1),0,(1+CNInflationTable[[#This Row],[Rate1]])^(1/12))) -> 1 | AU24: 1914 | AV24: 0 | AW24: =IF(OFFSET(UTInflationTable[[#This Row],[12]],-1,0)>0,(1+UTInflationTable[[#This Row],[Rate1]])^(1/12)*OFFSET(UTInflationTable[[#This Row],[12]],-1,0),IF(EstLastUpdate>DATE(UTInflationTable[[#This Row],[Year]],1,1),0,(1+UTInflationTable[[#This Row],[Rate1]])^(1/12))) -> 1 | AX24: =IF(UTInflationTable[[#This Row],[1]]>0,(1+UTInflationTable[[#This Row],[Rate1]])^(1/12)*UTInflationTable[[#This Row],[1]],IF(EstLastUpdate>DATE(UTInflationTable[[#This Row],[Year]],2,1),0,(1+UTInflationTable[[#This Row],[Rate1]])^(1/12))) -> 1 | AY24: =IF(UTInflationTable[[#This Row],[2]]>0,(1+UTInflationTable[[#This Row],[Rate1]])^(1/12)*UTInflationTable[[#This Row],[2]],IF(EstLastUpdate>DATE(UTInflationTable[[#This Row],[Year]],3,1),0,(1+UTInflationTable[[#This Row],[Rate1]])^(1/12))) -> 1 | AZ24: =IF(UTInflationTable[[#This Row],[3]]>0,(1+UTInflationTable[[#This Row],[Rate1]])^(1/12)*UTInflationTable[[#This Row],[3]],IF(EstLastUpdate>DATE(UTInflationTable[[#This Row],[Year]],4,1),0,(1+UTInflationTable[[#This Row],[Rate1]])^(1/12))) -> 1 | BA24: =IF(UTInflationTable[[#This Row],[4]]>0,(1+UTInflationTable[[#This Row],[Rate1]])^(1/12)*UTInflationTable[[#This Row],[4]],IF(EstLastUpdate>DATE(UTInflationTable[[#This Row],[Year]],5,1),0,(1+UTInflationTable[[#This Row],[Rate1]])^(1/12))) -> 1 | BB24: =IF(UTInflationTable[[#This Row],[5]]>0,(1+UTInflationTable[[#This Row],[Rate1]])^(1/12)*UTInflationTable[[#This Row],[5]],IF(EstLastUpdate>DATE(UTInflationTable[[#This Row],[Year]],6,1),0,(1+UTInflationTable[[#This Row],[Rate1]])^(1/12))) -> 1 | BC24: =IF(UTInflationTable[[#This Row],[6]]>0,(1+UTInflationTable[[#This Row],[Rate1]])^(1/12)*UTInflationTable[[#This Row],[6]],IF(EstLastUpdate>DATE(UTInflationTable[[#This Row],[Year]],7,1),0,(1+UTInflationTable[[#This Row],[Rate1]])^(1/12))) -> 1 | BD24: =IF(UTInflationTable[[#This Row],[7]]>0,(1+UTInflationTable[[#This Row],[Rate1]])^(1/12)*UTInflationTable[[#This Row],[7]],IF(EstLastUpdate>DATE(UTInflationTable[[#This Row],[Year]],8,1),0,(1+UTInflationTable[[#This Row],[Rate1]])^(1/12))) -> 1 | BE24: =IF(UTInflationTable[[#This Row],[8]]>0,(1+UTInflationTable[[#This Row],[Rate1]])^(1/12)*UTInflationTable[[#This Row],[8]],IF(EstLastUpdate>DATE(UTInflationTable[[#This Row],[Year]],9,1),0,(1+UTInflationTable[[#This Row],[Rate1]])^(1/12))) -> 1 | BF24: =IF(UTInflationTable[[#This Row],[9]]>0,(1+UTInflationTable[[#This Row],[Rate1]])^(1/12)*UTInflationTable[[#This Row],[9]],IF(EstLastUpdate>DATE(UTInflationTable[[#This Row],[Year]],10,1),0,(1+UTInflationTable[[#This Row],[Rate1]])^(1/12))) -> 1 | BG24: =IF(UTInflationTable[[#This Row],[10]]>0,(1+UTInflationTable[[#This Row],[Rate1]])^(1/12)*UTInflationTable[[#This Row],[10]],IF(EstLastUpdate>DATE(UTInflationTable[[#This Row],[Year]],11,1),0,(1+UTInflationTable[[#This Row],[Rate1]])^(1/12))) -> 1 | BH24: =IF(UTInflationTable[[#This Row],[11]]>0,(1+UTInflationTable[[#This Row],[Rate1]])^(1/12)*UTInflationTable[[#This Row],[11]],IF(EstLastUpdate>DATE(UTInflationTable[[#This Row],[Year]],12,1),0,(1+UTInflationTable[[#This Row],[Rate1]])^(1/12))) -> 1
